Workbook

Sheet MainDisplay
E1: X.US.WSUGWWT
H2: CQG US Dept of Agriculture and USDA - WASDE Data | Z2: Ribbon | AB2: =RTD("cqg.rtd", ,"SystemInfo", "Linetime") -> 43921.37442
B4: Description: | D4: =Sheet1!I4 -> U.S. Sorghum Supply and Use ($/bu) Avg. Farm Price (Marketing year weighted average price received by farmers) | Q4: Description: | S4: =Sheet2!I4 -> World Wheat Supply and Use Major Importers Southeast Asia Million Metric Tons Beginning Stocks
B5: Symbol (Use X.US.) | D5: X.US.USSGSUAFP | G5: Latest Update: | J5: =Sheet1!$I$7 -> 2020-03-10 | L5: Data: | M5: =Sheet1!$J$7 -> 3.3 | O5: Chart: | P5: W | Q5: Symbol (Use X.US.) | S5: X.US.WWSUMISABS | V5: Latest Update: | Y5: =Sheet2!$I$7 -> 2020-03-10 | AA5: Data: | AB5: =Sheet2!$J$7 -> 5.44 | AD5: Chart: | AE5: W
B23: Description: | D23: =Sheet3!I4 -> Cattle Marketed on 1000+ Capacity Feedlots by Month % of previous year Colorado | Q23: Description: | S23: =Sheet4!$I$4 -> Cattle Placed on Feed 1000 Head by Weight group on 1000+ capacity Feedlots and Month Total Other States
B24: Symbol (Use X.US.) | D24: X.US.CMO1CFMPYCO | G24: Latest Update: | J24: =Sheet3!$I$7 -> 2020-03-20 | L24: Data: | M24: =Sheet3!$J$7 -> 124 | O24: Chart: | P24: W | Q24: Symbol (Use X.US.) | S24: X.US.CP1HWG1CFMTOS | V24: Latest Update: | Y24: =Sheet4!$I$7 -> 2020-03-20 | AA24: Data: | AB24: =Sheet4!$J$7 -> 386 | AD24: Chart: | AE24: W
B41: Copyright © 2020, CQG, Inc.

Sheet Sheet1 (hidden)
C1: DATE | D1: CLOSE | H1: Chart | I1: Symbol | J1: Continuation | K1: Decimal=T, Tick=D | L1: CustomSessionName | M1: Type All or PrimaryOnly | P1: DATE | Q1: CLOSE | T1: X.US.AWSPSUSGATAP | U1: All Wheat Stocks by Position Total all pos. 1000 bushels Georgia
A2: =IF(E2=0,0.001,1) -> 0.001 | B2: 0 | C2: =RTD("cqg.rtd",,"StudyData", $I$2, "Bar", "", "Time", $H$2,$B2, $M$2, "", "","False") -> 2020-03-30 | D2: =IF(RTD("cqg.rtd",,"StudyData", $I$2, "Bar", "", "Close", $H$2, $B2, $M$2,$L$2,,$J$2,$K$2)="",NA(),RTD("cqg.rtd",,"StudyData", $I$2, "Bar", "", "Close", $H$2, $B2, $M$2,$L$2,,$J$2,$K$2)) ->  | E2: =IFERROR(D2,0) -> 0 | H2: =MainDisplay!P5 -> W | I2: =MainDisplay!D5 -> X.US.USSGSUAFP | J2: TRUE | K2: T | M2: All | N2: =IF(R2=0,0.001,1) -> 0.001 | O2: 0 | P2: =RTD("cqg.rtd",,"StudyData", $I$2, "Bar", "", "Time", $H$3,$B2, $M$2, "", "","False") -> 2020-03-31 | Q2: =IF(RTD("cqg.rtd",,"StudyData", $I$2, "Bar", "", "Close", $H$3, $B2, $M$2,$L$2,,$J$2,$K$2)="",NA(),RTD("cqg.rtd",,"StudyData", $I$2, "Bar", "", "Close", $H$3, $B2, $M$2,$L$2,,$J$2,$K$2)) ->  | R2: =IFERROR(Q2,0) -> 0 | T2: X.US.AWSPSUSIAOFF | U2: All Wheat Stocks by Position Off-farm 1000 bushels Iowa
A3: =IF(E3=0,A2+0.001,TRUNC(A2)+1) -> 0.002 | B3: =B2-1 -> -1 | C3: =RTD("cqg.rtd",,"StudyData", $I$2, "Bar", "", "Time", $H$2,$B3, $M$2, "", "","False") -> 2020-03-23 | D3: =IF(RTD("cqg.rtd",,"StudyData", $I$2, "Bar", "", "Close", $H$2, $B3, $M$2,$L$2,,$J$2,$K$2)="",NA(),RTD("cqg.rtd",,"StudyData", $I$2, "Bar", "", "Close", $H$2, $B3, $M$2,$L$2,,$J$2,$K$2)) ->  | E3: =IFERROR(D3,0) -> 0 | H3: D | N3: =IF(R3=0,N2+0.001,TRUNC(N2)+1) -> 0.002 | O3: =O2-1 -> -1 | P3: =RTD("cqg.rtd",,"StudyData", $I$2, "Bar", "", "Time", $H$3,$B3, $M$2, "", "","False") -> 2020-03-30 | Q3: =IF(RTD("cqg.rtd",,"StudyData", $I$2, "Bar", "", "Close", $H$3, $B3, $M$2,$L$2,,$J$2,$K$2)="",NA(),RTD("cqg.rtd",,"StudyData", $I$2, "Bar", "", "Close", $H$3, $B3, $M$2,$L$2,,$J$2,$K$2)) ->  | R3: =IFERROR(Q3,0) -> 0 | T3: X.US.AWSPSUSIAONF | U3: All Wheat Stocks by Position On-farm 1000 bushels Iowa
A4: =IF(E4=0,A3+0.001,TRUNC(A3)+1) -> 0.003 | B4: =B3-1 -> -2 | C4: =RTD("cqg.rtd",,"StudyData", $I$2, "Bar", "", "Time", $H$2,$B4, $M$2, "", "","False") -> 2020-03-16 | D4: =IF(RTD("cqg.rtd",,"StudyData", $I$2, "Bar", "", "Close", $H$2, $B4, $M$2,$L$2,,$J$2,$K$2)="",NA(),RTD("cqg.rtd",,"StudyData", $I$2, "Bar", "", "Close", $H$2, $B4, $M$2,$L$2,,$J$2,$K$2)) ->  | E4: 0 | I4: =VLOOKUP(I2,T1:U4431,2,FALSE) -> U.S. Sorghum Supply and Use ($/bu) Avg. Farm Price (Marketing year weighted average price received by farmers) | N4: =IF(R4=0,N3+0.001,TRUNC(N3)+1) -> 0.003 | O4: =O3-1 -> -2 | P4: =RTD("cqg.rtd",,"StudyData", $I$2, "Bar", "", "Time", $H$3,$B4, $M$2, "", "","False") -> 2020-03-27 | Q4: =IF(RTD("cqg.rtd",,"StudyData", $I$2, "Bar", "", "Close", $H$3, $B4, $M$2,$L$2,,$J$2,$K$2)="",NA(),RTD("cqg.rtd",,"StudyData", $I$2, "Bar", "", "Close", $H$3, $B4, $M$2,$L$2,,$J$2,$K$2)) ->  | R4: 0 | T4: X.US.AWSPSUSIATAP | U4: All Wheat Stocks by Position Total all pos. 1000 bushels Iowa
A5: 1 | B5: -3 | C5: =RTD("cqg.rtd",,"StudyData", $I$2, "Bar", "", "Time", $H$2,$B5, $M$2, "", "","False") -> 2020-03-09 | D5: =IF(RTD("cqg.rtd",,"StudyData", $I$2, "Bar", "", "Close", $H$2, $B5, $M$2,$L$2,,$J$2,$K$2)="",NA(),RTD("cqg.rtd",,"StudyData", $I$2, "Bar", "", "Close", $H$2, $B5, $M$2,$L$2,,$J$2,$K$2)) -> 3.3 | E5: 3.3 | N5: 0.004 | O5: -3 | P5: =RTD("cqg.rtd",,"StudyData", $I$2, "Bar", "", "Time", $H$3,$B5, $M$2, "", "","False") -> 2020-03-26 | Q5: =IF(RTD("cqg.rtd",,"StudyData", $I$2, "Bar", "", "Close", $H$3, $B5, $M$2,$L$2,,$J$2,$K$2)="",NA(),RTD("cqg.rtd",,"StudyData", $I$2, "Bar", "", "Close", $H$3, $B5, $M$2,$L$2,,$J$2,$K$2)) ->  | R5: 0 | T5: X.US.AWSPSUSIDOFF | U5: All Wheat Stocks by Position Off-farm 1000 bushels Idaho
A6: 1.001 | B6: -4 | C6: =RTD("cqg.rtd",,"StudyData", $I$2, "Bar", "", "Time", $H$2,$B6, $M$2, "", "","False") -> 2020-03-02 | D6: =IF(RTD("cqg.rtd",,"StudyData", $I$2, "Bar", "", "Close", $H$2, $B6, $M$2,$L$2,,$J$2,$K$2)="",NA(),RTD("cqg.rtd",,"StudyData", $I$2, "Bar", "", "Close", $H$2, $B6, $M$2,$L$2,,$J$2,$K$2)) ->  | E6: 0 | I6: Latest Date | J6: Value | N6: 0.005 | O6: -4 | P6: =RTD("cqg.rtd",,"StudyData", $I$2, "Bar", "", "Time", $H$3,$B6, $M$2, "", "","False") -> 2020-03-25 | Q6: =IF(RTD("cqg.rtd",,"StudyData", $I$2, "Bar", "", "Close", $H$3, $B6, $M$2,$L$2,,$J$2,$K$2)="",NA(),RTD("cqg.rtd",,"StudyData", $I$2, "Bar", "", "Close", $H$3, $B6, $M$2,$L$2,,$J$2,$K$2)) ->  | R6: 0 | T6: X.US.AWSPSUSIDONF | U6: All Wheat Stocks by Position On-farm 1000 bushels Idaho
A7: 1.002 | B7: -5 | C7: =RTD("cqg.rtd",,"StudyData", $I$2, "Bar", "", "Time", $H$2,$B7, $M$2, "", "","False") -> 2020-02-24 | D7: =IF(RTD("cqg.rtd",,"StudyData", $I$2, "Bar", "", "Close", $H$2, $B7, $M$2,$L$2,,$J$2,$K$2)="",NA(),RTD("cqg.rtd",,"StudyData", $I$2, "Bar", "", "Close", $H$2, $B7, $M$2,$L$2,,$J$2,$K$2)) ->  | E7: 0 | I7: =VLOOKUP(1,N2:Q302,3,FALSE) -> 2020-03-10 | J7: =VLOOKUP(1,N2:Q302,4,FALSE) -> 3.3 | N7: 0.006 | O7: -5 | P7: =RTD("cqg.rtd",,"StudyData", $I$2, "Bar", "", "Time", $H$3,$B7, $M$2, "", "","False") -> 2020-03-24 | Q7: =IF(RTD("cqg.rtd",,"StudyData", $I$2, "Bar", "", "Close", $H$3, $B7, $M$2,$L$2,,$J$2,$K$2)="",NA(),RTD("cqg.rtd",,"StudyData", $I$2, "Bar", "", "Close", $H$3, $B7, $M$2,$L$2,,$J$2,$K$2)) ->  | R7: 0 | T7: X.US.AWSPSUSIDTAP | U7: All Wheat Stocks by Position Total all pos. 1000 bushels Idaho
A8: 1.003 | B8: -6 | C8: =RTD("cqg.rtd",,"StudyData", $I$2, "Bar", "", "Time", $H$2,$B8, $M$2, "", "","False") -> 2020-02-17 | D8: =IF(RTD("cqg.rtd",,"StudyData", $I$2, "Bar", "", "Close", $H$2, $B8, $M$2,$L$2,,$J$2,$K$2)="",NA(),RTD("cqg.rtd",,"StudyData", $I$2, "Bar", "", "Close", $H$2, $B8, $M$2,$L$2,,$J$2,$K$2)) ->  | E8: 0 | N8: 0.007 | O8: -6 | P8: =RTD("cqg.rtd",,"StudyData", $I$2, "Bar", "", "Time", $H$3,$B8, $M$2, "", "","False") -> 2020-03-23 | Q8: =IF(RTD("cqg.rtd",,"StudyData", $I$2, "Bar", "", "Close", $H$3, $B8, $M$2,$L$2,,$J$2,$K$2)="",NA(),RTD("cqg.rtd",,"StudyData", $I$2, "Bar", "", "Close", $H$3, $B8, $M$2,$L$2,,$J$2,$K$2)) ->  | R8: 0 | T8: X.US.AWSPSUSILOFF | U8: All Wheat Stocks by Position Off-farm 1000 bushels Illinois
A9: 2 | B9: -7 | C9: =RTD("cqg.rtd",,"StudyData", $I$2, "Bar", "", "Time", $H$2,$B9, $M$2, "", "","False") -> 2020-02-10 | D9: =IF(RTD("cqg.rtd",,"StudyData", $I$2, "Bar", "", "Close", $H$2, $B9, $M$2,$L$2,,$J$2,$K$2)="",NA(),RTD("cqg.rtd",,"StudyData", $I$2, "Bar", "", "Close", $H$2, $B9, $M$2,$L$2,,$J$2,$K$2)) -> 3.35 | E9: 3.35 | N9: 0.008 | O9: -7 | P9: =RTD("cqg.rtd",,"StudyData", $I$2, "Bar", "", "Time", $H$3,$B9, $M$2, "", "","False") -> 2020-03-20 | Q9: =IF(RTD("cqg.rtd",,"StudyData", $I$2, "Bar", "", "Close", $H$3, $B9, $M$2,$L$2,,$J$2,$K$2)="",NA(),RTD("cqg.rtd",,"StudyData", $I$2, "Bar", "", "Close", $H$3, $B9, $M$2,$L$2,,$J$2,$K$2)) ->  | R9: 0 | T9: X.US.AWSPSUSILONF | U9: All Wheat Stocks by Position On-farm 1000 bushels Illinois
A10: 2.001 | B10: -8 | C10: =RTD("cqg.rtd",,"StudyData", $I$2, "Bar", "", "Time", $H$2,$B10, $M$2, "", "","False") -> 2020-02-03 | D10: =IF(RTD("cqg.rtd",,"StudyData", $I$2, "Bar", "", "Close", $H$2, $B10, $M$2,$L$2,,$J$2,$K$2)="",NA(),RTD("cqg.rtd",,"StudyData", $I$2, "Bar", "", "Close", $H$2, $B10, $M$2,$L$2,,$J$2,$K$2)) ->  | E10: 0 | N10: =IF(R10=0,N9+0.001,TRUNC(N9)+1) -> 0.009 | O10: -8 | P10: =RTD("cqg.rtd",,"StudyData", $I$2, "Bar", "", "Time", $H$3,$B10, $M$2, "", "","False") -> 2020-03-19 | Q10: =IF(RTD("cqg.rtd",,"StudyData", $I$2, "Bar", "", "Close", $H$3, $B10, $M$2,$L$2,,$J$2,$K$2)="",NA(),RTD("cqg.rtd",,"StudyData", $I$2, "Bar", "", "Close", $H$3, $B10, $M$2,$L$2,,$J$2,$K$2)) ->  | R10: =IFERROR(Q10,0) -> 0 | T10: X.US.AWSPSUSILTAP | U10: All Wheat Stocks by Position Total all pos. 1000 bushels Illinois
A11: 2.002 | B11: -9 | C11: =RTD("cqg.rtd",,"StudyData", $I$2, "Bar", "", "Time", $H$2,$B11, $M$2, "", "","False") -> 2020-01-27 | D11: =IF(RTD("cqg.rtd",,"StudyData", $I$2, "Bar", "", "Close", $H$2, $B11, $M$2,$L$2,,$J$2,$K$2)="",NA(),RTD("cqg.rtd",,"StudyData", $I$2, "Bar", "", "Close", $H$2, $B11, $M$2,$L$2,,$J$2,$K$2)) ->  | E11: 0 | N11: 0.01 | O11: -9 | P11: =RTD("cqg.rtd",,"StudyData", $I$2, "Bar", "", "Time", $H$3,$B11, $M$2, "", "","False") -> 2020-03-18 | Q11: =IF(RTD("cqg.rtd",,"StudyData", $I$2, "Bar", "", "Close", $H$3, $B11, $M$2,$L$2,,$J$2,$K$2)="",NA(),RTD("cqg.rtd",,"StudyData", $I$2, "Bar", "", "Close", $H$3, $B11, $M$2,$L$2,,$J$2,$K$2)) ->  | R11: 0 | T11: X.US.AWSPSUSINOFF | U11: All Wheat Stocks by Position Off-farm 1000 bushels Indiana
A12: 2.003 | B12: -10 | C12: =RTD("cqg.rtd",,"StudyData", $I$2, "Bar", "", "Time", $H$2,$B12, $M$2, "", "","False") -> 2020-01-20 | D12: =IF(RTD("cqg.rtd",,"StudyData", $I$2, "Bar", "", "Close", $H$2, $B12, $M$2,$L$2,,$J$2,$K$2)="",NA(),RTD("cqg.rtd",,"StudyData", $I$2, "Bar", "", "Close", $H$2, $B12, $M$2,$L$2,,$J$2,$K$2)) ->  | E12: 0 | N12: 0.011 | O12: -10 | P12: =RTD("cqg.rtd",,"StudyData", $I$2, "Bar", "", "Time", $H$3,$B12, $M$2, "", "","False") -> 2020-03-17 | Q12: =IF(RTD("cqg.rtd",,"StudyData", $I$2, "Bar", "", "Close", $H$3, $B12, $M$2,$L$2,,$J$2,$K$2)="",NA(),RTD("cqg.rtd",,"StudyData", $I$2, "Bar", "", "Close", $H$3, $B12, $M$2,$L$2,,$J$2,$K$2)) ->  | R12: 0 | T12: X.US.AWSPSUSINONF | U12: All Wheat Stocks by Position On-farm 1000 bushels Indiana
A13: 2.004 | B13: -11 | C13: =RTD("cqg.rtd",,"StudyData", $I$2, "Bar", "", "Time", $H$2,$B13, $M$2, "", "","False") -> 2020-01-13 | D13: =IF(RTD("cqg.rtd",,"StudyData", $I$2, "Bar", "", "Close", $H$2, $B13, $M$2,$L$2,,$J$2,$K$2)="",NA(),RTD("cqg.rtd",,"StudyData", $I$2, "Bar", "", "Close", $H$2, $B13, $M$2,$L$2,,$J$2,$K$2)) ->  | E13: 0 | N13: 0.012 | O13: -11 | P13: =RTD("cqg.rtd",,"StudyData", $I$2, "Bar", "", "Time", $H$3,$B13, $M$2, "", "","False") -> 2020-03-16 | Q13: =IF(RTD("cqg.rtd",,"StudyData", $I$2, "Bar", "", "Close", $H$3, $B13, $M$2,$L$2,,$J$2,$K$2)="",NA(),RTD("cqg.rtd",,"StudyData", $I$2, "Bar", "", "Close", $H$3, $B13, $M$2,$L$2,,$J$2,$K$2)) ->  | R13: 0 | T13: X.US.AWSPSUSINTAP | U13: All Wheat Stocks by Position Total all pos. 1000 bushels Indiana
A14: 3 | B14: -12 | C14: =RTD("cqg.rtd",,"StudyData", $I$2, "Bar", "", "Time", $H$2,$B14, $M$2, "", "","False") -> 2020-01-06 | D14: =IF(RTD("cqg.rtd",,"StudyData", $I$2, "Bar", "", "Close", $H$2, $B14, $M$2,$L$2,,$J$2,$K$2)="",NA(),RTD("cqg.rtd",,"StudyData", $I$2, "Bar", "", "Close", $H$2, $B14, $M$2,$L$2,,$J$2,$K$2)) -> 3.4 | E14: 3.4 | N14: 0.013 | O14: -12 | P14: =RTD("cqg.rtd",,"StudyData", $I$2, "Bar", "", "Time", $H$3,$B14, $M$2, "", "","False") -> 2020-03-13 | Q14: =IF(RTD("cqg.rtd",,"StudyData", $I$2, "Bar", "", "Close", $H$3, $B14, $M$2,$L$2,,$J$2,$K$2)="",NA(),RTD("cqg.rtd",,"StudyData", $I$2, "Bar", "", "Close", $H$3, $B14, $M$2,$L$2,,$J$2,$K$2)) ->  | R14: 0 | T14: X.US.AWSPSUSKSOFF | U14: All Wheat Stocks by Position Off-farm 1000 bushels Kansas
A15: 3.001 | B15: -13 | C15: =RTD("cqg.rtd",,"StudyData", $I$2, "Bar", "", "Time", $H$2,$B15, $M$2, "", "","False") -> 2019-12-30 | D15: =IF(RTD("cqg.rtd",,"StudyData", $I$2, "Bar", "", "Close", $H$2, $B15, $M$2,$L$2,,$J$2,$K$2)="",NA(),RTD("cqg.rtd",,"StudyData", $I$2, "Bar", "", "Close", $H$2, $B15, $M$2,$L$2,,$J$2,$K$2)) ->  | E15: 0 | N15: 0.014 | O15: -13 | P15: =RTD("cqg.rtd",,"StudyData", $I$2, "Bar", "", "Time", $H$3,$B15, $M$2, "", "","False") -> 2020-03-12 | Q15: =IF(RTD("cqg.rtd",,"StudyData", $I$2, "Bar", "", "Close", $H$3, $B15, $M$2,$L$2,,$J$2,$K$2)="",NA(),RTD("cqg.rtd",,"StudyData", $I$2, "Bar", "", "Close", $H$3, $B15, $M$2,$L$2,,$J$2,$K$2)) ->  | R15: 0 | T15: X.US.AWSPSUSKSONF | U15: All Wheat Stocks by Position On-farm 1000 bushels Kansas
A16: 3.002 | B16: -14 | C16: =RTD("cqg.rtd",,"StudyData", $I$2, "Bar", "", "Time", $H$2,$B16, $M$2, "", "","False") -> 2019-12-23 | D16: =IF(RTD("cqg.rtd",,"StudyData", $I$2, "Bar", "", "Close", $H$2, $B16, $M$2,$L$2,,$J$2,$K$2)="",NA(),RTD("cqg.rtd",,"StudyData", $I$2, "Bar", "", "Close", $H$2, $B16, $M$2,$L$2,,$J$2,$K$2)) ->  | E16: 0 | N16: 0.015 | O16: -14 | P16: =RTD("cqg.rtd",,"StudyData", $I$2, "Bar", "", "Time", $H$3,$B16, $M$2, "", "","False") -> 2020-03-11 | Q16: =IF(RTD("cqg.rtd",,"StudyData", $I$2, "Bar", "", "Close", $H$3, $B16, $M$2,$L$2,,$J$2,$K$2)="",NA(),RTD("cqg.rtd",,"StudyData", $I$2, "Bar", "", "Close", $H$3, $B16, $M$2,$L$2,,$J$2,$K$2)) ->  | R16: 0 | T16: X.US.AWSPSUSKSTAP | U16: All Wheat Stocks by Position Total all pos. 1000 bushels Kansas
A17: 3.003 | B17: -15 | C17: =RTD("cqg.rtd",,"StudyData", $I$2, "Bar", "", "Time", $H$2,$B17, $M$2, "", "","False") -> 2019-12-16 | D17: =IF(RTD("cqg.rtd",,"StudyData", $I$2, "Bar", "", "Close", $H$2, $B17, $M$2,$L$2,,$J$2,$K$2)="",NA(),RTD("cqg.rtd",,"StudyData", $I$2, "Bar", "", "Close", $H$2, $B17, $M$2,$L$2,,$J$2,$K$2)) ->  | E17: 0 | N17: 1 | O17: -15 | P17: =RTD("cqg.rtd",,"StudyData", $I$2, "Bar", "", "Time", $H$3,$B17, $M$2, "", "","False") -> 2020-03-10 | Q17: =IF(RTD("cqg.rtd",,"StudyData", $I$2, "Bar", "", "Close", $H$3, $B17, $M$2,$L$2,,$J$2,$K$2)="",NA(),RTD("cqg.rtd",,"StudyData", $I$2, "Bar", "", "Close", $H$3, $B17, $M$2,$L$2,,$J$2,$K$2)) -> 3.3 | R17: 3.3 | T17: X.US.AWSPSUSKYOFF | U17: All Wheat Stocks by Position Off-farm 1000 bushels Kentucky
A18: 4 | B18: -16 | C18: =RTD("cqg.rtd",,"StudyData", $I$2, "Bar", "", "Time", $H$2,$B18, $M$2, "", "","False") -> 2019-12-09 | D18: =IF(RTD("cqg.rtd",,"StudyData", $I$2, "Bar", "", "Close", $H$2, $B18, $M$2,$L$2,,$J$2,$K$2)="",NA(),RTD("cqg.rtd",,"StudyData", $I$2, "Bar", "", "Close", $H$2, $B18, $M$2,$L$2,,$J$2,$K$2)) -> 3.4 | E18: 3.4 | N18: 1.001 | O18: -16 | P18: =RTD("cqg.rtd",,"StudyData", $I$2, "Bar", "", "Time", $H$3,$B18, $M$2, "", "","False") -> 2020-03-09 | Q18: =IF(RTD("cqg.rtd",,"StudyData", $I$2, "Bar", "", "Close", $H$3, $B18, $M$2,$L$2,,$J$2,$K$2)="",NA(),RTD("cqg.rtd",,"StudyData", $I$2, "Bar", "", "Close", $H$3, $B18, $M$2,$L$2,,$J$2,$K$2)) ->  | R18: 0 | T18: X.US.AWSPSUSKYONF | U18: All Wheat Stocks by Position On-farm 1000 bushels Kentucky
A19: 4.001 | B19: -17 | C19: =RTD("cqg.rtd",,"StudyData", $I$2, "Bar", "", "Time", $H$2,$B19, $M$2, "", "","False") -> 2019-12-02 | D19: =IF(RTD("cqg.rtd",,"StudyData", $I$2, "Bar", "", "Close", $H$2, $B19, $M$2,$L$2,,$J$2,$K$2)="",NA(),RTD("cqg.rtd",,"StudyData", $I$2, "Bar", "", "Close", $H$2, $B19, $M$2,$L$2,,$J$2,$K$2)) ->  | E19: 0 | N19: 1.002 | O19: -17 | P19: =RTD("cqg.rtd",,"StudyData", $I$2, "Bar", "", "Time", $H$3,$B19, $M$2, "", "","False") -> 2020-03-06 | Q19: =IF(RTD("cqg.rtd",,"StudyData", $I$2, "Bar", "", "Close", $H$3, $B19, $M$2,$L$2,,$J$2,$K$2)="",NA(),RTD("cqg.rtd",,"StudyData", $I$2, "Bar", "", "Close", $H$3, $B19, $M$2,$L$2,,$J$2,$K$2)) ->  | R19: 0 | T19: X.US.AWSPSUSKYTAP | U19: All Wheat Stocks by Position Total all pos. 1000 bushels Kentucky
A20: 4.002 | B20: -18 | C20: =RTD("cqg.rtd",,"StudyData", $I$2, "Bar", "", "Time", $H$2,$B20, $M$2, "", "","False") -> 2019-11-25 | D20: =IF(RTD("cqg.rtd",,"StudyData", $I$2, "Bar", "", "Close", $H$2, $B20, $M$2,$L$2,,$J$2,$K$2)="",NA(),RTD("cqg.rtd",,"StudyData", $I$2, "Bar", "", "Close", $H$2, $B20, $M$2,$L$2,,$J$2,$K$2)) ->  | E20: 0 | N20: 1.003 | O20: -18 | P20: =RTD("cqg.rtd",,"StudyData", $I$2, "Bar", "", "Time", $H$3,$B20, $M$2, "", "","False") -> 2020-03-05 | Q20: =IF(RTD("cqg.rtd",,"StudyData", $I$2, "Bar", "", "Close", $H$3, $B20, $M$2,$L$2,,$J$2,$K$2)="",NA(),RTD("cqg.rtd",,"StudyData", $I$2, "Bar", "", "Close", $H$3, $B20, $M$2,$L$2,,$J$2,$K$2)) ->  | R20: 0 | T20: X.US.AWSPSUSLAOFF | U20: All Wheat Stocks by Position Off-farm 1000 bushels Louisiana
A21: 4.003 | B21: -19 | C21: =RTD("cqg.rtd",,"StudyData", $I$2, "Bar", "", "Time", $H$2,$B21, $M$2, "", "","False") -> 2019-11-18 | D21: =IF(RTD("cqg.rtd",,"StudyData", $I$2, "Bar", "", "Close", $H$2, $B21, $M$2,$L$2,,$J$2,$K$2)="",NA(),RTD("cqg.rtd",,"StudyData", $I$2, "Bar", "", "Close", $H$2, $B21, $M$2,$L$2,,$J$2,$K$2)) ->  | E21: 0 | N21: 1.004 | O21: -19 | P21: =RTD("cqg.rtd",,"StudyData", $I$2, "Bar", "", "Time", $H$3,$B21, $M$2, "", "","False") -> 2020-03-04 | Q21: =IF(RTD("cqg.rtd",,"StudyData", $I$2, "Bar", "", "Close", $H$3, $B21, $M$2,$L$2,,$J$2,$K$2)="",NA(),RTD("cqg.rtd",,"StudyData", $I$2, "Bar", "", "Close", $H$3, $B21, $M$2,$L$2,,$J$2,$K$2)) ->  | R21: 0 | T21: X.US.AWSPSUSLAONF | U21: All Wheat Stocks by Position On-farm 1000 bushels Louisiana
A22: 4.004 | B22: -20 | C22: =RTD("cqg.rtd",,"StudyData", $I$2, "Bar", "", "Time", $H$2,$B22, $M$2, "", "","False") -> 2019-11-11 | D22: =IF(RTD("cqg.rtd",,"StudyData", $I$2, "Bar", "", "Close", $H$2, $B22, $M$2,$L$2,,$J$2,$K$2)="",NA(),RTD("cqg.rtd",,"StudyData", $I$2, "Bar", "", "Close", $H$2, $B22, $M$2,$L$2,,$J$2,$K$2)) ->  | E22: 0 | N22: 1.005 | O22: -20 | P22: =RTD("cqg.rtd",,"StudyData", $I$2, "Bar", "", "Time", $H$3,$B22, $M$2, "", "","False") -> 2020-03-03 | Q22: =IF(RTD("cqg.rtd",,"StudyData", $I$2, "Bar", "", "Close", $H$3, $B22, $M$2,$L$2,,$J$2,$K$2)="",NA(),RTD("cqg.rtd",,"StudyData", $I$2, "Bar", "", "Close", $H$3, $B22, $M$2,$L$2,,$J$2,$K$2)) ->  | R22: 0 | T22: X.US.AWSPSUSLATAP | U22: All Wheat Stocks by Position Total all pos. 1000 bushels Louisiana
A23: 5 | B23: -21 | C23: =RTD("cqg.rtd",,"StudyData", $I$2, "Bar", "", "Time", $H$2,$B23, $M$2, "", "","False") -> 2019-11-04 | D23: =IF(RTD("cqg.rtd",,"StudyData", $I$2, "Bar", "", "Close", $H$2, $B23, $M$2,$L$2,,$J$2,$K$2)="",NA(),RTD("cqg.rtd",,"StudyData", $I$2, "Bar", "", "Close", $H$2, $B23, $M$2,$L$2,,$J$2,$K$2)) -> 3.4 | E23: 3.4 | N23: 1.006 | O23: -21 | P23: =RTD("cqg.rtd",,"StudyData", $I$2, "Bar", "", "Time", $H$3,$B23, $M$2, "", "","False") -> 2020-03-02 | Q23: =IF(RTD("cqg.rtd",,"StudyData", $I$2, "Bar", "", "Close", $H$3, $B23, $M$2,$L$2,,$J$2,$K$2)="",NA(),RTD("cqg.rtd",,"StudyData", $I$2, "Bar", "", "Close", $H$3, $B23, $M$2,$L$2,,$J$2,$K$2)) ->  | R23: 0 | T23: X.US.AWSPSUSMDOFF | U23: All Wheat Stocks by Position Off-farm 1000 bushels Maryland
A24: 5.001 | B24: -22 | C24: =RTD("cqg.rtd",,"StudyData", $I$2, "Bar", "", "Time", $H$2,$B24, $M$2, "", "","False") -> 2019-10-28 | D24: =IF(RTD("cqg.rtd",,"StudyData", $I$2, "Bar", "", "Close", $H$2, $B24, $M$2,$L$2,,$J$2,$K$2)="",NA(),RTD("cqg.rtd",,"StudyData", $I$2, "Bar", "", "Close", $H$2, $B24, $M$2,$L$2,,$J$2,$K$2)) ->  | E24: 0 | N24: 1.007 | O24: -22 | P24: =RTD("cqg.rtd",,"StudyData", $I$2, "Bar", "", "Time", $H$3,$B24, $M$2, "", "","False") -> 2020-02-28 | Q24: =IF(RTD("cqg.rtd",,"StudyData", $I$2, "Bar", "", "Close", $H$3, $B24, $M$2,$L$2,,$J$2,$K$2)="",NA(),RTD("cqg.rtd",,"StudyData", $I$2, "Bar", "", "Close", $H$3, $B24, $M$2,$L$2,,$J$2,$K$2)) ->  | R24: 0 | T24: X.US.AWSPSUSMDONF | U24: All Wheat Stocks by Position On-farm 1000 bushels Maryland
A25: 5.002 | B25: -23 | C25: =RTD("cqg.rtd",,"StudyData", $I$2, "Bar", "", "Time", $H$2,$B25, $M$2, "", "","False") -> 2019-10-21 | D25: =IF(RTD("cqg.rtd",,"StudyData", $I$2, "Bar", "", "Close", $H$2, $B25, $M$2,$L$2,,$J$2,$K$2)="",NA(),RTD("cqg.rtd",,"StudyData", $I$2, "Bar", "", "Close", $H$2, $B25, $M$2,$L$2,,$J$2,$K$2)) ->  | E25: 0 | N25: 1.008 | O25: -23 | P25: =RTD("cqg.rtd",,"StudyData", $I$2, "Bar", "", "Time", $H$3,$B25, $M$2, "", "","False") -> 2020-02-27 | Q25: =IF(RTD("cqg.rtd",,"StudyData", $I$2, "Bar", "", "Close", $H$3, $B25, $M$2,$L$2,,$J$2,$K$2)="",NA(),RTD("cqg.rtd",,"StudyData", $I$2, "Bar", "", "Close", $H$3, $B25, $M$2,$L$2,,$J$2,$K$2)) ->  | R25: 0 | T25: X.US.AWSPSUSMDTAP | U25: All Wheat Stocks by Position Total all pos. 1000 bushels Maryland
A26: 5.003 | B26: -24 | C26: =RTD("cqg.rtd",,"StudyData", $I$2, "Bar", "", "Time", $H$2,$B26, $M$2, "", "","False") -> 2019-10-14 | D26: =IF(RTD("cqg.rtd",,"StudyData", $I$2, "Bar", "", "Close", $H$2, $B26, $M$2,$L$2,,$J$2,$K$2)="",NA(),RTD("cqg.rtd",,"StudyData", $I$2, "Bar", "", "Close", $H$2, $B26, $M$2,$L$2,,$J$2,$K$2)) ->  | E26: 0 | N26: 1.009 | O26: -24 | P26: =RTD("cqg.rtd",,"StudyData", $I$2, "Bar", "", "Time", $H$3,$B26, $M$2, "", "","False") -> 2020-02-26 | Q26: =IF(RTD("cqg.rtd",,"StudyData", $I$2, "Bar", "", "Close", $H$3, $B26, $M$2,$L$2,,$J$2,$K$2)="",NA(),RTD("cqg.rtd",,"StudyData", $I$2, "Bar", "", "Close", $H$3, $B26, $M$2,$L$2,,$J$2,$K$2)) ->  | R26: 0 | T26: X.US.AWSPSUSMIOFF | U26: All Wheat Stocks by Position Off-farm 1000 bushels Michigan
A27: 6 | B27: -25 | C27: =RTD("cqg.rtd",,"StudyData", $I$2, "Bar", "", "Time", $H$2,$B27, $M$2, "", "","False") -> 2019-10-07 | D27: =IF(RTD("cqg.rtd",,"StudyData", $I$2, "Bar", "", "Close", $H$2, $B27, $M$2,$L$2,,$J$2,$K$2)="",NA(),RTD("cqg.rtd",,"StudyData", $I$2, "Bar", "", "Close", $H$2, $B27, $M$2,$L$2,,$J$2,$K$2)) -> 3.4 | E27: 3.4 | N27: 1.01 | O27: -25 | P27: =RTD("cqg.rtd",,"StudyData", $I$2, "Bar", "", "Time", $H$3,$B27, $M$2, "", "","False") -> 2020-02-25 | Q27: =IF(RTD("cqg.rtd",,"StudyData", $I$2, "Bar", "", "Close", $H$3, $B27, $M$2,$L$2,,$J$2,$K$2)="",NA(),RTD("cqg.rtd",,"StudyData", $I$2, "Bar", "", "Close", $H$3, $B27, $M$2,$L$2,,$J$2,$K$2)) ->  | R27: 0 | T27: X.US.AWSPSUSMIONF | U27: All Wheat Stocks by Position On-farm 1000 bushels Michigan
A28: 6.001 | B28: -26 | C28: =RTD("cqg.rtd",,"StudyData", $I$2, "Bar", "", "Time", $H$2,$B28, $M$2, "", "","False") -> 2019-09-30 | D28: =IF(RTD("cqg.rtd",,"StudyData", $I$2, "Bar", "", "Close", $H$2, $B28, $M$2,$L$2,,$J$2,$K$2)="",NA(),RTD("cqg.rtd",,"StudyData", $I$2, "Bar", "", "Close", $H$2, $B28, $M$2,$L$2,,$J$2,$K$2)) ->  | E28: 0 | N28: 1.011 | O28: -26 | P28: =RTD("cqg.rtd",,"StudyData", $I$2, "Bar", "", "Time", $H$3,$B28, $M$2, "", "","False") -> 2020-02-24 | Q28: =IF(RTD("cqg.rtd",,"StudyData", $I$2, "Bar", "", "Close", $H$3, $B28, $M$2,$L$2,,$J$2,$K$2)="",NA(),RTD("cqg.rtd",,"StudyData", $I$2, "Bar", "", "Close", $H$3, $B28, $M$2,$L$2,,$J$2,$K$2)) ->  | R28: 0 | T28: X.US.AWSPSUSMITAP | U28: All Wheat Stocks by Position Total all pos. 1000 bushels Michigan
A29: 6.002 | B29: -27 | C29: =RTD("cqg.rtd",,"StudyData", $I$2, "Bar", "", "Time", $H$2,$B29, $M$2, "", "","False") -> 2019-09-23 | D29: =IF(RTD("cqg.rtd",,"StudyData", $I$2, "Bar", "", "Close", $H$2, $B29, $M$2,$L$2,,$J$2,$K$2)="",NA(),RTD("cqg.rtd",,"StudyData", $I$2, "Bar", "", "Close", $H$2, $B29, $M$2,$L$2,,$J$2,$K$2)) ->  | E29: 0 | N29: 1.012 | O29: -27 | P29: =RTD("cqg.rtd",,"StudyData", $I$2, "Bar", "", "Time", $H$3,$B29, $M$2, "", "","False") -> 2020-02-21 | Q29: =IF(RTD("cqg.rtd",,"StudyData", $I$2, "Bar", "", "Close", $H$3, $B29, $M$2,$L$2,,$J$2,$K$2)="",NA(),RTD("cqg.rtd",,"StudyData", $I$2, "Bar", "", "Close", $H$3, $B29, $M$2,$L$2,,$J$2,$K$2)) ->  | R29: 0 | T29: X.US.AWSPSUSMNOFF | U29: All Wheat Stocks by Position Off-farm 1000 bushels Minnesota
A30: 6.003 | B30: -28 | C30: =RTD("cqg.rtd",,"StudyData", $I$2, "Bar", "", "Time", $H$2,$B30, $M$2, "", "","False") -> 2019-09-16 | D30: =IF(RTD("cqg.rtd",,"StudyData", $I$2, "Bar", "", "Close", $H$2, $B30, $M$2,$L$2,,$J$2,$K$2)="",NA(),RTD("cqg.rtd",,"StudyData", $I$2, "Bar", "", "Close", $H$2, $B30, $M$2,$L$2,,$J$2,$K$2)) ->  | E30: 0 | N30: 1.013 | O30: -28 | P30: =RTD("cqg.rtd",,"StudyData", $I$2, "Bar", "", "Time", $H$3,$B30, $M$2, "", "","False") -> 2020-02-20 | Q30: =IF(RTD("cqg.rtd",,"StudyData", $I$2, "Bar", "", "Close", $H$3, $B30, $M$2,$L$2,,$J$2,$K$2)="",NA(),RTD("cqg.rtd",,"StudyData", $I$2, "Bar", "", "Close", $H$3, $B30, $M$2,$L$2,,$J$2,$K$2)) ->  | R30: 0 | T30: X.US.AWSPSUSMNONF | U30: All Wheat Stocks by Position On-farm 1000 bushels Minnesota
A31: 7 | B31: -29 | C31: =RTD("cqg.rtd",,"StudyData", $I$2, "Bar", "", "Time", $H$2,$B31, $M$2, "", "","False") -> 2019-09-09 | D31: =IF(RTD("cqg.rtd",,"StudyData", $I$2, "Bar", "", "Close", $H$2, $B31, $M$2,$L$2,,$J$2,$K$2)="",NA(),RTD("cqg.rtd",,"StudyData", $I$2, "Bar", "", "Close", $H$2, $B31, $M$2,$L$2,,$J$2,$K$2)) -> 3.3 | E31: 3.3 | N31: 1.014 | O31: -29 | P31: =RTD("cqg.rtd",,"StudyData", $I$2, "Bar", "", "Time", $H$3,$B31, $M$2, "", "","False") -> 2020-02-19 | Q31: =IF(RTD("cqg.rtd",,"StudyData", $I$2, "Bar", "", "Close", $H$3, $B31, $M$2,$L$2,,$J$2,$K$2)="",NA(),RTD("cqg.rtd",,"StudyData", $I$2, "Bar", "", "Close", $H$3, $B31, $M$2,$L$2,,$J$2,$K$2)) ->  | R31: 0 | T31: X.US.AWSPSUSMNTAP | U31: All Wheat Stocks by Position Total all pos. 1000 bushels Minnesota
A32: 7.001 | B32: -30 | C32: =RTD("cqg.rtd",,"StudyData", $I$2, "Bar", "", "Time", $H$2,$B32, $M$2, "", "","False") -> 2019-09-02 | D32: =IF(RTD("cqg.rtd",,"StudyData", $I$2, "Bar", "", "Close", $H$2, $B32, $M$2,$L$2,,$J$2,$K$2)="",NA(),RTD("cqg.rtd",,"StudyData", $I$2, "Bar", "", "Close", $H$2, $B32, $M$2,$L$2,,$J$2,$K$2)) ->  | E32: 0 | N32: 1.015 | O32: -30 | P32: =RTD("cqg.rtd",,"StudyData", $I$2, "Bar", "", "Time", $H$3,$B32, $M$2, "", "","False") -> 2020-02-18 | Q32: =IF(RTD("cqg.rtd",,"StudyData", $I$2, "Bar", "", "Close", $H$3, $B32, $M$2,$L$2,,$J$2,$K$2)="",NA(),RTD("cqg.rtd",,"StudyData", $I$2, "Bar", "", "Close", $H$3, $B32, $M$2,$L$2,,$J$2,$K$2)) ->  | R32: 0 | T32: X.US.AWSPSUSMOOFF | U32: All Wheat Stocks by Position Off-farm 1000 bushels Missouri
A33: 7.002 | B33: -31 | C33: =RTD("cqg.rtd",,"StudyData", $I$2, "Bar", "", "Time", $H$2,$B33, $M$2, "", "","False") -> 2019-08-26 | D33: =IF(RTD("cqg.rtd",,"StudyData", $I$2, "Bar", "", "Close", $H$2, $B33, $M$2,$L$2,,$J$2,$K$2)="",NA(),RTD("cqg.rtd",,"StudyData", $I$2, "Bar", "", "Close", $H$2, $B33, $M$2,$L$2,,$J$2,$K$2)) ->  | E33: 0 | N33: 1.016 | O33: -31 | P33: =RTD("cqg.rtd",,"StudyData", $I$2, "Bar", "", "Time", $H$3,$B33, $M$2, "", "","False") -> 2020-02-17 | Q33: =IF(RTD("cqg.rtd",,"StudyData", $I$2, "Bar", "", "Close", $H$3, $B33, $M$2,$L$2,,$J$2,$K$2)="",NA(),RTD("cqg.rtd",,"StudyData", $I$2, "Bar", "", "Close", $H$3, $B33, $M$2,$L$2,,$J$2,$K$2)) ->  | R33: 0 | T33: X.US.AWSPSUSMOONF | U33: All Wheat Stocks by Position On-farm 1000 bushels Missouri
A34: 7.003 | B34: -32 | C34: =RTD("cqg.rtd",,"StudyData", $I$2, "Bar", "", "Time", $H$2,$B34, $M$2, "", "","False") -> 2019-08-19 | D34: =IF(RTD("cqg.rtd",,"StudyData", $I$2, "Bar", "", "Close", $H$2, $B34, $M$2,$L$2,,$J$2,$K$2)="",NA(),RTD("cqg.rtd",,"StudyData", $I$2, "Bar", "", "Close", $H$2, $B34, $M$2,$L$2,,$J$2,$K$2)) ->  | E34: 0 | N34: 1.017 | O34: -32 | P34: =RTD("cqg.rtd",,"StudyData", $I$2, "Bar", "", "Time", $H$3,$B34, $M$2, "", "","False") -> 2020-02-14 | Q34: =IF(RTD("cqg.rtd",,"StudyData", $I$2, "Bar", "", "Close", $H$3, $B34, $M$2,$L$2,,$J$2,$K$2)="",NA(),RTD("cqg.rtd",,"StudyData", $I$2, "Bar", "", "Close", $H$3, $B34, $M$2,$L$2,,$J$2,$K$2)) ->  | R34: 0 | T34: X.US.AWSPSUSMOTAP | U34: All Wheat Stocks by Position Total all pos. 1000 bushels Missouri
A35: 8 | B35: -33 | C35: =RTD("cqg.rtd",,"StudyData", $I$2, "Bar", "", "Time", $H$2,$B35, $M$2, "", "","False") -> 2019-08-12 | D35: =IF(RTD("cqg.rtd",,"StudyData", $I$2, "Bar", "", "Close", $H$2, $B35, $M$2,$L$2,,$J$2,$K$2)="",NA(),RTD("cqg.rtd",,"StudyData", $I$2, "Bar", "", "Close", $H$2, $B35, $M$2,$L$2,,$J$2,$K$2)) -> 3.3 | E35: 3.3 | N35: 1.018 | O35: -33 | P35: =RTD("cqg.rtd",,"StudyData", $I$2, "Bar", "", "Time", $H$3,$B35, $M$2, "", "","False") -> 2020-02-13 | Q35: =IF(RTD("cqg.rtd",,"StudyData", $I$2, "Bar", "", "Close", $H$3, $B35, $M$2,$L$2,,$J$2,$K$2)="",NA(),RTD("cqg.rtd",,"StudyData", $I$2, "Bar", "", "Close", $H$3, $B35, $M$2,$L$2,,$J$2,$K$2)) ->  | R35: 0 | T35: X.US.AWSPSUSMSOFF | U35: All Wheat Stocks by Position Off-farm 1000 bushels Mississippi
A36: 8.001 | B36: -34 | C36: =RTD("cqg.rtd",,"StudyData", $I$2, "Bar", "", "Time", $H$2,$B36, $M$2, "", "","False") -> 2019-08-05 | D36: =IF(RTD("cqg.rtd",,"StudyData", $I$2, "Bar", "", "Close", $H$2, $B36, $M$2,$L$2,,$J$2,$K$2)="",NA(),RTD("cqg.rtd",,"StudyData", $I$2, "Bar", "", "Close", $H$2, $B36, $M$2,$L$2,,$J$2,$K$2)) ->  | E36: 0 | N36: 1.019 | O36: -34 | P36: =RTD("cqg.rtd",,"StudyData", $I$2, "Bar", "", "Time", $H$3,$B36, $M$2, "", "","False") -> 2020-02-12 | Q36: =IF(RTD("cqg.rtd",,"StudyData", $I$2, "Bar", "", "Close", $H$3, $B36, $M$2,$L$2,,$J$2,$K$2)="",NA(),RTD("cqg.rtd",,"StudyData", $I$2, "Bar", "", "Close", $H$3, $B36, $M$2,$L$2,,$J$2,$K$2)) ->  | R36: 0 | T36: X.US.AWSPSUSMSONF | U36: All Wheat Stocks by Position On-farm 1000 bushels Mississippi
A37: 8.002 | B37: -35 | C37: =RTD("cqg.rtd",,"StudyData", $I$2, "Bar", "", "Time", $H$2,$B37, $M$2, "", "","False") -> 2019-07-29 | D37: =IF(RTD("cqg.rtd",,"StudyData", $I$2, "Bar", "", "Close", $H$2, $B37, $M$2,$L$2,,$J$2,$K$2)="",NA(),RTD("cqg.rtd",,"StudyData", $I$2, "Bar", "", "Close", $H$2, $B37, $M$2,$L$2,,$J$2,$K$2)) ->  | E37: 0 | N37: 2 | O37: -35 | P37: =RTD("cqg.rtd",,"StudyData", $I$2, "Bar", "", "Time", $H$3,$B37, $M$2, "", "","False") -> 2020-02-11 | Q37: =IF(RTD("cqg.rtd",,"StudyData", $I$2, "Bar", "", "Close", $H$3, $B37, $M$2,$L$2,,$J$2,$K$2)="",NA(),RTD("cqg.rtd",,"StudyData", $I$2, "Bar", "", "Close", $H$3, $B37, $M$2,$L$2,,$J$2,$K$2)) -> 3.35 | R37: 3.35 | T37: X.US.AWSPSUSMSTAP | U37: All Wheat Stocks by Position Total all pos. 1000 bushels Mississippi
A38: 8.003 | B38: -36 | C38: =RTD("cqg.rtd",,"StudyData", $I$2, "Bar", "", "Time", $H$2,$B38, $M$2, "", "","False") -> 2019-07-22 | D38: =IF(RTD("cqg.rtd",,"StudyData", $I$2, "Bar", "", "Close", $H$2, $B38, $M$2,$L$2,,$J$2,$K$2)="",NA(),RTD("cqg.rtd",,"StudyData", $I$2, "Bar", "", "Close", $H$2, $B38, $M$2,$L$2,,$J$2,$K$2)) ->  | E38: 0 | N38: 2.001 | O38: -36 | P38: =RTD("cqg.rtd",,"StudyData", $I$2, "Bar", "", "Time", $H$3,$B38, $M$2, "", "","False") -> 2020-02-10 | Q38: =IF(RTD("cqg.rtd",,"StudyData", $I$2, "Bar", "", "Close", $H$3, $B38, $M$2,$L$2,,$J$2,$K$2)="",NA(),RTD("cqg.rtd",,"StudyData", $I$2, "Bar", "", "Close", $H$3, $B38, $M$2,$L$2,,$J$2,$K$2)) ->  | R38: 0 | T38: X.US.AWSPSUSMTOFF | U38: All Wheat Stocks by Position Off-farm 1000 bushels Montana
A39: 8.004 | B39: -37 | C39: =RTD("cqg.rtd",,"StudyData", $I$2, "Bar", "", "Time", $H$2,$B39, $M$2, "", "","False") -> 2019-07-15 | D39: =IF(RTD("cqg.rtd",,"StudyData", $I$2, "Bar", "", "Close", $H$2, $B39, $M$2,$L$2,,$J$2,$K$2)="",NA(),RTD("cqg.rtd",,"StudyData", $I$2, "Bar", "", "Close", $H$2, $B39, $M$2,$L$2,,$J$2,$K$2)) ->  | E39: 0 | N39: 2.002 | O39: -37 | P39: =RTD("cqg.rtd",,"StudyData", $I$2, "Bar", "", "Time", $H$3,$B39, $M$2, "", "","False") -> 2020-02-07 | Q39: =IF(RTD("cqg.rtd",,"StudyData", $I$2, "Bar", "", "Close", $H$3, $B39, $M$2,$L$2,,$J$2,$K$2)="",NA(),RTD("cqg.rtd",,"StudyData", $I$2, "Bar", "", "Close", $H$3, $B39, $M$2,$L$2,,$J$2,$K$2)) ->  | R39: 0 | T39: X.US.AWSPSUSMTONF | U39: All Wheat Stocks by Position On-farm 1000 bushels Montana
A40: 9 | B40: -38 | C40: =RTD("cqg.rtd",,"StudyData", $I$2, "Bar", "", "Time", $H$2,$B40, $M$2, "", "","False") -> 2019-07-08 | D40: =IF(RTD("cqg.rtd",,"StudyData", $I$2, "Bar", "", "Close", $H$2, $B40, $M$2,$L$2,,$J$2,$K$2)="",NA(),RTD("cqg.rtd",,"StudyData", $I$2, "Bar", "", "Close", $H$2, $B40, $M$2,$L$2,,$J$2,$K$2)) -> 3.4 | E40: 3.4 | N40: 2.003 | O40: -38 | P40: =RTD("cqg.rtd",,"StudyData", $I$2, "Bar", "", "Time", $H$3,$B40, $M$2, "", "","False") -> 2020-02-06 | Q40: =IF(RTD("cqg.rtd",,"StudyData", $I$2, "Bar", "", "Close", $H$3, $B40, $M$2,$L$2,,$J$2,$K$2)="",NA(),RTD("cqg.rtd",,"StudyData", $I$2, "Bar", "", "Close", $H$3, $B40, $M$2,$L$2,,$J$2,$K$2)) ->  | R40: 0 | T40: X.US.AWSPSUSMTTAP | U40: All Wheat Stocks by Position Total all pos. 1000 bushels Montana
A41: 9.001 | B41: -39 | C41: =RTD("cqg.rtd",,"StudyData", $I$2, "Bar", "", "Time", $H$2,$B41, $M$2, "", "","False") -> 2019-07-01 | D41: =IF(RTD("cqg.rtd",,"StudyData", $I$2, "Bar", "", "Close", $H$2, $B41, $M$2,$L$2,,$J$2,$K$2)="",NA(),RTD("cqg.rtd",,"StudyData", $I$2, "Bar", "", "Close", $H$2, $B41, $M$2,$L$2,,$J$2,$K$2)) ->  | E41: 0 | N41: 2.004 | O41: -39 | P41: =RTD("cqg.rtd",,"StudyData", $I$2, "Bar", "", "Time", $H$3,$B41, $M$2, "", "","False") -> 2020-02-05 | Q41: =IF(RTD("cqg.rtd",,"StudyData", $I$2, "Bar", "", "Close", $H$3, $B41, $M$2,$L$2,,$J$2,$K$2)="",NA(),RTD("cqg.rtd",,"StudyData", $I$2, "Bar", "", "Close", $H$3, $B41, $M$2,$L$2,,$J$2,$K$2)) ->  | R41: 0 | T41: X.US.AWSPSUSNCOFF | U41: All Wheat Stocks by Position Off-farm 1000 bushels North Carolina
A42: 9.002 | B42: -40 | C42: =RTD("cqg.rtd",,"StudyData", $I$2, "Bar", "", "Time", $H$2,$B42, $M$2, "", "","False") -> 2019-06-24 | D42: =IF(RTD("cqg.rtd",,"StudyData", $I$2, "Bar", "", "Close", $H$2, $B42, $M$2,$L$2,,$J$2,$K$2)="",NA(),RTD("cqg.rtd",,"StudyData", $I$2, "Bar", "", "Close", $H$2, $B42, $M$2,$L$2,,$J$2,$K$2)) ->  | E42: 0 | N42: 2.005 | O42: -40 | P42: =RTD("cqg.rtd",,"StudyData", $I$2, "Bar", "", "Time", $H$3,$B42, $M$2, "", "","False") -> 2020-02-04 | Q42: =IF(RTD("cqg.rtd",,"StudyData", $I$2, "Bar", "", "Close", $H$3, $B42, $M$2,$L$2,,$J$2,$K$2)="",NA(),RTD("cqg.rtd",,"StudyData", $I$2, "Bar", "", "Close", $H$3, $B42, $M$2,$L$2,,$J$2,$K$2)) ->  | R42: 0 | T42: X.US.AWSPSUSNCONF | U42: All Wheat Stocks by Position On-farm 1000 bushels North Carolina
A43: 9.003 | B43: -41 | C43: =RTD("cqg.rtd",,"StudyData", $I$2, "Bar", "", "Time", $H$2,$B43, $M$2, "", "","False") -> 2019-06-17 | D43: =IF(RTD("cqg.rtd",,"StudyData", $I$2, "Bar", "", "Close", $H$2, $B43, $M$2,$L$2,,$J$2,$K$2)="",NA(),RTD("cqg.rtd",,"StudyData", $I$2, "Bar", "", "Close", $H$2, $B43, $M$2,$L$2,,$J$2,$K$2)) ->  | E43: 0 | N43: 2.006 | O43: -41 | P43: =RTD("cqg.rtd",,"StudyData", $I$2, "Bar", "", "Time", $H$3,$B43, $M$2, "", "","False") -> 2020-02-03 | Q43: =IF(RTD("cqg.rtd",,"StudyData", $I$2, "Bar", "", "Close", $H$3, $B43, $M$2,$L$2,,$J$2,$K$2)="",NA(),RTD("cqg.rtd",,"StudyData", $I$2, "Bar", "", "Close", $H$3, $B43, $M$2,$L$2,,$J$2,$K$2)) ->  | R43: 0 | T43: X.US.AWSPSUSNCTAP | U43: All Wheat Stocks by Position Total all pos. 1000 bushels North Carolina
A44: 10 | B44: -42 | C44: =RTD("cqg.rtd",,"StudyData", $I$2, "Bar", "", "Time", $H$2,$B44, $M$2, "", "","False") -> 2019-06-10 | D44: =IF(RTD("cqg.rtd",,"StudyData", $I$2, "Bar", "", "Close", $H$2, $B44, $M$2,$L$2,,$J$2,$K$2)="",NA(),RTD("cqg.rtd",,"StudyData", $I$2, "Bar", "", "Close", $H$2, $B44, $M$2,$L$2,,$J$2,$K$2)) -> 3.5 | E44: 3.5 | N44: 2.007 | O44: -42 | P44: =RTD("cqg.rtd",,"StudyData", $I$2, "Bar", "", "Time", $H$3,$B44, $M$2, "", "","False") -> 2020-01-31 | Q44: =IF(RTD("cqg.rtd",,"StudyData", $I$2, "Bar", "", "Close", $H$3, $B44, $M$2,$L$2,,$J$2,$K$2)="",NA(),RTD("cqg.rtd",,"StudyData", $I$2, "Bar", "", "Close", $H$3, $B44, $M$2,$L$2,,$J$2,$K$2)) ->  | R44: 0 | T44: X.US.AWSPSUSNDOFF | U44: All Wheat Stocks by Position Off-farm 1000 bushels North Dakota
A45: 10.001 | B45: -43 | C45: =RTD("cqg.rtd",,"StudyData", $I$2, "Bar", "", "Time", $H$2,$B45, $M$2, "", "","False") -> 2019-06-03 | D45: =IF(RTD("cqg.rtd",,"StudyData", $I$2, "Bar", "", "Close", $H$2, $B45, $M$2,$L$2,,$J$2,$K$2)="",NA(),RTD("cqg.rtd",,"StudyData", $I$2, "Bar", "", "Close", $H$2, $B45, $M$2,$L$2,,$J$2,$K$2)) ->  | E45: 0 | N45: 2.008 | O45: -43 | P45: =RTD("cqg.rtd",,"StudyData", $I$2, "Bar", "", "Time", $H$3,$B45, $M$2, "", "","False") -> 2020-01-30 | Q45: =IF(RTD("cqg.rtd",,"StudyData", $I$2, "Bar", "", "Close", $H$3, $B45, $M$2,$L$2,,$J$2,$K$2)="",NA(),RTD("cqg.rtd",,"StudyData", $I$2, "Bar", "", "Close", $H$3, $B45, $M$2,$L$2,,$J$2,$K$2)) ->  | R45: 0 | T45: X.US.AWSPSUSNDONF | U45: All Wheat Stocks by Position On-farm 1000 bushels North Dakota
A46: 10.002 | B46: -44 | C46: =RTD("cqg.rtd",,"StudyData", $I$2, "Bar", "", "Time", $H$2,$B46, $M$2, "", "","False") -> 2019-05-27 | D46: =IF(RTD("cqg.rtd",,"StudyData", $I$2, "Bar", "", "Close", $H$2, $B46, $M$2,$L$2,,$J$2,$K$2)="",NA(),RTD("cqg.rtd",,"StudyData", $I$2, "Bar", "", "Close", $H$2, $B46, $M$2,$L$2,,$J$2,$K$2)) ->  | E46: 0 | N46: 2.009 | O46: -44 | P46: =RTD("cqg.rtd",,"StudyData", $I$2, "Bar", "", "Time", $H$3,$B46, $M$2, "", "","False") -> 2020-01-29 | Q46: =IF(RTD("cqg.rtd",,"StudyData", $I$2, "Bar", "", "Close", $H$3, $B46, $M$2,$L$2,,$J$2,$K$2)="",NA(),RTD("cqg.rtd",,"StudyData", $I$2, "Bar", "", "Close", $H$3, $B46, $M$2,$L$2,,$J$2,$K$2)) ->  | R46: 0 | T46: X.US.AWSPSUSNDTAP | U46: All Wheat Stocks by Position Total all pos. 1000 bushels North Dakota
A47: 10.003 | B47: -45 | C47: =RTD("cqg.rtd",,"StudyData", $I$2, "Bar", "", "Time", $H$2,$B47, $M$2, "", "","False") -> 2019-05-20 | D47: =IF(RTD("cqg.rtd",,"StudyData", $I$2, "Bar", "", "Close", $H$2, $B47, $M$2,$L$2,,$J$2,$K$2)="",NA(),RTD("cqg.rtd",,"StudyData", $I$2, "Bar", "", "Close", $H$2, $B47, $M$2,$L$2,,$J$2,$K$2)) ->  | E47: 0 | N47: 2.01 | O47: -45 | P47: =RTD("cqg.rtd",,"StudyData", $I$2, "Bar", "", "Time", $H$3,$B47, $M$2, "", "","False") -> 2020-01-28 | Q47: =IF(RTD("cqg.rtd",,"StudyData", $I$2, "Bar", "", "Close", $H$3, $B47, $M$2,$L$2,,$J$2,$K$2)="",NA(),RTD("cqg.rtd",,"StudyData", $I$2, "Bar", "", "Close", $H$3, $B47, $M$2,$L$2,,$J$2,$K$2)) ->  | R47: 0 | T47: X.US.AWSPSUSNEOFF | U47: All Wheat Stocks by Position Off-farm 1000 bushels Nebraska
A48: 10.004 | B48: -46 | C48: =RTD("cqg.rtd",,"StudyData", $I$2, "Bar", "", "Time", $H$2,$B48, $M$2, "", "","False") -> 2019-05-13 | D48: =IF(RTD("cqg.rtd",,"StudyData", $I$2, "Bar", "", "Close", $H$2, $B48, $M$2,$L$2,,$J$2,$K$2)="",NA(),RTD("cqg.rtd",,"StudyData", $I$2, "Bar", "", "Close", $H$2, $B48, $M$2,$L$2,,$J$2,$K$2)) ->  | E48: 0 | N48: 2.011 | O48: -46 | P48: =RTD("cqg.rtd",,"StudyData", $I$2, "Bar", "", "Time", $H$3,$B48, $M$2, "", "","False") -> 2020-01-27 | Q48: =IF(RTD("cqg.rtd",,"StudyData", $I$2, "Bar", "", "Close", $H$3, $B48, $M$2,$L$2,,$J$2,$K$2)="",NA(),RTD("cqg.rtd",,"StudyData", $I$2, "Bar", "", "Close", $H$3, $B48, $M$2,$L$2,,$J$2,$K$2)) ->  | R48: 0 | T48: X.US.AWSPSUSNEONF | U48: All Wheat Stocks by Position On-farm 1000 bushels Nebraska
A49: 11 | B49: -47 | C49: =RTD("cqg.rtd",,"StudyData", $I$2, "Bar", "", "Time", $H$2,$B49, $M$2, "", "","False") -> 2019-05-06 | D49: =IF(RTD("cqg.rtd",,"StudyData", $I$2, "Bar", "", "Close", $H$2, $B49, $M$2,$L$2,,$J$2,$K$2)="",NA(),RTD("cqg.rtd",,"StudyData", $I$2, "Bar", "", "Close", $H$2, $B49, $M$2,$L$2,,$J$2,$K$2)) -> 3 | E49: 3 | N49: 2.012 | O49: -47 | P49: =RTD("cqg.rtd",,"StudyData", $I$2, "Bar", "", "Time", $H$3,$B49, $M$2, "", "","False") -> 2020-01-24 | Q49: =IF(RTD("cqg.rtd",,"StudyData", $I$2, "Bar", "", "Close", $H$3, $B49, $M$2,$L$2,,$J$2,$K$2)="",NA(),RTD("cqg.rtd",,"StudyData", $I$2, "Bar", "", "Close", $H$3, $B49, $M$2,$L$2,,$J$2,$K$2)) ->  | R49: 0 | T49: X.US.AWSPSUSNETAP | U49: All Wheat Stocks by Position Total all pos. 1000 bushels Nebraska
A50: 11.001 | B50: -48 | C50: =RTD("cqg.rtd",,"StudyData", $I$2, "Bar", "", "Time", $H$2,$B50, $M$2, "", "","False") -> 2019-04-29 | D50: =IF(RTD("cqg.rtd",,"StudyData", $I$2, "Bar", "", "Close", $H$2, $B50, $M$2,$L$2,,$J$2,$K$2)="",NA(),RTD("cqg.rtd",,"StudyData", $I$2, "Bar", "", "Close", $H$2, $B50, $M$2,$L$2,,$J$2,$K$2)) ->  | E50: 0 | N50: 2.013 | O50: -48 | P50: =RTD("cqg.rtd",,"StudyData", $I$2, "Bar", "", "Time", $H$3,$B50, $M$2, "", "","False") -> 2020-01-23 | Q50: =IF(RTD("cqg.rtd",,"StudyData", $I$2, "Bar", "", "Close", $H$3, $B50, $M$2,$L$2,,$J$2,$K$2)="",NA(),RTD("cqg.rtd",,"StudyData", $I$2, "Bar", "", "Close", $H$3, $B50, $M$2,$L$2,,$J$2,$K$2)) ->  | R50: 0 | T50: X.US.AWSPSUSNGOFF | U50: All Wheat Stocks by Position Off-farm 1000 bushels New England
A51: 11.002 | B51: -49 | C51: =RTD("cqg.rtd",,"StudyData", $I$2, "Bar", "", "Time", $H$2,$B51, $M$2, "", "","False") -> 2019-04-22 | D51: =IF(RTD("cqg.rtd",,"StudyData", $I$2, "Bar", "", "Close", $H$2, $B51, $M$2,$L$2,,$J$2,$K$2)="",NA(),RTD("cqg.rtd",,"StudyData", $I$2, "Bar", "", "Close", $H$2, $B51, $M$2,$L$2,,$J$2,$K$2)) ->  | E51: 0 | N51: 2.014 | O51: -49 | P51: =RTD("cqg.rtd",,"StudyData", $I$2, "Bar", "", "Time", $H$3,$B51, $M$2, "", "","False") -> 2020-01-22 | Q51: =IF(RTD("cqg.rtd",,"StudyData", $I$2, "Bar", "", "Close", $H$3, $B51, $M$2,$L$2,,$J$2,$K$2)="",NA(),RTD("cqg.rtd",,"StudyData", $I$2, "Bar", "", "Close", $H$3, $B51, $M$2,$L$2,,$J$2,$K$2)) ->  | R51: 0 | T51: X.US.AWSPSUSNGONF | U51: All Wheat Stocks by Position On-farm 1000 bushels New England
A52: 11.003 | B52: -50 | C52: =RTD("cqg.rtd",,"StudyData", $I$2, "Bar", "", "Time", $H$2,$B52, $M$2, "", "","False") -> 2019-04-15 | D52: =IF(RTD("cqg.rtd",,"StudyData", $I$2, "Bar", "", "Close", $H$2, $B52, $M$2,$L$2,,$J$2,$K$2)="",NA(),RTD("cqg.rtd",,"StudyData", $I$2, "Bar", "", "Close", $H$2, $B52, $M$2,$L$2,,$J$2,$K$2)) ->  | E52: 0 | N52: 2.015 | O52: -50 | P52: =RTD("cqg.rtd",,"StudyData", $I$2, "Bar", "", "Time", $H$3,$B52, $M$2, "", "","False") -> 2020-01-21 | Q52: =IF(RTD("cqg.rtd",,"StudyData", $I$2, "Bar", "", "Close", $H$3, $B52, $M$2,$L$2,,$J$2,$K$2)="",NA(),RTD("cqg.rtd",,"StudyData", $I$2, "Bar", "", "Close", $H$3, $B52, $M$2,$L$2,,$J$2,$K$2)) ->  | R52: 0 | T52: X.US.AWSPSUSNGTAP | U52: All Wheat Stocks by Position Total all pos. 1000 bushels New England
A53: 12 | B53: -51 | C53: =RTD("cqg.rtd",,"StudyData", $I$2, "Bar", "", "Time", $H$2,$B53, $M$2, "", "","False") -> 2019-04-08 | D53: =IF(RTD("cqg.rtd",,"StudyData", $I$2, "Bar", "", "Close", $H$2, $B53, $M$2,$L$2,,$J$2,$K$2)="",NA(),RTD("cqg.rtd",,"StudyData", $I$2, "Bar", "", "Close", $H$2, $B53, $M$2,$L$2,,$J$2,$K$2)) -> 3.05 | E53: 3.05 | N53: 2.016 | O53: -51 | P53: =RTD("cqg.rtd",,"StudyData", $I$2, "Bar", "", "Time", $H$3,$B53, $M$2, "", "","False") -> 2020-01-20 | Q53: =IF(RTD("cqg.rtd",,"StudyData", $I$2, "Bar", "", "Close", $H$3, $B53, $M$2,$L$2,,$J$2,$K$2)="",NA(),RTD("cqg.rtd",,"StudyData", $I$2, "Bar", "", "Close", $H$3, $B53, $M$2,$L$2,,$J$2,$K$2)) ->  | R53: 0 | T53: X.US.AWSPSUSNHOFF | U53: All Wheat Stocks by Position Off-farm 1000 bushels New Hampshire
A54: 12.001 | B54: -52 | C54: =RTD("cqg.rtd",,"StudyData", $I$2, "Bar", "", "Time", $H$2,$B54, $M$2, "", "","False") -> 2019-04-01 | D54: =IF(RTD("cqg.rtd",,"StudyData", $I$2, "Bar", "", "Close", $H$2, $B54, $M$2,$L$2,,$J$2,$K$2)="",NA(),RTD("cqg.rtd",,"StudyData", $I$2, "Bar", "", "Close", $H$2, $B54, $M$2,$L$2,,$J$2,$K$2)) ->  | E54: 0 | N54: 2.017 | O54: -52 | P54: =RTD("cqg.rtd",,"StudyData", $I$2, "Bar", "", "Time", $H$3,$B54, $M$2, "", "","False") -> 2020-01-17 | Q54: =IF(RTD("cqg.rtd",,"StudyData", $I$2, "Bar", "", "Close", $H$3, $B54, $M$2,$L$2,,$J$2,$K$2)="",NA(),RTD("cqg.rtd",,"StudyData", $I$2, "Bar", "", "Close", $H$3, $B54, $M$2,$L$2,,$J$2,$K$2)) ->  | R54: 0 | T54: X.US.AWSPSUSNHONF | U54: All Wheat Stocks by Position On-farm 1000 bushels New Hampshire
A55: 12.002 | B55: -53 | C55: =RTD("cqg.rtd",,"StudyData", $I$2, "Bar", "", "Time", $H$2,$B55, $M$2, "", "","False") -> 2019-03-25 | D55: =IF(RTD("cqg.rtd",,"StudyData", $I$2, "Bar", "", "Close", $H$2, $B55, $M$2,$L$2,,$J$2,$K$2)="",NA(),RTD("cqg.rtd",,"StudyData", $I$2, "Bar", "", "Close", $H$2, $B55, $M$2,$L$2,,$J$2,$K$2)) ->  | E55: 0 | N55: 2.018 | O55: -53 | P55: =RTD("cqg.rtd",,"StudyData", $I$2, "Bar", "", "Time", $H$3,$B55, $M$2, "", "","False") -> 2020-01-16 | Q55: =IF(RTD("cqg.rtd",,"StudyData", $I$2, "Bar", "", "Close", $H$3, $B55, $M$2,$L$2,,$J$2,$K$2)="",NA(),RTD("cqg.rtd",,"StudyData", $I$2, "Bar", "", "Close", $H$3, $B55, $M$2,$L$2,,$J$2,$K$2)) ->  | R55: 0 | T55: X.US.AWSPSUSNHTAP | U55: All Wheat Stocks by Position Total all pos. 1000 bushels New Hampshire
A56: 12.003 | B56: -54 | C56: =RTD("cqg.rtd",,"StudyData", $I$2, "Bar", "", "Time", $H$2,$B56, $M$2, "", "","False") -> 2019-03-18 | D56: =IF(RTD("cqg.rtd",,"StudyData", $I$2, "Bar", "", "Close", $H$2, $B56, $M$2,$L$2,,$J$2,$K$2)="",NA(),RTD("cqg.rtd",,"StudyData", $I$2, "Bar", "", "Close", $H$2, $B56, $M$2,$L$2,,$J$2,$K$2)) ->  | E56: 0 | N56: =IF(R56=0,N55+0.001,TRUNC(N55)+1) -> 2.019 | O56: -54 | P56: =RTD("cqg.rtd",,"StudyData", $I$2, "Bar", "", "Time", $H$3,$B56, $M$2, "", "","False") -> 2020-01-15 | Q56: =IF(RTD("cqg.rtd",,"StudyData", $I$2, "Bar", "", "Close", $H$3, $B56, $M$2,$L$2,,$J$2,$K$2)="",NA(),RTD("cqg.rtd",,"StudyData", $I$2, "Bar", "", "Close", $H$3, $B56, $M$2,$L$2,,$J$2,$K$2)) ->  | R56: =IFERROR(Q56,0) -> 0 | T56: X.US.AWSPSUSNJOFF | U56: All Wheat Stocks by Position Off-farm 1000 bushels New Jersey
A57: 12.004 | B57: -55 | C57: =RTD("cqg.rtd",,"StudyData", $I$2, "Bar", "", "Time", $H$2,$B57, $M$2, "", "","False") -> 2019-03-11 | D57: =IF(RTD("cqg.rtd",,"StudyData", $I$2, "Bar", "", "Close", $H$2, $B57, $M$2,$L$2,,$J$2,$K$2)="",NA(),RTD("cqg.rtd",,"StudyData", $I$2, "Bar", "", "Close", $H$2, $B57, $M$2,$L$2,,$J$2,$K$2)) ->  | E57: 0 | N57: 2.02 | O57: -55 | P57: =RTD("cqg.rtd",,"StudyData", $I$2, "Bar", "", "Time", $H$3,$B57, $M$2, "", "","False") -> 2020-01-14 | Q57: =IF(RTD("cqg.rtd",,"StudyData", $I$2, "Bar", "", "Close", $H$3, $B57, $M$2,$L$2,,$J$2,$K$2)="",NA(),RTD("cqg.rtd",,"StudyData", $I$2, "Bar", "", "Close", $H$3, $B57, $M$2,$L$2,,$J$2,$K$2)) ->  | R57: 0 | T57: X.US.AWSPSUSNJONF | U57: All Wheat Stocks by Position On-farm 1000 bushels New Jersey
A58: 13 | B58: -56 | C58: =RTD("cqg.rtd",,"StudyData", $I$2, "Bar", "", "Time", $H$2,$B58, $M$2, "", "","False") -> 2019-03-04 | D58: =IF(RTD("cqg.rtd",,"StudyData", $I$2, "Bar", "", "Close", $H$2, $B58, $M$2,$L$2,,$J$2,$K$2)="",NA(),RTD("cqg.rtd",,"StudyData", $I$2, "Bar", "", "Close", $H$2, $B58, $M$2,$L$2,,$J$2,$K$2)) -> 3.1 | E58: 3.1 | N58: 2.021 | O58: -56 | P58: =RTD("cqg.rtd",,"StudyData", $I$2, "Bar", "", "Time", $H$3,$B58, $M$2, "", "","False") -> 2020-01-13 | Q58: =IF(RTD("cqg.rtd",,"StudyData", $I$2, "Bar", "", "Close", $H$3, $B58, $M$2,$L$2,,$J$2,$K$2)="",NA(),RTD("cqg.rtd",,"StudyData", $I$2, "Bar", "", "Close", $H$3, $B58, $M$2,$L$2,,$J$2,$K$2)) ->  | R58: 0 | T58: X.US.AWSPSUSNJTAP | U58: All Wheat Stocks by Position Total all pos. 1000 bushels New Jersey
A59: 13.001 | B59: -57 | C59: =RTD("cqg.rtd",,"StudyData", $I$2, "Bar", "", "Time", $H$2,$B59, $M$2, "", "","False") -> 2019-02-25 | D59: =IF(RTD("cqg.rtd",,"StudyData", $I$2, "Bar", "", "Close", $H$2, $B59, $M$2,$L$2,,$J$2,$K$2)="",NA(),RTD("cqg.rtd",,"StudyData", $I$2, "Bar", "", "Close", $H$2, $B59, $M$2,$L$2,,$J$2,$K$2)) ->  | E59: 0 | N59: 3 | O59: -57 | P59: =RTD("cqg.rtd",,"StudyData", $I$2, "Bar", "", "Time", $H$3,$B59, $M$2, "", "","False") -> 2020-01-10 | Q59: =IF(RTD("cqg.rtd",,"StudyData", $I$2, "Bar", "", "Close", $H$3, $B59, $M$2,$L$2,,$J$2,$K$2)="",NA(),RTD("cqg.rtd",,"StudyData", $I$2, "Bar", "", "Close", $H$3, $B59, $M$2,$L$2,,$J$2,$K$2)) -> 3.4 | R59: 3.4 | T59: X.US.AWSPSUSNMOFF | U59: All Wheat Stocks by Position Off-farm 1000 bushels New Mexico
A60: 13.002 | B60: -58 | C60: =RTD("cqg.rtd",,"StudyData", $I$2, "Bar", "", "Time", $H$2,$B60, $M$2, "", "","False") -> 2019-02-18 | D60: =IF(RTD("cqg.rtd",,"StudyData", $I$2, "Bar", "", "Close", $H$2, $B60, $M$2,$L$2,,$J$2,$K$2)="",NA(),RTD("cqg.rtd",,"StudyData", $I$2, "Bar", "", "Close", $H$2, $B60, $M$2,$L$2,,$J$2,$K$2)) ->  | E60: 0 | N60: 3.001 | O60: -58 | P60: =RTD("cqg.rtd",,"StudyData", $I$2, "Bar", "", "Time", $H$3,$B60, $M$2, "", "","False") -> 2020-01-09 | Q60: =IF(RTD("cqg.rtd",,"StudyData", $I$2, "Bar", "", "Close", $H$3, $B60, $M$2,$L$2,,$J$2,$K$2)="",NA(),RTD("cqg.rtd",,"StudyData", $I$2, "Bar", "", "Close", $H$3, $B60, $M$2,$L$2,,$J$2,$K$2)) ->  | R60: 0 | T60: X.US.AWSPSUSNMONF | U60: All Wheat Stocks by Position On-farm 1000 bushels New Mexico
A61: 13.003 | B61: -59 | C61: =RTD("cqg.rtd",,"StudyData", $I$2, "Bar", "", "Time", $H$2,$B61, $M$2, "", "","False") -> 2019-02-11 | D61: =IF(RTD("cqg.rtd",,"StudyData", $I$2, "Bar", "", "Close", $H$2, $B61, $M$2,$L$2,,$J$2,$K$2)="",NA(),RTD("cqg.rtd",,"StudyData", $I$2, "Bar", "", "Close", $H$2, $B61, $M$2,$L$2,,$J$2,$K$2)) ->  | E61: 0 | N61: 3.002 | O61: -59 | P61: =RTD("cqg.rtd",,"StudyData", $I$2, "Bar", "", "Time", $H$3,$B61, $M$2, "", "","False") -> 2020-01-08 | Q61: =IF(RTD("cqg.rtd",,"StudyData", $I$2, "Bar", "", "Close", $H$3, $B61, $M$2,$L$2,,$J$2,$K$2)="",NA(),RTD("cqg.rtd",,"StudyData", $I$2, "Bar", "", "Close", $H$3, $B61, $M$2,$L$2,,$J$2,$K$2)) ->  | R61: 0 | T61: X.US.AWSPSUSNMTAP | U61: All Wheat Stocks by Position Total all pos. 1000 bushels New Mexico
A62: 14 | B62: -60 | C62: =RTD("cqg.rtd",,"StudyData", $I$2, "Bar", "", "Time", $H$2,$B62, $M$2, "", "","False") -> 2019-02-04 | D62: =IF(RTD("cqg.rtd",,"StudyData", $I$2, "Bar", "", "Close", $H$2, $B62, $M$2,$L$2,,$J$2,$K$2)="",NA(),RTD("cqg.rtd",,"StudyData", $I$2, "Bar", "", "Close", $H$2, $B62, $M$2,$L$2,,$J$2,$K$2)) -> 3.1 | E62: 3.1 | N62: 3.003 | O62: -60 | P62: =RTD("cqg.rtd",,"StudyData", $I$2, "Bar", "", "Time", $H$3,$B62, $M$2, "", "","False") -> 2020-01-07 | Q62: =IF(RTD("cqg.rtd",,"StudyData", $I$2, "Bar", "", "Close", $H$3, $B62, $M$2,$L$2,,$J$2,$K$2)="",NA(),RTD("cqg.rtd",,"StudyData", $I$2, "Bar", "", "Close", $H$3, $B62, $M$2,$L$2,,$J$2,$K$2)) ->  | R62: 0 | T62: X.US.AWSPSUSNVOFF | U62: All Wheat Stocks by Position Off-farm 1000 bushels Nevada
A63: 14.001 | B63: -61 | C63: =RTD("cqg.rtd",,"StudyData", $I$2, "Bar", "", "Time", $H$2,$B63, $M$2, "", "","False") -> 2019-01-28 | D63: =IF(RTD("cqg.rtd",,"StudyData", $I$2, "Bar", "", "Close", $H$2, $B63, $M$2,$L$2,,$J$2,$K$2)="",NA(),RTD("cqg.rtd",,"StudyData", $I$2, "Bar", "", "Close", $H$2, $B63, $M$2,$L$2,,$J$2,$K$2)) ->  | E63: 0 | N63: 3.004 | O63: -61 | P63: =RTD("cqg.rtd",,"StudyData", $I$2, "Bar", "", "Time", $H$3,$B63, $M$2, "", "","False") -> 2020-01-06 | Q63: =IF(RTD("cqg.rtd",,"StudyData", $I$2, "Bar", "", "Close", $H$3, $B63, $M$2,$L$2,,$J$2,$K$2)="",NA(),RTD("cqg.rtd",,"StudyData", $I$2, "Bar", "", "Close", $H$3, $B63, $M$2,$L$2,,$J$2,$K$2)) ->  | R63: 0 | T63: X.US.AWSPSUSNVONF | U63: All Wheat Stocks by Position On-farm 1000 bushels Nevada
A64: 14.002 | B64: -62 | C64: =RTD("cqg.rtd",,"StudyData", $I$2, "Bar", "", "Time", $H$2,$B64, $M$2, "", "","False") -> 2019-01-21 | D64: =IF(RTD("cqg.rtd",,"StudyData", $I$2, "Bar", "", "Close", $H$2, $B64, $M$2,$L$2,,$J$2,$K$2)="",NA(),RTD("cqg.rtd",,"StudyData", $I$2, "Bar", "", "Close", $H$2, $B64, $M$2,$L$2,,$J$2,$K$2)) ->  | E64: 0 | N64: 3.005 | O64: -62 | P64: =RTD("cqg.rtd",,"StudyData", $I$2, "Bar", "", "Time", $H$3,$B64, $M$2, "", "","False") -> 2020-01-03 | Q64: =IF(RTD("cqg.rtd",,"StudyData", $I$2, "Bar", "", "Close", $H$3, $B64, $M$2,$L$2,,$J$2,$K$2)="",NA(),RTD("cqg.rtd",,"StudyData", $I$2, "Bar", "", "Close", $H$3, $B64, $M$2,$L$2,,$J$2,$K$2)) ->  | R64: 0 | T64: X.US.AWSPSUSNVTAP | U64: All Wheat Stocks by Position Total all pos. 1000 bushels Nevada
A65: 14.003 | B65: -63 | C65: =RTD("cqg.rtd",,"StudyData", $I$2, "Bar", "", "Time", $H$2,$B65, $M$2, "", "","False") -> 2019-01-14 | D65: =IF(RTD("cqg.rtd",,"StudyData", $I$2, "Bar", "", "Close", $H$2, $B65, $M$2,$L$2,,$J$2,$K$2)="",NA(),RTD("cqg.rtd",,"StudyData", $I$2, "Bar", "", "Close", $H$2, $B65, $M$2,$L$2,,$J$2,$K$2)) ->  | E65: 0 | N65: 3.006 | O65: -63 | P65: =RTD("cqg.rtd",,"StudyData", $I$2, "Bar", "", "Time", $H$3,$B65, $M$2, "", "","False") -> 2020-01-02 | Q65: =IF(RTD("cqg.rtd",,"StudyData", $I$2, "Bar", "", "Close", $H$3, $B65, $M$2,$L$2,,$J$2,$K$2)="",NA(),RTD("cqg.rtd",,"StudyData", $I$2, "Bar", "", "Close", $H$3, $B65, $M$2,$L$2,,$J$2,$K$2)) ->  | R65: 0 | T65: X.US.AWSPSUSNYOFF | U65: All Wheat Stocks by Position Off-farm 1000 bushels New York
A66: 14.004 | B66: -64 | C66: =RTD("cqg.rtd",,"StudyData", $I$2, "Bar", "", "Time", $H$2,$B66, $M$2, "", "","False") -> 2019-01-07 | D66: =IF(RTD("cqg.rtd",,"StudyData", $I$2, "Bar", "", "Close", $H$2, $B66, $M$2,$L$2,,$J$2,$K$2)="",NA(),RTD("cqg.rtd",,"StudyData", $I$2, "Bar", "", "Close", $H$2, $B66, $M$2,$L$2,,$J$2,$K$2)) ->  | E66: 0 | N66: 3.007 | O66: -64 | P66: =RTD("cqg.rtd",,"StudyData", $I$2, "Bar", "", "Time", $H$3,$B66, $M$2, "", "","False") -> 2020-01-01 | Q66: =IF(RTD("cqg.rtd",,"StudyData", $I$2, "Bar", "", "Close", $H$3, $B66, $M$2,$L$2,,$J$2,$K$2)="",NA(),RTD("cqg.rtd",,"StudyData", $I$2, "Bar", "", "Close", $H$3, $B66, $M$2,$L$2,,$J$2,$K$2)) ->  | R66: 0 | T66: X.US.AWSPSUSNYONF | U66: All Wheat Stocks by Position On-farm 1000 bushels New York
A67: 14.005 | B67: -65 | C67: =RTD("cqg.rtd",,"StudyData", $I$2, "Bar", "", "Time", $H$2,$B67, $M$2, "", "","False") -> 2018-12-31 | D67: =IF(RTD("cqg.rtd",,"StudyData", $I$2, "Bar", "", "Close", $H$2, $B67, $M$2,$L$2,,$J$2,$K$2)="",NA(),RTD("cqg.rtd",,"StudyData", $I$2, "Bar", "", "Close", $H$2, $B67, $M$2,$L$2,,$J$2,$K$2)) ->  | E67: =IFERROR(D67,0) -> 0 | N67: 3.008 | O67: -65 | P67: =RTD("cqg.rtd",,"StudyData", $I$2, "Bar", "", "Time", $H$3,$B67, $M$2, "", "","False") -> 2019-12-31 | Q67: =IF(RTD("cqg.rtd",,"StudyData", $I$2, "Bar", "", "Close", $H$3, $B67, $M$2,$L$2,,$J$2,$K$2)="",NA(),RTD("cqg.rtd",,"StudyData", $I$2, "Bar", "", "Close", $H$3, $B67, $M$2,$L$2,,$J$2,$K$2)) ->  | R67: 0 | T67: X.US.AWSPSUSNYTAP | U67: All Wheat Stocks by Position Total all pos. 1000 bushels New York
A68: =IF(E68=0,A67+0.001,TRUNC(A67)+1) -> 14.006 | B68: =B67-1 -> -66 | C68: =RTD("cqg.rtd",,"StudyData", $I$2, "Bar", "", "Time", $H$2,$B68, $M$2, "", "","False") -> 2018-12-24 | D68: =IF(RTD("cqg.rtd",,"StudyData", $I$2, "Bar", "", "Close", $H$2, $B68, $M$2,$L$2,,$J$2,$K$2)="",NA(),RTD("cqg.rtd",,"StudyData", $I$2, "Bar", "", "Close", $H$2, $B68, $M$2,$L$2,,$J$2,$K$2)) ->  | E68: 0 | N68: 3.009 | O68: =O67-1 -> -66 | P68: =RTD("cqg.rtd",,"StudyData", $I$2, "Bar", "", "Time", $H$3,$B68, $M$2, "", "","False") -> 2019-12-30 | Q68: =IF(RTD("cqg.rtd",,"StudyData", $I$2, "Bar", "", "Close", $H$3, $B68, $M$2,$L$2,,$J$2,$K$2)="",NA(),RTD("cqg.rtd",,"StudyData", $I$2, "Bar", "", "Close", $H$3, $B68, $M$2,$L$2,,$J$2,$K$2)) ->  | R68: 0 | T68: X.US.AWSPSUSOHOFF | U68: All Wheat Stocks by Position Off-farm 1000 bushels Ohio
A69: 14.007 | B69: -67 | C69: =RTD("cqg.rtd",,"StudyData", $I$2, "Bar", "", "Time", $H$2,$B69, $M$2, "", "","False") -> 2018-12-17 | D69: =IF(RTD("cqg.rtd",,"StudyData", $I$2, "Bar", "", "Close", $H$2, $B69, $M$2,$L$2,,$J$2,$K$2)="",NA(),RTD("cqg.rtd",,"StudyData", $I$2, "Bar", "", "Close", $H$2, $B69, $M$2,$L$2,,$J$2,$K$2)) ->  | E69: 0 | N69: 3.01 | O69: -67 | P69: =RTD("cqg.rtd",,"StudyData", $I$2, "Bar", "", "Time", $H$3,$B69, $M$2, "", "","False") -> 2019-12-27 | Q69: =IF(RTD("cqg.rtd",,"StudyData", $I$2, "Bar", "", "Close", $H$3, $B69, $M$2,$L$2,,$J$2,$K$2)="",NA(),RTD("cqg.rtd",,"StudyData", $I$2, "Bar", "", "Close", $H$3, $B69, $M$2,$L$2,,$J$2,$K$2)) ->  | R69: 0 | T69: X.US.AWSPSUSOHONF | U69: All Wheat Stocks by Position On-farm 1000 bushels Ohio
A70: 15 | B70: -68 | C70: =RTD("cqg.rtd",,"StudyData", $I$2, "Bar", "", "Time", $H$2,$B70, $M$2, "", "","False") -> 2018-12-10 | D70: =IF(RTD("cqg.rtd",,"StudyData", $I$2, "Bar", "", "Close", $H$2, $B70, $M$2,$L$2,,$J$2,$K$2)="",NA(),RTD("cqg.rtd",,"StudyData", $I$2, "Bar", "", "Close", $H$2, $B70, $M$2,$L$2,,$J$2,$K$2)) -> 3.05 | E70: 3.05 | N70: 3.011 | O70: -68 | P70: =RTD("cqg.rtd",,"StudyData", $I$2, "Bar", "", "Time", $H$3,$B70, $M$2, "", "","False") -> 2019-12-26 | Q70: =IF(RTD("cqg.rtd",,"StudyData", $I$2, "Bar", "", "Close", $H$3, $B70, $M$2,$L$2,,$J$2,$K$2)="",NA(),RTD("cqg.rtd",,"StudyData", $I$2, "Bar", "", "Close", $H$3, $B70, $M$2,$L$2,,$J$2,$K$2)) ->  | R70: 0 | T70: X.US.AWSPSUSOHTAP | U70: All Wheat Stocks by Position Total all pos. 1000 bushels Ohio
A71: 15.001 | B71: -69 | C71: =RTD("cqg.rtd",,"StudyData", $I$2, "Bar", "", "Time", $H$2,$B71, $M$2, "", "","False") -> 2018-12-03 | D71: =IF(RTD("cqg.rtd",,"StudyData", $I$2, "Bar", "", "Close", $H$2, $B71, $M$2,$L$2,,$J$2,$K$2)="",NA(),RTD("cqg.rtd",,"StudyData", $I$2, "Bar", "", "Close", $H$2, $B71, $M$2,$L$2,,$J$2,$K$2)) ->  | E71: 0 | N71: 3.012 | O71: -69 | P71: =RTD("cqg.rtd",,"StudyData", $I$2, "Bar", "", "Time", $H$3,$B71, $M$2, "", "","False") -> 2019-12-25 | Q71: =IF(RTD("cqg.rtd",,"StudyData", $I$2, "Bar", "", "Close", $H$3, $B71, $M$2,$L$2,,$J$2,$K$2)="",NA(),RTD("cqg.rtd",,"StudyData", $I$2, "Bar", "", "Close", $H$3, $B71, $M$2,$L$2,,$J$2,$K$2)) ->  | R71: 0 | T71: X.US.AWSPSUSOKOFF | U71: All Wheat Stocks by Position Off-farm 1000 bushels Oklahoma
A72: 15.002 | B72: -70 | C72: =RTD("cqg.rtd",,"StudyData", $I$2, "Bar", "", "Time", $H$2,$B72, $M$2, "", "","False") -> 2018-11-26 | D72: =IF(RTD("cqg.rtd",,"StudyData", $I$2, "Bar", "", "Close", $H$2, $B72, $M$2,$L$2,,$J$2,$K$2)="",NA(),RTD("cqg.rtd",,"StudyData", $I$2, "Bar", "", "Close", $H$2, $B72, $M$2,$L$2,,$J$2,$K$2)) ->  | E72: 0 | N72: 3.013 | O72: -70 | P72: =RTD("cqg.rtd",,"StudyData", $I$2, "Bar", "", "Time", $H$3,$B72, $M$2, "", "","False") -> 2019-12-24 | Q72: =IF(RTD("cqg.rtd",,"StudyData", $I$2, "Bar", "", "Close", $H$3, $B72, $M$2,$L$2,,$J$2,$K$2)="",NA(),RTD("cqg.rtd",,"StudyData", $I$2, "Bar", "", "Close", $H$3, $B72, $M$2,$L$2,,$J$2,$K$2)) ->  | R72: 0 | T72: X.US.AWSPSUSOKONF | U72: All Wheat Stocks by Position On-farm 1000 bushels Oklahoma
A73: 15.003 | B73: -71 | C73: =RTD("cqg.rtd",,"StudyData", $I$2, "Bar", "", "Time", $H$2,$B73, $M$2, "", "","False") -> 2018-11-19 | D73: =IF(RTD("cqg.rtd",,"StudyData", $I$2, "Bar", "", "Close", $H$2, $B73, $M$2,$L$2,,$J$2,$K$2)="",NA(),RTD("cqg.rtd",,"StudyData", $I$2, "Bar", "", "Close", $H$2, $B73, $M$2,$L$2,,$J$2,$K$2)) ->  | E73: 0 | N73: 3.014 | O73: -71 | P73: =RTD("cqg.rtd",,"StudyData", $I$2, "Bar", "", "Time", $H$3,$B73, $M$2, "", "","False") -> 2019-12-23 | Q73: =IF(RTD("cqg.rtd",,"StudyData", $I$2, "Bar", "", "Close", $H$3, $B73, $M$2,$L$2,,$J$2,$K$2)="",NA(),RTD("cqg.rtd",,"StudyData", $I$2, "Bar", "", "Close", $H$3, $B73, $M$2,$L$2,,$J$2,$K$2)) ->  | R73: 0 | T73: X.US.AWSPSUSOKTAP | U73: All Wheat Stocks by Position Total all pos. 1000 bushels Oklahoma
A74: 15.004 | B74: -72 | C74: =RTD("cqg.rtd",,"StudyData", $I$2, "Bar", "", "Time", $H$2,$B74, $M$2, "", "","False") -> 2018-11-12 | D74: =IF(RTD("cqg.rtd",,"StudyData", $I$2, "Bar", "", "Close", $H$2, $B74, $M$2,$L$2,,$J$2,$K$2)="",NA(),RTD("cqg.rtd",,"StudyData", $I$2, "Bar", "", "Close", $H$2, $B74, $M$2,$L$2,,$J$2,$K$2)) ->  | E74: 0 | N74: 3.015 | O74: -72 | P74: =RTD("cqg.rtd",,"StudyData", $I$2, "Bar", "", "Time", $H$3,$B74, $M$2, "", "","False") -> 2019-12-20 | Q74: =IF(RTD("cqg.rtd",,"StudyData", $I$2, "Bar", "", "Close", $H$3, $B74, $M$2,$L$2,,$J$2,$K$2)="",NA(),RTD("cqg.rtd",,"StudyData", $I$2, "Bar", "", "Close", $H$3, $B74, $M$2,$L$2,,$J$2,$K$2)) ->  | R74: 0 | T74: X.US.AWSPSUSOROFF | U74: All Wheat Stocks by Position Off-farm 1000 bushels Oregon
A75: 16 | B75: -73 | C75: =RTD("cqg.rtd",,"StudyData", $I$2, "Bar", "", "Time", $H$2,$B75, $M$2, "", "","False") -> 2018-11-05 | D75: =IF(RTD("cqg.rtd",,"StudyData", $I$2, "Bar", "", "Close", $H$2, $B75, $M$2,$L$2,,$J$2,$K$2)="",NA(),RTD("cqg.rtd",,"StudyData", $I$2, "Bar", "", "Close", $H$2, $B75, $M$2,$L$2,,$J$2,$K$2)) -> 3 | E75: 3 | N75: 3.016 | O75: -73 | P75: =RTD("cqg.rtd",,"StudyData", $I$2, "Bar", "", "Time", $H$3,$B75, $M$2, "", "","False") -> 2019-12-19 | Q75: =IF(RTD("cqg.rtd",,"StudyData", $I$2, "Bar", "", "Close", $H$3, $B75, $M$2,$L$2,,$J$2,$K$2)="",NA(),RTD("cqg.rtd",,"StudyData", $I$2, "Bar", "", "Close", $H$3, $B75, $M$2,$L$2,,$J$2,$K$2)) ->  | R75: 0 | T75: X.US.AWSPSUSORONF | U75: All Wheat Stocks by Position On-farm 1000 bushels Oregon
A76: 16.001 | B76: -74 | C76: =RTD("cqg.rtd",,"StudyData", $I$2, "Bar", "", "Time", $H$2,$B76, $M$2, "", "","False") -> 2018-10-29 | D76: =IF(RTD("cqg.rtd",,"StudyData", $I$2, "Bar", "", "Close", $H$2, $B76, $M$2,$L$2,,$J$2,$K$2)="",NA(),RTD("cqg.rtd",,"StudyData", $I$2, "Bar", "", "Close", $H$2, $B76, $M$2,$L$2,,$J$2,$K$2)) ->  | E76: 0 | N76: 3.017 | O76: -74 | P76: =RTD("cqg.rtd",,"StudyData", $I$2, "Bar", "", "Time", $H$3,$B76, $M$2, "", "","False") -> 2019-12-18 | Q76: =IF(RTD("cqg.rtd",,"StudyData", $I$2, "Bar", "", "Close", $H$3, $B76, $M$2,$L$2,,$J$2,$K$2)="",NA(),RTD("cqg.rtd",,"StudyData", $I$2, "Bar", "", "Close", $H$3, $B76, $M$2,$L$2,,$J$2,$K$2)) ->  | R76: 0 | T76: X.US.AWSPSUSORTAP | U76: All Wheat Stocks by Position Total all pos. 1000 bushels Oregon
A77: 16.002 | B77: -75 | C77: =RTD("cqg.rtd",,"StudyData", $I$2, "Bar", "", "Time", $H$2,$B77, $M$2, "", "","False") -> 2018-10-22 | D77: =IF(RTD("cqg.rtd",,"StudyData", $I$2, "Bar", "", "Close", $H$2, $B77, $M$2,$L$2,,$J$2,$K$2)="",NA(),RTD("cqg.rtd",,"StudyData", $I$2, "Bar", "", "Close", $H$2, $B77, $M$2,$L$2,,$J$2,$K$2)) ->  | E77: 0 | N77: 3.018 | O77: -75 | P77: =RTD("cqg.rtd",,"StudyData", $I$2, "Bar", "", "Time", $H$3,$B77, $M$2, "", "","False") -> 2019-12-17 | Q77: =IF(RTD("cqg.rtd",,"StudyData", $I$2, "Bar", "", "Close", $H$3, $B77, $M$2,$L$2,,$J$2,$K$2)="",NA(),RTD("cqg.rtd",,"StudyData", $I$2, "Bar", "", "Close", $H$3, $B77, $M$2,$L$2,,$J$2,$K$2)) ->  | R77: 0 | T77: X.US.AWSPSUSPAOFF | U77: All Wheat Stocks by Position Off-farm 1000 bushels Pennsylvania
A78: 16.003 | B78: -76 | C78: =RTD("cqg.rtd",,"StudyData", $I$2, "Bar", "", "Time", $H$2,$B78, $M$2, "", "","False") -> 2018-10-15 | D78: =IF(RTD("cqg.rtd",,"StudyData", $I$2, "Bar", "", "Close", $H$2, $B78, $M$2,$L$2,,$J$2,$K$2)="",NA(),RTD("cqg.rtd",,"StudyData", $I$2, "Bar", "", "Close", $H$2, $B78, $M$2,$L$2,,$J$2,$K$2)) ->  | E78: 0 | N78: 3.019 | O78: -76 | P78: =RTD("cqg.rtd",,"StudyData", $I$2, "Bar", "", "Time", $H$3,$B78, $M$2, "", "","False") -> 2019-12-16 | Q78: =IF(RTD("cqg.rtd",,"StudyData", $I$2, "Bar", "", "Close", $H$3, $B78, $M$2,$L$2,,$J$2,$K$2)="",NA(),RTD("cqg.rtd",,"StudyData", $I$2, "Bar", "", "Close", $H$3, $B78, $M$2,$L$2,,$J$2,$K$2)) ->  | R78: 0 | T78: X.US.AWSPSUSPAONF | U78: All Wheat Stocks by Position On-farm 1000 bushels Pennsylvania
A79: 17 | B79: -77 | C79: =RTD("cqg.rtd",,"StudyData", $I$2, "Bar", "", "Time", $H$2,$B79, $M$2, "", "","False") -> 2018-10-08 | D79: =IF(RTD("cqg.rtd",,"StudyData", $I$2, "Bar", "", "Close", $H$2, $B79, $M$2,$L$2,,$J$2,$K$2)="",NA(),RTD("cqg.rtd",,"StudyData", $I$2, "Bar", "", "Close", $H$2, $B79, $M$2,$L$2,,$J$2,$K$2)) -> 2.8 | E79: 2.8 | N79: 3.02 | O79: -77 | P79: =RTD("cqg.rtd",,"StudyData", $I$2, "Bar", "", "Time", $H$3,$B79, $M$2, "", "","False") -> 2019-12-13 | Q79: =IF(RTD("cqg.rtd",,"StudyData", $I$2, "Bar", "", "Close", $H$3, $B79, $M$2,$L$2,,$J$2,$K$2)="",NA(),RTD("cqg.rtd",,"StudyData", $I$2, "Bar", "", "Close", $H$3, $B79, $M$2,$L$2,,$J$2,$K$2)) ->  | R79: 0 | T79: X.US.AWSPSUSPATAP | U79: All Wheat Stocks by Position Total all pos. 1000 bushels Pennsylvania
A80: 17.001 | B80: -78 | C80: =RTD("cqg.rtd",,"StudyData", $I$2, "Bar", "", "Time", $H$2,$B80, $M$2, "", "","False") -> 2018-10-01 | D80: =IF(RTD("cqg.rtd",,"StudyData", $I$2, "Bar", "", "Close", $H$2, $B80, $M$2,$L$2,,$J$2,$K$2)="",NA(),RTD("cqg.rtd",,"StudyData", $I$2, "Bar", "", "Close", $H$2, $B80, $M$2,$L$2,,$J$2,$K$2)) ->  | E80: 0 | N80: 3.021 | O80: -78 | P80: =RTD("cqg.rtd",,"StudyData", $I$2, "Bar", "", "Time", $H$3,$B80, $M$2, "", "","False") -> 2019-12-12 | Q80: =IF(RTD("cqg.rtd",,"StudyData", $I$2, "Bar", "", "Close", $H$3, $B80, $M$2,$L$2,,$J$2,$K$2)="",NA(),RTD("cqg.rtd",,"StudyData", $I$2, "Bar", "", "Close", $H$3, $B80, $M$2,$L$2,,$J$2,$K$2)) ->  | R80: 0 | T80: X.US.AWSPSUSSCOFF | U80: All Wheat Stocks by Position Off-farm 1000 bushels South Carolina
A81: 17.002 | B81: -79 | C81: =RTD("cqg.rtd",,"StudyData", $I$2, "Bar", "", "Time", $H$2,$B81, $M$2, "", "","False") -> 2018-09-24 | D81: =IF(RTD("cqg.rtd",,"StudyData", $I$2, "Bar", "", "Close", $H$2, $B81, $M$2,$L$2,,$J$2,$K$2)="",NA(),RTD("cqg.rtd",,"StudyData", $I$2, "Bar", "", "Close", $H$2, $B81, $M$2,$L$2,,$J$2,$K$2)) ->  | E81: 0 | N81: 3.022 | O81: -79 | P81: =RTD("cqg.rtd",,"StudyData", $I$2, "Bar", "", "Time", $H$3,$B81, $M$2, "", "","False") -> 2019-12-11 | Q81: =IF(RTD("cqg.rtd",,"StudyData", $I$2, "Bar", "", "Close", $H$3, $B81, $M$2,$L$2,,$J$2,$K$2)="",NA(),RTD("cqg.rtd",,"StudyData", $I$2, "Bar", "", "Close", $H$3, $B81, $M$2,$L$2,,$J$2,$K$2)) ->  | R81: 0 | T81: X.US.AWSPSUSSCONF | U81: All Wheat Stocks by Position On-farm 1000 bushels South Carolina
A82: 17.003 | B82: -80 | C82: =RTD("cqg.rtd",,"StudyData", $I$2, "Bar", "", "Time", $H$2,$B82, $M$2, "", "","False") -> 2018-09-17 | D82: =IF(RTD("cqg.rtd",,"StudyData", $I$2, "Bar", "", "Close", $H$2, $B82, $M$2,$L$2,,$J$2,$K$2)="",NA(),RTD("cqg.rtd",,"StudyData", $I$2, "Bar", "", "Close", $H$2, $B82, $M$2,$L$2,,$J$2,$K$2)) ->  | E82: 0 | N82: 4 | O82: -80 | P82: =RTD("cqg.rtd",,"StudyData", $I$2, "Bar", "", "Time", $H$3,$B82, $M$2, "", "","False") -> 2019-12-10 | Q82: =IF(RTD("cqg.rtd",,"StudyData", $I$2, "Bar", "", "Close", $H$3, $B82, $M$2,$L$2,,$J$2,$K$2)="",NA(),RTD("cqg.rtd",,"StudyData", $I$2, "Bar", "", "Close", $H$3, $B82, $M$2,$L$2,,$J$2,$K$2)) -> 3.4 | R82: 3.4 | T82: X.US.AWSPSUSSCTAP | U82: All Wheat Stocks by Position Total all pos. 1000 bushels South Carolina
A83: 18 | B83: -81 | C83: =RTD("cqg.rtd",,"StudyData", $I$2, "Bar", "", "Time", $H$2,$B83, $M$2, "", "","False") -> 2018-09-10 | D83: =IF(RTD("cqg.rtd",,"StudyData", $I$2, "Bar", "", "Close", $H$2, $B83, $M$2,$L$2,,$J$2,$K$2)="",NA(),RTD("cqg.rtd",,"StudyData", $I$2, "Bar", "", "Close", $H$2, $B83, $M$2,$L$2,,$J$2,$K$2)) -> 2.8 | E83: 2.8 | N83: 4.001 | O83: -81 | P83: =RTD("cqg.rtd",,"StudyData", $I$2, "Bar", "", "Time", $H$3,$B83, $M$2, "", "","False") -> 2019-12-09 | Q83: =IF(RTD("cqg.rtd",,"StudyData", $I$2, "Bar", "", "Close", $H$3, $B83, $M$2,$L$2,,$J$2,$K$2)="",NA(),RTD("cqg.rtd",,"StudyData", $I$2, "Bar", "", "Close", $H$3, $B83, $M$2,$L$2,,$J$2,$K$2)) ->  | R83: 0 | T83: X.US.AWSPSUSSDOFF | U83: All Wheat Stocks by Position Off-farm 1000 bushels South Dakota
A84: 18.001 | B84: -82 | C84: =RTD("cqg.rtd",,"StudyData", $I$2, "Bar", "", "Time", $H$2,$B84, $M$2, "", "","False") -> 2018-09-03 | D84: =IF(RTD("cqg.rtd",,"StudyData", $I$2, "Bar", "", "Close", $H$2, $B84, $M$2,$L$2,,$J$2,$K$2)="",NA(),RTD("cqg.rtd",,"StudyData", $I$2, "Bar", "", "Close", $H$2, $B84, $M$2,$L$2,,$J$2,$K$2)) ->  | E84: 0 | N84: 4.002 | O84: -82 | P84: =RTD("cqg.rtd",,"StudyData", $I$2, "Bar", "", "Time", $H$3,$B84, $M$2, "", "","False") -> 2019-12-06 | Q84: =IF(RTD("cqg.rtd",,"StudyData", $I$2, "Bar", "", "Close", $H$3, $B84, $M$2,$L$2,,$J$2,$K$2)="",NA(),RTD("cqg.rtd",,"StudyData", $I$2, "Bar", "", "Close", $H$3, $B84, $M$2,$L$2,,$J$2,$K$2)) ->  | R84: 0 | T84: X.US.AWSPSUSSDONF | U84: All Wheat Stocks by Position On-farm 1000 bushels South Dakota
A85: 18.002 | B85: -83 | C85: =RTD("cqg.rtd",,"StudyData", $I$2, "Bar", "", "Time", $H$2,$B85, $M$2, "", "","False") -> 2018-08-27 | D85: =IF(RTD("cqg.rtd",,"StudyData", $I$2, "Bar", "", "Close", $H$2, $B85, $M$2,$L$2,,$J$2,$K$2)="",NA(),RTD("cqg.rtd",,"StudyData", $I$2, "Bar", "", "Close", $H$2, $B85, $M$2,$L$2,,$J$2,$K$2)) ->  | E85: 0 | N85: 4.003 | O85: -83 | P85: =RTD("cqg.rtd",,"StudyData", $I$2, "Bar", "", "Time", $H$3,$B85, $M$2, "", "","False") -> 2019-12-05 | Q85: =IF(RTD("cqg.rtd",,"StudyData", $I$2, "Bar", "", "Close", $H$3, $B85, $M$2,$L$2,,$J$2,$K$2)="",NA(),RTD("cqg.rtd",,"StudyData", $I$2, "Bar", "", "Close", $H$3, $B85, $M$2,$L$2,,$J$2,$K$2)) ->  | R85: 0 | T85: X.US.AWSPSUSSDTAP | U85: All Wheat Stocks by Position Total all pos. 1000 bushels South Dakota
A86: 18.003 | B86: -84 | C86: =RTD("cqg.rtd",,"StudyData", $I$2, "Bar", "", "Time", $H$2,$B86, $M$2, "", "","False") -> 2018-08-20 | D86: =IF(RTD("cqg.rtd",,"StudyData", $I$2, "Bar", "", "Close", $H$2, $B86, $M$2,$L$2,,$J$2,$K$2)="",NA(),RTD("cqg.rtd",,"StudyData", $I$2, "Bar", "", "Close", $H$2, $B86, $M$2,$L$2,,$J$2,$K$2)) ->  | E86: 0 | N86: 4.004 | O86: -84 | P86: =RTD("cqg.rtd",,"StudyData", $I$2, "Bar", "", "Time", $H$3,$B86, $M$2, "", "","False") -> 2019-12-04 | Q86: =IF(RTD("cqg.rtd",,"StudyData", $I$2, "Bar", "", "Close", $H$3, $B86, $M$2,$L$2,,$J$2,$K$2)="",NA(),RTD("cqg.rtd",,"StudyData", $I$2, "Bar", "", "Close", $H$3, $B86, $M$2,$L$2,,$J$2,$K$2)) ->  | R86: 0 | T86: X.US.AWSPSUSTNOFF | U86: All Wheat Stocks by Position Off-farm 1000 bushels Tennessee
A87: 18.004 | B87: -85 | C87: =RTD("cqg.rtd",,"StudyData", $I$2, "Bar", "", "Time", $H$2,$B87, $M$2, "", "","False") -> 2018-08-13 | D87: =IF(RTD("cqg.rtd",,"StudyData", $I$2, "Bar", "", "Close", $H$2, $B87, $M$2,$L$2,,$J$2,$K$2)="",NA(),RTD("cqg.rtd",,"StudyData", $I$2, "Bar", "", "Close", $H$2, $B87, $M$2,$L$2,,$J$2,$K$2)) ->  | E87: 0 | N87: 4.005 | O87: -85 | P87: =RTD("cqg.rtd",,"StudyData", $I$2, "Bar", "", "Time", $H$3,$B87, $M$2, "", "","False") -> 2019-12-03 | Q87: =IF(RTD("cqg.rtd",,"StudyData", $I$2, "Bar", "", "Close", $H$3, $B87, $M$2,$L$2,,$J$2,$K$2)="",NA(),RTD("cqg.rtd",,"StudyData", $I$2, "Bar", "", "Close", $H$3, $B87, $M$2,$L$2,,$J$2,$K$2)) ->  | R87: 0 | T87: X.US.AWSPSUSTNONF | U87: All Wheat Stocks by Position On-farm 1000 bushels Tennessee
A88: 19 | B88: -86 | C88: =RTD("cqg.rtd",,"StudyData", $I$2, "Bar", "", "Time", $H$2,$B88, $M$2, "", "","False") -> 2018-08-06 | D88: =IF(RTD("cqg.rtd",,"StudyData", $I$2, "Bar", "", "Close", $H$2, $B88, $M$2,$L$2,,$J$2,$K$2)="",NA(),RTD("cqg.rtd",,"StudyData", $I$2, "Bar", "", "Close", $H$2, $B88, $M$2,$L$2,,$J$2,$K$2)) -> 2.9 | E88: 2.9 | N88: 4.006 | O88: -86 | P88: =RTD("cqg.rtd",,"StudyData", $I$2, "Bar", "", "Time", $H$3,$B88, $M$2, "", "","False") -> 2019-12-02 | Q88: =IF(RTD("cqg.rtd",,"StudyData", $I$2, "Bar", "", "Close", $H$3, $B88, $M$2,$L$2,,$J$2,$K$2)="",NA(),RTD("cqg.rtd",,"StudyData", $I$2, "Bar", "", "Close", $H$3, $B88, $M$2,$L$2,,$J$2,$K$2)) ->  | R88: 0 | T88: X.US.AWSPSUSTNTAP | U88: All Wheat Stocks by Position Total all pos. 1000 bushels Tennessee
A89: 19.001 | B89: -87 | C89: =RTD("cqg.rtd",,"StudyData", $I$2, "Bar", "", "Time", $H$2,$B89, $M$2, "", "","False") -> 2018-07-30 | D89: =IF(RTD("cqg.rtd",,"StudyData", $I$2, "Bar", "", "Close", $H$2, $B89, $M$2,$L$2,,$J$2,$K$2)="",NA(),RTD("cqg.rtd",,"StudyData", $I$2, "Bar", "", "Close", $H$2, $B89, $M$2,$L$2,,$J$2,$K$2)) ->  | E89: 0 | N89: 4.007 | O89: -87 | P89: =RTD("cqg.rtd",,"StudyData", $I$2, "Bar", "", "Time", $H$3,$B89, $M$2, "", "","False") -> 2019-11-29 | Q89: =IF(RTD("cqg.rtd",,"StudyData", $I$2, "Bar", "", "Close", $H$3, $B89, $M$2,$L$2,,$J$2,$K$2)="",NA(),RTD("cqg.rtd",,"StudyData", $I$2, "Bar", "", "Close", $H$3, $B89, $M$2,$L$2,,$J$2,$K$2)) ->  | R89: 0 | T89: X.US.AWSPSUSTXOFF | U89: All Wheat Stocks by Position Off-farm 1000 bushels Texas
A90: 19.002 | B90: -88 | C90: =RTD("cqg.rtd",,"StudyData", $I$2, "Bar", "", "Time", $H$2,$B90, $M$2, "", "","False") -> 2018-07-23 | D90: =IF(RTD("cqg.rtd",,"StudyData", $I$2, "Bar", "", "Close", $H$2, $B90, $M$2,$L$2,,$J$2,$K$2)="",NA(),RTD("cqg.rtd",,"StudyData", $I$2, "Bar", "", "Close", $H$2, $B90, $M$2,$L$2,,$J$2,$K$2)) ->  | E90: 0 | N90: 4.008 | O90: -88 | P90: =RTD("cqg.rtd",,"StudyData", $I$2, "Bar", "", "Time", $H$3,$B90, $M$2, "", "","False") -> 2019-11-28 | Q90: =IF(RTD("cqg.rtd",,"StudyData", $I$2, "Bar", "", "Close", $H$3, $B90, $M$2,$L$2,,$J$2,$K$2)="",NA(),RTD("cqg.rtd",,"StudyData", $I$2, "Bar", "", "Close", $H$3, $B90, $M$2,$L$2,,$J$2,$K$2)) ->  | R90: 0 | T90: X.US.AWSPSUSTXONF | U90: All Wheat Stocks by Position On-farm 1000 bushels Texas
A91: 19.003 | B91: -89 | C91: =RTD("cqg.rtd",,"StudyData", $I$2, "Bar", "", "Time", $H$2,$B91, $M$2, "", "","False") -> 2018-07-16 | D91: =IF(RTD("cqg.rtd",,"StudyData", $I$2, "Bar", "", "Close", $H$2, $B91, $M$2,$L$2,,$J$2,$K$2)="",NA(),RTD("cqg.rtd",,"StudyData", $I$2, "Bar", "", "Close", $H$2, $B91, $M$2,$L$2,,$J$2,$K$2)) ->  | E91: 0 | N91: 4.009 | O91: -89 | P91: =RTD("cqg.rtd",,"StudyData", $I$2, "Bar", "", "Time", $H$3,$B91, $M$2, "", "","False") -> 2019-11-27 | Q91: =IF(RTD("cqg.rtd",,"StudyData", $I$2, "Bar", "", "Close", $H$3, $B91, $M$2,$L$2,,$J$2,$K$2)="",NA(),RTD("cqg.rtd",,"StudyData", $I$2, "Bar", "", "Close", $H$3, $B91, $M$2,$L$2,,$J$2,$K$2)) ->  | R91: 0 | T91: X.US.AWSPSUSTXTAP | U91: All Wheat Stocks by Position Total all pos. 1000 bushels Texas
A92: 20 | B92: -90 | C92: =RTD("cqg.rtd",,"StudyData", $I$2, "Bar", "", "Time", $H$2,$B92, $M$2, "", "","False") -> 2018-07-09 | D92: =IF(RTD("cqg.rtd",,"StudyData", $I$2, "Bar", "", "Close", $H$2, $B92, $M$2,$L$2,,$J$2,$K$2)="",NA(),RTD("cqg.rtd",,"StudyData", $I$2, "Bar", "", "Close", $H$2, $B92, $M$2,$L$2,,$J$2,$K$2)) -> 3.1 | E92: 3.1 | N92: 4.01 | O92: -90 | P92: =RTD("cqg.rtd",,"StudyData", $I$2, "Bar", "", "Time", $H$3,$B92, $M$2, "", "","False") -> 2019-11-26 | Q92: =IF(RTD("cqg.rtd",,"StudyData", $I$2, "Bar", "", "Close", $H$3, $B92, $M$2,$L$2,,$J$2,$K$2)="",NA(),RTD("cqg.rtd",,"StudyData", $I$2, "Bar", "", "Close", $H$3, $B92, $M$2,$L$2,,$J$2,$K$2)) ->  | R92: 0 | T92: X.US.AWSPSUSUNOFF | U92: All Wheat Stocks by Position Off-farm 1000 bushels Unallocated
A93: 20.001 | B93: -91 | C93: =RTD("cqg.rtd",,"StudyData", $I$2, "Bar", "", "Time", $H$2,$B93, $M$2, "", "","False") -> 2018-07-02 | D93: =IF(RTD("cqg.rtd",,"StudyData", $I$2, "Bar", "", "Close", $H$2, $B93, $M$2,$L$2,,$J$2,$K$2)="",NA(),RTD("cqg.rtd",,"StudyData", $I$2, "Bar", "", "Close", $H$2, $B93, $M$2,$L$2,,$J$2,$K$2)) ->  | E93: 0 | N93: 4.011 | O93: -91 | P93: =RTD("cqg.rtd",,"StudyData", $I$2, "Bar", "", "Time", $H$3,$B93, $M$2, "", "","False") -> 2019-11-25 | Q93: =IF(RTD("cqg.rtd",,"StudyData", $I$2, "Bar", "", "Close", $H$3, $B93, $M$2,$L$2,,$J$2,$K$2)="",NA(),RTD("cqg.rtd",,"StudyData", $I$2, "Bar", "", "Close", $H$3, $B93, $M$2,$L$2,,$J$2,$K$2)) ->  | R93: 0 | T93: X.US.AWSPSUSUNONF | U93: All Wheat Stocks by Position On-farm 1000 bushels Unallocated
A94: 20.002 | B94: -92 | C94: =RTD("cqg.rtd",,"StudyData", $I$2, "Bar", "", "Time", $H$2,$B94, $M$2, "", "","False") -> 2018-06-25 | D94: =IF(RTD("cqg.rtd",,"StudyData", $I$2, "Bar", "", "Close", $H$2, $B94, $M$2,$L$2,,$J$2,$K$2)="",NA(),RTD("cqg.rtd",,"StudyData", $I$2, "Bar", "", "Close", $H$2, $B94, $M$2,$L$2,,$J$2,$K$2)) ->  | E94: 0 | N94: 4.012 | O94: -92 | P94: =RTD("cqg.rtd",,"StudyData", $I$2, "Bar", "", "Time", $H$3,$B94, $M$2, "", "","False") -> 2019-11-22 | Q94: =IF(RTD("cqg.rtd",,"StudyData", $I$2, "Bar", "", "Close", $H$3, $B94, $M$2,$L$2,,$J$2,$K$2)="",NA(),RTD("cqg.rtd",,"StudyData", $I$2, "Bar", "", "Close", $H$3, $B94, $M$2,$L$2,,$J$2,$K$2)) ->  | R94: 0 | T94: X.US.AWSPSUSUNTAP | U94: All Wheat Stocks by Position Total all pos. 1000 bushels Unallocated
A95: 20.003 | B95: -93 | C95: =RTD("cqg.rtd",,"StudyData", $I$2, "Bar", "", "Time", $H$2,$B95, $M$2, "", "","False") -> 2018-06-18 | D95: =IF(RTD("cqg.rtd",,"StudyData", $I$2, "Bar", "", "Close", $H$2, $B95, $M$2,$L$2,,$J$2,$K$2)="",NA(),RTD("cqg.rtd",,"StudyData", $I$2, "Bar", "", "Close", $H$2, $B95, $M$2,$L$2,,$J$2,$K$2)) ->  | E95: 0 | N95: 4.013 | O95: -93 | P95: =RTD("cqg.rtd",,"StudyData", $I$2, "Bar", "", "Time", $H$3,$B95, $M$2, "", "","False") -> 2019-11-21 | Q95: =IF(RTD("cqg.rtd",,"StudyData", $I$2, "Bar", "", "Close", $H$3, $B95, $M$2,$L$2,,$J$2,$K$2)="",NA(),RTD("cqg.rtd",,"StudyData", $I$2, "Bar", "", "Close", $H$3, $B95, $M$2,$L$2,,$J$2,$K$2)) ->  | R95: 0 | T95: X.US.AWSPSUSUSOFF | U95: All Wheat Stocks by Position Off-farm 1000 bushels United States
A96: 21 | B96: -94 | C96: =RTD("cqg.rtd",,"StudyData", $I$2, "Bar", "", "Time", $H$2,$B96, $M$2, "", "","False") -> 2018-06-11 | D96: =IF(RTD("cqg.rtd",,"StudyData", $I$2, "Bar", "", "Close", $H$2, $B96, $M$2,$L$2,,$J$2,$K$2)="",NA(),RTD("cqg.rtd",,"StudyData", $I$2, "Bar", "", "Close", $H$2, $B96, $M$2,$L$2,,$J$2,$K$2)) -> 3.2 | E96: 3.2 | N96: 4.014 | O96: -94 | P96: =RTD("cqg.rtd",,"StudyData", $I$2, "Bar", "", "Time", $H$3,$B96, $M$2, "", "","False") -> 2019-11-20 | Q96: =IF(RTD("cqg.rtd",,"StudyData", $I$2, "Bar", "", "Close", $H$3, $B96, $M$2,$L$2,,$J$2,$K$2)="",NA(),RTD("cqg.rtd",,"StudyData", $I$2, "Bar", "", "Close", $H$3, $B96, $M$2,$L$2,,$J$2,$K$2)) ->  | R96: 0 | T96: X.US.AWSPSUSUSONF | U96: All Wheat Stocks by Position On-farm 1000 bushels United States
A97: 21.001 | B97: -95 | C97: =RTD("cqg.rtd",,"StudyData", $I$2, "Bar", "", "Time", $H$2,$B97, $M$2, "", "","False") -> 2018-06-04 | D97: =IF(RTD("cqg.rtd",,"StudyData", $I$2, "Bar", "", "Close", $H$2, $B97, $M$2,$L$2,,$J$2,$K$2)="",NA(),RTD("cqg.rtd",,"StudyData", $I$2, "Bar", "", "Close", $H$2, $B97, $M$2,$L$2,,$J$2,$K$2)) ->  | E97: 0 | N97: 4.015 | O97: -95 | P97: =RTD("cqg.rtd",,"StudyData", $I$2, "Bar", "", "Time", $H$3,$B97, $M$2, "", "","False") -> 2019-11-19 | Q97: =IF(RTD("cqg.rtd",,"StudyData", $I$2, "Bar", "", "Close", $H$3, $B97, $M$2,$L$2,,$J$2,$K$2)="",NA(),RTD("cqg.rtd",,"StudyData", $I$2, "Bar", "", "Close", $H$3, $B97, $M$2,$L$2,,$J$2,$K$2)) ->  | R97: 0 | T97: X.US.AWSPSUSUSTAP | U97: All Wheat Stocks by Position Total all pos. 1000 bushels United States
A98: 21.002 | B98: -96 | C98: =RTD("cqg.rtd",,"StudyData", $I$2, "Bar", "", "Time", $H$2,$B98, $M$2, "", "","False") -> 2018-05-28 | D98: =IF(RTD("cqg.rtd",,"StudyData", $I$2, "Bar", "", "Close", $H$2, $B98, $M$2,$L$2,,$J$2,$K$2)="",NA(),RTD("cqg.rtd",,"StudyData", $I$2, "Bar", "", "Close", $H$2, $B98, $M$2,$L$2,,$J$2,$K$2)) ->  | E98: 0 | N98: 4.016 | O98: -96 | P98: =RTD("cqg.rtd",,"StudyData", $I$2, "Bar", "", "Time", $H$3,$B98, $M$2, "", "","False") -> 2019-11-18 | Q98: =IF(RTD("cqg.rtd",,"StudyData", $I$2, "Bar", "", "Close", $H$3, $B98, $M$2,$L$2,,$J$2,$K$2)="",NA(),RTD("cqg.rtd",,"StudyData", $I$2, "Bar", "", "Close", $H$3, $B98, $M$2,$L$2,,$J$2,$K$2)) ->  | R98: 0 | T98: X.US.AWSPSUSUTOFF | U98: All Wheat Stocks by Position Off-farm 1000 bushels Utah
A99: 21.003 | B99: -97 | C99: =RTD("cqg.rtd",,"StudyData", $I$2, "Bar", "", "Time", $H$2,$B99, $M$2, "", "","False") -> 2018-05-21 | D99: =IF(RTD("cqg.rtd",,"StudyData", $I$2, "Bar", "", "Close", $H$2, $B99, $M$2,$L$2,,$J$2,$K$2)="",NA(),RTD("cqg.rtd",,"StudyData", $I$2, "Bar", "", "Close", $H$2, $B99, $M$2,$L$2,,$J$2,$K$2)) ->  | E99: 0 | N99: 4.017 | O99: -97 | P99: =RTD("cqg.rtd",,"StudyData", $I$2, "Bar", "", "Time", $H$3,$B99, $M$2, "", "","False") -> 2019-11-15 | Q99: =IF(RTD("cqg.rtd",,"StudyData", $I$2, "Bar", "", "Close", $H$3, $B99, $M$2,$L$2,,$J$2,$K$2)="",NA(),RTD("cqg.rtd",,"StudyData", $I$2, "Bar", "", "Close", $H$3, $B99, $M$2,$L$2,,$J$2,$K$2)) ->  | R99: 0 | T99: X.US.AWSPSUSUTONF | U99: All Wheat Stocks by Position On-farm 1000 bushels Utah
A100: 21.004 | B100: -98 | C100: =RTD("cqg.rtd",,"StudyData", $I$2, "Bar", "", "Time", $H$2,$B100, $M$2, "", "","False") -> 2018-05-14 | D100: =IF(RTD("cqg.rtd",,"StudyData", $I$2, "Bar", "", "Close", $H$2, $B100, $M$2,$L$2,,$J$2,$K$2)="",NA(),RTD("cqg.rtd",,"StudyData", $I$2, "Bar", "", "Close", $H$2, $B100, $M$2,$L$2,,$J$2,$K$2)) ->  | E100: 0 | N100: 4.018 | O100: -98 | P100: =RTD("cqg.rtd",,"StudyData", $I$2, "Bar", "", "Time", $H$3,$B100, $M$2, "", "","False") -> 2019-11-14 | Q100: =IF(RTD("cqg.rtd",,"StudyData", $I$2, "Bar", "", "Close", $H$3, $B100, $M$2,$L$2,,$J$2,$K$2)="",NA(),RTD("cqg.rtd",,"StudyData", $I$2, "Bar", "", "Close", $H$3, $B100, $M$2,$L$2,,$J$2,$K$2)) ->  | R100: 0 | T100: X.US.AWSPSUSUTTAP | U100: All Wheat Stocks by Position Total all pos. 1000 bushels Utah
A101: 22 | B101: -99 | C101: =RTD("cqg.rtd",,"StudyData", $I$2, "Bar", "", "Time", $H$2,$B101, $M$2, "", "","False") -> 2018-05-07 | D101: =IF(RTD("cqg.rtd",,"StudyData", $I$2, "Bar", "", "Close", $H$2, $B101, $M$2,$L$2,,$J$2,$K$2)="",NA(),RTD("cqg.rtd",,"StudyData", $I$2, "Bar", "", "Close", $H$2, $B101, $M$2,$L$2,,$J$2,$K$2)) -> 3.1 | E101: 3.1 | N101: 4.019 | O101: -99 | P101: =RTD("cqg.rtd",,"StudyData", $I$2, "Bar", "", "Time", $H$3,$B101, $M$2, "", "","False") -> 2019-11-13 | Q101: =IF(RTD("cqg.rtd",,"StudyData", $I$2, "Bar", "", "Close", $H$3, $B101, $M$2,$L$2,,$J$2,$K$2)="",NA(),RTD("cqg.rtd",,"StudyData", $I$2, "Bar", "", "Close", $H$3, $B101, $M$2,$L$2,,$J$2,$K$2)) ->  | R101: 0 | T101: X.US.AWSPSUSVAOFF | U101: All Wheat Stocks by Position Off-farm 1000 bushels Virginia
A102: 22.001 | B102: -100 | C102: =RTD("cqg.rtd",,"StudyData", $I$2, "Bar", "", "Time", $H$2,$B102, $M$2, "", "","False") -> 2018-04-30 | D102: =IF(RTD("cqg.rtd",,"StudyData", $I$2, "Bar", "", "Close", $H$2, $B102, $M$2,$L$2,,$J$2,$K$2)="",NA(),RTD("cqg.rtd",,"StudyData", $I$2, "Bar", "", "Close", $H$2, $B102, $M$2,$L$2,,$J$2,$K$2)) ->  | E102: 0 | N102: 4.02 | O102: -100 | P102: =RTD("cqg.rtd",,"StudyData", $I$2, "Bar", "", "Time", $H$3,$B102, $M$2, "", "","False") -> 2019-11-12 | Q102: =IF(RTD("cqg.rtd",,"StudyData", $I$2, "Bar", "", "Close", $H$3, $B102, $M$2,$L$2,,$J$2,$K$2)="",NA(),RTD("cqg.rtd",,"StudyData", $I$2, "Bar", "", "Close", $H$3, $B102, $M$2,$L$2,,$J$2,$K$2)) ->  | R102: 0 | T102: X.US.AWSPSUSVAONF | U102: All Wheat Stocks by Position On-farm 1000 bushels Virginia
A103: 22.002 | B103: -101 | C103: =RTD("cqg.rtd",,"StudyData", $I$2, "Bar", "", "Time", $H$2,$B103, $M$2, "", "","False") -> 2018-04-23 | D103: =IF(RTD("cqg.rtd",,"StudyData", $I$2, "Bar", "", "Close", $H$2, $B103, $M$2,$L$2,,$J$2,$K$2)="",NA(),RTD("cqg.rtd",,"StudyData", $I$2, "Bar", "", "Close", $H$2, $B103, $M$2,$L$2,,$J$2,$K$2)) ->  | E103: 0 | N103: 4.021 | O103: -101 | P103: =RTD("cqg.rtd",,"StudyData", $I$2, "Bar", "", "Time", $H$3,$B103, $M$2, "", "","False") -> 2019-11-11 | Q103: =IF(RTD("cqg.rtd",,"StudyData", $I$2, "Bar", "", "Close", $H$3, $B103, $M$2,$L$2,,$J$2,$K$2)="",NA(),RTD("cqg.rtd",,"StudyData", $I$2, "Bar", "", "Close", $H$3, $B103, $M$2,$L$2,,$J$2,$K$2)) ->  | R103: 0 | T103: X.US.AWSPSUSVATAP | U103: All Wheat Stocks by Position Total all pos. 1000 bushels Virginia
A104: 22.003 | B104: -102 | C104: =RTD("cqg.rtd",,"StudyData", $I$2, "Bar", "", "Time", $H$2,$B104, $M$2, "", "","False") -> 2018-04-16 | D104: =IF(RTD("cqg.rtd",,"StudyData", $I$2, "Bar", "", "Close", $H$2, $B104, $M$2,$L$2,,$J$2,$K$2)="",NA(),RTD("cqg.rtd",,"StudyData", $I$2, "Bar", "", "Close", $H$2, $B104, $M$2,$L$2,,$J$2,$K$2)) ->  | E104: 0 | N104: 5 | O104: -102 | P104: =RTD("cqg.rtd",,"StudyData", $I$2, "Bar", "", "Time", $H$3,$B104, $M$2, "", "","False") -> 2019-11-08 | Q104: =IF(RTD("cqg.rtd",,"StudyData", $I$2, "Bar", "", "Close", $H$3, $B104, $M$2,$L$2,,$J$2,$K$2)="",NA(),RTD("cqg.rtd",,"StudyData", $I$2, "Bar", "", "Close", $H$3, $B104, $M$2,$L$2,,$J$2,$K$2)) -> 3.4 | R104: 3.4 | T104: X.US.AWSPSUSWAOFF | U104: All Wheat Stocks by Position Off-farm 1000 bushels Washington
A105: 23 | B105: -103 | C105: =RTD("cqg.rtd",,"StudyData", $I$2, "Bar", "", "Time", $H$2,$B105, $M$2, "", "","False") -> 2018-04-09 | D105: =IF(RTD("cqg.rtd",,"StudyData", $I$2, "Bar", "", "Close", $H$2, $B105, $M$2,$L$2,,$J$2,$K$2)="",NA(),RTD("cqg.rtd",,"StudyData", $I$2, "Bar", "", "Close", $H$2, $B105, $M$2,$L$2,,$J$2,$K$2)) -> 3.05 | E105: 3.05 | N105: 5.001 | O105: -103 | P105: =RTD("cqg.rtd",,"StudyData", $I$2, "Bar", "", "Time", $H$3,$B105, $M$2, "", "","False") -> 2019-11-07 | Q105: =IF(RTD("cqg.rtd",,"StudyData", $I$2, "Bar", "", "Close", $H$3, $B105, $M$2,$L$2,,$J$2,$K$2)="",NA(),RTD("cqg.rtd",,"StudyData", $I$2, "Bar", "", "Close", $H$3, $B105, $M$2,$L$2,,$J$2,$K$2)) ->  | R105: 0 | T105: X.US.AWSPSUSWAONF | U105: All Wheat Stocks by Position On-farm 1000 bushels Washington
A106: 23.001 | B106: -104 | C106: =RTD("cqg.rtd",,"StudyData", $I$2, "Bar", "", "Time", $H$2,$B106, $M$2, "", "","False") -> 2018-04-02 | D106: =IF(RTD("cqg.rtd",,"StudyData", $I$2, "Bar", "", "Close", $H$2, $B106, $M$2,$L$2,,$J$2,$K$2)="",NA(),RTD("cqg.rtd",,"StudyData", $I$2, "Bar", "", "Close", $H$2, $B106, $M$2,$L$2,,$J$2,$K$2)) ->  | E106: 0 | N106: 5.002 | O106: -104 | P106: =RTD("cqg.rtd",,"StudyData", $I$2, "Bar", "", "Time", $H$3,$B106, $M$2, "", "","False") -> 2019-11-06 | Q106: =IF(RTD("cqg.rtd",,"StudyData", $I$2, "Bar", "", "Close", $H$3, $B106, $M$2,$L$2,,$J$2,$K$2)="",NA(),RTD("cqg.rtd",,"StudyData", $I$2, "Bar", "", "Close", $H$3, $B106, $M$2,$L$2,,$J$2,$K$2)) ->  | R106: 0 | T106: X.US.AWSPSUSWATAP | U106: All Wheat Stocks by Position Total all pos. 1000 bushels Washington
A107: 23.002 | B107: -105 | C107: =RTD("cqg.rtd",,"StudyData", $I$2, "Bar", "", "Time", $H$2,$B107, $M$2, "", "","False") -> 2018-03-26 | D107: =IF(RTD("cqg.rtd",,"StudyData", $I$2, "Bar", "", "Close", $H$2, $B107, $M$2,$L$2,,$J$2,$K$2)="",NA(),RTD("cqg.rtd",,"StudyData", $I$2, "Bar", "", "Close", $H$2, $B107, $M$2,$L$2,,$J$2,$K$2)) ->  | E107: 0 | N107: 5.003 | O107: -105 | P107: =RTD("cqg.rtd",,"StudyData", $I$2, "Bar", "", "Time", $H$3,$B107, $M$2, "", "","False") -> 2019-11-05 | Q107: =IF(RTD("cqg.rtd",,"StudyData", $I$2, "Bar", "", "Close", $H$3, $B107, $M$2,$L$2,,$J$2,$K$2)="",NA(),RTD("cqg.rtd",,"StudyData", $I$2, "Bar", "", "Close", $H$3, $B107, $M$2,$L$2,,$J$2,$K$2)) ->  | R107: 0 | T107: X.US.AWSPSUSWIOFF | U107: All Wheat Stocks by Position Off-farm 1000 bushels Wisconsin
A108: 23.003 | B108: -106 | C108: =RTD("cqg.rtd",,"StudyData", $I$2, "Bar", "", "Time", $H$2,$B108, $M$2, "", "","False") -> 2018-03-19 | D108: =IF(RTD("cqg.rtd",,"StudyData", $I$2, "Bar", "", "Close", $H$2, $B108, $M$2,$L$2,,$J$2,$K$2)="",NA(),RTD("cqg.rtd",,"StudyData", $I$2, "Bar", "", "Close", $H$2, $B108, $M$2,$L$2,,$J$2,$K$2)) ->  | E108: 0 | N108: 5.004 | O108: -106 | P108: =RTD("cqg.rtd",,"StudyData", $I$2, "Bar", "", "Time", $H$3,$B108, $M$2, "", "","False") -> 2019-11-04 | Q108: =IF(RTD("cqg.rtd",,"StudyData", $I$2, "Bar", "", "Close", $H$3, $B108, $M$2,$L$2,,$J$2,$K$2)="",NA(),RTD("cqg.rtd",,"StudyData", $I$2, "Bar", "", "Close", $H$3, $B108, $M$2,$L$2,,$J$2,$K$2)) ->  | R108: 0 | T108: X.US.AWSPSUSWIONF | U108: All Wheat Stocks by Position On-farm 1000 bushels Wisconsin
A109: 23.004 | B109: -107 | C109: =RTD("cqg.rtd",,"StudyData", $I$2, "Bar", "", "Time", $H$2,$B109, $M$2, "", "","False") -> 2018-03-12 | D109: =IF(RTD("cqg.rtd",,"StudyData", $I$2, "Bar", "", "Close", $H$2, $B109, $M$2,$L$2,,$J$2,$K$2)="",NA(),RTD("cqg.rtd",,"StudyData", $I$2, "Bar", "", "Close", $H$2, $B109, $M$2,$L$2,,$J$2,$K$2)) ->  | E109: 0 | N109: 5.005 | O109: -107 | P109: =RTD("cqg.rtd",,"StudyData", $I$2, "Bar", "", "Time", $H$3,$B109, $M$2, "", "","False") -> 2019-11-01 | Q109: =IF(RTD("cqg.rtd",,"StudyData", $I$2, "Bar", "", "Close", $H$3, $B109, $M$2,$L$2,,$J$2,$K$2)="",NA(),RTD("cqg.rtd",,"StudyData", $I$2, "Bar", "", "Close", $H$3, $B109, $M$2,$L$2,,$J$2,$K$2)) ->  | R109: 0 | T109: X.US.AWSPSUSWITAP | U109: All Wheat Stocks by Position Total all pos. 1000 bushels Wisconsin
A110: 24 | B110: -108 | C110: =RTD("cqg.rtd",,"StudyData", $I$2, "Bar", "", "Time", $H$2,$B110, $M$2, "", "","False") -> 2018-03-05 | D110: =IF(RTD("cqg.rtd",,"StudyData", $I$2, "Bar", "", "Close", $H$2, $B110, $M$2,$L$2,,$J$2,$K$2)="",NA(),RTD("cqg.rtd",,"StudyData", $I$2, "Bar", "", "Close", $H$2, $B110, $M$2,$L$2,,$J$2,$K$2)) -> 2.95 | E110: 2.95 | N110: 5.006 | O110: -108 | P110: =RTD("cqg.rtd",,"StudyData", $I$2, "Bar", "", "Time", $H$3,$B110, $M$2, "", "","False") -> 2019-10-31 | Q110: =IF(RTD("cqg.rtd",,"StudyData", $I$2, "Bar", "", "Close", $H$3, $B110, $M$2,$L$2,,$J$2,$K$2)="",NA(),RTD("cqg.rtd",,"StudyData", $I$2, "Bar", "", "Close", $H$3, $B110, $M$2,$L$2,,$J$2,$K$2)) ->  | R110: 0 | T110: X.US.AWSPSUSWVOFF | U110: All Wheat Stocks by Position Off-farm 1000 bushels West Virginia
A111: 24.001 | B111: -109 | C111: =RTD("cqg.rtd",,"StudyData", $I$2, "Bar", "", "Time", $H$2,$B111, $M$2, "", "","False") -> 2018-02-26 | D111: =IF(RTD("cqg.rtd",,"StudyData", $I$2, "Bar", "", "Close", $H$2, $B111, $M$2,$L$2,,$J$2,$K$2)="",NA(),RTD("cqg.rtd",,"StudyData", $I$2, "Bar", "", "Close", $H$2, $B111, $M$2,$L$2,,$J$2,$K$2)) ->  | E111: 0 | N111: 5.007 | O111: -109 | P111: =RTD("cqg.rtd",,"StudyData", $I$2, "Bar", "", "Time", $H$3,$B111, $M$2, "", "","False") -> 2019-10-30 | Q111: =IF(RTD("cqg.rtd",,"StudyData", $I$2, "Bar", "", "Close", $H$3, $B111, $M$2,$L$2,,$J$2,$K$2)="",NA(),RTD("cqg.rtd",,"StudyData", $I$2, "Bar", "", "Close", $H$3, $B111, $M$2,$L$2,,$J$2,$K$2)) ->  | R111: 0 | T111: X.US.AWSPSUSWVONF | U111: All Wheat Stocks by Position On-farm 1000 bushels West Virginia
A112: 24.002 | B112: -110 | C112: =RTD("cqg.rtd",,"StudyData", $I$2, "Bar", "", "Time", $H$2,$B112, $M$2, "", "","False") -> 2018-02-19 | D112: =IF(RTD("cqg.rtd",,"StudyData", $I$2, "Bar", "", "Close", $H$2, $B112, $M$2,$L$2,,$J$2,$K$2)="",NA(),RTD("cqg.rtd",,"StudyData", $I$2, "Bar", "", "Close", $H$2, $B112, $M$2,$L$2,,$J$2,$K$2)) ->  | E112: 0 | N112: 5.008 | O112: -110 | P112: =RTD("cqg.rtd",,"StudyData", $I$2, "Bar", "", "Time", $H$3,$B112, $M$2, "", "","False") -> 2019-10-29 | Q112: =IF(RTD("cqg.rtd",,"StudyData", $I$2, "Bar", "", "Close", $H$3, $B112, $M$2,$L$2,,$J$2,$K$2)="",NA(),RTD("cqg.rtd",,"StudyData", $I$2, "Bar", "", "Close", $H$3, $B112, $M$2,$L$2,,$J$2,$K$2)) ->  | R112: 0 | T112: X.US.AWSPSUSWVTAP | U112: All Wheat Stocks by Position Total all pos. 1000 bushels West Virginia
A113: 24.003 | B113: -111 | C113: =RTD("cqg.rtd",,"StudyData", $I$2, "Bar", "", "Time", $H$2,$B113, $M$2, "", "","False") -> 2018-02-12 | D113: =IF(RTD("cqg.rtd",,"StudyData", $I$2, "Bar", "", "Close", $H$2, $B113, $M$2,$L$2,,$J$2,$K$2)="",NA(),RTD("cqg.rtd",,"StudyData", $I$2, "Bar", "", "Close", $H$2, $B113, $M$2,$L$2,,$J$2,$K$2)) ->  | E113: 0 | N113: 5.009 | O113: -111 | P113: =RTD("cqg.rtd",,"StudyData", $I$2, "Bar", "", "Time", $H$3,$B113, $M$2, "", "","False") -> 2019-10-28 | Q113: =IF(RTD("cqg.rtd",,"StudyData", $I$2, "Bar", "", "Close", $H$3, $B113, $M$2,$L$2,,$J$2,$K$2)="",NA(),RTD("cqg.rtd",,"StudyData", $I$2, "Bar", "", "Close", $H$3, $B113, $M$2,$L$2,,$J$2,$K$2)) ->  | R113: 0 | T113: X.US.AWSPSUSWYOFF | U113: All Wheat Stocks by Position Off-farm 1000 bushels Wyoming
A114: 25 | B114: -112 | C114: =RTD("cqg.rtd",,"StudyData", $I$2, "Bar", "", "Time", $H$2,$B114, $M$2, "", "","False") -> 2018-02-05 | D114: =IF(RTD("cqg.rtd",,"StudyData", $I$2, "Bar", "", "Close", $H$2, $B114, $M$2,$L$2,,$J$2,$K$2)="",NA(),RTD("cqg.rtd",,"StudyData", $I$2, "Bar", "", "Close", $H$2, $B114, $M$2,$L$2,,$J$2,$K$2)) -> 2.9 | E114: 2.9 | N114: 5.01 | O114: -112 | P114: =RTD("cqg.rtd",,"StudyData", $I$2, "Bar", "", "Time", $H$3,$B114, $M$2, "", "","False") -> 2019-10-25 | Q114: =IF(RTD("cqg.rtd",,"StudyData", $I$2, "Bar", "", "Close", $H$3, $B114, $M$2,$L$2,,$J$2,$K$2)="",NA(),RTD("cqg.rtd",,"StudyData", $I$2, "Bar", "", "Close", $H$3, $B114, $M$2,$L$2,,$J$2,$K$2)) ->  | R114: 0 | T114: X.US.AWSPSUSWYONF | U114: All Wheat Stocks by Position On-farm 1000 bushels Wyoming
A115: 25.001 | B115: -113 | C115: =RTD("cqg.rtd",,"StudyData", $I$2, "Bar", "", "Time", $H$2,$B115, $M$2, "", "","False") -> 2018-01-29 | D115: =IF(RTD("cqg.rtd",,"StudyData", $I$2, "Bar", "", "Close", $H$2, $B115, $M$2,$L$2,,$J$2,$K$2)="",NA(),RTD("cqg.rtd",,"StudyData", $I$2, "Bar", "", "Close", $H$2, $B115, $M$2,$L$2,,$J$2,$K$2)) ->  | E115: 0 | N115: 5.011 | O115: -113 | P115: =RTD("cqg.rtd",,"StudyData", $I$2, "Bar", "", "Time", $H$3,$B115, $M$2, "", "","False") -> 2019-10-24 | Q115: =IF(RTD("cqg.rtd",,"StudyData", $I$2, "Bar", "", "Close", $H$3, $B115, $M$2,$L$2,,$J$2,$K$2)="",NA(),RTD("cqg.rtd",,"StudyData", $I$2, "Bar", "", "Close", $H$3, $B115, $M$2,$L$2,,$J$2,$K$2)) ->  | R115: 0 | T115: X.US.AWSPSUSWYTAP | U115: All Wheat Stocks by Position Total all pos. 1000 bushels Wyoming
A116: 25.002 | B116: -114 | C116: =RTD("cqg.rtd",,"StudyData", $I$2, "Bar", "", "Time", $H$2,$B116, $M$2, "", "","False") -> 2018-01-22 | D116: =IF(RTD("cqg.rtd",,"StudyData", $I$2, "Bar", "", "Close", $H$2, $B116, $M$2,$L$2,,$J$2,$K$2)="",NA(),RTD("cqg.rtd",,"StudyData", $I$2, "Bar", "", "Close", $H$2, $B116, $M$2,$L$2,,$J$2,$K$2)) ->  | E116: 0 | N116: 5.012 | O116: -114 | P116: =RTD("cqg.rtd",,"StudyData", $I$2, "Bar", "", "Time", $H$3,$B116, $M$2, "", "","False") -> 2019-10-23 | Q116: =IF(RTD("cqg.rtd",,"StudyData", $I$2, "Bar", "", "Close", $H$3, $B116, $M$2,$L$2,,$J$2,$K$2)="",NA(),RTD("cqg.rtd",,"StudyData", $I$2, "Bar", "", "Close", $H$3, $B116, $M$2,$L$2,,$J$2,$K$2)) ->  | R116: 0 | T116: X.US.BSPSUSALOFF | U116: Barley Stocks by Position Off-farm 1000 bushels Alabama
A117: 25.003 | B117: -115 | C117: =RTD("cqg.rtd",,"StudyData", $I$2, "Bar", "", "Time", $H$2,$B117, $M$2, "", "","False") -> 2018-01-15 | D117: =IF(RTD("cqg.rtd",,"StudyData", $I$2, "Bar", "", "Close", $H$2, $B117, $M$2,$L$2,,$J$2,$K$2)="",NA(),RTD("cqg.rtd",,"StudyData", $I$2, "Bar", "", "Close", $H$2, $B117, $M$2,$L$2,,$J$2,$K$2)) ->  | E117: 0 | N117: 5.013 | O117: -115 | P117: =RTD("cqg.rtd",,"StudyData", $I$2, "Bar", "", "Time", $H$3,$B117, $M$2, "", "","False") -> 2019-10-22 | Q117: =IF(RTD("cqg.rtd",,"StudyData", $I$2, "Bar", "", "Close", $H$3, $B117, $M$2,$L$2,,$J$2,$K$2)="",NA(),RTD("cqg.rtd",,"StudyData", $I$2, "Bar", "", "Close", $H$3, $B117, $M$2,$L$2,,$J$2,$K$2)) ->  | R117: 0 | T117: X.US.BSPSUSALONF | U117: Barley Stocks by Position On-farm 1000 bushels Alabama
A118: 26 | B118: -116 | C118: =RTD("cqg.rtd",,"StudyData", $I$2, "Bar", "", "Time", $H$2,$B118, $M$2, "", "","False") -> 2018-01-08 | D118: =IF(RTD("cqg.rtd",,"StudyData", $I$2, "Bar", "", "Close", $H$2, $B118, $M$2,$L$2,,$J$2,$K$2)="",NA(),RTD("cqg.rtd",,"StudyData", $I$2, "Bar", "", "Close", $H$2, $B118, $M$2,$L$2,,$J$2,$K$2)) -> 2.85 | E118: 2.85 | N118: 5.014 | O118: -116 | P118: =RTD("cqg.rtd",,"StudyData", $I$2, "Bar", "", "Time", $H$3,$B118, $M$2, "", "","False") -> 2019-10-21 | Q118: =IF(RTD("cqg.rtd",,"StudyData", $I$2, "Bar", "", "Close", $H$3, $B118, $M$2,$L$2,,$J$2,$K$2)="",NA(),RTD("cqg.rtd",,"StudyData", $I$2, "Bar", "", "Close", $H$3, $B118, $M$2,$L$2,,$J$2,$K$2)) ->  | R118: 0 | T118: X.US.BSPSUSALTAP | U118: Barley Stocks by Position Total all pos. 1000 bushels Alabama
A119: 26.001 | B119: -117 | C119: =RTD("cqg.rtd",,"StudyData", $I$2, "Bar", "", "Time", $H$2,$B119, $M$2, "", "","False") -> 2018-01-01 | D119: =IF(RTD("cqg.rtd",,"StudyData", $I$2, "Bar", "", "Close", $H$2, $B119, $M$2,$L$2,,$J$2,$K$2)="",NA(),RTD("cqg.rtd",,"StudyData", $I$2, "Bar", "", "Close", $H$2, $B119, $M$2,$L$2,,$J$2,$K$2)) ->  | E119: 0 | N119: 5.015 | O119: -117 | P119: =RTD("cqg.rtd",,"StudyData", $I$2, "Bar", "", "Time", $H$3,$B119, $M$2, "", "","False") -> 2019-10-18 | Q119: =IF(RTD("cqg.rtd",,"StudyData", $I$2, "Bar", "", "Close", $H$3, $B119, $M$2,$L$2,,$J$2,$K$2)="",NA(),RTD("cqg.rtd",,"StudyData", $I$2, "Bar", "", "Close", $H$3, $B119, $M$2,$L$2,,$J$2,$K$2)) ->  | R119: 0 | T119: X.US.BSPSUSAROFF | U119: Barley Stocks by Position Off-farm 1000 bushels Arkansas
A120: 26.002 | B120: -118 | C120: =RTD("cqg.rtd",,"StudyData", $I$2, "Bar", "", "Time", $H$2,$B120, $M$2, "", "","False") -> 2017-12-25 | D120: =IF(RTD("cqg.rtd",,"StudyData", $I$2, "Bar", "", "Close", $H$2, $B120, $M$2,$L$2,,$J$2,$K$2)="",NA(),RTD("cqg.rtd",,"StudyData", $I$2, "Bar", "", "Close", $H$2, $B120, $M$2,$L$2,,$J$2,$K$2)) ->  | E120: 0 | N120: =IF(R120=0,N119+0.001,TRUNC(N119)+1) -> 5.016 | O120: -118 | P120: =RTD("cqg.rtd",,"StudyData", $I$2, "Bar", "", "Time", $H$3,$B120, $M$2, "", "","False") -> 2019-10-17 | Q120: =IF(RTD("cqg.rtd",,"StudyData", $I$2, "Bar", "", "Close", $H$3, $B120, $M$2,$L$2,,$J$2,$K$2)="",NA(),RTD("cqg.rtd",,"StudyData", $I$2, "Bar", "", "Close", $H$3, $B120, $M$2,$L$2,,$J$2,$K$2)) ->  | R120: =IFERROR(Q120,0) -> 0 | T120: X.US.BSPSUSARONF | U120: Barley Stocks by Position On-farm 1000 bushels Arkansas
A121: 26.003 | B121: -119 | C121: =RTD("cqg.rtd",,"StudyData", $I$2, "Bar", "", "Time", $H$2,$B121, $M$2, "", "","False") -> 2017-12-18 | D121: =IF(RTD("cqg.rtd",,"StudyData", $I$2, "Bar", "", "Close", $H$2, $B121, $M$2,$L$2,,$J$2,$K$2)="",NA(),RTD("cqg.rtd",,"StudyData", $I$2, "Bar", "", "Close", $H$2, $B121, $M$2,$L$2,,$J$2,$K$2)) ->  | E121: 0 | N121: 5.017 | O121: -119 | P121: =RTD("cqg.rtd",,"StudyData", $I$2, "Bar", "", "Time", $H$3,$B121, $M$2, "", "","False") -> 2019-10-16 | Q121: =IF(RTD("cqg.rtd",,"StudyData", $I$2, "Bar", "", "Close", $H$3, $B121, $M$2,$L$2,,$J$2,$K$2)="",NA(),RTD("cqg.rtd",,"StudyData", $I$2, "Bar", "", "Close", $H$3, $B121, $M$2,$L$2,,$J$2,$K$2)) ->  | R121: 0 | T121: X.US.BSPSUSARTAP | U121: Barley Stocks by Position Total all pos. 1000 bushels Arkansas
A122: 27 | B122: -120 | C122: =RTD("cqg.rtd",,"StudyData", $I$2, "Bar", "", "Time", $H$2,$B122, $M$2, "", "","False") -> 2017-12-11 | D122: =IF(RTD("cqg.rtd",,"StudyData", $I$2, "Bar", "", "Close", $H$2, $B122, $M$2,$L$2,,$J$2,$K$2)="",NA(),RTD("cqg.rtd",,"StudyData", $I$2, "Bar", "", "Close", $H$2, $B122, $M$2,$L$2,,$J$2,$K$2)) -> 2.75 | E122: 2.75 | N122: 5.018 | O122: -120 | P122: =RTD("cqg.rtd",,"StudyData", $I$2, "Bar", "", "Time", $H$3,$B122, $M$2, "", "","False") -> 2019-10-15 | Q122: =IF(RTD("cqg.rtd",,"StudyData", $I$2, "Bar", "", "Close", $H$3, $B122, $M$2,$L$2,,$J$2,$K$2)="",NA(),RTD("cqg.rtd",,"StudyData", $I$2, "Bar", "", "Close", $H$3, $B122, $M$2,$L$2,,$J$2,$K$2)) ->  | R122: 0 | T122: X.US.BSPSUSAZOFF | U122: Barley Stocks by Position Off-farm 1000 bushels Arizona
A123: 27.001 | B123: -121 | C123: =RTD("cqg.rtd",,"StudyData", $I$2, "Bar", "", "Time", $H$2,$B123, $M$2, "", "","False") -> 2017-12-04 | D123: =IF(RTD("cqg.rtd",,"StudyData", $I$2, "Bar", "", "Close", $H$2, $B123, $M$2,$L$2,,$J$2,$K$2)="",NA(),RTD("cqg.rtd",,"StudyData", $I$2, "Bar", "", "Close", $H$2, $B123, $M$2,$L$2,,$J$2,$K$2)) ->  | E123: 0 | N123: 5.019 | O123: -121 | P123: =RTD("cqg.rtd",,"StudyData", $I$2, "Bar", "", "Time", $H$3,$B123, $M$2, "", "","False") -> 2019-10-14 | Q123: =IF(RTD("cqg.rtd",,"StudyData", $I$2, "Bar", "", "Close", $H$3, $B123, $M$2,$L$2,,$J$2,$K$2)="",NA(),RTD("cqg.rtd",,"StudyData", $I$2, "Bar", "", "Close", $H$3, $B123, $M$2,$L$2,,$J$2,$K$2)) ->  | R123: 0 | T123: X.US.BSPSUSAZONF | U123: Barley Stocks by Position On-farm 1000 bushels Arizona
A124: 27.002 | B124: -122 | C124: =RTD("cqg.rtd",,"StudyData", $I$2, "Bar", "", "Time", $H$2,$B124, $M$2, "", "","False") -> 2017-11-27 | D124: =IF(RTD("cqg.rtd",,"StudyData", $I$2, "Bar", "", "Close", $H$2, $B124, $M$2,$L$2,,$J$2,$K$2)="",NA(),RTD("cqg.rtd",,"StudyData", $I$2, "Bar", "", "Close", $H$2, $B124, $M$2,$L$2,,$J$2,$K$2)) ->  | E124: 0 | N124: 5.02 | O124: -122 | P124: =RTD("cqg.rtd",,"StudyData", $I$2, "Bar", "", "Time", $H$3,$B124, $M$2, "", "","False") -> 2019-10-11 | Q124: =IF(RTD("cqg.rtd",,"StudyData", $I$2, "Bar", "", "Close", $H$3, $B124, $M$2,$L$2,,$J$2,$K$2)="",NA(),RTD("cqg.rtd",,"StudyData", $I$2, "Bar", "", "Close", $H$3, $B124, $M$2,$L$2,,$J$2,$K$2)) ->  | R124: 0 | T124: X.US.BSPSUSAZTAP | U124: Barley Stocks by Position Total all pos. 1000 bushels Arizona
A125: 27.003 | B125: -123 | C125: =RTD("cqg.rtd",,"StudyData", $I$2, "Bar", "", "Time", $H$2,$B125, $M$2, "", "","False") -> 2017-11-20 | D125: =IF(RTD("cqg.rtd",,"StudyData", $I$2, "Bar", "", "Close", $H$2, $B125, $M$2,$L$2,,$J$2,$K$2)="",NA(),RTD("cqg.rtd",,"StudyData", $I$2, "Bar", "", "Close", $H$2, $B125, $M$2,$L$2,,$J$2,$K$2)) ->  | E125: 0 | N125: 6 | O125: -123 | P125: =RTD("cqg.rtd",,"StudyData", $I$2, "Bar", "", "Time", $H$3,$B125, $M$2, "", "","False") -> 2019-10-10 | Q125: =IF(RTD("cqg.rtd",,"StudyData", $I$2, "Bar", "", "Close", $H$3, $B125, $M$2,$L$2,,$J$2,$K$2)="",NA(),RTD("cqg.rtd",,"StudyData", $I$2, "Bar", "", "Close", $H$3, $B125, $M$2,$L$2,,$J$2,$K$2)) -> 3.4 | R125: 3.4 | T125: X.US.BSPSUSCAOFF | U125: Barley Stocks by Position Off-farm 1000 bushels California
A126: 27.004 | B126: -124 | C126: =RTD("cqg.rtd",,"StudyData", $I$2, "Bar", "", "Time", $H$2,$B126, $M$2, "", "","False") -> 2017-11-13 | D126: =IF(RTD("cqg.rtd",,"StudyData", $I$2, "Bar", "", "Close", $H$2, $B126, $M$2,$L$2,,$J$2,$K$2)="",NA(),RTD("cqg.rtd",,"StudyData", $I$2, "Bar", "", "Close", $H$2, $B126, $M$2,$L$2,,$J$2,$K$2)) ->  | E126: 0 | N126: 6.001 | O126: -124 | P126: =RTD("cqg.rtd",,"StudyData", $I$2, "Bar", "", "Time", $H$3,$B126, $M$2, "", "","False") -> 2019-10-09 | Q126: =IF(RTD("cqg.rtd",,"StudyData", $I$2, "Bar", "", "Close", $H$3, $B126, $M$2,$L$2,,$J$2,$K$2)="",NA(),RTD("cqg.rtd",,"StudyData", $I$2, "Bar", "", "Close", $H$3, $B126, $M$2,$L$2,,$J$2,$K$2)) ->  | R126: 0 | T126: X.US.BSPSUSCAONF | U126: Barley Stocks by Position On-farm 1000 bushels California
A127: 28 | B127: -125 | C127: =RTD("cqg.rtd",,"StudyData", $I$2, "Bar", "", "Time", $H$2,$B127, $M$2, "", "","False") -> 2017-11-06 | D127: =IF(RTD("cqg.rtd",,"StudyData", $I$2, "Bar", "", "Close", $H$2, $B127, $M$2,$L$2,,$J$2,$K$2)="",NA(),RTD("cqg.rtd",,"StudyData", $I$2, "Bar", "", "Close", $H$2, $B127, $M$2,$L$2,,$J$2,$K$2)) -> 2.7 | E127: 2.7 | N127: 6.002 | O127: -125 | P127: =RTD("cqg.rtd",,"StudyData", $I$2, "Bar", "", "Time", $H$3,$B127, $M$2, "", "","False") -> 2019-10-08 | Q127: =IF(RTD("cqg.rtd",,"StudyData", $I$2, "Bar", "", "Close", $H$3, $B127, $M$2,$L$2,,$J$2,$K$2)="",NA(),RTD("cqg.rtd",,"StudyData", $I$2, "Bar", "", "Close", $H$3, $B127, $M$2,$L$2,,$J$2,$K$2)) ->  | R127: 0 | T127: X.US.BSPSUSCATAP | U127: Barley Stocks by Position Total all pos. 1000 bushels California
A128: 28.001 | B128: -126 | C128: =RTD("cqg.rtd",,"StudyData", $I$2, "Bar", "", "Time", $H$2,$B128, $M$2, "", "","False") -> 2017-10-30 | D128: =IF(RTD("cqg.rtd",,"StudyData", $I$2, "Bar", "", "Close", $H$2, $B128, $M$2,$L$2,,$J$2,$K$2)="",NA(),RTD("cqg.rtd",,"StudyData", $I$2, "Bar", "", "Close", $H$2, $B128, $M$2,$L$2,,$J$2,$K$2)) ->  | E128: 0 | N128: 6.003 | O128: -126 | P128: =RTD("cqg.rtd",,"StudyData", $I$2, "Bar", "", "Time", $H$3,$B128, $M$2, "", "","False") -> 2019-10-07 | Q128: =IF(RTD("cqg.rtd",,"StudyData", $I$2, "Bar", "", "Close", $H$3, $B128, $M$2,$L$2,,$J$2,$K$2)="",NA(),RTD("cqg.rtd",,"StudyData", $I$2, "Bar", "", "Close", $H$3, $B128, $M$2,$L$2,,$J$2,$K$2)) ->  | R128: 0 | T128: X.US.BSPSUSCOOFF | U128: Barley Stocks by Position Off-farm 1000 bushels Colorado
A129: 28.002 | B129: -127 | C129: =RTD("cqg.rtd",,"StudyData", $I$2, "Bar", "", "Time", $H$2,$B129, $M$2, "", "","False") -> 2017-10-23 | D129: =IF(RTD("cqg.rtd",,"StudyData", $I$2, "Bar", "", "Close", $H$2, $B129, $M$2,$L$2,,$J$2,$K$2)="",NA(),RTD("cqg.rtd",,"StudyData", $I$2, "Bar", "", "Close", $H$2, $B129, $M$2,$L$2,,$J$2,$K$2)) ->  | E129: 0 | N129: 6.004 | O129: -127 | P129: =RTD("cqg.rtd",,"StudyData", $I$2, "Bar", "", "Time", $H$3,$B129, $M$2, "", "","False") -> 2019-10-04 | Q129: =IF(RTD("cqg.rtd",,"StudyData", $I$2, "Bar", "", "Close", $H$3, $B129, $M$2,$L$2,,$J$2,$K$2)="",NA(),RTD("cqg.rtd",,"StudyData", $I$2, "Bar", "", "Close", $H$3, $B129, $M$2,$L$2,,$J$2,$K$2)) ->  | R129: 0 | T129: X.US.BSPSUSCOONF | U129: Barley Stocks by Position On-farm 1000 bushels Colorado
A130: 28.003 | B130: -128 | C130: =RTD("cqg.rtd",,"StudyData", $I$2, "Bar", "", "Time", $H$2,$B130, $M$2, "", "","False") -> 2017-10-16 | D130: =IF(RTD("cqg.rtd",,"StudyData", $I$2, "Bar", "", "Close", $H$2, $B130, $M$2,$L$2,,$J$2,$K$2)="",NA(),RTD("cqg.rtd",,"StudyData", $I$2, "Bar", "", "Close", $H$2, $B130, $M$2,$L$2,,$J$2,$K$2)) ->  | E130: 0 | N130: 6.005 | O130: -128 | P130: =RTD("cqg.rtd",,"StudyData", $I$2, "Bar", "", "Time", $H$3,$B130, $M$2, "", "","False") -> 2019-10-03 | Q130: =IF(RTD("cqg.rtd",,"StudyData", $I$2, "Bar", "", "Close", $H$3, $B130, $M$2,$L$2,,$J$2,$K$2)="",NA(),RTD("cqg.rtd",,"StudyData", $I$2, "Bar", "", "Close", $H$3, $B130, $M$2,$L$2,,$J$2,$K$2)) ->  | R130: 0 | T130: X.US.BSPSUSCOTAP | U130: Barley Stocks by Position Total all pos. 1000 bushels Colorado
A131: 29 | B131: -129 | C131: =RTD("cqg.rtd",,"StudyData", $I$2, "Bar", "", "Time", $H$2,$B131, $M$2, "", "","False") -> 2017-10-09 | D131: =IF(RTD("cqg.rtd",,"StudyData", $I$2, "Bar", "", "Close", $H$2, $B131, $M$2,$L$2,,$J$2,$K$2)="",NA(),RTD("cqg.rtd",,"StudyData", $I$2, "Bar", "", "Close", $H$2, $B131, $M$2,$L$2,,$J$2,$K$2)) -> 2.5 | E131: =IFERROR(D131,0) -> 2.5 | N131: 6.006 | O131: -129 | P131: =RTD("cqg.rtd",,"StudyData", $I$2, "Bar", "", "Time", $H$3,$B131, $M$2, "", "","False") -> 2019-10-02 | Q131: =IF(RTD("cqg.rtd",,"StudyData", $I$2, "Bar", "", "Close", $H$3, $B131, $M$2,$L$2,,$J$2,$K$2)="",NA(),RTD("cqg.rtd",,"StudyData", $I$2, "Bar", "", "Close", $H$3, $B131, $M$2,$L$2,,$J$2,$K$2)) ->  | R131: 0 | T131: X.US.BSPSUSDEOFF | U131: Barley Stocks by Position Off-farm 1000 bushels Delaware
A132: =IF(E132=0,A131+0.001,TRUNC(A131)+1) -> 29.001 | B132: =B131-1 -> -130 | C132: =RTD("cqg.rtd",,"StudyData", $I$2, "Bar", "", "Time", $H$2,$B132, $M$2, "", "","False") -> 2017-10-02 | D132: =IF(RTD("cqg.rtd",,"StudyData", $I$2, "Bar", "", "Close", $H$2, $B132, $M$2,$L$2,,$J$2,$K$2)="",NA(),RTD("cqg.rtd",,"StudyData", $I$2, "Bar", "", "Close", $H$2, $B132, $M$2,$L$2,,$J$2,$K$2)) ->  | E132: 0 | N132: 6.007 | O132: =O131-1 -> -130 | P132: =RTD("cqg.rtd",,"StudyData", $I$2, "Bar", "", "Time", $H$3,$B132, $M$2, "", "","False") -> 2019-10-01 | Q132: =IF(RTD("cqg.rtd",,"StudyData", $I$2, "Bar", "", "Close", $H$3, $B132, $M$2,$L$2,,$J$2,$K$2)="",NA(),RTD("cqg.rtd",,"StudyData", $I$2, "Bar", "", "Close", $H$3, $B132, $M$2,$L$2,,$J$2,$K$2)) ->  | R132: 0 | T132: X.US.BSPSUSDEONF | U132: Barley Stocks by Position On-farm 1000 bushels Delaware
A133: 29.002 | B133: -131 | C133: =RTD("cqg.rtd",,"StudyData", $I$2, "Bar", "", "Time", $H$2,$B133, $M$2, "", "","False") -> 2017-09-25 | D133: =IF(RTD("cqg.rtd",,"StudyData", $I$2, "Bar", "", "Close", $H$2, $B133, $M$2,$L$2,,$J$2,$K$2)="",NA(),RTD("cqg.rtd",,"StudyData", $I$2, "Bar", "", "Close", $H$2, $B133, $M$2,$L$2,,$J$2,$K$2)) ->  | E133: 0 | N133: 6.008 | O133: -131 | P133: =RTD("cqg.rtd",,"StudyData", $I$2, "Bar", "", "Time", $H$3,$B133, $M$2, "", "","False") -> 2019-09-30 | Q133: =IF(RTD("cqg.rtd",,"StudyData", $I$2, "Bar", "", "Close", $H$3, $B133, $M$2,$L$2,,$J$2,$K$2)="",NA(),RTD("cqg.rtd",,"StudyData", $I$2, "Bar", "", "Close", $H$3, $B133, $M$2,$L$2,,$J$2,$K$2)) ->  | R133: 0 | T133: X.US.BSPSUSDETAP | U133: Barley Stocks by Position Total all pos. 1000 bushels Delaware
A134: 29.003 | B134: -132 | C134: =RTD("cqg.rtd",,"StudyData", $I$2, "Bar", "", "Time", $H$2,$B134, $M$2, "", "","False") -> 2017-09-18 | D134: =IF(RTD("cqg.rtd",,"StudyData", $I$2, "Bar", "", "Close", $H$2, $B134, $M$2,$L$2,,$J$2,$K$2)="",NA(),RTD("cqg.rtd",,"StudyData", $I$2, "Bar", "", "Close", $H$2, $B134, $M$2,$L$2,,$J$2,$K$2)) ->  | E134: 0 | N134: 6.009 | O134: -132 | P134: =RTD("cqg.rtd",,"StudyData", $I$2, "Bar", "", "Time", $H$3,$B134, $M$2, "", "","False") -> 2019-09-27 | Q134: =IF(RTD("cqg.rtd",,"StudyData", $I$2, "Bar", "", "Close", $H$3, $B134, $M$2,$L$2,,$J$2,$K$2)="",NA(),RTD("cqg.rtd",,"StudyData", $I$2, "Bar", "", "Close", $H$3, $B134, $M$2,$L$2,,$J$2,$K$2)) ->  | R134: 0 | T134: X.US.BSPSUSFLOFF | U134: Barley Stocks by Position Off-farm 1000 bushels Florida
A135: 30 | B135: -133 | C135: =RTD("cqg.rtd",,"StudyData", $I$2, "Bar", "", "Time", $H$2,$B135, $M$2, "", "","False") -> 2017-09-11 | D135: =IF(RTD("cqg.rtd",,"StudyData", $I$2, "Bar", "", "Close", $H$2, $B135, $M$2,$L$2,,$J$2,$K$2)="",NA(),RTD("cqg.rtd",,"StudyData", $I$2, "Bar", "", "Close", $H$2, $B135, $M$2,$L$2,,$J$2,$K$2)) -> 2.5 | E135: 2.5 | N135: 6.01 | O135: -133 | P135: =RTD("cqg.rtd",,"StudyData", $I$2, "Bar", "", "Time", $H$3,$B135, $M$2, "", "","False") -> 2019-09-26 | Q135: =IF(RTD("cqg.rtd",,"StudyData", $I$2, "Bar", "", "Close", $H$3, $B135, $M$2,$L$2,,$J$2,$K$2)="",NA(),RTD("cqg.rtd",,"StudyData", $I$2, "Bar", "", "Close", $H$3, $B135, $M$2,$L$2,,$J$2,$K$2)) ->  | R135: 0 | T135: X.US.BSPSUSFLONF | U135: Barley Stocks by Position On-farm 1000 bushels Florida
A136: 30.001 | B136: -134 | C136: =RTD("cqg.rtd",,"StudyData", $I$2, "Bar", "", "Time", $H$2,$B136, $M$2, "", "","False") -> 2017-09-04 | D136: =IF(RTD("cqg.rtd",,"StudyData", $I$2, "Bar", "", "Close", $H$2, $B136, $M$2,$L$2,,$J$2,$K$2)="",NA(),RTD("cqg.rtd",,"StudyData", $I$2, "Bar", "", "Close", $H$2, $B136, $M$2,$L$2,,$J$2,$K$2)) ->  | E136: 0 | N136: 6.011 | O136: -134 | P136: =RTD("cqg.rtd",,"StudyData", $I$2, "Bar", "", "Time", $H$3,$B136, $M$2, "", "","False") -> 2019-09-25 | Q136: =IF(RTD("cqg.rtd",,"StudyData", $I$2, "Bar", "", "Close", $H$3, $B136, $M$2,$L$2,,$J$2,$K$2)="",NA(),RTD("cqg.rtd",,"StudyData", $I$2, "Bar", "", "Close", $H$3, $B136, $M$2,$L$2,,$J$2,$K$2)) ->  | R136: 0 | T136: X.US.BSPSUSFLTAP | U136: Barley Stocks by Position Total all pos. 1000 bushels Florida
A137: 30.002 | B137: -135 | C137: =RTD("cqg.rtd",,"StudyData", $I$2, "Bar", "", "Time", $H$2,$B137, $M$2, "", "","False") -> 2017-08-28 | D137: =IF(RTD("cqg.rtd",,"StudyData", $I$2, "Bar", "", "Close", $H$2, $B137, $M$2,$L$2,,$J$2,$K$2)="",NA(),RTD("cqg.rtd",,"StudyData", $I$2, "Bar", "", "Close", $H$2, $B137, $M$2,$L$2,,$J$2,$K$2)) ->  | E137: 0 | N137: 6.012 | O137: -135 | P137: =RTD("cqg.rtd",,"StudyData", $I$2, "Bar", "", "Time", $H$3,$B137, $M$2, "", "","False") -> 2019-09-24 | Q137: =IF(RTD("cqg.rtd",,"StudyData", $I$2, "Bar", "", "Close", $H$3, $B137, $M$2,$L$2,,$J$2,$K$2)="",NA(),RTD("cqg.rtd",,"StudyData", $I$2, "Bar", "", "Close", $H$3, $B137, $M$2,$L$2,,$J$2,$K$2)) ->  | R137: 0 | T137: X.US.BSPSUSGAOFF | U137: Barley Stocks by Position Off-farm 1000 bushels Georgia
A138: 30.003 | B138: -136 | C138: =RTD("cqg.rtd",,"StudyData", $I$2, "Bar", "", "Time", $H$2,$B138, $M$2, "", "","False") -> 2017-08-21 | D138: =IF(RTD("cqg.rtd",,"StudyData", $I$2, "Bar", "", "Close", $H$2, $B138, $M$2,$L$2,,$J$2,$K$2)="",NA(),RTD("cqg.rtd",,"StudyData", $I$2, "Bar", "", "Close", $H$2, $B138, $M$2,$L$2,,$J$2,$K$2)) ->  | E138: 0 | N138: 6.013 | O138: -136 | P138: =RTD("cqg.rtd",,"StudyData", $I$2, "Bar", "", "Time", $H$3,$B138, $M$2, "", "","False") -> 2019-09-23 | Q138: =IF(RTD("cqg.rtd",,"StudyData", $I$2, "Bar", "", "Close", $H$3, $B138, $M$2,$L$2,,$J$2,$K$2)="",NA(),RTD("cqg.rtd",,"StudyData", $I$2, "Bar", "", "Close", $H$3, $B138, $M$2,$L$2,,$J$2,$K$2)) ->  | R138: 0 | T138: X.US.BSPSUSGAONF | U138: Barley Stocks by Position On-farm 1000 bushels Georgia
A139: 30.004 | B139: -137 | C139: =RTD("cqg.rtd",,"StudyData", $I$2, "Bar", "", "Time", $H$2,$B139, $M$2, "", "","False") -> 2017-08-14 | D139: =IF(RTD("cqg.rtd",,"StudyData", $I$2, "Bar", "", "Close", $H$2, $B139, $M$2,$L$2,,$J$2,$K$2)="",NA(),RTD("cqg.rtd",,"StudyData", $I$2, "Bar", "", "Close", $H$2, $B139, $M$2,$L$2,,$J$2,$K$2)) ->  | E139: 0 | N139: 6.014 | O139: -137 | P139: =RTD("cqg.rtd",,"StudyData", $I$2, "Bar", "", "Time", $H$3,$B139, $M$2, "", "","False") -> 2019-09-20 | Q139: =IF(RTD("cqg.rtd",,"StudyData", $I$2, "Bar", "", "Close", $H$3, $B139, $M$2,$L$2,,$J$2,$K$2)="",NA(),RTD("cqg.rtd",,"StudyData", $I$2, "Bar", "", "Close", $H$3, $B139, $M$2,$L$2,,$J$2,$K$2)) ->  | R139: 0 | T139: X.US.BSPSUSGATAP | U139: Barley Stocks by Position Total all pos. 1000 bushels Georgia
A140: 31 | B140: -138 | C140: =RTD("cqg.rtd",,"StudyData", $I$2, "Bar", "", "Time", $H$2,$B140, $M$2, "", "","False") -> 2017-08-07 | D140: =IF(RTD("cqg.rtd",,"StudyData", $I$2, "Bar", "", "Close", $H$2, $B140, $M$2,$L$2,,$J$2,$K$2)="",NA(),RTD("cqg.rtd",,"StudyData", $I$2, "Bar", "", "Close", $H$2, $B140, $M$2,$L$2,,$J$2,$K$2)) -> 2.5 | E140: 2.5 | N140: 6.015 | O140: -138 | P140: =RTD("cqg.rtd",,"StudyData", $I$2, "Bar", "", "Time", $H$3,$B140, $M$2, "", "","False") -> 2019-09-19 | Q140: =IF(RTD("cqg.rtd",,"StudyData", $I$2, "Bar", "", "Close", $H$3, $B140, $M$2,$L$2,,$J$2,$K$2)="",NA(),RTD("cqg.rtd",,"StudyData", $I$2, "Bar", "", "Close", $H$3, $B140, $M$2,$L$2,,$J$2,$K$2)) ->  | R140: 0 | T140: X.US.BSPSUSIAOFF | U140: Barley Stocks by Position Off-farm 1000 bushels Iowa
A141: 31.001 | B141: -139 | C141: =RTD("cqg.rtd",,"StudyData", $I$2, "Bar", "", "Time", $H$2,$B141, $M$2, "", "","False") -> 2017-07-31 | D141: =IF(RTD("cqg.rtd",,"StudyData", $I$2, "Bar", "", "Close", $H$2, $B141, $M$2,$L$2,,$J$2,$K$2)="",NA(),RTD("cqg.rtd",,"StudyData", $I$2, "Bar", "", "Close", $H$2, $B141, $M$2,$L$2,,$J$2,$K$2)) ->  | E141: 0 | N141: 6.016 | O141: -139 | P141: =RTD("cqg.rtd",,"StudyData", $I$2, "Bar", "", "Time", $H$3,$B141, $M$2, "", "","False") -> 2019-09-18 | Q141: =IF(RTD("cqg.rtd",,"StudyData", $I$2, "Bar", "", "Close", $H$3, $B141, $M$2,$L$2,,$J$2,$K$2)="",NA(),RTD("cqg.rtd",,"StudyData", $I$2, "Bar", "", "Close", $H$3, $B141, $M$2,$L$2,,$J$2,$K$2)) ->  | R141: 0 | T141: X.US.BSPSUSIAONF | U141: Barley Stocks by Position On-farm 1000 bushels Iowa
A142: 31.002 | B142: -140 | C142: =RTD("cqg.rtd",,"StudyData", $I$2, "Bar", "", "Time", $H$2,$B142, $M$2, "", "","False") -> 2017-07-24 | D142: =IF(RTD("cqg.rtd",,"StudyData", $I$2, "Bar", "", "Close", $H$2, $B142, $M$2,$L$2,,$J$2,$K$2)="",NA(),RTD("cqg.rtd",,"StudyData", $I$2, "Bar", "", "Close", $H$2, $B142, $M$2,$L$2,,$J$2,$K$2)) ->  | E142: 0 | N142: 6.017 | O142: -140 | P142: =RTD("cqg.rtd",,"StudyData", $I$2, "Bar", "", "Time", $H$3,$B142, $M$2, "", "","False") -> 2019-09-17 | Q142: =IF(RTD("cqg.rtd",,"StudyData", $I$2, "Bar", "", "Close", $H$3, $B142, $M$2,$L$2,,$J$2,$K$2)="",NA(),RTD("cqg.rtd",,"StudyData", $I$2, "Bar", "", "Close", $H$3, $B142, $M$2,$L$2,,$J$2,$K$2)) ->  | R142: 0 | T142: X.US.BSPSUSIATAP | U142: Barley Stocks by Position Total all pos. 1000 bushels Iowa
A143: 31.003 | B143: -141 | C143: =RTD("cqg.rtd",,"StudyData", $I$2, "Bar", "", "Time", $H$2,$B143, $M$2, "", "","False") -> 2017-07-17 | D143: =IF(RTD("cqg.rtd",,"StudyData", $I$2, "Bar", "", "Close", $H$2, $B143, $M$2,$L$2,,$J$2,$K$2)="",NA(),RTD("cqg.rtd",,"StudyData", $I$2, "Bar", "", "Close", $H$2, $B143, $M$2,$L$2,,$J$2,$K$2)) ->  | E143: 0 | N143: 6.018 | O143: -141 | P143: =RTD("cqg.rtd",,"StudyData", $I$2, "Bar", "", "Time", $H$3,$B143, $M$2, "", "","False") -> 2019-09-16 | Q143: =IF(RTD("cqg.rtd",,"StudyData", $I$2, "Bar", "", "Close", $H$3, $B143, $M$2,$L$2,,$J$2,$K$2)="",NA(),RTD("cqg.rtd",,"StudyData", $I$2, "Bar", "", "Close", $H$3, $B143, $M$2,$L$2,,$J$2,$K$2)) ->  | R143: 0 | T143: X.US.BSPSUSIDOFF | U143: Barley Stocks by Position Off-farm 1000 bushels Idaho
A144: 32 | B144: -142 | C144: =RTD("cqg.rtd",,"StudyData", $I$2, "Bar", "", "Time", $H$2,$B144, $M$2, "", "","False") -> 2017-07-10 | D144: =IF(RTD("cqg.rtd",,"StudyData", $I$2, "Bar", "", "Close", $H$2, $B144, $M$2,$L$2,,$J$2,$K$2)="",NA(),RTD("cqg.rtd",,"StudyData", $I$2, "Bar", "", "Close", $H$2, $B144, $M$2,$L$2,,$J$2,$K$2)) -> 2.5 | E144: 2.5 | N144: 6.019 | O144: -142 | P144: =RTD("cqg.rtd",,"StudyData", $I$2, "Bar", "", "Time", $H$3,$B144, $M$2, "", "","False") -> 2019-09-13 | Q144: =IF(RTD("cqg.rtd",,"StudyData", $I$2, "Bar", "", "Close", $H$3, $B144, $M$2,$L$2,,$J$2,$K$2)="",NA(),RTD("cqg.rtd",,"StudyData", $I$2, "Bar", "", "Close", $H$3, $B144, $M$2,$L$2,,$J$2,$K$2)) ->  | R144: 0 | T144: X.US.BSPSUSIDONF | U144: Barley Stocks by Position On-farm 1000 bushels Idaho
A145: 32.001 | B145: -143 | C145: =RTD("cqg.rtd",,"StudyData", $I$2, "Bar", "", "Time", $H$2,$B145, $M$2, "", "","False") -> 2017-07-03 | D145: =IF(RTD("cqg.rtd",,"StudyData", $I$2, "Bar", "", "Close", $H$2, $B145, $M$2,$L$2,,$J$2,$K$2)="",NA(),RTD("cqg.rtd",,"StudyData", $I$2, "Bar", "", "Close", $H$2, $B145, $M$2,$L$2,,$J$2,$K$2)) ->  | E145: 0 | N145: 7 | O145: -143 | P145: =RTD("cqg.rtd",,"StudyData", $I$2, "Bar", "", "Time", $H$3,$B145, $M$2, "", "","False") -> 2019-09-12 | Q145: =IF(RTD("cqg.rtd",,"StudyData", $I$2, "Bar", "", "Close", $H$3, $B145, $M$2,$L$2,,$J$2,$K$2)="",NA(),RTD("cqg.rtd",,"StudyData", $I$2, "Bar", "", "Close", $H$3, $B145, $M$2,$L$2,,$J$2,$K$2)) -> 3.3 | R145: 3.3 | T145: X.US.BSPSUSIDTAP | U145: Barley Stocks by Position Total all pos. 1000 bushels Idaho
A146: 32.002 | B146: -144 | C146: =RTD("cqg.rtd",,"StudyData", $I$2, "Bar", "", "Time", $H$2,$B146, $M$2, "", "","False") -> 2017-06-26 | D146: =IF(RTD("cqg.rtd",,"StudyData", $I$2, "Bar", "", "Close", $H$2, $B146, $M$2,$L$2,,$J$2,$K$2)="",NA(),RTD("cqg.rtd",,"StudyData", $I$2, "Bar", "", "Close", $H$2, $B146, $M$2,$L$2,,$J$2,$K$2)) ->  | E146: 0 | N146: 7.001 | O146: -144 | P146: =RTD("cqg.rtd",,"StudyData", $I$2, "Bar", "", "Time", $H$3,$B146, $M$2, "", "","False") -> 2019-09-11 | Q146: =IF(RTD("cqg.rtd",,"StudyData", $I$2, "Bar", "", "Close", $H$3, $B146, $M$2,$L$2,,$J$2,$K$2)="",NA(),RTD("cqg.rtd",,"StudyData", $I$2, "Bar", "", "Close", $H$3, $B146, $M$2,$L$2,,$J$2,$K$2)) ->  | R146: 0 | T146: X.US.BSPSUSILOFF | U146: Barley Stocks by Position Off-farm 1000 bushels Illinois
A147: 32.003 | B147: -145 | C147: =RTD("cqg.rtd",,"StudyData", $I$2, "Bar", "", "Time", $H$2,$B147, $M$2, "", "","False") -> 2017-06-19 | D147: =IF(RTD("cqg.rtd",,"StudyData", $I$2, "Bar", "", "Close", $H$2, $B147, $M$2,$L$2,,$J$2,$K$2)="",NA(),RTD("cqg.rtd",,"StudyData", $I$2, "Bar", "", "Close", $H$2, $B147, $M$2,$L$2,,$J$2,$K$2)) ->  | E147: 0 | N147: 7.002 | O147: -145 | P147: =RTD("cqg.rtd",,"StudyData", $I$2, "Bar", "", "Time", $H$3,$B147, $M$2, "", "","False") -> 2019-09-10 | Q147: =IF(RTD("cqg.rtd",,"StudyData", $I$2, "Bar", "", "Close", $H$3, $B147, $M$2,$L$2,,$J$2,$K$2)="",NA(),RTD("cqg.rtd",,"StudyData", $I$2, "Bar", "", "Close", $H$3, $B147, $M$2,$L$2,,$J$2,$K$2)) ->  | R147: 0 | T147: X.US.BSPSUSILONF | U147: Barley Stocks by Position On-farm 1000 bushels Illinois
A148: 32.004 | B148: -146 | C148: =RTD("cqg.rtd",,"StudyData", $I$2, "Bar", "", "Time", $H$2,$B148, $M$2, "", "","False") -> 2017-06-12 | D148: =IF(RTD("cqg.rtd",,"StudyData", $I$2, "Bar", "", "Close", $H$2, $B148, $M$2,$L$2,,$J$2,$K$2)="",NA(),RTD("cqg.rtd",,"StudyData", $I$2, "Bar", "", "Close", $H$2, $B148, $M$2,$L$2,,$J$2,$K$2)) ->  | E148: 0 | N148: 7.003 | O148: -146 | P148: =RTD("cqg.rtd",,"StudyData", $I$2, "Bar", "", "Time", $H$3,$B148, $M$2, "", "","False") -> 2019-09-09 | Q148: =IF(RTD("cqg.rtd",,"StudyData", $I$2, "Bar", "", "Close", $H$3, $B148, $M$2,$L$2,,$J$2,$K$2)="",NA(),RTD("cqg.rtd",,"StudyData", $I$2, "Bar", "", "Close", $H$3, $B148, $M$2,$L$2,,$J$2,$K$2)) ->  | R148: 0 | T148: X.US.BSPSUSILTAP | U148: Barley Stocks by Position Total all pos. 1000 bushels Illinois
A149: 33 | B149: -147 | C149: =RTD("cqg.rtd",,"StudyData", $I$2, "Bar", "", "Time", $H$2,$B149, $M$2, "", "","False") -> 2017-06-05 | D149: =IF(RTD("cqg.rtd",,"StudyData", $I$2, "Bar", "", "Close", $H$2, $B149, $M$2,$L$2,,$J$2,$K$2)="",NA(),RTD("cqg.rtd",,"StudyData", $I$2, "Bar", "", "Close", $H$2, $B149, $M$2,$L$2,,$J$2,$K$2)) -> 2.6 | E149: 2.6 | N149: 7.004 | O149: -147 | P149: =RTD("cqg.rtd",,"StudyData", $I$2, "Bar", "", "Time", $H$3,$B149, $M$2, "", "","False") -> 2019-09-06 | Q149: =IF(RTD("cqg.rtd",,"StudyData", $I$2, "Bar", "", "Close", $H$3, $B149, $M$2,$L$2,,$J$2,$K$2)="",NA(),RTD("cqg.rtd",,"StudyData", $I$2, "Bar", "", "Close", $H$3, $B149, $M$2,$L$2,,$J$2,$K$2)) ->  | R149: 0 | T149: X.US.BSPSUSINOFF | U149: Barley Stocks by Position Off-farm 1000 bushels Indiana
A150: 33.001 | B150: -148 | C150: =RTD("cqg.rtd",,"StudyData", $I$2, "Bar", "", "Time", $H$2,$B150, $M$2, "", "","False") -> 2017-05-29 | D150: =IF(RTD("cqg.rtd",,"StudyData", $I$2, "Bar", "", "Close", $H$2, $B150, $M$2,$L$2,,$J$2,$K$2)="",NA(),RTD("cqg.rtd",,"StudyData", $I$2, "Bar", "", "Close", $H$2, $B150, $M$2,$L$2,,$J$2,$K$2)) ->  | E150: 0 | N150: 7.005 | O150: -148 | P150: =RTD("cqg.rtd",,"StudyData", $I$2, "Bar", "", "Time", $H$3,$B150, $M$2, "", "","False") -> 2019-09-05 | Q150: =IF(RTD("cqg.rtd",,"StudyData", $I$2, "Bar", "", "Close", $H$3, $B150, $M$2,$L$2,,$J$2,$K$2)="",NA(),RTD("cqg.rtd",,"StudyData", $I$2, "Bar", "", "Close", $H$3, $B150, $M$2,$L$2,,$J$2,$K$2)) ->  | R150: 0 | T150: X.US.BSPSUSINONF | U150: Barley Stocks by Position On-farm 1000 bushels Indiana
A151: 33.002 | B151: -149 | C151: =RTD("cqg.rtd",,"StudyData", $I$2, "Bar", "", "Time", $H$2,$B151, $M$2, "", "","False") -> 2017-05-22 | D151: =IF(RTD("cqg.rtd",,"StudyData", $I$2, "Bar", "", "Close", $H$2, $B151, $M$2,$L$2,,$J$2,$K$2)="",NA(),RTD("cqg.rtd",,"StudyData", $I$2, "Bar", "", "Close", $H$2, $B151, $M$2,$L$2,,$J$2,$K$2)) ->  | E151: 0 | N151: 7.006 | O151: -149 | P151: =RTD("cqg.rtd",,"StudyData", $I$2, "Bar", "", "Time", $H$3,$B151, $M$2, "", "","False") -> 2019-09-04 | Q151: =IF(RTD("cqg.rtd",,"StudyData", $I$2, "Bar", "", "Close", $H$3, $B151, $M$2,$L$2,,$J$2,$K$2)="",NA(),RTD("cqg.rtd",,"StudyData", $I$2, "Bar", "", "Close", $H$3, $B151, $M$2,$L$2,,$J$2,$K$2)) ->  | R151: 0 | T151: X.US.BSPSUSINTAP | U151: Barley Stocks by Position Total all pos. 1000 bushels Indiana
A152: 33.003 | B152: -150 | C152: =RTD("cqg.rtd",,"StudyData", $I$2, "Bar", "", "Time", $H$2,$B152, $M$2, "", "","False") -> 2017-05-15 | D152: =IF(RTD("cqg.rtd",,"StudyData", $I$2, "Bar", "", "Close", $H$2, $B152, $M$2,$L$2,,$J$2,$K$2)="",NA(),RTD("cqg.rtd",,"StudyData", $I$2, "Bar", "", "Close", $H$2, $B152, $M$2,$L$2,,$J$2,$K$2)) ->  | E152: 0 | N152: 7.007 | O152: -150 | P152: =RTD("cqg.rtd",,"StudyData", $I$2, "Bar", "", "Time", $H$3,$B152, $M$2, "", "","False") -> 2019-09-03 | Q152: =IF(RTD("cqg.rtd",,"StudyData", $I$2, "Bar", "", "Close", $H$3, $B152, $M$2,$L$2,,$J$2,$K$2)="",NA(),RTD("cqg.rtd",,"StudyData", $I$2, "Bar", "", "Close", $H$3, $B152, $M$2,$L$2,,$J$2,$K$2)) ->  | R152: 0 | T152: X.US.BSPSUSKSOFF | U152: Barley Stocks by Position Off-farm 1000 bushels Kansas
A153: 34 | B153: -151 | C153: =RTD("cqg.rtd",,"StudyData", $I$2, "Bar", "", "Time", $H$2,$B153, $M$2, "", "","False") -> 2017-05-08 | D153: =IF(RTD("cqg.rtd",,"StudyData", $I$2, "Bar", "", "Close", $H$2, $B153, $M$2,$L$2,,$J$2,$K$2)="",NA(),RTD("cqg.rtd",,"StudyData", $I$2, "Bar", "", "Close", $H$2, $B153, $M$2,$L$2,,$J$2,$K$2)) -> 2.6 | E153: 2.6 | N153: 7.008 | O153: -151 | P153: =RTD("cqg.rtd",,"StudyData", $I$2, "Bar", "", "Time", $H$3,$B153, $M$2, "", "","False") -> 2019-09-02 | Q153: =IF(RTD("cqg.rtd",,"StudyData", $I$2, "Bar", "", "Close", $H$3, $B153, $M$2,$L$2,,$J$2,$K$2)="",NA(),RTD("cqg.rtd",,"StudyData", $I$2, "Bar", "", "Close", $H$3, $B153, $M$2,$L$2,,$J$2,$K$2)) ->  | R153: 0 | T153: X.US.BSPSUSKSONF | U153: Barley Stocks by Position On-farm 1000 bushels Kansas
A154: 34.001 | B154: -152 | C154: =RTD("cqg.rtd",,"StudyData", $I$2, "Bar", "", "Time", $H$2,$B154, $M$2, "", "","False") -> 2017-05-01 | D154: =IF(RTD("cqg.rtd",,"StudyData", $I$2, "Bar", "", "Close", $H$2, $B154, $M$2,$L$2,,$J$2,$K$2)="",NA(),RTD("cqg.rtd",,"StudyData", $I$2, "Bar", "", "Close", $H$2, $B154, $M$2,$L$2,,$J$2,$K$2)) ->  | E154: 0 | N154: 7.009 | O154: -152 | P154: =RTD("cqg.rtd",,"StudyData", $I$2, "Bar", "", "Time", $H$3,$B154, $M$2, "", "","False") -> 2019-08-30 | Q154: =IF(RTD("cqg.rtd",,"StudyData", $I$2, "Bar", "", "Close", $H$3, $B154, $M$2,$L$2,,$J$2,$K$2)="",NA(),RTD("cqg.rtd",,"StudyData", $I$2, "Bar", "", "Close", $H$3, $B154, $M$2,$L$2,,$J$2,$K$2)) ->  | R154: 0 | T154: X.US.BSPSUSKSTAP | U154: Barley Stocks by Position Total all pos. 1000 bushels Kansas
A155: 34.002 | B155: -153 | C155: =RTD("cqg.rtd",,"StudyData", $I$2, "Bar", "", "Time", $H$2,$B155, $M$2, "", "","False") -> 2017-04-24 | D155: =IF(RTD("cqg.rtd",,"StudyData", $I$2, "Bar", "", "Close", $H$2, $B155, $M$2,$L$2,,$J$2,$K$2)="",NA(),RTD("cqg.rtd",,"StudyData", $I$2, "Bar", "", "Close", $H$2, $B155, $M$2,$L$2,,$J$2,$K$2)) ->  | E155: 0 | N155: 7.01 | O155: -153 | P155: =RTD("cqg.rtd",,"StudyData", $I$2, "Bar", "", "Time", $H$3,$B155, $M$2, "", "","False") -> 2019-08-29 | Q155: =IF(RTD("cqg.rtd",,"StudyData", $I$2, "Bar", "", "Close", $H$3, $B155, $M$2,$L$2,,$J$2,$K$2)="",NA(),RTD("cqg.rtd",,"StudyData", $I$2, "Bar", "", "Close", $H$3, $B155, $M$2,$L$2,,$J$2,$K$2)) ->  | R155: 0 | T155: X.US.BSPSUSKYOFF | U155: Barley Stocks by Position Off-farm 1000 bushels Kentucky
A156: 34.003 | B156: -154 | C156: =RTD("cqg.rtd",,"StudyData", $I$2, "Bar", "", "Time", $H$2,$B156, $M$2, "", "","False") -> 2017-04-17 | D156: =IF(RTD("cqg.rtd",,"StudyData", $I$2, "Bar", "", "Close", $H$2, $B156, $M$2,$L$2,,$J$2,$K$2)="",NA(),RTD("cqg.rtd",,"StudyData", $I$2, "Bar", "", "Close", $H$2, $B156, $M$2,$L$2,,$J$2,$K$2)) ->  | E156: 0 | N156: 7.011 | O156: -154 | P156: =RTD("cqg.rtd",,"StudyData", $I$2, "Bar", "", "Time", $H$3,$B156, $M$2, "", "","False") -> 2019-08-28 | Q156: =IF(RTD("cqg.rtd",,"StudyData", $I$2, "Bar", "", "Close", $H$3, $B156, $M$2,$L$2,,$J$2,$K$2)="",NA(),RTD("cqg.rtd",,"StudyData", $I$2, "Bar", "", "Close", $H$3, $B156, $M$2,$L$2,,$J$2,$K$2)) ->  | R156: 0 | T156: X.US.BSPSUSKYONF | U156: Barley Stocks by Position On-farm 1000 bushels Kentucky
A157: 35 | B157: -155 | C157: =RTD("cqg.rtd",,"StudyData", $I$2, "Bar", "", "Time", $H$2,$B157, $M$2, "", "","False") -> 2017-04-10 | D157: =IF(RTD("cqg.rtd",,"StudyData", $I$2, "Bar", "", "Close", $H$2, $B157, $M$2,$L$2,,$J$2,$K$2)="",NA(),RTD("cqg.rtd",,"StudyData", $I$2, "Bar", "", "Close", $H$2, $B157, $M$2,$L$2,,$J$2,$K$2)) -> 2.5 | E157: 2.5 | N157: 7.012 | O157: -155 | P157: =RTD("cqg.rtd",,"StudyData", $I$2, "Bar", "", "Time", $H$3,$B157, $M$2, "", "","False") -> 2019-08-27 | Q157: =IF(RTD("cqg.rtd",,"StudyData", $I$2, "Bar", "", "Close", $H$3, $B157, $M$2,$L$2,,$J$2,$K$2)="",NA(),RTD("cqg.rtd",,"StudyData", $I$2, "Bar", "", "Close", $H$3, $B157, $M$2,$L$2,,$J$2,$K$2)) ->  | R157: 0 | T157: X.US.BSPSUSKYTAP | U157: Barley Stocks by Position Total all pos. 1000 bushels Kentucky
A158: 35.001 | B158: -156 | C158: =RTD("cqg.rtd",,"StudyData", $I$2, "Bar", "", "Time", $H$2,$B158, $M$2, "", "","False") -> 2017-04-03 | D158: =IF(RTD("cqg.rtd",,"StudyData", $I$2, "Bar", "", "Close", $H$2, $B158, $M$2,$L$2,,$J$2,$K$2)="",NA(),RTD("cqg.rtd",,"StudyData", $I$2, "Bar", "", "Close", $H$2, $B158, $M$2,$L$2,,$J$2,$K$2)) ->  | E158: 0 | N158: 7.013 | O158: -156 | P158: =RTD("cqg.rtd",,"StudyData", $I$2, "Bar", "", "Time", $H$3,$B158, $M$2, "", "","False") -> 2019-08-26 | Q158: =IF(RTD("cqg.rtd",,"StudyData", $I$2, "Bar", "", "Close", $H$3, $B158, $M$2,$L$2,,$J$2,$K$2)="",NA(),RTD("cqg.rtd",,"StudyData", $I$2, "Bar", "", "Close", $H$3, $B158, $M$2,$L$2,,$J$2,$K$2)) ->  | R158: 0 | T158: X.US.BSPSUSLAOFF | U158: Barley Stocks by Position Off-farm 1000 bushels Louisiana
A159: 35.002 | B159: -157 | C159: =RTD("cqg.rtd",,"StudyData", $I$2, "Bar", "", "Time", $H$2,$B159, $M$2, "", "","False") -> 2017-03-27 | D159: =IF(RTD("cqg.rtd",,"StudyData", $I$2, "Bar", "", "Close", $H$2, $B159, $M$2,$L$2,,$J$2,$K$2)="",NA(),RTD("cqg.rtd",,"StudyData", $I$2, "Bar", "", "Close", $H$2, $B159, $M$2,$L$2,,$J$2,$K$2)) ->  | E159: 0 | N159: 7.014 | O159: -157 | P159: =RTD("cqg.rtd",,"StudyData", $I$2, "Bar", "", "Time", $H$3,$B159, $M$2, "", "","False") -> 2019-08-23 | Q159: =IF(RTD("cqg.rtd",,"StudyData", $I$2, "Bar", "", "Close", $H$3, $B159, $M$2,$L$2,,$J$2,$K$2)="",NA(),RTD("cqg.rtd",,"StudyData", $I$2, "Bar", "", "Close", $H$3, $B159, $M$2,$L$2,,$J$2,$K$2)) ->  | R159: 0 | T159: X.US.BSPSUSLAONF | U159: Barley Stocks by Position On-farm 1000 bushels Louisiana
A160: 35.003 | B160: -158 | C160: =RTD("cqg.rtd",,"StudyData", $I$2, "Bar", "", "Time", $H$2,$B160, $M$2, "", "","False") -> 2017-03-20 | D160: =IF(RTD("cqg.rtd",,"StudyData", $I$2, "Bar", "", "Close", $H$2, $B160, $M$2,$L$2,,$J$2,$K$2)="",NA(),RTD("cqg.rtd",,"StudyData", $I$2, "Bar", "", "Close", $H$2, $B160, $M$2,$L$2,,$J$2,$K$2)) ->  | E160: 0 | N160: 7.015 | O160: -158 | P160: =RTD("cqg.rtd",,"StudyData", $I$2, "Bar", "", "Time", $H$3,$B160, $M$2, "", "","False") -> 2019-08-22 | Q160: =IF(RTD("cqg.rtd",,"StudyData", $I$2, "Bar", "", "Close", $H$3, $B160, $M$2,$L$2,,$J$2,$K$2)="",NA(),RTD("cqg.rtd",,"StudyData", $I$2, "Bar", "", "Close", $H$3, $B160, $M$2,$L$2,,$J$2,$K$2)) ->  | R160: 0 | T160: X.US.BSPSUSLATAP | U160: Barley Stocks by Position Total all pos. 1000 bushels Louisiana
A161: 35.004 | B161: -159 | C161: =RTD("cqg.rtd",,"StudyData", $I$2, "Bar", "", "Time", $H$2,$B161, $M$2, "", "","False") -> 2017-03-13 | D161: =IF(RTD("cqg.rtd",,"StudyData", $I$2, "Bar", "", "Close", $H$2, $B161, $M$2,$L$2,,$J$2,$K$2)="",NA(),RTD("cqg.rtd",,"StudyData", $I$2, "Bar", "", "Close", $H$2, $B161, $M$2,$L$2,,$J$2,$K$2)) ->  | E161: 0 | N161: 7.016 | O161: -159 | P161: =RTD("cqg.rtd",,"StudyData", $I$2, "Bar", "", "Time", $H$3,$B161, $M$2, "", "","False") -> 2019-08-21 | Q161: =IF(RTD("cqg.rtd",,"StudyData", $I$2, "Bar", "", "Close", $H$3, $B161, $M$2,$L$2,,$J$2,$K$2)="",NA(),RTD("cqg.rtd",,"StudyData", $I$2, "Bar", "", "Close", $H$3, $B161, $M$2,$L$2,,$J$2,$K$2)) ->  | R161: 0 | T161: X.US.BSPSUSMDOFF | U161: Barley Stocks by Position Off-farm 1000 bushels Maryland
A162: 36 | B162: -160 | C162: =RTD("cqg.rtd",,"StudyData", $I$2, "Bar", "", "Time", $H$2,$B162, $M$2, "", "","False") -> 2017-03-06 | D162: =IF(RTD("cqg.rtd",,"StudyData", $I$2, "Bar", "", "Close", $H$2, $B162, $M$2,$L$2,,$J$2,$K$2)="",NA(),RTD("cqg.rtd",,"StudyData", $I$2, "Bar", "", "Close", $H$2, $B162, $M$2,$L$2,,$J$2,$K$2)) -> 2.5 | E162: 2.5 | N162: 7.017 | O162: -160 | P162: =RTD("cqg.rtd",,"StudyData", $I$2, "Bar", "", "Time", $H$3,$B162, $M$2, "", "","False") -> 2019-08-20 | Q162: =IF(RTD("cqg.rtd",,"StudyData", $I$2, "Bar", "", "Close", $H$3, $B162, $M$2,$L$2,,$J$2,$K$2)="",NA(),RTD("cqg.rtd",,"StudyData", $I$2, "Bar", "", "Close", $H$3, $B162, $M$2,$L$2,,$J$2,$K$2)) ->  | R162: 0 | T162: X.US.BSPSUSMDONF | U162: Barley Stocks by Position On-farm 1000 bushels Maryland
A163: 36.001 | B163: -161 | C163: =RTD("cqg.rtd",,"StudyData", $I$2, "Bar", "", "Time", $H$2,$B163, $M$2, "", "","False") -> 2017-02-27 | D163: =IF(RTD("cqg.rtd",,"StudyData", $I$2, "Bar", "", "Close", $H$2, $B163, $M$2,$L$2,,$J$2,$K$2)="",NA(),RTD("cqg.rtd",,"StudyData", $I$2, "Bar", "", "Close", $H$2, $B163, $M$2,$L$2,,$J$2,$K$2)) ->  | E163: 0 | N163: 7.018 | O163: -161 | P163: =RTD("cqg.rtd",,"StudyData", $I$2, "Bar", "", "Time", $H$3,$B163, $M$2, "", "","False") -> 2019-08-19 | Q163: =IF(RTD("cqg.rtd",,"StudyData", $I$2, "Bar", "", "Close", $H$3, $B163, $M$2,$L$2,,$J$2,$K$2)="",NA(),RTD("cqg.rtd",,"StudyData", $I$2, "Bar", "", "Close", $H$3, $B163, $M$2,$L$2,,$J$2,$K$2)) ->  | R163: 0 | T163: X.US.BSPSUSMDTAP | U163: Barley Stocks by Position Total all pos. 1000 bushels Maryland
A164: 36.002 | B164: -162 | C164: =RTD("cqg.rtd",,"StudyData", $I$2, "Bar", "", "Time", $H$2,$B164, $M$2, "", "","False") -> 2017-02-20 | D164: =IF(RTD("cqg.rtd",,"StudyData", $I$2, "Bar", "", "Close", $H$2, $B164, $M$2,$L$2,,$J$2,$K$2)="",NA(),RTD("cqg.rtd",,"StudyData", $I$2, "Bar", "", "Close", $H$2, $B164, $M$2,$L$2,,$J$2,$K$2)) ->  | E164: 0 | N164: 7.019 | O164: -162 | P164: =RTD("cqg.rtd",,"StudyData", $I$2, "Bar", "", "Time", $H$3,$B164, $M$2, "", "","False") -> 2019-08-16 | Q164: =IF(RTD("cqg.rtd",,"StudyData", $I$2, "Bar", "", "Close", $H$3, $B164, $M$2,$L$2,,$J$2,$K$2)="",NA(),RTD("cqg.rtd",,"StudyData", $I$2, "Bar", "", "Close", $H$3, $B164, $M$2,$L$2,,$J$2,$K$2)) ->  | R164: 0 | T164: X.US.BSPSUSMIOFF | U164: Barley Stocks by Position Off-farm 1000 bushels Michigan
A165: 36.003 | B165: -163 | C165: =RTD("cqg.rtd",,"StudyData", $I$2, "Bar", "", "Time", $H$2,$B165, $M$2, "", "","False") -> 2017-02-13 | D165: =IF(RTD("cqg.rtd",,"StudyData", $I$2, "Bar", "", "Close", $H$2, $B165, $M$2,$L$2,,$J$2,$K$2)="",NA(),RTD("cqg.rtd",,"StudyData", $I$2, "Bar", "", "Close", $H$2, $B165, $M$2,$L$2,,$J$2,$K$2)) ->  | E165: 0 | N165: 7.02 | O165: -163 | P165: =RTD("cqg.rtd",,"StudyData", $I$2, "Bar", "", "Time", $H$3,$B165, $M$2, "", "","False") -> 2019-08-15 | Q165: =IF(RTD("cqg.rtd",,"StudyData", $I$2, "Bar", "", "Close", $H$3, $B165, $M$2,$L$2,,$J$2,$K$2)="",NA(),RTD("cqg.rtd",,"StudyData", $I$2, "Bar", "", "Close", $H$3, $B165, $M$2,$L$2,,$J$2,$K$2)) ->  | R165: 0 | T165: X.US.BSPSUSMIONF | U165: Barley Stocks by Position On-farm 1000 bushels Michigan
A166: 37 | B166: -164 | C166: =RTD("cqg.rtd",,"StudyData", $I$2, "Bar", "", "Time", $H$2,$B166, $M$2, "", "","False") -> 2017-02-06 | D166: =IF(RTD("cqg.rtd",,"StudyData", $I$2, "Bar", "", "Close", $H$2, $B166, $M$2,$L$2,,$J$2,$K$2)="",NA(),RTD("cqg.rtd",,"StudyData", $I$2, "Bar", "", "Close", $H$2, $B166, $M$2,$L$2,,$J$2,$K$2)) -> 2.5 | E166: 2.5 | N166: 7.021 | O166: -164 | P166: =RTD("cqg.rtd",,"StudyData", $I$2, "Bar", "", "Time", $H$3,$B166, $M$2, "", "","False") -> 2019-08-14 | Q166: =IF(RTD("cqg.rtd",,"StudyData", $I$2, "Bar", "", "Close", $H$3, $B166, $M$2,$L$2,,$J$2,$K$2)="",NA(),RTD("cqg.rtd",,"StudyData", $I$2, "Bar", "", "Close", $H$3, $B166, $M$2,$L$2,,$J$2,$K$2)) ->  | R166: 0 | T166: X.US.BSPSUSMITAP | U166: Barley Stocks by Position Total all pos. 1000 bushels Michigan
A167: 37.001 | B167: -165 | C167: =RTD("cqg.rtd",,"StudyData", $I$2, "Bar", "", "Time", $H$2,$B167, $M$2, "", "","False") -> 2017-01-30 | D167: =IF(RTD("cqg.rtd",,"StudyData", $I$2, "Bar", "", "Close", $H$2, $B167, $M$2,$L$2,,$J$2,$K$2)="",NA(),RTD("cqg.rtd",,"StudyData", $I$2, "Bar", "", "Close", $H$2, $B167, $M$2,$L$2,,$J$2,$K$2)) ->  | E167: 0 | N167: 7.022 | O167: -165 | P167: =RTD("cqg.rtd",,"StudyData", $I$2, "Bar", "", "Time", $H$3,$B167, $M$2, "", "","False") -> 2019-08-13 | Q167: =IF(RTD("cqg.rtd",,"StudyData", $I$2, "Bar", "", "Close", $H$3, $B167, $M$2,$L$2,,$J$2,$K$2)="",NA(),RTD("cqg.rtd",,"StudyData", $I$2, "Bar", "", "Close", $H$3, $B167, $M$2,$L$2,,$J$2,$K$2)) ->  | R167: 0 | T167: X.US.BSPSUSMNOFF | U167: Barley Stocks by Position Off-farm 1000 bushels Minnesota
A168: 37.002 | B168: -166 | C168: =RTD("cqg.rtd",,"StudyData", $I$2, "Bar", "", "Time", $H$2,$B168, $M$2, "", "","False") -> 2017-01-23 | D168: =IF(RTD("cqg.rtd",,"StudyData", $I$2, "Bar", "", "Close", $H$2, $B168, $M$2,$L$2,,$J$2,$K$2)="",NA(),RTD("cqg.rtd",,"StudyData", $I$2, "Bar", "", "Close", $H$2, $B168, $M$2,$L$2,,$J$2,$K$2)) ->  | E168: 0 | N168: 8 | O168: -166 | P168: =RTD("cqg.rtd",,"StudyData", $I$2, "Bar", "", "Time", $H$3,$B168, $M$2, "", "","False") -> 2019-08-12 | Q168: =IF(RTD("cqg.rtd",,"StudyData", $I$2, "Bar", "", "Close", $H$3, $B168, $M$2,$L$2,,$J$2,$K$2)="",NA(),RTD("cqg.rtd",,"StudyData", $I$2, "Bar", "", "Close", $H$3, $B168, $M$2,$L$2,,$J$2,$K$2)) -> 3.3 | R168: 3.3 | T168: X.US.BSPSUSMNONF | U168: Barley Stocks by Position On-farm 1000 bushels Minnesota
A169: 37.003 | B169: -167 | C169: =RTD("cqg.rtd",,"StudyData", $I$2, "Bar", "", "Time", $H$2,$B169, $M$2, "", "","False") -> 2017-01-16 | D169: =IF(RTD("cqg.rtd",,"StudyData", $I$2, "Bar", "", "Close", $H$2, $B169, $M$2,$L$2,,$J$2,$K$2)="",NA(),RTD("cqg.rtd",,"StudyData", $I$2, "Bar", "", "Close", $H$2, $B169, $M$2,$L$2,,$J$2,$K$2)) ->  | E169: 0 | N169: 8.001 | O169: -167 | P169: =RTD("cqg.rtd",,"StudyData", $I$2, "Bar", "", "Time", $H$3,$B169, $M$2, "", "","False") -> 2019-08-09 | Q169: =IF(RTD("cqg.rtd",,"StudyData", $I$2, "Bar", "", "Close", $H$3, $B169, $M$2,$L$2,,$J$2,$K$2)="",NA(),RTD("cqg.rtd",,"StudyData", $I$2, "Bar", "", "Close", $H$3, $B169, $M$2,$L$2,,$J$2,$K$2)) ->  | R169: 0 | T169: X.US.BSPSUSMNTAP | U169: Barley Stocks by Position Total all pos. 1000 bushels Minnesota
A170: 38 | B170: -168 | C170: =RTD("cqg.rtd",,"StudyData", $I$2, "Bar", "", "Time", $H$2,$B170, $M$2, "", "","False") -> 2017-01-09 | D170: =IF(RTD("cqg.rtd",,"StudyData", $I$2, "Bar", "", "Close", $H$2, $B170, $M$2,$L$2,,$J$2,$K$2)="",NA(),RTD("cqg.rtd",,"StudyData", $I$2, "Bar", "", "Close", $H$2, $B170, $M$2,$L$2,,$J$2,$K$2)) -> 2.65 | E170: 2.65 | N170: 8.002 | O170: -168 | P170: =RTD("cqg.rtd",,"StudyData", $I$2, "Bar", "", "Time", $H$3,$B170, $M$2, "", "","False") -> 2019-08-08 | Q170: =IF(RTD("cqg.rtd",,"StudyData", $I$2, "Bar", "", "Close", $H$3, $B170, $M$2,$L$2,,$J$2,$K$2)="",NA(),RTD("cqg.rtd",,"StudyData", $I$2, "Bar", "", "Close", $H$3, $B170, $M$2,$L$2,,$J$2,$K$2)) ->  | R170: 0 | T170: X.US.BSPSUSMOOFF | U170: Barley Stocks by Position Off-farm 1000 bushels Missouri
A171: 38.001 | B171: -169 | C171: =RTD("cqg.rtd",,"StudyData", $I$2, "Bar", "", "Time", $H$2,$B171, $M$2, "", "","False") -> 2017-01-02 | D171: =IF(RTD("cqg.rtd",,"StudyData", $I$2, "Bar", "", "Close", $H$2, $B171, $M$2,$L$2,,$J$2,$K$2)="",NA(),RTD("cqg.rtd",,"StudyData", $I$2, "Bar", "", "Close", $H$2, $B171, $M$2,$L$2,,$J$2,$K$2)) ->  | E171: 0 | N171: 8.003 | O171: -169 | P171: =RTD("cqg.rtd",,"StudyData", $I$2, "Bar", "", "Time", $H$3,$B171, $M$2, "", "","False") -> 2019-08-07 | Q171: =IF(RTD("cqg.rtd",,"StudyData", $I$2, "Bar", "", "Close", $H$3, $B171, $M$2,$L$2,,$J$2,$K$2)="",NA(),RTD("cqg.rtd",,"StudyData", $I$2, "Bar", "", "Close", $H$3, $B171, $M$2,$L$2,,$J$2,$K$2)) ->  | R171: 0 | T171: X.US.BSPSUSMOONF | U171: Barley Stocks by Position On-farm 1000 bushels Missouri
A172: 38.002 | B172: -170 | C172: =RTD("cqg.rtd",,"StudyData", $I$2, "Bar", "", "Time", $H$2,$B172, $M$2, "", "","False") -> 2016-12-26 | D172: =IF(RTD("cqg.rtd",,"StudyData", $I$2, "Bar", "", "Close", $H$2, $B172, $M$2,$L$2,,$J$2,$K$2)="",NA(),RTD("cqg.rtd",,"StudyData", $I$2, "Bar", "", "Close", $H$2, $B172, $M$2,$L$2,,$J$2,$K$2)) ->  | E172: 0 | N172: 8.004 | O172: -170 | P172: =RTD("cqg.rtd",,"StudyData", $I$2, "Bar", "", "Time", $H$3,$B172, $M$2, "", "","False") -> 2019-08-06 | Q172: =IF(RTD("cqg.rtd",,"StudyData", $I$2, "Bar", "", "Close", $H$3, $B172, $M$2,$L$2,,$J$2,$K$2)="",NA(),RTD("cqg.rtd",,"StudyData", $I$2, "Bar", "", "Close", $H$3, $B172, $M$2,$L$2,,$J$2,$K$2)) ->  | R172: 0 | T172: X.US.BSPSUSMOTAP | U172: Barley Stocks by Position Total all pos. 1000 bushels Missouri
A173: 38.003 | B173: -171 | C173: =RTD("cqg.rtd",,"StudyData", $I$2, "Bar", "", "Time", $H$2,$B173, $M$2, "", "","False") -> 2016-12-19 | D173: =IF(RTD("cqg.rtd",,"StudyData", $I$2, "Bar", "", "Close", $H$2, $B173, $M$2,$L$2,,$J$2,$K$2)="",NA(),RTD("cqg.rtd",,"StudyData", $I$2, "Bar", "", "Close", $H$2, $B173, $M$2,$L$2,,$J$2,$K$2)) ->  | E173: 0 | N173: 8.005 | O173: -171 | P173: =RTD("cqg.rtd",,"StudyData", $I$2, "Bar", "", "Time", $H$3,$B173, $M$2, "", "","False") -> 2019-08-05 | Q173: =IF(RTD("cqg.rtd",,"StudyData", $I$2, "Bar", "", "Close", $H$3, $B173, $M$2,$L$2,,$J$2,$K$2)="",NA(),RTD("cqg.rtd",,"StudyData", $I$2, "Bar", "", "Close", $H$3, $B173, $M$2,$L$2,,$J$2,$K$2)) ->  | R173: 0 | T173: X.US.BSPSUSMSOFF | U173: Barley Stocks by Position Off-farm 1000 bushels Mississippi
A174: 38.004 | B174: -172 | C174: =RTD("cqg.rtd",,"StudyData", $I$2, "Bar", "", "Time", $H$2,$B174, $M$2, "", "","False") -> 2016-12-12 | D174: =IF(RTD("cqg.rtd",,"StudyData", $I$2, "Bar", "", "Close", $H$2, $B174, $M$2,$L$2,,$J$2,$K$2)="",NA(),RTD("cqg.rtd",,"StudyData", $I$2, "Bar", "", "Close", $H$2, $B174, $M$2,$L$2,,$J$2,$K$2)) ->  | E174: 0 | N174: 8.006 | O174: -172 | P174: =RTD("cqg.rtd",,"StudyData", $I$2, "Bar", "", "Time", $H$3,$B174, $M$2, "", "","False") -> 2019-08-02 | Q174: =IF(RTD("cqg.rtd",,"StudyData", $I$2, "Bar", "", "Close", $H$3, $B174, $M$2,$L$2,,$J$2,$K$2)="",NA(),RTD("cqg.rtd",,"StudyData", $I$2, "Bar", "", "Close", $H$3, $B174, $M$2,$L$2,,$J$2,$K$2)) ->  | R174: 0 | T174: X.US.BSPSUSMSONF | U174: Barley Stocks by Position On-farm 1000 bushels Mississippi
A175: 39 | B175: -173 | C175: =RTD("cqg.rtd",,"StudyData", $I$2, "Bar", "", "Time", $H$2,$B175, $M$2, "", "","False") -> 2016-12-05 | D175: =IF(RTD("cqg.rtd",,"StudyData", $I$2, "Bar", "", "Close", $H$2, $B175, $M$2,$L$2,,$J$2,$K$2)="",NA(),RTD("cqg.rtd",,"StudyData", $I$2, "Bar", "", "Close", $H$2, $B175, $M$2,$L$2,,$J$2,$K$2)) -> 2.8 | E175: 2.8 | N175: 8.007 | O175: -173 | P175: =RTD("cqg.rtd",,"StudyData", $I$2, "Bar", "", "Time", $H$3,$B175, $M$2, "", "","False") -> 2019-08-01 | Q175: =IF(RTD("cqg.rtd",,"StudyData", $I$2, "Bar", "", "Close", $H$3, $B175, $M$2,$L$2,,$J$2,$K$2)="",NA(),RTD("cqg.rtd",,"StudyData", $I$2, "Bar", "", "Close", $H$3, $B175, $M$2,$L$2,,$J$2,$K$2)) ->  | R175: 0 | T175: X.US.BSPSUSMSTAP | U175: Barley Stocks by Position Total all pos. 1000 bushels Mississippi
A176: 39.001 | B176: -174 | C176: =RTD("cqg.rtd",,"StudyData", $I$2, "Bar", "", "Time", $H$2,$B176, $M$2, "", "","False") -> 2016-11-28 | D176: =IF(RTD("cqg.rtd",,"StudyData", $I$2, "Bar", "", "Close", $H$2, $B176, $M$2,$L$2,,$J$2,$K$2)="",NA(),RTD("cqg.rtd",,"StudyData", $I$2, "Bar", "", "Close", $H$2, $B176, $M$2,$L$2,,$J$2,$K$2)) ->  | E176: 0 | N176: 8.008 | O176: -174 | P176: =RTD("cqg.rtd",,"StudyData", $I$2, "Bar", "", "Time", $H$3,$B176, $M$2, "", "","False") -> 2019-07-31 | Q176: =IF(RTD("cqg.rtd",,"StudyData", $I$2, "Bar", "", "Close", $H$3, $B176, $M$2,$L$2,,$J$2,$K$2)="",NA(),RTD("cqg.rtd",,"StudyData", $I$2, "Bar", "", "Close", $H$3, $B176, $M$2,$L$2,,$J$2,$K$2)) ->  | R176: 0 | T176: X.US.BSPSUSMTOFF | U176: Barley Stocks by Position Off-farm 1000 bushels Montana
A177: 39.002 | B177: -175 | C177: =RTD("cqg.rtd",,"StudyData", $I$2, "Bar", "", "Time", $H$2,$B177, $M$2, "", "","False") -> 2016-11-21 | D177: =IF(RTD("cqg.rtd",,"StudyData", $I$2, "Bar", "", "Close", $H$2, $B177, $M$2,$L$2,,$J$2,$K$2)="",NA(),RTD("cqg.rtd",,"StudyData", $I$2, "Bar", "", "Close", $H$2, $B177, $M$2,$L$2,,$J$2,$K$2)) ->  | E177: 0 | N177: 8.009 | O177: -175 | P177: =RTD("cqg.rtd",,"StudyData", $I$2, "Bar", "", "Time", $H$3,$B177, $M$2, "", "","False") -> 2019-07-30 | Q177: =IF(RTD("cqg.rtd",,"StudyData", $I$2, "Bar", "", "Close", $H$3, $B177, $M$2,$L$2,,$J$2,$K$2)="",NA(),RTD("cqg.rtd",,"StudyData", $I$2, "Bar", "", "Close", $H$3, $B177, $M$2,$L$2,,$J$2,$K$2)) ->  | R177: 0 | T177: X.US.BSPSUSMTONF | U177: Barley Stocks by Position On-farm 1000 bushels Montana
A178: 39.003 | B178: -176 | C178: =RTD("cqg.rtd",,"StudyData", $I$2, "Bar", "", "Time", $H$2,$B178, $M$2, "", "","False") -> 2016-11-14 | D178: =IF(RTD("cqg.rtd",,"StudyData", $I$2, "Bar", "", "Close", $H$2, $B178, $M$2,$L$2,,$J$2,$K$2)="",NA(),RTD("cqg.rtd",,"StudyData", $I$2, "Bar", "", "Close", $H$2, $B178, $M$2,$L$2,,$J$2,$K$2)) ->  | E178: 0 | N178: 8.01 | O178: -176 | P178: =RTD("cqg.rtd",,"StudyData", $I$2, "Bar", "", "Time", $H$3,$B178, $M$2, "", "","False") -> 2019-07-29 | Q178: =IF(RTD("cqg.rtd",,"StudyData", $I$2, "Bar", "", "Close", $H$3, $B178, $M$2,$L$2,,$J$2,$K$2)="",NA(),RTD("cqg.rtd",,"StudyData", $I$2, "Bar", "", "Close", $H$3, $B178, $M$2,$L$2,,$J$2,$K$2)) ->  | R178: 0 | T178: X.US.BSPSUSMTTAP | U178: Barley Stocks by Position Total all pos. 1000 bushels Montana
A179: 40 | B179: -177 | C179: =RTD("cqg.rtd",,"StudyData", $I$2, "Bar", "", "Time", $H$2,$B179, $M$2, "", "","False") -> 2016-11-07 | D179: =IF(RTD("cqg.rtd",,"StudyData", $I$2, "Bar", "", "Close", $H$2, $B179, $M$2,$L$2,,$J$2,$K$2)="",NA(),RTD("cqg.rtd",,"StudyData", $I$2, "Bar", "", "Close", $H$2, $B179, $M$2,$L$2,,$J$2,$K$2)) -> 2.8 | E179: 2.8 | N179: 8.011 | O179: -177 | P179: =RTD("cqg.rtd",,"StudyData", $I$2, "Bar", "", "Time", $H$3,$B179, $M$2, "", "","False") -> 2019-07-26 | Q179: =IF(RTD("cqg.rtd",,"StudyData", $I$2, "Bar", "", "Close", $H$3, $B179, $M$2,$L$2,,$J$2,$K$2)="",NA(),RTD("cqg.rtd",,"StudyData", $I$2, "Bar", "", "Close", $H$3, $B179, $M$2,$L$2,,$J$2,$K$2)) ->  | R179: 0 | T179: X.US.BSPSUSNCOFF | U179: Barley Stocks by Position Off-farm 1000 bushels North Carolina
A180: 40.001 | B180: -178 | C180: =RTD("cqg.rtd",,"StudyData", $I$2, "Bar", "", "Time", $H$2,$B180, $M$2, "", "","False") -> 2016-10-31 | D180: =IF(RTD("cqg.rtd",,"StudyData", $I$2, "Bar", "", "Close", $H$2, $B180, $M$2,$L$2,,$J$2,$K$2)="",NA(),RTD("cqg.rtd",,"StudyData", $I$2, "Bar", "", "Close", $H$2, $B180, $M$2,$L$2,,$J$2,$K$2)) ->  | E180: 0 | N180: 8.012 | O180: -178 | P180: =RTD("cqg.rtd",,"StudyData", $I$2, "Bar", "", "Time", $H$3,$B180, $M$2, "", "","False") -> 2019-07-25 | Q180: =IF(RTD("cqg.rtd",,"StudyData", $I$2, "Bar", "", "Close", $H$3, $B180, $M$2,$L$2,,$J$2,$K$2)="",NA(),RTD("cqg.rtd",,"StudyData", $I$2, "Bar", "", "Close", $H$3, $B180, $M$2,$L$2,,$J$2,$K$2)) ->  | R180: 0 | T180: X.US.BSPSUSNCONF | U180: Barley Stocks by Position On-farm 1000 bushels North Carolina
A181: 40.002 | B181: -179 | C181: =RTD("cqg.rtd",,"StudyData", $I$2, "Bar", "", "Time", $H$2,$B181, $M$2, "", "","False") -> 2016-10-24 | D181: =IF(RTD("cqg.rtd",,"StudyData", $I$2, "Bar", "", "Close", $H$2, $B181, $M$2,$L$2,,$J$2,$K$2)="",NA(),RTD("cqg.rtd",,"StudyData", $I$2, "Bar", "", "Close", $H$2, $B181, $M$2,$L$2,,$J$2,$K$2)) ->  | E181: 0 | N181: 8.013 | O181: -179 | P181: =RTD("cqg.rtd",,"StudyData", $I$2, "Bar", "", "Time", $H$3,$B181, $M$2, "", "","False") -> 2019-07-24 | Q181: =IF(RTD("cqg.rtd",,"StudyData", $I$2, "Bar", "", "Close", $H$3, $B181, $M$2,$L$2,,$J$2,$K$2)="",NA(),RTD("cqg.rtd",,"StudyData", $I$2, "Bar", "", "Close", $H$3, $B181, $M$2,$L$2,,$J$2,$K$2)) ->  | R181: 0 | T181: X.US.BSPSUSNCTAP | U181: Barley Stocks by Position Total all pos. 1000 bushels North Carolina
A182: 40.003 | B182: -180 | C182: =RTD("cqg.rtd",,"StudyData", $I$2, "Bar", "", "Time", $H$2,$B182, $M$2, "", "","False") -> 2016-10-17 | D182: =IF(RTD("cqg.rtd",,"StudyData", $I$2, "Bar", "", "Close", $H$2, $B182, $M$2,$L$2,,$J$2,$K$2)="",NA(),RTD("cqg.rtd",,"StudyData", $I$2, "Bar", "", "Close", $H$2, $B182, $M$2,$L$2,,$J$2,$K$2)) ->  | E182: 0 | N182: 8.014 | O182: -180 | P182: =RTD("cqg.rtd",,"StudyData", $I$2, "Bar", "", "Time", $H$3,$B182, $M$2, "", "","False") -> 2019-07-23 | Q182: =IF(RTD("cqg.rtd",,"StudyData", $I$2, "Bar", "", "Close", $H$3, $B182, $M$2,$L$2,,$J$2,$K$2)="",NA(),RTD("cqg.rtd",,"StudyData", $I$2, "Bar", "", "Close", $H$3, $B182, $M$2,$L$2,,$J$2,$K$2)) ->  | R182: 0 | T182: X.US.BSPSUSNDOFF | U182: Barley Stocks by Position Off-farm 1000 bushels North Dakota
A183: 41 | B183: -181 | C183: =RTD("cqg.rtd",,"StudyData", $I$2, "Bar", "", "Time", $H$2,$B183, $M$2, "", "","False") -> 2016-10-10 | D183: =IF(RTD("cqg.rtd",,"StudyData", $I$2, "Bar", "", "Close", $H$2, $B183, $M$2,$L$2,,$J$2,$K$2)="",NA(),RTD("cqg.rtd",,"StudyData", $I$2, "Bar", "", "Close", $H$2, $B183, $M$2,$L$2,,$J$2,$K$2)) -> 2.8 | E183: 2.8 | N183: 8.015 | O183: -181 | P183: =RTD("cqg.rtd",,"StudyData", $I$2, "Bar", "", "Time", $H$3,$B183, $M$2, "", "","False") -> 2019-07-22 | Q183: =IF(RTD("cqg.rtd",,"StudyData", $I$2, "Bar", "", "Close", $H$3, $B183, $M$2,$L$2,,$J$2,$K$2)="",NA(),RTD("cqg.rtd",,"StudyData", $I$2, "Bar", "", "Close", $H$3, $B183, $M$2,$L$2,,$J$2,$K$2)) ->  | R183: 0 | T183: X.US.BSPSUSNDONF | U183: Barley Stocks by Position On-farm 1000 bushels North Dakota
A184: 41.001 | B184: -182 | C184: =RTD("cqg.rtd",,"StudyData", $I$2, "Bar", "", "Time", $H$2,$B184, $M$2, "", "","False") -> 2016-10-03 | D184: =IF(RTD("cqg.rtd",,"StudyData", $I$2, "Bar", "", "Close", $H$2, $B184, $M$2,$L$2,,$J$2,$K$2)="",NA(),RTD("cqg.rtd",,"StudyData", $I$2, "Bar", "", "Close", $H$2, $B184, $M$2,$L$2,,$J$2,$K$2)) ->  | E184: 0 | N184: =IF(R184=0,N183+0.001,TRUNC(N183)+1) -> 8.016 | O184: -182 | P184: =RTD("cqg.rtd",,"StudyData", $I$2, "Bar", "", "Time", $H$3,$B184, $M$2, "", "","False") -> 2019-07-19 | Q184: =IF(RTD("cqg.rtd",,"StudyData", $I$2, "Bar", "", "Close", $H$3, $B184, $M$2,$L$2,,$J$2,$K$2)="",NA(),RTD("cqg.rtd",,"StudyData", $I$2, "Bar", "", "Close", $H$3, $B184, $M$2,$L$2,,$J$2,$K$2)) ->  | R184: =IFERROR(Q184,0) -> 0 | T184: X.US.BSPSUSNDTAP | U184: Barley Stocks by Position Total all pos. 1000 bushels North Dakota
A185: 41.002 | B185: -183 | C185: =RTD("cqg.rtd",,"StudyData", $I$2, "Bar", "", "Time", $H$2,$B185, $M$2, "", "","False") -> 2016-09-26 | D185: =IF(RTD("cqg.rtd",,"StudyData", $I$2, "Bar", "", "Close", $H$2, $B185, $M$2,$L$2,,$J$2,$K$2)="",NA(),RTD("cqg.rtd",,"StudyData", $I$2, "Bar", "", "Close", $H$2, $B185, $M$2,$L$2,,$J$2,$K$2)) ->  | E185: 0 | N185: 8.017 | O185: -183 | P185: =RTD("cqg.rtd",,"StudyData", $I$2, "Bar", "", "Time", $H$3,$B185, $M$2, "", "","False") -> 2019-07-18 | Q185: =IF(RTD("cqg.rtd",,"StudyData", $I$2, "Bar", "", "Close", $H$3, $B185, $M$2,$L$2,,$J$2,$K$2)="",NA(),RTD("cqg.rtd",,"StudyData", $I$2, "Bar", "", "Close", $H$3, $B185, $M$2,$L$2,,$J$2,$K$2)) ->  | R185: 0 | T185: X.US.BSPSUSNEOFF | U185: Barley Stocks by Position Off-farm 1000 bushels Nebraska
A186: 41.003 | B186: -184 | C186: =RTD("cqg.rtd",,"StudyData", $I$2, "Bar", "", "Time", $H$2,$B186, $M$2, "", "","False") -> 2016-09-19 | D186: =IF(RTD("cqg.rtd",,"StudyData", $I$2, "Bar", "", "Close", $H$2, $B186, $M$2,$L$2,,$J$2,$K$2)="",NA(),RTD("cqg.rtd",,"StudyData", $I$2, "Bar", "", "Close", $H$2, $B186, $M$2,$L$2,,$J$2,$K$2)) ->  | E186: 0 | N186: 8.018 | O186: -184 | P186: =RTD("cqg.rtd",,"StudyData", $I$2, "Bar", "", "Time", $H$3,$B186, $M$2, "", "","False") -> 2019-07-17 | Q186: =IF(RTD("cqg.rtd",,"StudyData", $I$2, "Bar", "", "Close", $H$3, $B186, $M$2,$L$2,,$J$2,$K$2)="",NA(),RTD("cqg.rtd",,"StudyData", $I$2, "Bar", "", "Close", $H$3, $B186, $M$2,$L$2,,$J$2,$K$2)) ->  | R186: 0 | T186: X.US.BSPSUSNEONF | U186: Barley Stocks by Position On-farm 1000 bushels Nebraska
A187: 42 | B187: -185 | C187: =RTD("cqg.rtd",,"StudyData", $I$2, "Bar", "", "Time", $H$2,$B187, $M$2, "", "","False") -> 2016-09-12 | D187: =IF(RTD("cqg.rtd",,"StudyData", $I$2, "Bar", "", "Close", $H$2, $B187, $M$2,$L$2,,$J$2,$K$2)="",NA(),RTD("cqg.rtd",,"StudyData", $I$2, "Bar", "", "Close", $H$2, $B187, $M$2,$L$2,,$J$2,$K$2)) -> 2.75 | E187: 2.75 | N187: 8.019 | O187: -185 | P187: =RTD("cqg.rtd",,"StudyData", $I$2, "Bar", "", "Time", $H$3,$B187, $M$2, "", "","False") -> 2019-07-16 | Q187: =IF(RTD("cqg.rtd",,"StudyData", $I$2, "Bar", "", "Close", $H$3, $B187, $M$2,$L$2,,$J$2,$K$2)="",NA(),RTD("cqg.rtd",,"StudyData", $I$2, "Bar", "", "Close", $H$3, $B187, $M$2,$L$2,,$J$2,$K$2)) ->  | R187: 0 | T187: X.US.BSPSUSNETAP | U187: Barley Stocks by Position Total all pos. 1000 bushels Nebraska
A188: 42.001 | B188: -186 | C188: =RTD("cqg.rtd",,"StudyData", $I$2, "Bar", "", "Time", $H$2,$B188, $M$2, "", "","False") -> 2016-09-05 | D188: =IF(RTD("cqg.rtd",,"StudyData", $I$2, "Bar", "", "Close", $H$2, $B188, $M$2,$L$2,,$J$2,$K$2)="",NA(),RTD("cqg.rtd",,"StudyData", $I$2, "Bar", "", "Close", $H$2, $B188, $M$2,$L$2,,$J$2,$K$2)) ->  | E188: 0 | N188: 8.02 | O188: -186 | P188: =RTD("cqg.rtd",,"StudyData", $I$2, "Bar", "", "Time", $H$3,$B188, $M$2, "", "","False") -> 2019-07-15 | Q188: =IF(RTD("cqg.rtd",,"StudyData", $I$2, "Bar", "", "Close", $H$3, $B188, $M$2,$L$2,,$J$2,$K$2)="",NA(),RTD("cqg.rtd",,"StudyData", $I$2, "Bar", "", "Close", $H$3, $B188, $M$2,$L$2,,$J$2,$K$2)) ->  | R188: 0 | T188: X.US.BSPSUSNGOFF | U188: Barley Stocks by Position Off-farm 1000 bushels New England
A189: 42.002 | B189: -187 | C189: =RTD("cqg.rtd",,"StudyData", $I$2, "Bar", "", "Time", $H$2,$B189, $M$2, "", "","False") -> 2016-08-29 | D189: =IF(RTD("cqg.rtd",,"StudyData", $I$2, "Bar", "", "Close", $H$2, $B189, $M$2,$L$2,,$J$2,$K$2)="",NA(),RTD("cqg.rtd",,"StudyData", $I$2, "Bar", "", "Close", $H$2, $B189, $M$2,$L$2,,$J$2,$K$2)) ->  | E189: 0 | N189: 8.021 | O189: -187 | P189: =RTD("cqg.rtd",,"StudyData", $I$2, "Bar", "", "Time", $H$3,$B189, $M$2, "", "","False") -> 2019-07-12 | Q189: =IF(RTD("cqg.rtd",,"StudyData", $I$2, "Bar", "", "Close", $H$3, $B189, $M$2,$L$2,,$J$2,$K$2)="",NA(),RTD("cqg.rtd",,"StudyData", $I$2, "Bar", "", "Close", $H$3, $B189, $M$2,$L$2,,$J$2,$K$2)) ->  | R189: 0 | T189: X.US.BSPSUSNGONF | U189: Barley Stocks by Position On-farm 1000 bushels New England
A190: 42.003 | B190: -188 | C190: =RTD("cqg.rtd",,"StudyData", $I$2, "Bar", "", "Time", $H$2,$B190, $M$2, "", "","False") -> 2016-08-22 | D190: =IF(RTD("cqg.rtd",,"StudyData", $I$2, "Bar", "", "Close", $H$2, $B190, $M$2,$L$2,,$J$2,$K$2)="",NA(),RTD("cqg.rtd",,"StudyData", $I$2, "Bar", "", "Close", $H$2, $B190, $M$2,$L$2,,$J$2,$K$2)) ->  | E190: 0 | N190: 9 | O190: -188 | P190: =RTD("cqg.rtd",,"StudyData", $I$2, "Bar", "", "Time", $H$3,$B190, $M$2, "", "","False") -> 2019-07-11 | Q190: =IF(RTD("cqg.rtd",,"StudyData", $I$2, "Bar", "", "Close", $H$3, $B190, $M$2,$L$2,,$J$2,$K$2)="",NA(),RTD("cqg.rtd",,"StudyData", $I$2, "Bar", "", "Close", $H$3, $B190, $M$2,$L$2,,$J$2,$K$2)) -> 3.4 | R190: 3.4 | T190: X.US.BSPSUSNGTAP | U190: Barley Stocks by Position Total all pos. 1000 bushels New England
A191: 42.004 | B191: -189 | C191: =RTD("cqg.rtd",,"StudyData", $I$2, "Bar", "", "Time", $H$2,$B191, $M$2, "", "","False") -> 2016-08-15 | D191: =IF(RTD("cqg.rtd",,"StudyData", $I$2, "Bar", "", "Close", $H$2, $B191, $M$2,$L$2,,$J$2,$K$2)="",NA(),RTD("cqg.rtd",,"StudyData", $I$2, "Bar", "", "Close", $H$2, $B191, $M$2,$L$2,,$J$2,$K$2)) ->  | E191: 0 | N191: 9.001 | O191: -189 | P191: =RTD("cqg.rtd",,"StudyData", $I$2, "Bar", "", "Time", $H$3,$B191, $M$2, "", "","False") -> 2019-07-10 | Q191: =IF(RTD("cqg.rtd",,"StudyData", $I$2, "Bar", "", "Close", $H$3, $B191, $M$2,$L$2,,$J$2,$K$2)="",NA(),RTD("cqg.rtd",,"StudyData", $I$2, "Bar", "", "Close", $H$3, $B191, $M$2,$L$2,,$J$2,$K$2)) ->  | R191: 0 | T191: X.US.BSPSUSNHOFF | U191: Barley Stocks by Position Off-farm 1000 bushels New Hampshire
A192: 43 | B192: -190 | C192: =RTD("cqg.rtd",,"StudyData", $I$2, "Bar", "", "Time", $H$2,$B192, $M$2, "", "","False") -> 2016-08-08 | D192: =IF(RTD("cqg.rtd",,"StudyData", $I$2, "Bar", "", "Close", $H$2, $B192, $M$2,$L$2,,$J$2,$K$2)="",NA(),RTD("cqg.rtd",,"StudyData", $I$2, "Bar", "", "Close", $H$2, $B192, $M$2,$L$2,,$J$2,$K$2)) -> 2.7 | E192: 2.7 | N192: 9.002 | O192: -190 | P192: =RTD("cqg.rtd",,"StudyData", $I$2, "Bar", "", "Time", $H$3,$B192, $M$2, "", "","False") -> 2019-07-09 | Q192: =IF(RTD("cqg.rtd",,"StudyData", $I$2, "Bar", "", "Close", $H$3, $B192, $M$2,$L$2,,$J$2,$K$2)="",NA(),RTD("cqg.rtd",,"StudyData", $I$2, "Bar", "", "Close", $H$3, $B192, $M$2,$L$2,,$J$2,$K$2)) ->  | R192: 0 | T192: X.US.BSPSUSNHONF | U192: Barley Stocks by Position On-farm 1000 bushels New Hampshire
A193: 43.001 | B193: -191 | C193: =RTD("cqg.rtd",,"StudyData", $I$2, "Bar", "", "Time", $H$2,$B193, $M$2, "", "","False") -> 2016-08-01 | D193: =IF(RTD("cqg.rtd",,"StudyData", $I$2, "Bar", "", "Close", $H$2, $B193, $M$2,$L$2,,$J$2,$K$2)="",NA(),RTD("cqg.rtd",,"StudyData", $I$2, "Bar", "", "Close", $H$2, $B193, $M$2,$L$2,,$J$2,$K$2)) ->  | E193: 0 | N193: 9.003 | O193: -191 | P193: =RTD("cqg.rtd",,"StudyData", $I$2, "Bar", "", "Time", $H$3,$B193, $M$2, "", "","False") -> 2019-07-08 | Q193: =IF(RTD("cqg.rtd",,"StudyData", $I$2, "Bar", "", "Close", $H$3, $B193, $M$2,$L$2,,$J$2,$K$2)="",NA(),RTD("cqg.rtd",,"StudyData", $I$2, "Bar", "", "Close", $H$3, $B193, $M$2,$L$2,,$J$2,$K$2)) ->  | R193: 0 | T193: X.US.BSPSUSNHTAP | U193: Barley Stocks by Position Total all pos. 1000 bushels New Hampshire
A194: 43.002 | B194: -192 | C194: =RTD("cqg.rtd",,"StudyData", $I$2, "Bar", "", "Time", $H$2,$B194, $M$2, "", "","False") -> 2016-07-25 | D194: =IF(RTD("cqg.rtd",,"StudyData", $I$2, "Bar", "", "Close", $H$2, $B194, $M$2,$L$2,,$J$2,$K$2)="",NA(),RTD("cqg.rtd",,"StudyData", $I$2, "Bar", "", "Close", $H$2, $B194, $M$2,$L$2,,$J$2,$K$2)) ->  | E194: 0 | N194: 9.004 | O194: -192 | P194: =RTD("cqg.rtd",,"StudyData", $I$2, "Bar", "", "Time", $H$3,$B194, $M$2, "", "","False") -> 2019-07-05 | Q194: =IF(RTD("cqg.rtd",,"StudyData", $I$2, "Bar", "", "Close", $H$3, $B194, $M$2,$L$2,,$J$2,$K$2)="",NA(),RTD("cqg.rtd",,"StudyData", $I$2, "Bar", "", "Close", $H$3, $B194, $M$2,$L$2,,$J$2,$K$2)) ->  | R194: 0 | T194: X.US.BSPSUSNJOFF | U194: Barley Stocks by Position Off-farm 1000 bushels New Jersey
A195: 43.003 | B195: -193 | C195: =RTD("cqg.rtd",,"StudyData", $I$2, "Bar", "", "Time", $H$2,$B195, $M$2, "", "","False") -> 2016-07-18 | D195: =IF(RTD("cqg.rtd",,"StudyData", $I$2, "Bar", "", "Close", $H$2, $B195, $M$2,$L$2,,$J$2,$K$2)="",NA(),RTD("cqg.rtd",,"StudyData", $I$2, "Bar", "", "Close", $H$2, $B195, $M$2,$L$2,,$J$2,$K$2)) ->  | E195: =IFERROR(D195,0) -> 0 | N195: 9.005 | O195: -193 | P195: =RTD("cqg.rtd",,"StudyData", $I$2, "Bar", "", "Time", $H$3,$B195, $M$2, "", "","False") -> 2019-07-04 | Q195: =IF(RTD("cqg.rtd",,"StudyData", $I$2, "Bar", "", "Close", $H$3, $B195, $M$2,$L$2,,$J$2,$K$2)="",NA(),RTD("cqg.rtd",,"StudyData", $I$2, "Bar", "", "Close", $H$3, $B195, $M$2,$L$2,,$J$2,$K$2)) ->  | R195: 0 | T195: X.US.BSPSUSNJONF | U195: Barley Stocks by Position On-farm 1000 bushels New Jersey
A196: =IF(E196=0,A195+0.001,TRUNC(A195)+1) -> 44 | B196: =B195-1 -> -194 | C196: =RTD("cqg.rtd",,"StudyData", $I$2, "Bar", "", "Time", $H$2,$B196, $M$2, "", "","False") -> 2016-07-11 | D196: =IF(RTD("cqg.rtd",,"StudyData", $I$2, "Bar", "", "Close", $H$2, $B196, $M$2,$L$2,,$J$2,$K$2)="",NA(),RTD("cqg.rtd",,"StudyData", $I$2, "Bar", "", "Close", $H$2, $B196, $M$2,$L$2,,$J$2,$K$2)) -> 2.85 | E196: 2.85 | N196: 9.006 | O196: =O195-1 -> -194 | P196: =RTD("cqg.rtd",,"StudyData", $I$2, "Bar", "", "Time", $H$3,$B196, $M$2, "", "","False") -> 2019-07-03 | Q196: =IF(RTD("cqg.rtd",,"StudyData", $I$2, "Bar", "", "Close", $H$3, $B196, $M$2,$L$2,,$J$2,$K$2)="",NA(),RTD("cqg.rtd",,"StudyData", $I$2, "Bar", "", "Close", $H$3, $B196, $M$2,$L$2,,$J$2,$K$2)) ->  | R196: 0 | T196: X.US.BSPSUSNJTAP | U196: Barley Stocks by Position Total all pos. 1000 bushels New Jersey
A197: 44.001 | B197: -195 | C197: =RTD("cqg.rtd",,"StudyData", $I$2, "Bar", "", "Time", $H$2,$B197, $M$2, "", "","False") -> 2016-07-04 | D197: =IF(RTD("cqg.rtd",,"StudyData", $I$2, "Bar", "", "Close", $H$2, $B197, $M$2,$L$2,,$J$2,$K$2)="",NA(),RTD("cqg.rtd",,"StudyData", $I$2, "Bar", "", "Close", $H$2, $B197, $M$2,$L$2,,$J$2,$K$2)) ->  | E197: 0 | N197: 9.007 | O197: -195 | P197: =RTD("cqg.rtd",,"StudyData", $I$2, "Bar", "", "Time", $H$3,$B197, $M$2, "", "","False") -> 2019-07-02 | Q197: =IF(RTD("cqg.rtd",,"StudyData", $I$2, "Bar", "", "Close", $H$3, $B197, $M$2,$L$2,,$J$2,$K$2)="",NA(),RTD("cqg.rtd",,"StudyData", $I$2, "Bar", "", "Close", $H$3, $B197, $M$2,$L$2,,$J$2,$K$2)) ->  | R197: 0 | T197: X.US.BSPSUSNMOFF | U197: Barley Stocks by Position Off-farm 1000 bushels New Mexico
A198: 44.002 | B198: -196 | C198: =RTD("cqg.rtd",,"StudyData", $I$2, "Bar", "", "Time", $H$2,$B198, $M$2, "", "","False") -> 2016-06-27 | D198: =IF(RTD("cqg.rtd",,"StudyData", $I$2, "Bar", "", "Close", $H$2, $B198, $M$2,$L$2,,$J$2,$K$2)="",NA(),RTD("cqg.rtd",,"StudyData", $I$2, "Bar", "", "Close", $H$2, $B198, $M$2,$L$2,,$J$2,$K$2)) ->  | E198: 0 | N198: 9.008 | O198: -196 | P198: =RTD("cqg.rtd",,"StudyData", $I$2, "Bar", "", "Time", $H$3,$B198, $M$2, "", "","False") -> 2019-07-01 | Q198: =IF(RTD("cqg.rtd",,"StudyData", $I$2, "Bar", "", "Close", $H$3, $B198, $M$2,$L$2,,$J$2,$K$2)="",NA(),RTD("cqg.rtd",,"StudyData", $I$2, "Bar", "", "Close", $H$3, $B198, $M$2,$L$2,,$J$2,$K$2)) ->  | R198: 0 | T198: X.US.BSPSUSNMONF | U198: Barley Stocks by Position On-farm 1000 bushels New Mexico
A199: 44.003 | B199: -197 | C199: =RTD("cqg.rtd",,"StudyData", $I$2, "Bar", "", "Time", $H$2,$B199, $M$2, "", "","False") -> 2016-06-20 | D199: =IF(RTD("cqg.rtd",,"StudyData", $I$2, "Bar", "", "Close", $H$2, $B199, $M$2,$L$2,,$J$2,$K$2)="",NA(),RTD("cqg.rtd",,"StudyData", $I$2, "Bar", "", "Close", $H$2, $B199, $M$2,$L$2,,$J$2,$K$2)) ->  | E199: 0 | N199: 9.009 | O199: -197 | P199: =RTD("cqg.rtd",,"StudyData", $I$2, "Bar", "", "Time", $H$3,$B199, $M$2, "", "","False") -> 2019-06-28 | Q199: =IF(RTD("cqg.rtd",,"StudyData", $I$2, "Bar", "", "Close", $H$3, $B199, $M$2,$L$2,,$J$2,$K$2)="",NA(),RTD("cqg.rtd",,"StudyData", $I$2, "Bar", "", "Close", $H$3, $B199, $M$2,$L$2,,$J$2,$K$2)) ->  | R199: 0 | T199: X.US.BSPSUSNMTAP | U199: Barley Stocks by Position Total all pos. 1000 bushels New Mexico
A200: 44.004 | B200: -198 | C200: =RTD("cqg.rtd",,"StudyData", $I$2, "Bar", "", "Time", $H$2,$B200, $M$2, "", "","False") -> 2016-06-13 | D200: =IF(RTD("cqg.rtd",,"StudyData", $I$2, "Bar", "", "Close", $H$2, $B200, $M$2,$L$2,,$J$2,$K$2)="",NA(),RTD("cqg.rtd",,"StudyData", $I$2, "Bar", "", "Close", $H$2, $B200, $M$2,$L$2,,$J$2,$K$2)) ->  | E200: 0 | N200: 9.01 | O200: -198 | P200: =RTD("cqg.rtd",,"StudyData", $I$2, "Bar", "", "Time", $H$3,$B200, $M$2, "", "","False") -> 2019-06-27 | Q200: =IF(RTD("cqg.rtd",,"StudyData", $I$2, "Bar", "", "Close", $H$3, $B200, $M$2,$L$2,,$J$2,$K$2)="",NA(),RTD("cqg.rtd",,"StudyData", $I$2, "Bar", "", "Close", $H$3, $B200, $M$2,$L$2,,$J$2,$K$2)) ->  | R200: 0 | T200: X.US.BSPSUSNVOFF | U200: Barley Stocks by Position Off-farm 1000 bushels Nevada
... 4231 more rows

Sheet Sheet2 (hidden)
C1: DATE | D1: CLOSE | H1: Chart | I1: Symbol | J1: Continuation | K1: Decimal=T, Tick=D | L1: CustomSessionName | M1: Type All or PrimaryOnly | P1: DATE | Q1: CLOSE | T1: X.US.AWSPSUSGATAP | U1: All Wheat Stocks by Position Total all pos. 1000 bushels Georgia
A2: =IF(E2=0,0.001,1) -> 0.001 | B2: 0 | C2: =RTD("cqg.rtd",,"StudyData", $I$2, "Bar", "", "Time", $H$2,$B2, $M$2, "", "","False") -> 2020-03-30 | D2: =IF(RTD("cqg.rtd",,"StudyData", $I$2, "Bar", "", "Close", $H$2, $B2, $M$2,$L$2,,$J$2,$K$2)="",NA(),RTD("cqg.rtd",,"StudyData", $I$2, "Bar", "", "Close", $H$2, $B2, $M$2,$L$2,,$J$2,$K$2)) ->  | E2: =IFERROR(D2,0) -> 0 | H2: =MainDisplay!AE5 -> W | I2: =MainDisplay!S5 -> X.US.WWSUMISABS | J2: TRUE | K2: T | M2: All | N2: =IF(R2=0,0.001,1) -> 0.001 | O2: 0 | P2: =RTD("cqg.rtd",,"StudyData", $I$2, "Bar", "", "Time", $H$3,$B2, $M$2, "", "","False") -> 2020-03-31 | Q2: =IF(RTD("cqg.rtd",,"StudyData", $I$2, "Bar", "", "Close", $H$3, $B2, $M$2,$L$2,,$J$2,$K$2)="",NA(),RTD("cqg.rtd",,"StudyData", $I$2, "Bar", "", "Close", $H$3, $B2, $M$2,$L$2,,$J$2,$K$2)) ->  | R2: =IFERROR(Q2,0) -> 0 | T2: X.US.AWSPSUSIAOFF | U2: All Wheat Stocks by Position Off-farm 1000 bushels Iowa
A3: =IF(E3=0,A2+0.001,TRUNC(A2)+1) -> 0.002 | B3: =B2-1 -> -1 | C3: =RTD("cqg.rtd",,"StudyData", $I$2, "Bar", "", "Time", $H$2,$B3, $M$2, "", "","False") -> 2020-03-23 | D3: =IF(RTD("cqg.rtd",,"StudyData", $I$2, "Bar", "", "Close", $H$2, $B3, $M$2,$L$2,,$J$2,$K$2)="",NA(),RTD("cqg.rtd",,"StudyData", $I$2, "Bar", "", "Close", $H$2, $B3, $M$2,$L$2,,$J$2,$K$2)) ->  | E3: =IFERROR(D3,0) -> 0 | H3: D | N3: =IF(R3=0,N2+0.001,TRUNC(N2)+1) -> 0.002 | O3: =O2-1 -> -1 | P3: =RTD("cqg.rtd",,"StudyData", $I$2, "Bar", "", "Time", $H$3,$B3, $M$2, "", "","False") -> 2020-03-30 | Q3: =IF(RTD("cqg.rtd",,"StudyData", $I$2, "Bar", "", "Close", $H$3, $B3, $M$2,$L$2,,$J$2,$K$2)="",NA(),RTD("cqg.rtd",,"StudyData", $I$2, "Bar", "", "Close", $H$3, $B3, $M$2,$L$2,,$J$2,$K$2)) ->  | R3: =IFERROR(Q3,0) -> 0 | T3: X.US.AWSPSUSIAONF | U3: All Wheat Stocks by Position On-farm 1000 bushels Iowa
A4: =IF(E4=0,A3+0.001,TRUNC(A3)+1) -> 0.003 | B4: =B3-1 -> -2 | C4: =RTD("cqg.rtd",,"StudyData", $I$2, "Bar", "", "Time", $H$2,$B4, $M$2, "", "","False") -> 2020-03-16 | D4: =IF(RTD("cqg.rtd",,"StudyData", $I$2, "Bar", "", "Close", $H$2, $B4, $M$2,$L$2,,$J$2,$K$2)="",NA(),RTD("cqg.rtd",,"StudyData", $I$2, "Bar", "", "Close", $H$2, $B4, $M$2,$L$2,,$J$2,$K$2)) ->  | E4: 0 | I4: =VLOOKUP(I2,T1:U4431,2,FALSE) -> World Wheat Supply and Use Major Importers Southeast Asia Million Metric Tons Beginning Stocks | N4: =IF(R4=0,N3+0.001,TRUNC(N3)+1) -> 0.003 | O4: =O3-1 -> -2 | P4: =RTD("cqg.rtd",,"StudyData", $I$2, "Bar", "", "Time", $H$3,$B4, $M$2, "", "","False") -> 2020-03-27 | Q4: =IF(RTD("cqg.rtd",,"StudyData", $I$2, "Bar", "", "Close", $H$3, $B4, $M$2,$L$2,,$J$2,$K$2)="",NA(),RTD("cqg.rtd",,"StudyData", $I$2, "Bar", "", "Close", $H$3, $B4, $M$2,$L$2,,$J$2,$K$2)) ->  | R4: 0 | T4: X.US.AWSPSUSIATAP | U4: All Wheat Stocks by Position Total all pos. 1000 bushels Iowa
A5: 1 | B5: -3 | C5: =RTD("cqg.rtd",,"StudyData", $I$2, "Bar", "", "Time", $H$2,$B5, $M$2, "", "","False") -> 2020-03-09 | D5: =IF(RTD("cqg.rtd",,"StudyData", $I$2, "Bar", "", "Close", $H$2, $B5, $M$2,$L$2,,$J$2,$K$2)="",NA(),RTD("cqg.rtd",,"StudyData", $I$2, "Bar", "", "Close", $H$2, $B5, $M$2,$L$2,,$J$2,$K$2)) -> 5.44 | E5: 5.44 | N5: 0.004 | O5: -3 | P5: =RTD("cqg.rtd",,"StudyData", $I$2, "Bar", "", "Time", $H$3,$B5, $M$2, "", "","False") -> 2020-03-26 | Q5: =IF(RTD("cqg.rtd",,"StudyData", $I$2, "Bar", "", "Close", $H$3, $B5, $M$2,$L$2,,$J$2,$K$2)="",NA(),RTD("cqg.rtd",,"StudyData", $I$2, "Bar", "", "Close", $H$3, $B5, $M$2,$L$2,,$J$2,$K$2)) ->  | R5: 0 | T5: X.US.AWSPSUSIDOFF | U5: All Wheat Stocks by Position Off-farm 1000 bushels Idaho
A6: 1.001 | B6: -4 | C6: =RTD("cqg.rtd",,"StudyData", $I$2, "Bar", "", "Time", $H$2,$B6, $M$2, "", "","False") -> 2020-03-02 | D6: =IF(RTD("cqg.rtd",,"StudyData", $I$2, "Bar", "", "Close", $H$2, $B6, $M$2,$L$2,,$J$2,$K$2)="",NA(),RTD("cqg.rtd",,"StudyData", $I$2, "Bar", "", "Close", $H$2, $B6, $M$2,$L$2,,$J$2,$K$2)) ->  | E6: 0 | I6: Latest Date | J6: Value | N6: 0.005 | O6: -4 | P6: =RTD("cqg.rtd",,"StudyData", $I$2, "Bar", "", "Time", $H$3,$B6, $M$2, "", "","False") -> 2020-03-25 | Q6: =IF(RTD("cqg.rtd",,"StudyData", $I$2, "Bar", "", "Close", $H$3, $B6, $M$2,$L$2,,$J$2,$K$2)="",NA(),RTD("cqg.rtd",,"StudyData", $I$2, "Bar", "", "Close", $H$3, $B6, $M$2,$L$2,,$J$2,$K$2)) ->  | R6: 0 | T6: X.US.AWSPSUSIDONF | U6: All Wheat Stocks by Position On-farm 1000 bushels Idaho
A7: 1.002 | B7: -5 | C7: =RTD("cqg.rtd",,"StudyData", $I$2, "Bar", "", "Time", $H$2,$B7, $M$2, "", "","False") -> 2020-02-24 | D7: =IF(RTD("cqg.rtd",,"StudyData", $I$2, "Bar", "", "Close", $H$2, $B7, $M$2,$L$2,,$J$2,$K$2)="",NA(),RTD("cqg.rtd",,"StudyData", $I$2, "Bar", "", "Close", $H$2, $B7, $M$2,$L$2,,$J$2,$K$2)) ->  | E7: 0 | I7: =VLOOKUP(1,N2:Q302,3,FALSE) -> 2020-03-10 | J7: =VLOOKUP(1,N2:Q302,4,FALSE) -> 5.44 | N7: 0.006 | O7: -5 | P7: =RTD("cqg.rtd",,"StudyData", $I$2, "Bar", "", "Time", $H$3,$B7, $M$2, "", "","False") -> 2020-03-24 | Q7: =IF(RTD("cqg.rtd",,"StudyData", $I$2, "Bar", "", "Close", $H$3, $B7, $M$2,$L$2,,$J$2,$K$2)="",NA(),RTD("cqg.rtd",,"StudyData", $I$2, "Bar", "", "Close", $H$3, $B7, $M$2,$L$2,,$J$2,$K$2)) ->  | R7: 0 | T7: X.US.AWSPSUSIDTAP | U7: All Wheat Stocks by Position Total all pos. 1000 bushels Idaho
A8: 1.003 | B8: -6 | C8: =RTD("cqg.rtd",,"StudyData", $I$2, "Bar", "", "Time", $H$2,$B8, $M$2, "", "","False") -> 2020-02-17 | D8: =IF(RTD("cqg.rtd",,"StudyData", $I$2, "Bar", "", "Close", $H$2, $B8, $M$2,$L$2,,$J$2,$K$2)="",NA(),RTD("cqg.rtd",,"StudyData", $I$2, "Bar", "", "Close", $H$2, $B8, $M$2,$L$2,,$J$2,$K$2)) ->  | E8: 0 | N8: 0.007 | O8: -6 | P8: =RTD("cqg.rtd",,"StudyData", $I$2, "Bar", "", "Time", $H$3,$B8, $M$2, "", "","False") -> 2020-03-23 | Q8: =IF(RTD("cqg.rtd",,"StudyData", $I$2, "Bar", "", "Close", $H$3, $B8, $M$2,$L$2,,$J$2,$K$2)="",NA(),RTD("cqg.rtd",,"StudyData", $I$2, "Bar", "", "Close", $H$3, $B8, $M$2,$L$2,,$J$2,$K$2)) ->  | R8: 0 | T8: X.US.AWSPSUSILOFF | U8: All Wheat Stocks by Position Off-farm 1000 bushels Illinois
A9: 2 | B9: -7 | C9: =RTD("cqg.rtd",,"StudyData", $I$2, "Bar", "", "Time", $H$2,$B9, $M$2, "", "","False") -> 2020-02-10 | D9: =IF(RTD("cqg.rtd",,"StudyData", $I$2, "Bar", "", "Close", $H$2, $B9, $M$2,$L$2,,$J$2,$K$2)="",NA(),RTD("cqg.rtd",,"StudyData", $I$2, "Bar", "", "Close", $H$2, $B9, $M$2,$L$2,,$J$2,$K$2)) -> 5.44 | E9: 5.44 | N9: 0.008 | O9: -7 | P9: =RTD("cqg.rtd",,"StudyData", $I$2, "Bar", "", "Time", $H$3,$B9, $M$2, "", "","False") -> 2020-03-20 | Q9: =IF(RTD("cqg.rtd",,"StudyData", $I$2, "Bar", "", "Close", $H$3, $B9, $M$2,$L$2,,$J$2,$K$2)="",NA(),RTD("cqg.rtd",,"StudyData", $I$2, "Bar", "", "Close", $H$3, $B9, $M$2,$L$2,,$J$2,$K$2)) ->  | R9: 0 | T9: X.US.AWSPSUSILONF | U9: All Wheat Stocks by Position On-farm 1000 bushels Illinois
A10: 2.001 | B10: -8 | C10: =RTD("cqg.rtd",,"StudyData", $I$2, "Bar", "", "Time", $H$2,$B10, $M$2, "", "","False") -> 2020-02-03 | D10: =IF(RTD("cqg.rtd",,"StudyData", $I$2, "Bar", "", "Close", $H$2, $B10, $M$2,$L$2,,$J$2,$K$2)="",NA(),RTD("cqg.rtd",,"StudyData", $I$2, "Bar", "", "Close", $H$2, $B10, $M$2,$L$2,,$J$2,$K$2)) ->  | E10: 0 | N10: 0.009 | O10: -8 | P10: =RTD("cqg.rtd",,"StudyData", $I$2, "Bar", "", "Time", $H$3,$B10, $M$2, "", "","False") -> 2020-03-19 | Q10: =IF(RTD("cqg.rtd",,"StudyData", $I$2, "Bar", "", "Close", $H$3, $B10, $M$2,$L$2,,$J$2,$K$2)="",NA(),RTD("cqg.rtd",,"StudyData", $I$2, "Bar", "", "Close", $H$3, $B10, $M$2,$L$2,,$J$2,$K$2)) ->  | R10: 0 | T10: X.US.AWSPSUSILTAP | U10: All Wheat Stocks by Position Total all pos. 1000 bushels Illinois
A11: 2.002 | B11: -9 | C11: =RTD("cqg.rtd",,"StudyData", $I$2, "Bar", "", "Time", $H$2,$B11, $M$2, "", "","False") -> 2020-01-27 | D11: =IF(RTD("cqg.rtd",,"StudyData", $I$2, "Bar", "", "Close", $H$2, $B11, $M$2,$L$2,,$J$2,$K$2)="",NA(),RTD("cqg.rtd",,"StudyData", $I$2, "Bar", "", "Close", $H$2, $B11, $M$2,$L$2,,$J$2,$K$2)) ->  | E11: 0 | N11: 0.01 | O11: -9 | P11: =RTD("cqg.rtd",,"StudyData", $I$2, "Bar", "", "Time", $H$3,$B11, $M$2, "", "","False") -> 2020-03-18 | Q11: =IF(RTD("cqg.rtd",,"StudyData", $I$2, "Bar", "", "Close", $H$3, $B11, $M$2,$L$2,,$J$2,$K$2)="",NA(),RTD("cqg.rtd",,"StudyData", $I$2, "Bar", "", "Close", $H$3, $B11, $M$2,$L$2,,$J$2,$K$2)) ->  | R11: 0 | T11: X.US.AWSPSUSINOFF | U11: All Wheat Stocks by Position Off-farm 1000 bushels Indiana
A12: 2.003 | B12: -10 | C12: =RTD("cqg.rtd",,"StudyData", $I$2, "Bar", "", "Time", $H$2,$B12, $M$2, "", "","False") -> 2020-01-20 | D12: =IF(RTD("cqg.rtd",,"StudyData", $I$2, "Bar", "", "Close", $H$2, $B12, $M$2,$L$2,,$J$2,$K$2)="",NA(),RTD("cqg.rtd",,"StudyData", $I$2, "Bar", "", "Close", $H$2, $B12, $M$2,$L$2,,$J$2,$K$2)) ->  | E12: 0 | N12: =IF(R12=0,N11+0.001,TRUNC(N11)+1) -> 0.011 | O12: -10 | P12: =RTD("cqg.rtd",,"StudyData", $I$2, "Bar", "", "Time", $H$3,$B12, $M$2, "", "","False") -> 2020-03-17 | Q12: =IF(RTD("cqg.rtd",,"StudyData", $I$2, "Bar", "", "Close", $H$3, $B12, $M$2,$L$2,,$J$2,$K$2)="",NA(),RTD("cqg.rtd",,"StudyData", $I$2, "Bar", "", "Close", $H$3, $B12, $M$2,$L$2,,$J$2,$K$2)) ->  | R12: =IFERROR(Q12,0) -> 0 | T12: X.US.AWSPSUSINONF | U12: All Wheat Stocks by Position On-farm 1000 bushels Indiana
A13: 2.004 | B13: -11 | C13: =RTD("cqg.rtd",,"StudyData", $I$2, "Bar", "", "Time", $H$2,$B13, $M$2, "", "","False") -> 2020-01-13 | D13: =IF(RTD("cqg.rtd",,"StudyData", $I$2, "Bar", "", "Close", $H$2, $B13, $M$2,$L$2,,$J$2,$K$2)="",NA(),RTD("cqg.rtd",,"StudyData", $I$2, "Bar", "", "Close", $H$2, $B13, $M$2,$L$2,,$J$2,$K$2)) ->  | E13: 0 | N13: 0.012 | O13: -11 | P13: =RTD("cqg.rtd",,"StudyData", $I$2, "Bar", "", "Time", $H$3,$B13, $M$2, "", "","False") -> 2020-03-16 | Q13: =IF(RTD("cqg.rtd",,"StudyData", $I$2, "Bar", "", "Close", $H$3, $B13, $M$2,$L$2,,$J$2,$K$2)="",NA(),RTD("cqg.rtd",,"StudyData", $I$2, "Bar", "", "Close", $H$3, $B13, $M$2,$L$2,,$J$2,$K$2)) ->  | R13: 0 | T13: X.US.AWSPSUSINTAP | U13: All Wheat Stocks by Position Total all pos. 1000 bushels Indiana
A14: 3 | B14: -12 | C14: =RTD("cqg.rtd",,"StudyData", $I$2, "Bar", "", "Time", $H$2,$B14, $M$2, "", "","False") -> 2020-01-06 | D14: =IF(RTD("cqg.rtd",,"StudyData", $I$2, "Bar", "", "Close", $H$2, $B14, $M$2,$L$2,,$J$2,$K$2)="",NA(),RTD("cqg.rtd",,"StudyData", $I$2, "Bar", "", "Close", $H$2, $B14, $M$2,$L$2,,$J$2,$K$2)) -> 4.92 | E14: 4.92 | N14: 0.013 | O14: -12 | P14: =RTD("cqg.rtd",,"StudyData", $I$2, "Bar", "", "Time", $H$3,$B14, $M$2, "", "","False") -> 2020-03-13 | Q14: =IF(RTD("cqg.rtd",,"StudyData", $I$2, "Bar", "", "Close", $H$3, $B14, $M$2,$L$2,,$J$2,$K$2)="",NA(),RTD("cqg.rtd",,"StudyData", $I$2, "Bar", "", "Close", $H$3, $B14, $M$2,$L$2,,$J$2,$K$2)) ->  | R14: 0 | T14: X.US.AWSPSUSKSOFF | U14: All Wheat Stocks by Position Off-farm 1000 bushels Kansas
A15: 3.001 | B15: -13 | C15: =RTD("cqg.rtd",,"StudyData", $I$2, "Bar", "", "Time", $H$2,$B15, $M$2, "", "","False") -> 2019-12-30 | D15: =IF(RTD("cqg.rtd",,"StudyData", $I$2, "Bar", "", "Close", $H$2, $B15, $M$2,$L$2,,$J$2,$K$2)="",NA(),RTD("cqg.rtd",,"StudyData", $I$2, "Bar", "", "Close", $H$2, $B15, $M$2,$L$2,,$J$2,$K$2)) ->  | E15: 0 | N15: 0.014 | O15: -13 | P15: =RTD("cqg.rtd",,"StudyData", $I$2, "Bar", "", "Time", $H$3,$B15, $M$2, "", "","False") -> 2020-03-12 | Q15: =IF(RTD("cqg.rtd",,"StudyData", $I$2, "Bar", "", "Close", $H$3, $B15, $M$2,$L$2,,$J$2,$K$2)="",NA(),RTD("cqg.rtd",,"StudyData", $I$2, "Bar", "", "Close", $H$3, $B15, $M$2,$L$2,,$J$2,$K$2)) ->  | R15: 0 | T15: X.US.AWSPSUSKSONF | U15: All Wheat Stocks by Position On-farm 1000 bushels Kansas
A16: 3.002 | B16: -14 | C16: =RTD("cqg.rtd",,"StudyData", $I$2, "Bar", "", "Time", $H$2,$B16, $M$2, "", "","False") -> 2019-12-23 | D16: =IF(RTD("cqg.rtd",,"StudyData", $I$2, "Bar", "", "Close", $H$2, $B16, $M$2,$L$2,,$J$2,$K$2)="",NA(),RTD("cqg.rtd",,"StudyData", $I$2, "Bar", "", "Close", $H$2, $B16, $M$2,$L$2,,$J$2,$K$2)) ->  | E16: 0 | N16: 0.015 | O16: -14 | P16: =RTD("cqg.rtd",,"StudyData", $I$2, "Bar", "", "Time", $H$3,$B16, $M$2, "", "","False") -> 2020-03-11 | Q16: =IF(RTD("cqg.rtd",,"StudyData", $I$2, "Bar", "", "Close", $H$3, $B16, $M$2,$L$2,,$J$2,$K$2)="",NA(),RTD("cqg.rtd",,"StudyData", $I$2, "Bar", "", "Close", $H$3, $B16, $M$2,$L$2,,$J$2,$K$2)) ->  | R16: 0 | T16: X.US.AWSPSUSKSTAP | U16: All Wheat Stocks by Position Total all pos. 1000 bushels Kansas
A17: 3.003 | B17: -15 | C17: =RTD("cqg.rtd",,"StudyData", $I$2, "Bar", "", "Time", $H$2,$B17, $M$2, "", "","False") -> 2019-12-16 | D17: =IF(RTD("cqg.rtd",,"StudyData", $I$2, "Bar", "", "Close", $H$2, $B17, $M$2,$L$2,,$J$2,$K$2)="",NA(),RTD("cqg.rtd",,"StudyData", $I$2, "Bar", "", "Close", $H$2, $B17, $M$2,$L$2,,$J$2,$K$2)) ->  | E17: 0 | N17: 1 | O17: -15 | P17: =RTD("cqg.rtd",,"StudyData", $I$2, "Bar", "", "Time", $H$3,$B17, $M$2, "", "","False") -> 2020-03-10 | Q17: =IF(RTD("cqg.rtd",,"StudyData", $I$2, "Bar", "", "Close", $H$3, $B17, $M$2,$L$2,,$J$2,$K$2)="",NA(),RTD("cqg.rtd",,"StudyData", $I$2, "Bar", "", "Close", $H$3, $B17, $M$2,$L$2,,$J$2,$K$2)) -> 5.44 | R17: 5.44 | T17: X.US.AWSPSUSKYOFF | U17: All Wheat Stocks by Position Off-farm 1000 bushels Kentucky
A18: 4 | B18: -16 | C18: =RTD("cqg.rtd",,"StudyData", $I$2, "Bar", "", "Time", $H$2,$B18, $M$2, "", "","False") -> 2019-12-09 | D18: =IF(RTD("cqg.rtd",,"StudyData", $I$2, "Bar", "", "Close", $H$2, $B18, $M$2,$L$2,,$J$2,$K$2)="",NA(),RTD("cqg.rtd",,"StudyData", $I$2, "Bar", "", "Close", $H$2, $B18, $M$2,$L$2,,$J$2,$K$2)) -> 4.92 | E18: 4.92 | N18: 1.001 | O18: -16 | P18: =RTD("cqg.rtd",,"StudyData", $I$2, "Bar", "", "Time", $H$3,$B18, $M$2, "", "","False") -> 2020-03-09 | Q18: =IF(RTD("cqg.rtd",,"StudyData", $I$2, "Bar", "", "Close", $H$3, $B18, $M$2,$L$2,,$J$2,$K$2)="",NA(),RTD("cqg.rtd",,"StudyData", $I$2, "Bar", "", "Close", $H$3, $B18, $M$2,$L$2,,$J$2,$K$2)) ->  | R18: 0 | T18: X.US.AWSPSUSKYONF | U18: All Wheat Stocks by Position On-farm 1000 bushels Kentucky
A19: 4.001 | B19: -17 | C19: =RTD("cqg.rtd",,"StudyData", $I$2, "Bar", "", "Time", $H$2,$B19, $M$2, "", "","False") -> 2019-12-02 | D19: =IF(RTD("cqg.rtd",,"StudyData", $I$2, "Bar", "", "Close", $H$2, $B19, $M$2,$L$2,,$J$2,$K$2)="",NA(),RTD("cqg.rtd",,"StudyData", $I$2, "Bar", "", "Close", $H$2, $B19, $M$2,$L$2,,$J$2,$K$2)) ->  | E19: 0 | N19: 1.002 | O19: -17 | P19: =RTD("cqg.rtd",,"StudyData", $I$2, "Bar", "", "Time", $H$3,$B19, $M$2, "", "","False") -> 2020-03-06 | Q19: =IF(RTD("cqg.rtd",,"StudyData", $I$2, "Bar", "", "Close", $H$3, $B19, $M$2,$L$2,,$J$2,$K$2)="",NA(),RTD("cqg.rtd",,"StudyData", $I$2, "Bar", "", "Close", $H$3, $B19, $M$2,$L$2,,$J$2,$K$2)) ->  | R19: 0 | T19: X.US.AWSPSUSKYTAP | U19: All Wheat Stocks by Position Total all pos. 1000 bushels Kentucky
A20: 4.002 | B20: -18 | C20: =RTD("cqg.rtd",,"StudyData", $I$2, "Bar", "", "Time", $H$2,$B20, $M$2, "", "","False") -> 2019-11-25 | D20: =IF(RTD("cqg.rtd",,"StudyData", $I$2, "Bar", "", "Close", $H$2, $B20, $M$2,$L$2,,$J$2,$K$2)="",NA(),RTD("cqg.rtd",,"StudyData", $I$2, "Bar", "", "Close", $H$2, $B20, $M$2,$L$2,,$J$2,$K$2)) ->  | E20: 0 | N20: 1.003 | O20: -18 | P20: =RTD("cqg.rtd",,"StudyData", $I$2, "Bar", "", "Time", $H$3,$B20, $M$2, "", "","False") -> 2020-03-05 | Q20: =IF(RTD("cqg.rtd",,"StudyData", $I$2, "Bar", "", "Close", $H$3, $B20, $M$2,$L$2,,$J$2,$K$2)="",NA(),RTD("cqg.rtd",,"StudyData", $I$2, "Bar", "", "Close", $H$3, $B20, $M$2,$L$2,,$J$2,$K$2)) ->  | R20: 0 | T20: X.US.AWSPSUSLAOFF | U20: All Wheat Stocks by Position Off-farm 1000 bushels Louisiana
A21: 4.003 | B21: -19 | C21: =RTD("cqg.rtd",,"StudyData", $I$2, "Bar", "", "Time", $H$2,$B21, $M$2, "", "","False") -> 2019-11-18 | D21: =IF(RTD("cqg.rtd",,"StudyData", $I$2, "Bar", "", "Close", $H$2, $B21, $M$2,$L$2,,$J$2,$K$2)="",NA(),RTD("cqg.rtd",,"StudyData", $I$2, "Bar", "", "Close", $H$2, $B21, $M$2,$L$2,,$J$2,$K$2)) ->  | E21: 0 | N21: 1.004 | O21: -19 | P21: =RTD("cqg.rtd",,"StudyData", $I$2, "Bar", "", "Time", $H$3,$B21, $M$2, "", "","False") -> 2020-03-04 | Q21: =IF(RTD("cqg.rtd",,"StudyData", $I$2, "Bar", "", "Close", $H$3, $B21, $M$2,$L$2,,$J$2,$K$2)="",NA(),RTD("cqg.rtd",,"StudyData", $I$2, "Bar", "", "Close", $H$3, $B21, $M$2,$L$2,,$J$2,$K$2)) ->  | R21: 0 | T21: X.US.AWSPSUSLAONF | U21: All Wheat Stocks by Position On-farm 1000 bushels Louisiana
A22: 4.004 | B22: -20 | C22: =RTD("cqg.rtd",,"StudyData", $I$2, "Bar", "", "Time", $H$2,$B22, $M$2, "", "","False") -> 2019-11-11 | D22: =IF(RTD("cqg.rtd",,"StudyData", $I$2, "Bar", "", "Close", $H$2, $B22, $M$2,$L$2,,$J$2,$K$2)="",NA(),RTD("cqg.rtd",,"StudyData", $I$2, "Bar", "", "Close", $H$2, $B22, $M$2,$L$2,,$J$2,$K$2)) ->  | E22: 0 | N22: 1.005 | O22: -20 | P22: =RTD("cqg.rtd",,"StudyData", $I$2, "Bar", "", "Time", $H$3,$B22, $M$2, "", "","False") -> 2020-03-03 | Q22: =IF(RTD("cqg.rtd",,"StudyData", $I$2, "Bar", "", "Close", $H$3, $B22, $M$2,$L$2,,$J$2,$K$2)="",NA(),RTD("cqg.rtd",,"StudyData", $I$2, "Bar", "", "Close", $H$3, $B22, $M$2,$L$2,,$J$2,$K$2)) ->  | R22: 0 | T22: X.US.AWSPSUSLATAP | U22: All Wheat Stocks by Position Total all pos. 1000 bushels Louisiana
A23: 5 | B23: -21 | C23: =RTD("cqg.rtd",,"StudyData", $I$2, "Bar", "", "Time", $H$2,$B23, $M$2, "", "","False") -> 2019-11-04 | D23: =IF(RTD("cqg.rtd",,"StudyData", $I$2, "Bar", "", "Close", $H$2, $B23, $M$2,$L$2,,$J$2,$K$2)="",NA(),RTD("cqg.rtd",,"StudyData", $I$2, "Bar", "", "Close", $H$2, $B23, $M$2,$L$2,,$J$2,$K$2)) -> 4.92 | E23: 4.92 | N23: 1.006 | O23: -21 | P23: =RTD("cqg.rtd",,"StudyData", $I$2, "Bar", "", "Time", $H$3,$B23, $M$2, "", "","False") -> 2020-03-02 | Q23: =IF(RTD("cqg.rtd",,"StudyData", $I$2, "Bar", "", "Close", $H$3, $B23, $M$2,$L$2,,$J$2,$K$2)="",NA(),RTD("cqg.rtd",,"StudyData", $I$2, "Bar", "", "Close", $H$3, $B23, $M$2,$L$2,,$J$2,$K$2)) ->  | R23: 0 | T23: X.US.AWSPSUSMDOFF | U23: All Wheat Stocks by Position Off-farm 1000 bushels Maryland
A24: 5.001 | B24: -22 | C24: =RTD("cqg.rtd",,"StudyData", $I$2, "Bar", "", "Time", $H$2,$B24, $M$2, "", "","False") -> 2019-10-28 | D24: =IF(RTD("cqg.rtd",,"StudyData", $I$2, "Bar", "", "Close", $H$2, $B24, $M$2,$L$2,,$J$2,$K$2)="",NA(),RTD("cqg.rtd",,"StudyData", $I$2, "Bar", "", "Close", $H$2, $B24, $M$2,$L$2,,$J$2,$K$2)) ->  | E24: 0 | N24: 1.007 | O24: -22 | P24: =RTD("cqg.rtd",,"StudyData", $I$2, "Bar", "", "Time", $H$3,$B24, $M$2, "", "","False") -> 2020-02-28 | Q24: =IF(RTD("cqg.rtd",,"StudyData", $I$2, "Bar", "", "Close", $H$3, $B24, $M$2,$L$2,,$J$2,$K$2)="",NA(),RTD("cqg.rtd",,"StudyData", $I$2, "Bar", "", "Close", $H$3, $B24, $M$2,$L$2,,$J$2,$K$2)) ->  | R24: 0 | T24: X.US.AWSPSUSMDONF | U24: All Wheat Stocks by Position On-farm 1000 bushels Maryland
A25: 5.002 | B25: -23 | C25: =RTD("cqg.rtd",,"StudyData", $I$2, "Bar", "", "Time", $H$2,$B25, $M$2, "", "","False") -> 2019-10-21 | D25: =IF(RTD("cqg.rtd",,"StudyData", $I$2, "Bar", "", "Close", $H$2, $B25, $M$2,$L$2,,$J$2,$K$2)="",NA(),RTD("cqg.rtd",,"StudyData", $I$2, "Bar", "", "Close", $H$2, $B25, $M$2,$L$2,,$J$2,$K$2)) ->  | E25: 0 | N25: 1.008 | O25: -23 | P25: =RTD("cqg.rtd",,"StudyData", $I$2, "Bar", "", "Time", $H$3,$B25, $M$2, "", "","False") -> 2020-02-27 | Q25: =IF(RTD("cqg.rtd",,"StudyData", $I$2, "Bar", "", "Close", $H$3, $B25, $M$2,$L$2,,$J$2,$K$2)="",NA(),RTD("cqg.rtd",,"StudyData", $I$2, "Bar", "", "Close", $H$3, $B25, $M$2,$L$2,,$J$2,$K$2)) ->  | R25: 0 | T25: X.US.AWSPSUSMDTAP | U25: All Wheat Stocks by Position Total all pos. 1000 bushels Maryland
A26: 5.003 | B26: -24 | C26: =RTD("cqg.rtd",,"StudyData", $I$2, "Bar", "", "Time", $H$2,$B26, $M$2, "", "","False") -> 2019-10-14 | D26: =IF(RTD("cqg.rtd",,"StudyData", $I$2, "Bar", "", "Close", $H$2, $B26, $M$2,$L$2,,$J$2,$K$2)="",NA(),RTD("cqg.rtd",,"StudyData", $I$2, "Bar", "", "Close", $H$2, $B26, $M$2,$L$2,,$J$2,$K$2)) ->  | E26: 0 | N26: 1.009 | O26: -24 | P26: =RTD("cqg.rtd",,"StudyData", $I$2, "Bar", "", "Time", $H$3,$B26, $M$2, "", "","False") -> 2020-02-26 | Q26: =IF(RTD("cqg.rtd",,"StudyData", $I$2, "Bar", "", "Close", $H$3, $B26, $M$2,$L$2,,$J$2,$K$2)="",NA(),RTD("cqg.rtd",,"StudyData", $I$2, "Bar", "", "Close", $H$3, $B26, $M$2,$L$2,,$J$2,$K$2)) ->  | R26: 0 | T26: X.US.AWSPSUSMIOFF | U26: All Wheat Stocks by Position Off-farm 1000 bushels Michigan
A27: 6 | B27: -25 | C27: =RTD("cqg.rtd",,"StudyData", $I$2, "Bar", "", "Time", $H$2,$B27, $M$2, "", "","False") -> 2019-10-07 | D27: =IF(RTD("cqg.rtd",,"StudyData", $I$2, "Bar", "", "Close", $H$2, $B27, $M$2,$L$2,,$J$2,$K$2)="",NA(),RTD("cqg.rtd",,"StudyData", $I$2, "Bar", "", "Close", $H$2, $B27, $M$2,$L$2,,$J$2,$K$2)) -> 4.92 | E27: 4.92 | N27: 1.01 | O27: -25 | P27: =RTD("cqg.rtd",,"StudyData", $I$2, "Bar", "", "Time", $H$3,$B27, $M$2, "", "","False") -> 2020-02-25 | Q27: =IF(RTD("cqg.rtd",,"StudyData", $I$2, "Bar", "", "Close", $H$3, $B27, $M$2,$L$2,,$J$2,$K$2)="",NA(),RTD("cqg.rtd",,"StudyData", $I$2, "Bar", "", "Close", $H$3, $B27, $M$2,$L$2,,$J$2,$K$2)) ->  | R27: 0 | T27: X.US.AWSPSUSMIONF | U27: All Wheat Stocks by Position On-farm 1000 bushels Michigan
A28: 6.001 | B28: -26 | C28: =RTD("cqg.rtd",,"StudyData", $I$2, "Bar", "", "Time", $H$2,$B28, $M$2, "", "","False") -> 2019-09-30 | D28: =IF(RTD("cqg.rtd",,"StudyData", $I$2, "Bar", "", "Close", $H$2, $B28, $M$2,$L$2,,$J$2,$K$2)="",NA(),RTD("cqg.rtd",,"StudyData", $I$2, "Bar", "", "Close", $H$2, $B28, $M$2,$L$2,,$J$2,$K$2)) ->  | E28: 0 | N28: 1.011 | O28: -26 | P28: =RTD("cqg.rtd",,"StudyData", $I$2, "Bar", "", "Time", $H$3,$B28, $M$2, "", "","False") -> 2020-02-24 | Q28: =IF(RTD("cqg.rtd",,"StudyData", $I$2, "Bar", "", "Close", $H$3, $B28, $M$2,$L$2,,$J$2,$K$2)="",NA(),RTD("cqg.rtd",,"StudyData", $I$2, "Bar", "", "Close", $H$3, $B28, $M$2,$L$2,,$J$2,$K$2)) ->  | R28: 0 | T28: X.US.AWSPSUSMITAP | U28: All Wheat Stocks by Position Total all pos. 1000 bushels Michigan
A29: 6.002 | B29: -27 | C29: =RTD("cqg.rtd",,"StudyData", $I$2, "Bar", "", "Time", $H$2,$B29, $M$2, "", "","False") -> 2019-09-23 | D29: =IF(RTD("cqg.rtd",,"StudyData", $I$2, "Bar", "", "Close", $H$2, $B29, $M$2,$L$2,,$J$2,$K$2)="",NA(),RTD("cqg.rtd",,"StudyData", $I$2, "Bar", "", "Close", $H$2, $B29, $M$2,$L$2,,$J$2,$K$2)) ->  | E29: 0 | N29: 1.012 | O29: -27 | P29: =RTD("cqg.rtd",,"StudyData", $I$2, "Bar", "", "Time", $H$3,$B29, $M$2, "", "","False") -> 2020-02-21 | Q29: =IF(RTD("cqg.rtd",,"StudyData", $I$2, "Bar", "", "Close", $H$3, $B29, $M$2,$L$2,,$J$2,$K$2)="",NA(),RTD("cqg.rtd",,"StudyData", $I$2, "Bar", "", "Close", $H$3, $B29, $M$2,$L$2,,$J$2,$K$2)) ->  | R29: 0 | T29: X.US.AWSPSUSMNOFF | U29: All Wheat Stocks by Position Off-farm 1000 bushels Minnesota
A30: 6.003 | B30: -28 | C30: =RTD("cqg.rtd",,"StudyData", $I$2, "Bar", "", "Time", $H$2,$B30, $M$2, "", "","False") -> 2019-09-16 | D30: =IF(RTD("cqg.rtd",,"StudyData", $I$2, "Bar", "", "Close", $H$2, $B30, $M$2,$L$2,,$J$2,$K$2)="",NA(),RTD("cqg.rtd",,"StudyData", $I$2, "Bar", "", "Close", $H$2, $B30, $M$2,$L$2,,$J$2,$K$2)) ->  | E30: 0 | N30: 1.013 | O30: -28 | P30: =RTD("cqg.rtd",,"StudyData", $I$2, "Bar", "", "Time", $H$3,$B30, $M$2, "", "","False") -> 2020-02-20 | Q30: =IF(RTD("cqg.rtd",,"StudyData", $I$2, "Bar", "", "Close", $H$3, $B30, $M$2,$L$2,,$J$2,$K$2)="",NA(),RTD("cqg.rtd",,"StudyData", $I$2, "Bar", "", "Close", $H$3, $B30, $M$2,$L$2,,$J$2,$K$2)) ->  | R30: 0 | T30: X.US.AWSPSUSMNONF | U30: All Wheat Stocks by Position On-farm 1000 bushels Minnesota
A31: 7 | B31: -29 | C31: =RTD("cqg.rtd",,"StudyData", $I$2, "Bar", "", "Time", $H$2,$B31, $M$2, "", "","False") -> 2019-09-09 | D31: =IF(RTD("cqg.rtd",,"StudyData", $I$2, "Bar", "", "Close", $H$2, $B31, $M$2,$L$2,,$J$2,$K$2)="",NA(),RTD("cqg.rtd",,"StudyData", $I$2, "Bar", "", "Close", $H$2, $B31, $M$2,$L$2,,$J$2,$K$2)) -> 4.81 | E31: 4.81 | N31: 1.014 | O31: -29 | P31: =RTD("cqg.rtd",,"StudyData", $I$2, "Bar", "", "Time", $H$3,$B31, $M$2, "", "","False") -> 2020-02-19 | Q31: =IF(RTD("cqg.rtd",,"StudyData", $I$2, "Bar", "", "Close", $H$3, $B31, $M$2,$L$2,,$J$2,$K$2)="",NA(),RTD("cqg.rtd",,"StudyData", $I$2, "Bar", "", "Close", $H$3, $B31, $M$2,$L$2,,$J$2,$K$2)) ->  | R31: 0 | T31: X.US.AWSPSUSMNTAP | U31: All Wheat Stocks by Position Total all pos. 1000 bushels Minnesota
A32: 7.001 | B32: -30 | C32: =RTD("cqg.rtd",,"StudyData", $I$2, "Bar", "", "Time", $H$2,$B32, $M$2, "", "","False") -> 2019-09-02 | D32: =IF(RTD("cqg.rtd",,"StudyData", $I$2, "Bar", "", "Close", $H$2, $B32, $M$2,$L$2,,$J$2,$K$2)="",NA(),RTD("cqg.rtd",,"StudyData", $I$2, "Bar", "", "Close", $H$2, $B32, $M$2,$L$2,,$J$2,$K$2)) ->  | E32: 0 | N32: 1.015 | O32: -30 | P32: =RTD("cqg.rtd",,"StudyData", $I$2, "Bar", "", "Time", $H$3,$B32, $M$2, "", "","False") -> 2020-02-18 | Q32: =IF(RTD("cqg.rtd",,"StudyData", $I$2, "Bar", "", "Close", $H$3, $B32, $M$2,$L$2,,$J$2,$K$2)="",NA(),RTD("cqg.rtd",,"StudyData", $I$2, "Bar", "", "Close", $H$3, $B32, $M$2,$L$2,,$J$2,$K$2)) ->  | R32: 0 | T32: X.US.AWSPSUSMOOFF | U32: All Wheat Stocks by Position Off-farm 1000 bushels Missouri
A33: 7.002 | B33: -31 | C33: =RTD("cqg.rtd",,"StudyData", $I$2, "Bar", "", "Time", $H$2,$B33, $M$2, "", "","False") -> 2019-08-26 | D33: =IF(RTD("cqg.rtd",,"StudyData", $I$2, "Bar", "", "Close", $H$2, $B33, $M$2,$L$2,,$J$2,$K$2)="",NA(),RTD("cqg.rtd",,"StudyData", $I$2, "Bar", "", "Close", $H$2, $B33, $M$2,$L$2,,$J$2,$K$2)) ->  | E33: 0 | N33: 1.016 | O33: -31 | P33: =RTD("cqg.rtd",,"StudyData", $I$2, "Bar", "", "Time", $H$3,$B33, $M$2, "", "","False") -> 2020-02-17 | Q33: =IF(RTD("cqg.rtd",,"StudyData", $I$2, "Bar", "", "Close", $H$3, $B33, $M$2,$L$2,,$J$2,$K$2)="",NA(),RTD("cqg.rtd",,"StudyData", $I$2, "Bar", "", "Close", $H$3, $B33, $M$2,$L$2,,$J$2,$K$2)) ->  | R33: 0 | T33: X.US.AWSPSUSMOONF | U33: All Wheat Stocks by Position On-farm 1000 bushels Missouri
A34: 7.003 | B34: -32 | C34: =RTD("cqg.rtd",,"StudyData", $I$2, "Bar", "", "Time", $H$2,$B34, $M$2, "", "","False") -> 2019-08-19 | D34: =IF(RTD("cqg.rtd",,"StudyData", $I$2, "Bar", "", "Close", $H$2, $B34, $M$2,$L$2,,$J$2,$K$2)="",NA(),RTD("cqg.rtd",,"StudyData", $I$2, "Bar", "", "Close", $H$2, $B34, $M$2,$L$2,,$J$2,$K$2)) ->  | E34: 0 | N34: 1.017 | O34: -32 | P34: =RTD("cqg.rtd",,"StudyData", $I$2, "Bar", "", "Time", $H$3,$B34, $M$2, "", "","False") -> 2020-02-14 | Q34: =IF(RTD("cqg.rtd",,"StudyData", $I$2, "Bar", "", "Close", $H$3, $B34, $M$2,$L$2,,$J$2,$K$2)="",NA(),RTD("cqg.rtd",,"StudyData", $I$2, "Bar", "", "Close", $H$3, $B34, $M$2,$L$2,,$J$2,$K$2)) ->  | R34: 0 | T34: X.US.AWSPSUSMOTAP | U34: All Wheat Stocks by Position Total all pos. 1000 bushels Missouri
A35: 8 | B35: -33 | C35: =RTD("cqg.rtd",,"StudyData", $I$2, "Bar", "", "Time", $H$2,$B35, $M$2, "", "","False") -> 2019-08-12 | D35: =IF(RTD("cqg.rtd",,"StudyData", $I$2, "Bar", "", "Close", $H$2, $B35, $M$2,$L$2,,$J$2,$K$2)="",NA(),RTD("cqg.rtd",,"StudyData", $I$2, "Bar", "", "Close", $H$2, $B35, $M$2,$L$2,,$J$2,$K$2)) -> 4.92 | E35: 4.92 | N35: 1.018 | O35: -33 | P35: =RTD("cqg.rtd",,"StudyData", $I$2, "Bar", "", "Time", $H$3,$B35, $M$2, "", "","False") -> 2020-02-13 | Q35: =IF(RTD("cqg.rtd",,"StudyData", $I$2, "Bar", "", "Close", $H$3, $B35, $M$2,$L$2,,$J$2,$K$2)="",NA(),RTD("cqg.rtd",,"StudyData", $I$2, "Bar", "", "Close", $H$3, $B35, $M$2,$L$2,,$J$2,$K$2)) ->  | R35: 0 | T35: X.US.AWSPSUSMSOFF | U35: All Wheat Stocks by Position Off-farm 1000 bushels Mississippi
A36: 8.001 | B36: -34 | C36: =RTD("cqg.rtd",,"StudyData", $I$2, "Bar", "", "Time", $H$2,$B36, $M$2, "", "","False") -> 2019-08-05 | D36: =IF(RTD("cqg.rtd",,"StudyData", $I$2, "Bar", "", "Close", $H$2, $B36, $M$2,$L$2,,$J$2,$K$2)="",NA(),RTD("cqg.rtd",,"StudyData", $I$2, "Bar", "", "Close", $H$2, $B36, $M$2,$L$2,,$J$2,$K$2)) ->  | E36: 0 | N36: 1.019 | O36: -34 | P36: =RTD("cqg.rtd",,"StudyData", $I$2, "Bar", "", "Time", $H$3,$B36, $M$2, "", "","False") -> 2020-02-12 | Q36: =IF(RTD("cqg.rtd",,"StudyData", $I$2, "Bar", "", "Close", $H$3, $B36, $M$2,$L$2,,$J$2,$K$2)="",NA(),RTD("cqg.rtd",,"StudyData", $I$2, "Bar", "", "Close", $H$3, $B36, $M$2,$L$2,,$J$2,$K$2)) ->  | R36: 0 | T36: X.US.AWSPSUSMSONF | U36: All Wheat Stocks by Position On-farm 1000 bushels Mississippi
A37: 8.002 | B37: -35 | C37: =RTD("cqg.rtd",,"StudyData", $I$2, "Bar", "", "Time", $H$2,$B37, $M$2, "", "","False") -> 2019-07-29 | D37: =IF(RTD("cqg.rtd",,"StudyData", $I$2, "Bar", "", "Close", $H$2, $B37, $M$2,$L$2,,$J$2,$K$2)="",NA(),RTD("cqg.rtd",,"StudyData", $I$2, "Bar", "", "Close", $H$2, $B37, $M$2,$L$2,,$J$2,$K$2)) ->  | E37: 0 | N37: 2 | O37: -35 | P37: =RTD("cqg.rtd",,"StudyData", $I$2, "Bar", "", "Time", $H$3,$B37, $M$2, "", "","False") -> 2020-02-11 | Q37: =IF(RTD("cqg.rtd",,"StudyData", $I$2, "Bar", "", "Close", $H$3, $B37, $M$2,$L$2,,$J$2,$K$2)="",NA(),RTD("cqg.rtd",,"StudyData", $I$2, "Bar", "", "Close", $H$3, $B37, $M$2,$L$2,,$J$2,$K$2)) -> 5.44 | R37: 5.44 | T37: X.US.AWSPSUSMSTAP | U37: All Wheat Stocks by Position Total all pos. 1000 bushels Mississippi
A38: 8.003 | B38: -36 | C38: =RTD("cqg.rtd",,"StudyData", $I$2, "Bar", "", "Time", $H$2,$B38, $M$2, "", "","False") -> 2019-07-22 | D38: =IF(RTD("cqg.rtd",,"StudyData", $I$2, "Bar", "", "Close", $H$2, $B38, $M$2,$L$2,,$J$2,$K$2)="",NA(),RTD("cqg.rtd",,"StudyData", $I$2, "Bar", "", "Close", $H$2, $B38, $M$2,$L$2,,$J$2,$K$2)) ->  | E38: 0 | N38: 2.001 | O38: -36 | P38: =RTD("cqg.rtd",,"StudyData", $I$2, "Bar", "", "Time", $H$3,$B38, $M$2, "", "","False") -> 2020-02-10 | Q38: =IF(RTD("cqg.rtd",,"StudyData", $I$2, "Bar", "", "Close", $H$3, $B38, $M$2,$L$2,,$J$2,$K$2)="",NA(),RTD("cqg.rtd",,"StudyData", $I$2, "Bar", "", "Close", $H$3, $B38, $M$2,$L$2,,$J$2,$K$2)) ->  | R38: 0 | T38: X.US.AWSPSUSMTOFF | U38: All Wheat Stocks by Position Off-farm 1000 bushels Montana
A39: 8.004 | B39: -37 | C39: =RTD("cqg.rtd",,"StudyData", $I$2, "Bar", "", "Time", $H$2,$B39, $M$2, "", "","False") -> 2019-07-15 | D39: =IF(RTD("cqg.rtd",,"StudyData", $I$2, "Bar", "", "Close", $H$2, $B39, $M$2,$L$2,,$J$2,$K$2)="",NA(),RTD("cqg.rtd",,"StudyData", $I$2, "Bar", "", "Close", $H$2, $B39, $M$2,$L$2,,$J$2,$K$2)) ->  | E39: 0 | N39: 2.002 | O39: -37 | P39: =RTD("cqg.rtd",,"StudyData", $I$2, "Bar", "", "Time", $H$3,$B39, $M$2, "", "","False") -> 2020-02-07 | Q39: =IF(RTD("cqg.rtd",,"StudyData", $I$2, "Bar", "", "Close", $H$3, $B39, $M$2,$L$2,,$J$2,$K$2)="",NA(),RTD("cqg.rtd",,"StudyData", $I$2, "Bar", "", "Close", $H$3, $B39, $M$2,$L$2,,$J$2,$K$2)) ->  | R39: 0 | T39: X.US.AWSPSUSMTONF | U39: All Wheat Stocks by Position On-farm 1000 bushels Montana
A40: 9 | B40: -38 | C40: =RTD("cqg.rtd",,"StudyData", $I$2, "Bar", "", "Time", $H$2,$B40, $M$2, "", "","False") -> 2019-07-08 | D40: =IF(RTD("cqg.rtd",,"StudyData", $I$2, "Bar", "", "Close", $H$2, $B40, $M$2,$L$2,,$J$2,$K$2)="",NA(),RTD("cqg.rtd",,"StudyData", $I$2, "Bar", "", "Close", $H$2, $B40, $M$2,$L$2,,$J$2,$K$2)) -> 4.78 | E40: 4.78 | N40: 2.003 | O40: -38 | P40: =RTD("cqg.rtd",,"StudyData", $I$2, "Bar", "", "Time", $H$3,$B40, $M$2, "", "","False") -> 2020-02-06 | Q40: =IF(RTD("cqg.rtd",,"StudyData", $I$2, "Bar", "", "Close", $H$3, $B40, $M$2,$L$2,,$J$2,$K$2)="",NA(),RTD("cqg.rtd",,"StudyData", $I$2, "Bar", "", "Close", $H$3, $B40, $M$2,$L$2,,$J$2,$K$2)) ->  | R40: 0 | T40: X.US.AWSPSUSMTTAP | U40: All Wheat Stocks by Position Total all pos. 1000 bushels Montana
A41: 9.001 | B41: -39 | C41: =RTD("cqg.rtd",,"StudyData", $I$2, "Bar", "", "Time", $H$2,$B41, $M$2, "", "","False") -> 2019-07-01 | D41: =IF(RTD("cqg.rtd",,"StudyData", $I$2, "Bar", "", "Close", $H$2, $B41, $M$2,$L$2,,$J$2,$K$2)="",NA(),RTD("cqg.rtd",,"StudyData", $I$2, "Bar", "", "Close", $H$2, $B41, $M$2,$L$2,,$J$2,$K$2)) ->  | E41: 0 | N41: 2.004 | O41: -39 | P41: =RTD("cqg.rtd",,"StudyData", $I$2, "Bar", "", "Time", $H$3,$B41, $M$2, "", "","False") -> 2020-02-05 | Q41: =IF(RTD("cqg.rtd",,"StudyData", $I$2, "Bar", "", "Close", $H$3, $B41, $M$2,$L$2,,$J$2,$K$2)="",NA(),RTD("cqg.rtd",,"StudyData", $I$2, "Bar", "", "Close", $H$3, $B41, $M$2,$L$2,,$J$2,$K$2)) ->  | R41: 0 | T41: X.US.AWSPSUSNCOFF | U41: All Wheat Stocks by Position Off-farm 1000 bushels North Carolina
A42: 9.002 | B42: -40 | C42: =RTD("cqg.rtd",,"StudyData", $I$2, "Bar", "", "Time", $H$2,$B42, $M$2, "", "","False") -> 2019-06-24 | D42: =IF(RTD("cqg.rtd",,"StudyData", $I$2, "Bar", "", "Close", $H$2, $B42, $M$2,$L$2,,$J$2,$K$2)="",NA(),RTD("cqg.rtd",,"StudyData", $I$2, "Bar", "", "Close", $H$2, $B42, $M$2,$L$2,,$J$2,$K$2)) ->  | E42: 0 | N42: 2.005 | O42: -40 | P42: =RTD("cqg.rtd",,"StudyData", $I$2, "Bar", "", "Time", $H$3,$B42, $M$2, "", "","False") -> 2020-02-04 | Q42: =IF(RTD("cqg.rtd",,"StudyData", $I$2, "Bar", "", "Close", $H$3, $B42, $M$2,$L$2,,$J$2,$K$2)="",NA(),RTD("cqg.rtd",,"StudyData", $I$2, "Bar", "", "Close", $H$3, $B42, $M$2,$L$2,,$J$2,$K$2)) ->  | R42: 0 | T42: X.US.AWSPSUSNCONF | U42: All Wheat Stocks by Position On-farm 1000 bushels North Carolina
A43: 9.003 | B43: -41 | C43: =RTD("cqg.rtd",,"StudyData", $I$2, "Bar", "", "Time", $H$2,$B43, $M$2, "", "","False") -> 2019-06-17 | D43: =IF(RTD("cqg.rtd",,"StudyData", $I$2, "Bar", "", "Close", $H$2, $B43, $M$2,$L$2,,$J$2,$K$2)="",NA(),RTD("cqg.rtd",,"StudyData", $I$2, "Bar", "", "Close", $H$2, $B43, $M$2,$L$2,,$J$2,$K$2)) ->  | E43: 0 | N43: 2.006 | O43: -41 | P43: =RTD("cqg.rtd",,"StudyData", $I$2, "Bar", "", "Time", $H$3,$B43, $M$2, "", "","False") -> 2020-02-03 | Q43: =IF(RTD("cqg.rtd",,"StudyData", $I$2, "Bar", "", "Close", $H$3, $B43, $M$2,$L$2,,$J$2,$K$2)="",NA(),RTD("cqg.rtd",,"StudyData", $I$2, "Bar", "", "Close", $H$3, $B43, $M$2,$L$2,,$J$2,$K$2)) ->  | R43: 0 | T43: X.US.AWSPSUSNCTAP | U43: All Wheat Stocks by Position Total all pos. 1000 bushels North Carolina
A44: 10 | B44: -42 | C44: =RTD("cqg.rtd",,"StudyData", $I$2, "Bar", "", "Time", $H$2,$B44, $M$2, "", "","False") -> 2019-06-10 | D44: =IF(RTD("cqg.rtd",,"StudyData", $I$2, "Bar", "", "Close", $H$2, $B44, $M$2,$L$2,,$J$2,$K$2)="",NA(),RTD("cqg.rtd",,"StudyData", $I$2, "Bar", "", "Close", $H$2, $B44, $M$2,$L$2,,$J$2,$K$2)) -> 5.08 | E44: 5.08 | N44: 2.007 | O44: -42 | P44: =RTD("cqg.rtd",,"StudyData", $I$2, "Bar", "", "Time", $H$3,$B44, $M$2, "", "","False") -> 2020-01-31 | Q44: =IF(RTD("cqg.rtd",,"StudyData", $I$2, "Bar", "", "Close", $H$3, $B44, $M$2,$L$2,,$J$2,$K$2)="",NA(),RTD("cqg.rtd",,"StudyData", $I$2, "Bar", "", "Close", $H$3, $B44, $M$2,$L$2,,$J$2,$K$2)) ->  | R44: 0 | T44: X.US.AWSPSUSNDOFF | U44: All Wheat Stocks by Position Off-farm 1000 bushels North Dakota
A45: 10.001 | B45: -43 | C45: =RTD("cqg.rtd",,"StudyData", $I$2, "Bar", "", "Time", $H$2,$B45, $M$2, "", "","False") -> 2019-06-03 | D45: =IF(RTD("cqg.rtd",,"StudyData", $I$2, "Bar", "", "Close", $H$2, $B45, $M$2,$L$2,,$J$2,$K$2)="",NA(),RTD("cqg.rtd",,"StudyData", $I$2, "Bar", "", "Close", $H$2, $B45, $M$2,$L$2,,$J$2,$K$2)) ->  | E45: 0 | N45: 2.008 | O45: -43 | P45: =RTD("cqg.rtd",,"StudyData", $I$2, "Bar", "", "Time", $H$3,$B45, $M$2, "", "","False") -> 2020-01-30 | Q45: =IF(RTD("cqg.rtd",,"StudyData", $I$2, "Bar", "", "Close", $H$3, $B45, $M$2,$L$2,,$J$2,$K$2)="",NA(),RTD("cqg.rtd",,"StudyData", $I$2, "Bar", "", "Close", $H$3, $B45, $M$2,$L$2,,$J$2,$K$2)) ->  | R45: 0 | T45: X.US.AWSPSUSNDONF | U45: All Wheat Stocks by Position On-farm 1000 bushels North Dakota
A46: 10.002 | B46: -44 | C46: =RTD("cqg.rtd",,"StudyData", $I$2, "Bar", "", "Time", $H$2,$B46, $M$2, "", "","False") -> 2019-05-27 | D46: =IF(RTD("cqg.rtd",,"StudyData", $I$2, "Bar", "", "Close", $H$2, $B46, $M$2,$L$2,,$J$2,$K$2)="",NA(),RTD("cqg.rtd",,"StudyData", $I$2, "Bar", "", "Close", $H$2, $B46, $M$2,$L$2,,$J$2,$K$2)) ->  | E46: 0 | N46: 2.009 | O46: -44 | P46: =RTD("cqg.rtd",,"StudyData", $I$2, "Bar", "", "Time", $H$3,$B46, $M$2, "", "","False") -> 2020-01-29 | Q46: =IF(RTD("cqg.rtd",,"StudyData", $I$2, "Bar", "", "Close", $H$3, $B46, $M$2,$L$2,,$J$2,$K$2)="",NA(),RTD("cqg.rtd",,"StudyData", $I$2, "Bar", "", "Close", $H$3, $B46, $M$2,$L$2,,$J$2,$K$2)) ->  | R46: 0 | T46: X.US.AWSPSUSNDTAP | U46: All Wheat Stocks by Position Total all pos. 1000 bushels North Dakota
A47: 10.003 | B47: -45 | C47: =RTD("cqg.rtd",,"StudyData", $I$2, "Bar", "", "Time", $H$2,$B47, $M$2, "", "","False") -> 2019-05-20 | D47: =IF(RTD("cqg.rtd",,"StudyData", $I$2, "Bar", "", "Close", $H$2, $B47, $M$2,$L$2,,$J$2,$K$2)="",NA(),RTD("cqg.rtd",,"StudyData", $I$2, "Bar", "", "Close", $H$2, $B47, $M$2,$L$2,,$J$2,$K$2)) ->  | E47: 0 | N47: 2.01 | O47: -45 | P47: =RTD("cqg.rtd",,"StudyData", $I$2, "Bar", "", "Time", $H$3,$B47, $M$2, "", "","False") -> 2020-01-28 | Q47: =IF(RTD("cqg.rtd",,"StudyData", $I$2, "Bar", "", "Close", $H$3, $B47, $M$2,$L$2,,$J$2,$K$2)="",NA(),RTD("cqg.rtd",,"StudyData", $I$2, "Bar", "", "Close", $H$3, $B47, $M$2,$L$2,,$J$2,$K$2)) ->  | R47: 0 | T47: X.US.AWSPSUSNEOFF | U47: All Wheat Stocks by Position Off-farm 1000 bushels Nebraska
A48: 10.004 | B48: -46 | C48: =RTD("cqg.rtd",,"StudyData", $I$2, "Bar", "", "Time", $H$2,$B48, $M$2, "", "","False") -> 2019-05-13 | D48: =IF(RTD("cqg.rtd",,"StudyData", $I$2, "Bar", "", "Close", $H$2, $B48, $M$2,$L$2,,$J$2,$K$2)="",NA(),RTD("cqg.rtd",,"StudyData", $I$2, "Bar", "", "Close", $H$2, $B48, $M$2,$L$2,,$J$2,$K$2)) ->  | E48: 0 | N48: 2.011 | O48: -46 | P48: =RTD("cqg.rtd",,"StudyData", $I$2, "Bar", "", "Time", $H$3,$B48, $M$2, "", "","False") -> 2020-01-27 | Q48: =IF(RTD("cqg.rtd",,"StudyData", $I$2, "Bar", "", "Close", $H$3, $B48, $M$2,$L$2,,$J$2,$K$2)="",NA(),RTD("cqg.rtd",,"StudyData", $I$2, "Bar", "", "Close", $H$3, $B48, $M$2,$L$2,,$J$2,$K$2)) ->  | R48: 0 | T48: X.US.AWSPSUSNEONF | U48: All Wheat Stocks by Position On-farm 1000 bushels Nebraska
A49: 11 | B49: -47 | C49: =RTD("cqg.rtd",,"StudyData", $I$2, "Bar", "", "Time", $H$2,$B49, $M$2, "", "","False") -> 2019-05-06 | D49: =IF(RTD("cqg.rtd",,"StudyData", $I$2, "Bar", "", "Close", $H$2, $B49, $M$2,$L$2,,$J$2,$K$2)="",NA(),RTD("cqg.rtd",,"StudyData", $I$2, "Bar", "", "Close", $H$2, $B49, $M$2,$L$2,,$J$2,$K$2)) -> 5.03 | E49: 5.03 | N49: 2.012 | O49: -47 | P49: =RTD("cqg.rtd",,"StudyData", $I$2, "Bar", "", "Time", $H$3,$B49, $M$2, "", "","False") -> 2020-01-24 | Q49: =IF(RTD("cqg.rtd",,"StudyData", $I$2, "Bar", "", "Close", $H$3, $B49, $M$2,$L$2,,$J$2,$K$2)="",NA(),RTD("cqg.rtd",,"StudyData", $I$2, "Bar", "", "Close", $H$3, $B49, $M$2,$L$2,,$J$2,$K$2)) ->  | R49: 0 | T49: X.US.AWSPSUSNETAP | U49: All Wheat Stocks by Position Total all pos. 1000 bushels Nebraska
A50: 11.001 | B50: -48 | C50: =RTD("cqg.rtd",,"StudyData", $I$2, "Bar", "", "Time", $H$2,$B50, $M$2, "", "","False") -> 2019-04-29 | D50: =IF(RTD("cqg.rtd",,"StudyData", $I$2, "Bar", "", "Close", $H$2, $B50, $M$2,$L$2,,$J$2,$K$2)="",NA(),RTD("cqg.rtd",,"StudyData", $I$2, "Bar", "", "Close", $H$2, $B50, $M$2,$L$2,,$J$2,$K$2)) ->  | E50: 0 | N50: 2.013 | O50: -48 | P50: =RTD("cqg.rtd",,"StudyData", $I$2, "Bar", "", "Time", $H$3,$B50, $M$2, "", "","False") -> 2020-01-23 | Q50: =IF(RTD("cqg.rtd",,"StudyData", $I$2, "Bar", "", "Close", $H$3, $B50, $M$2,$L$2,,$J$2,$K$2)="",NA(),RTD("cqg.rtd",,"StudyData", $I$2, "Bar", "", "Close", $H$3, $B50, $M$2,$L$2,,$J$2,$K$2)) ->  | R50: 0 | T50: X.US.AWSPSUSNGOFF | U50: All Wheat Stocks by Position Off-farm 1000 bushels New England
A51: 11.002 | B51: -49 | C51: =RTD("cqg.rtd",,"StudyData", $I$2, "Bar", "", "Time", $H$2,$B51, $M$2, "", "","False") -> 2019-04-22 | D51: =IF(RTD("cqg.rtd",,"StudyData", $I$2, "Bar", "", "Close", $H$2, $B51, $M$2,$L$2,,$J$2,$K$2)="",NA(),RTD("cqg.rtd",,"StudyData", $I$2, "Bar", "", "Close", $H$2, $B51, $M$2,$L$2,,$J$2,$K$2)) ->  | E51: 0 | N51: 2.014 | O51: -49 | P51: =RTD("cqg.rtd",,"StudyData", $I$2, "Bar", "", "Time", $H$3,$B51, $M$2, "", "","False") -> 2020-01-22 | Q51: =IF(RTD("cqg.rtd",,"StudyData", $I$2, "Bar", "", "Close", $H$3, $B51, $M$2,$L$2,,$J$2,$K$2)="",NA(),RTD("cqg.rtd",,"StudyData", $I$2, "Bar", "", "Close", $H$3, $B51, $M$2,$L$2,,$J$2,$K$2)) ->  | R51: 0 | T51: X.US.AWSPSUSNGONF | U51: All Wheat Stocks by Position On-farm 1000 bushels New England
A52: 11.003 | B52: -50 | C52: =RTD("cqg.rtd",,"StudyData", $I$2, "Bar", "", "Time", $H$2,$B52, $M$2, "", "","False") -> 2019-04-15 | D52: =IF(RTD("cqg.rtd",,"StudyData", $I$2, "Bar", "", "Close", $H$2, $B52, $M$2,$L$2,,$J$2,$K$2)="",NA(),RTD("cqg.rtd",,"StudyData", $I$2, "Bar", "", "Close", $H$2, $B52, $M$2,$L$2,,$J$2,$K$2)) ->  | E52: 0 | N52: 2.015 | O52: -50 | P52: =RTD("cqg.rtd",,"StudyData", $I$2, "Bar", "", "Time", $H$3,$B52, $M$2, "", "","False") -> 2020-01-21 | Q52: =IF(RTD("cqg.rtd",,"StudyData", $I$2, "Bar", "", "Close", $H$3, $B52, $M$2,$L$2,,$J$2,$K$2)="",NA(),RTD("cqg.rtd",,"StudyData", $I$2, "Bar", "", "Close", $H$3, $B52, $M$2,$L$2,,$J$2,$K$2)) ->  | R52: 0 | T52: X.US.AWSPSUSNGTAP | U52: All Wheat Stocks by Position Total all pos. 1000 bushels New England
A53: 12 | B53: -51 | C53: =RTD("cqg.rtd",,"StudyData", $I$2, "Bar", "", "Time", $H$2,$B53, $M$2, "", "","False") -> 2019-04-08 | D53: =IF(RTD("cqg.rtd",,"StudyData", $I$2, "Bar", "", "Close", $H$2, $B53, $M$2,$L$2,,$J$2,$K$2)="",NA(),RTD("cqg.rtd",,"StudyData", $I$2, "Bar", "", "Close", $H$2, $B53, $M$2,$L$2,,$J$2,$K$2)) -> 5.03 | E53: 5.03 | N53: 2.016 | O53: -51 | P53: =RTD("cqg.rtd",,"StudyData", $I$2, "Bar", "", "Time", $H$3,$B53, $M$2, "", "","False") -> 2020-01-20 | Q53: =IF(RTD("cqg.rtd",,"StudyData", $I$2, "Bar", "", "Close", $H$3, $B53, $M$2,$L$2,,$J$2,$K$2)="",NA(),RTD("cqg.rtd",,"StudyData", $I$2, "Bar", "", "Close", $H$3, $B53, $M$2,$L$2,,$J$2,$K$2)) ->  | R53: 0 | T53: X.US.AWSPSUSNHOFF | U53: All Wheat Stocks by Position Off-farm 1000 bushels New Hampshire
A54: 12.001 | B54: -52 | C54: =RTD("cqg.rtd",,"StudyData", $I$2, "Bar", "", "Time", $H$2,$B54, $M$2, "", "","False") -> 2019-04-01 | D54: =IF(RTD("cqg.rtd",,"StudyData", $I$2, "Bar", "", "Close", $H$2, $B54, $M$2,$L$2,,$J$2,$K$2)="",NA(),RTD("cqg.rtd",,"StudyData", $I$2, "Bar", "", "Close", $H$2, $B54, $M$2,$L$2,,$J$2,$K$2)) ->  | E54: 0 | N54: 2.017 | O54: -52 | P54: =RTD("cqg.rtd",,"StudyData", $I$2, "Bar", "", "Time", $H$3,$B54, $M$2, "", "","False") -> 2020-01-17 | Q54: =IF(RTD("cqg.rtd",,"StudyData", $I$2, "Bar", "", "Close", $H$3, $B54, $M$2,$L$2,,$J$2,$K$2)="",NA(),RTD("cqg.rtd",,"StudyData", $I$2, "Bar", "", "Close", $H$3, $B54, $M$2,$L$2,,$J$2,$K$2)) ->  | R54: 0 | T54: X.US.AWSPSUSNHONF | U54: All Wheat Stocks by Position On-farm 1000 bushels New Hampshire
A55: 12.002 | B55: -53 | C55: =RTD("cqg.rtd",,"StudyData", $I$2, "Bar", "", "Time", $H$2,$B55, $M$2, "", "","False") -> 2019-03-25 | D55: =IF(RTD("cqg.rtd",,"StudyData", $I$2, "Bar", "", "Close", $H$2, $B55, $M$2,$L$2,,$J$2,$K$2)="",NA(),RTD("cqg.rtd",,"StudyData", $I$2, "Bar", "", "Close", $H$2, $B55, $M$2,$L$2,,$J$2,$K$2)) ->  | E55: 0 | N55: 2.018 | O55: -53 | P55: =RTD("cqg.rtd",,"StudyData", $I$2, "Bar", "", "Time", $H$3,$B55, $M$2, "", "","False") -> 2020-01-16 | Q55: =IF(RTD("cqg.rtd",,"StudyData", $I$2, "Bar", "", "Close", $H$3, $B55, $M$2,$L$2,,$J$2,$K$2)="",NA(),RTD("cqg.rtd",,"StudyData", $I$2, "Bar", "", "Close", $H$3, $B55, $M$2,$L$2,,$J$2,$K$2)) ->  | R55: 0 | T55: X.US.AWSPSUSNHTAP | U55: All Wheat Stocks by Position Total all pos. 1000 bushels New Hampshire
A56: 12.003 | B56: -54 | C56: =RTD("cqg.rtd",,"StudyData", $I$2, "Bar", "", "Time", $H$2,$B56, $M$2, "", "","False") -> 2019-03-18 | D56: =IF(RTD("cqg.rtd",,"StudyData", $I$2, "Bar", "", "Close", $H$2, $B56, $M$2,$L$2,,$J$2,$K$2)="",NA(),RTD("cqg.rtd",,"StudyData", $I$2, "Bar", "", "Close", $H$2, $B56, $M$2,$L$2,,$J$2,$K$2)) ->  | E56: 0 | N56: 2.019 | O56: -54 | P56: =RTD("cqg.rtd",,"StudyData", $I$2, "Bar", "", "Time", $H$3,$B56, $M$2, "", "","False") -> 2020-01-15 | Q56: =IF(RTD("cqg.rtd",,"StudyData", $I$2, "Bar", "", "Close", $H$3, $B56, $M$2,$L$2,,$J$2,$K$2)="",NA(),RTD("cqg.rtd",,"StudyData", $I$2, "Bar", "", "Close", $H$3, $B56, $M$2,$L$2,,$J$2,$K$2)) ->  | R56: 0 | T56: X.US.AWSPSUSNJOFF | U56: All Wheat Stocks by Position Off-farm 1000 bushels New Jersey
A57: 12.004 | B57: -55 | C57: =RTD("cqg.rtd",,"StudyData", $I$2, "Bar", "", "Time", $H$2,$B57, $M$2, "", "","False") -> 2019-03-11 | D57: =IF(RTD("cqg.rtd",,"StudyData", $I$2, "Bar", "", "Close", $H$2, $B57, $M$2,$L$2,,$J$2,$K$2)="",NA(),RTD("cqg.rtd",,"StudyData", $I$2, "Bar", "", "Close", $H$2, $B57, $M$2,$L$2,,$J$2,$K$2)) ->  | E57: 0 | N57: 2.02 | O57: -55 | P57: =RTD("cqg.rtd",,"StudyData", $I$2, "Bar", "", "Time", $H$3,$B57, $M$2, "", "","False") -> 2020-01-14 | Q57: =IF(RTD("cqg.rtd",,"StudyData", $I$2, "Bar", "", "Close", $H$3, $B57, $M$2,$L$2,,$J$2,$K$2)="",NA(),RTD("cqg.rtd",,"StudyData", $I$2, "Bar", "", "Close", $H$3, $B57, $M$2,$L$2,,$J$2,$K$2)) ->  | R57: 0 | T57: X.US.AWSPSUSNJONF | U57: All Wheat Stocks by Position On-farm 1000 bushels New Jersey
A58: 13 | B58: -56 | C58: =RTD("cqg.rtd",,"StudyData", $I$2, "Bar", "", "Time", $H$2,$B58, $M$2, "", "","False") -> 2019-03-04 | D58: =IF(RTD("cqg.rtd",,"StudyData", $I$2, "Bar", "", "Close", $H$2, $B58, $M$2,$L$2,,$J$2,$K$2)="",NA(),RTD("cqg.rtd",,"StudyData", $I$2, "Bar", "", "Close", $H$2, $B58, $M$2,$L$2,,$J$2,$K$2)) -> 5.03 | E58: 5.03 | N58: 2.021 | O58: -56 | P58: =RTD("cqg.rtd",,"StudyData", $I$2, "Bar", "", "Time", $H$3,$B58, $M$2, "", "","False") -> 2020-01-13 | Q58: =IF(RTD("cqg.rtd",,"StudyData", $I$2, "Bar", "", "Close", $H$3, $B58, $M$2,$L$2,,$J$2,$K$2)="",NA(),RTD("cqg.rtd",,"StudyData", $I$2, "Bar", "", "Close", $H$3, $B58, $M$2,$L$2,,$J$2,$K$2)) ->  | R58: 0 | T58: X.US.AWSPSUSNJTAP | U58: All Wheat Stocks by Position Total all pos. 1000 bushels New Jersey
A59: 13.001 | B59: -57 | C59: =RTD("cqg.rtd",,"StudyData", $I$2, "Bar", "", "Time", $H$2,$B59, $M$2, "", "","False") -> 2019-02-25 | D59: =IF(RTD("cqg.rtd",,"StudyData", $I$2, "Bar", "", "Close", $H$2, $B59, $M$2,$L$2,,$J$2,$K$2)="",NA(),RTD("cqg.rtd",,"StudyData", $I$2, "Bar", "", "Close", $H$2, $B59, $M$2,$L$2,,$J$2,$K$2)) ->  | E59: 0 | N59: 3 | O59: -57 | P59: =RTD("cqg.rtd",,"StudyData", $I$2, "Bar", "", "Time", $H$3,$B59, $M$2, "", "","False") -> 2020-01-10 | Q59: =IF(RTD("cqg.rtd",,"StudyData", $I$2, "Bar", "", "Close", $H$3, $B59, $M$2,$L$2,,$J$2,$K$2)="",NA(),RTD("cqg.rtd",,"StudyData", $I$2, "Bar", "", "Close", $H$3, $B59, $M$2,$L$2,,$J$2,$K$2)) -> 4.92 | R59: 4.92 | T59: X.US.AWSPSUSNMOFF | U59: All Wheat Stocks by Position Off-farm 1000 bushels New Mexico
A60: 13.002 | B60: -58 | C60: =RTD("cqg.rtd",,"StudyData", $I$2, "Bar", "", "Time", $H$2,$B60, $M$2, "", "","False") -> 2019-02-18 | D60: =IF(RTD("cqg.rtd",,"StudyData", $I$2, "Bar", "", "Close", $H$2, $B60, $M$2,$L$2,,$J$2,$K$2)="",NA(),RTD("cqg.rtd",,"StudyData", $I$2, "Bar", "", "Close", $H$2, $B60, $M$2,$L$2,,$J$2,$K$2)) ->  | E60: 0 | N60: 3.001 | O60: -58 | P60: =RTD("cqg.rtd",,"StudyData", $I$2, "Bar", "", "Time", $H$3,$B60, $M$2, "", "","False") -> 2020-01-09 | Q60: =IF(RTD("cqg.rtd",,"StudyData", $I$2, "Bar", "", "Close", $H$3, $B60, $M$2,$L$2,,$J$2,$K$2)="",NA(),RTD("cqg.rtd",,"StudyData", $I$2, "Bar", "", "Close", $H$3, $B60, $M$2,$L$2,,$J$2,$K$2)) ->  | R60: 0 | T60: X.US.AWSPSUSNMONF | U60: All Wheat Stocks by Position On-farm 1000 bushels New Mexico
A61: 13.003 | B61: -59 | C61: =RTD("cqg.rtd",,"StudyData", $I$2, "Bar", "", "Time", $H$2,$B61, $M$2, "", "","False") -> 2019-02-11 | D61: =IF(RTD("cqg.rtd",,"StudyData", $I$2, "Bar", "", "Close", $H$2, $B61, $M$2,$L$2,,$J$2,$K$2)="",NA(),RTD("cqg.rtd",,"StudyData", $I$2, "Bar", "", "Close", $H$2, $B61, $M$2,$L$2,,$J$2,$K$2)) ->  | E61: 0 | N61: 3.002 | O61: -59 | P61: =RTD("cqg.rtd",,"StudyData", $I$2, "Bar", "", "Time", $H$3,$B61, $M$2, "", "","False") -> 2020-01-08 | Q61: =IF(RTD("cqg.rtd",,"StudyData", $I$2, "Bar", "", "Close", $H$3, $B61, $M$2,$L$2,,$J$2,$K$2)="",NA(),RTD("cqg.rtd",,"StudyData", $I$2, "Bar", "", "Close", $H$3, $B61, $M$2,$L$2,,$J$2,$K$2)) ->  | R61: 0 | T61: X.US.AWSPSUSNMTAP | U61: All Wheat Stocks by Position Total all pos. 1000 bushels New Mexico
A62: 14 | B62: -60 | C62: =RTD("cqg.rtd",,"StudyData", $I$2, "Bar", "", "Time", $H$2,$B62, $M$2, "", "","False") -> 2019-02-04 | D62: =IF(RTD("cqg.rtd",,"StudyData", $I$2, "Bar", "", "Close", $H$2, $B62, $M$2,$L$2,,$J$2,$K$2)="",NA(),RTD("cqg.rtd",,"StudyData", $I$2, "Bar", "", "Close", $H$2, $B62, $M$2,$L$2,,$J$2,$K$2)) -> 5.03 | E62: 5.03 | N62: 3.003 | O62: -60 | P62: =RTD("cqg.rtd",,"StudyData", $I$2, "Bar", "", "Time", $H$3,$B62, $M$2, "", "","False") -> 2020-01-07 | Q62: =IF(RTD("cqg.rtd",,"StudyData", $I$2, "Bar", "", "Close", $H$3, $B62, $M$2,$L$2,,$J$2,$K$2)="",NA(),RTD("cqg.rtd",,"StudyData", $I$2, "Bar", "", "Close", $H$3, $B62, $M$2,$L$2,,$J$2,$K$2)) ->  | R62: 0 | T62: X.US.AWSPSUSNVOFF | U62: All Wheat Stocks by Position Off-farm 1000 bushels Nevada
A63: 14.001 | B63: -61 | C63: =RTD("cqg.rtd",,"StudyData", $I$2, "Bar", "", "Time", $H$2,$B63, $M$2, "", "","False") -> 2019-01-28 | D63: =IF(RTD("cqg.rtd",,"StudyData", $I$2, "Bar", "", "Close", $H$2, $B63, $M$2,$L$2,,$J$2,$K$2)="",NA(),RTD("cqg.rtd",,"StudyData", $I$2, "Bar", "", "Close", $H$2, $B63, $M$2,$L$2,,$J$2,$K$2)) ->  | E63: 0 | N63: 3.004 | O63: -61 | P63: =RTD("cqg.rtd",,"StudyData", $I$2, "Bar", "", "Time", $H$3,$B63, $M$2, "", "","False") -> 2020-01-06 | Q63: =IF(RTD("cqg.rtd",,"StudyData", $I$2, "Bar", "", "Close", $H$3, $B63, $M$2,$L$2,,$J$2,$K$2)="",NA(),RTD("cqg.rtd",,"StudyData", $I$2, "Bar", "", "Close", $H$3, $B63, $M$2,$L$2,,$J$2,$K$2)) ->  | R63: 0 | T63: X.US.AWSPSUSNVONF | U63: All Wheat Stocks by Position On-farm 1000 bushels Nevada
A64: 14.002 | B64: -62 | C64: =RTD("cqg.rtd",,"StudyData", $I$2, "Bar", "", "Time", $H$2,$B64, $M$2, "", "","False") -> 2019-01-21 | D64: =IF(RTD("cqg.rtd",,"StudyData", $I$2, "Bar", "", "Close", $H$2, $B64, $M$2,$L$2,,$J$2,$K$2)="",NA(),RTD("cqg.rtd",,"StudyData", $I$2, "Bar", "", "Close", $H$2, $B64, $M$2,$L$2,,$J$2,$K$2)) ->  | E64: 0 | N64: 3.005 | O64: -62 | P64: =RTD("cqg.rtd",,"StudyData", $I$2, "Bar", "", "Time", $H$3,$B64, $M$2, "", "","False") -> 2020-01-03 | Q64: =IF(RTD("cqg.rtd",,"StudyData", $I$2, "Bar", "", "Close", $H$3, $B64, $M$2,$L$2,,$J$2,$K$2)="",NA(),RTD("cqg.rtd",,"StudyData", $I$2, "Bar", "", "Close", $H$3, $B64, $M$2,$L$2,,$J$2,$K$2)) ->  | R64: 0 | T64: X.US.AWSPSUSNVTAP | U64: All Wheat Stocks by Position Total all pos. 1000 bushels Nevada
A65: 14.003 | B65: -63 | C65: =RTD("cqg.rtd",,"StudyData", $I$2, "Bar", "", "Time", $H$2,$B65, $M$2, "", "","False") -> 2019-01-14 | D65: =IF(RTD("cqg.rtd",,"StudyData", $I$2, "Bar", "", "Close", $H$2, $B65, $M$2,$L$2,,$J$2,$K$2)="",NA(),RTD("cqg.rtd",,"StudyData", $I$2, "Bar", "", "Close", $H$2, $B65, $M$2,$L$2,,$J$2,$K$2)) ->  | E65: 0 | N65: 3.006 | O65: -63 | P65: =RTD("cqg.rtd",,"StudyData", $I$2, "Bar", "", "Time", $H$3,$B65, $M$2, "", "","False") -> 2020-01-02 | Q65: =IF(RTD("cqg.rtd",,"StudyData", $I$2, "Bar", "", "Close", $H$3, $B65, $M$2,$L$2,,$J$2,$K$2)="",NA(),RTD("cqg.rtd",,"StudyData", $I$2, "Bar", "", "Close", $H$3, $B65, $M$2,$L$2,,$J$2,$K$2)) ->  | R65: 0 | T65: X.US.AWSPSUSNYOFF | U65: All Wheat Stocks by Position Off-farm 1000 bushels New York
A66: 14.004 | B66: -64 | C66: =RTD("cqg.rtd",,"StudyData", $I$2, "Bar", "", "Time", $H$2,$B66, $M$2, "", "","False") -> 2019-01-07 | D66: =IF(RTD("cqg.rtd",,"StudyData", $I$2, "Bar", "", "Close", $H$2, $B66, $M$2,$L$2,,$J$2,$K$2)="",NA(),RTD("cqg.rtd",,"StudyData", $I$2, "Bar", "", "Close", $H$2, $B66, $M$2,$L$2,,$J$2,$K$2)) ->  | E66: 0 | N66: 3.007 | O66: -64 | P66: =RTD("cqg.rtd",,"StudyData", $I$2, "Bar", "", "Time", $H$3,$B66, $M$2, "", "","False") -> 2020-01-01 | Q66: =IF(RTD("cqg.rtd",,"StudyData", $I$2, "Bar", "", "Close", $H$3, $B66, $M$2,$L$2,,$J$2,$K$2)="",NA(),RTD("cqg.rtd",,"StudyData", $I$2, "Bar", "", "Close", $H$3, $B66, $M$2,$L$2,,$J$2,$K$2)) ->  | R66: 0 | T66: X.US.AWSPSUSNYONF | U66: All Wheat Stocks by Position On-farm 1000 bushels New York
A67: 14.005 | B67: -65 | C67: =RTD("cqg.rtd",,"StudyData", $I$2, "Bar", "", "Time", $H$2,$B67, $M$2, "", "","False") -> 2018-12-31 | D67: =IF(RTD("cqg.rtd",,"StudyData", $I$2, "Bar", "", "Close", $H$2, $B67, $M$2,$L$2,,$J$2,$K$2)="",NA(),RTD("cqg.rtd",,"StudyData", $I$2, "Bar", "", "Close", $H$2, $B67, $M$2,$L$2,,$J$2,$K$2)) ->  | E67: =IFERROR(D67,0) -> 0 | N67: 3.008 | O67: -65 | P67: =RTD("cqg.rtd",,"StudyData", $I$2, "Bar", "", "Time", $H$3,$B67, $M$2, "", "","False") -> 2019-12-31 | Q67: =IF(RTD("cqg.rtd",,"StudyData", $I$2, "Bar", "", "Close", $H$3, $B67, $M$2,$L$2,,$J$2,$K$2)="",NA(),RTD("cqg.rtd",,"StudyData", $I$2, "Bar", "", "Close", $H$3, $B67, $M$2,$L$2,,$J$2,$K$2)) ->  | R67: 0 | T67: X.US.AWSPSUSNYTAP | U67: All Wheat Stocks by Position Total all pos. 1000 bushels New York
A68: =IF(E68=0,A67+0.001,TRUNC(A67)+1) -> 14.006 | B68: =B67-1 -> -66 | C68: =RTD("cqg.rtd",,"StudyData", $I$2, "Bar", "", "Time", $H$2,$B68, $M$2, "", "","False") -> 2018-12-24 | D68: =IF(RTD("cqg.rtd",,"StudyData", $I$2, "Bar", "", "Close", $H$2, $B68, $M$2,$L$2,,$J$2,$K$2)="",NA(),RTD("cqg.rtd",,"StudyData", $I$2, "Bar", "", "Close", $H$2, $B68, $M$2,$L$2,,$J$2,$K$2)) ->  | E68: 0 | N68: 3.009 | O68: =O67-1 -> -66 | P68: =RTD("cqg.rtd",,"StudyData", $I$2, "Bar", "", "Time", $H$3,$B68, $M$2, "", "","False") -> 2019-12-30 | Q68: =IF(RTD("cqg.rtd",,"StudyData", $I$2, "Bar", "", "Close", $H$3, $B68, $M$2,$L$2,,$J$2,$K$2)="",NA(),RTD("cqg.rtd",,"StudyData", $I$2, "Bar", "", "Close", $H$3, $B68, $M$2,$L$2,,$J$2,$K$2)) ->  | R68: 0 | T68: X.US.AWSPSUSOHOFF | U68: All Wheat Stocks by Position Off-farm 1000 bushels Ohio
A69: 14.007 | B69: -67 | C69: =RTD("cqg.rtd",,"StudyData", $I$2, "Bar", "", "Time", $H$2,$B69, $M$2, "", "","False") -> 2018-12-17 | D69: =IF(RTD("cqg.rtd",,"StudyData", $I$2, "Bar", "", "Close", $H$2, $B69, $M$2,$L$2,,$J$2,$K$2)="",NA(),RTD("cqg.rtd",,"StudyData", $I$2, "Bar", "", "Close", $H$2, $B69, $M$2,$L$2,,$J$2,$K$2)) ->  | E69: 0 | N69: 3.01 | O69: -67 | P69: =RTD("cqg.rtd",,"StudyData", $I$2, "Bar", "", "Time", $H$3,$B69, $M$2, "", "","False") -> 2019-12-27 | Q69: =IF(RTD("cqg.rtd",,"StudyData", $I$2, "Bar", "", "Close", $H$3, $B69, $M$2,$L$2,,$J$2,$K$2)="",NA(),RTD("cqg.rtd",,"StudyData", $I$2, "Bar", "", "Close", $H$3, $B69, $M$2,$L$2,,$J$2,$K$2)) ->  | R69: 0 | T69: X.US.AWSPSUSOHONF | U69: All Wheat Stocks by Position On-farm 1000 bushels Ohio
A70: 15 | B70: -68 | C70: =RTD("cqg.rtd",,"StudyData", $I$2, "Bar", "", "Time", $H$2,$B70, $M$2, "", "","False") -> 2018-12-10 | D70: =IF(RTD("cqg.rtd",,"StudyData", $I$2, "Bar", "", "Close", $H$2, $B70, $M$2,$L$2,,$J$2,$K$2)="",NA(),RTD("cqg.rtd",,"StudyData", $I$2, "Bar", "", "Close", $H$2, $B70, $M$2,$L$2,,$J$2,$K$2)) -> 5.03 | E70: 5.03 | N70: 3.011 | O70: -68 | P70: =RTD("cqg.rtd",,"StudyData", $I$2, "Bar", "", "Time", $H$3,$B70, $M$2, "", "","False") -> 2019-12-26 | Q70: =IF(RTD("cqg.rtd",,"StudyData", $I$2, "Bar", "", "Close", $H$3, $B70, $M$2,$L$2,,$J$2,$K$2)="",NA(),RTD("cqg.rtd",,"StudyData", $I$2, "Bar", "", "Close", $H$3, $B70, $M$2,$L$2,,$J$2,$K$2)) ->  | R70: 0 | T70: X.US.AWSPSUSOHTAP | U70: All Wheat Stocks by Position Total all pos. 1000 bushels Ohio
A71: 15.001 | B71: -69 | C71: =RTD("cqg.rtd",,"StudyData", $I$2, "Bar", "", "Time", $H$2,$B71, $M$2, "", "","False") -> 2018-12-03 | D71: =IF(RTD("cqg.rtd",,"StudyData", $I$2, "Bar", "", "Close", $H$2, $B71, $M$2,$L$2,,$J$2,$K$2)="",NA(),RTD("cqg.rtd",,"StudyData", $I$2, "Bar", "", "Close", $H$2, $B71, $M$2,$L$2,,$J$2,$K$2)) ->  | E71: 0 | N71: 3.012 | O71: -69 | P71: =RTD("cqg.rtd",,"StudyData", $I$2, "Bar", "", "Time", $H$3,$B71, $M$2, "", "","False") -> 2019-12-25 | Q71: =IF(RTD("cqg.rtd",,"StudyData", $I$2, "Bar", "", "Close", $H$3, $B71, $M$2,$L$2,,$J$2,$K$2)="",NA(),RTD("cqg.rtd",,"StudyData", $I$2, "Bar", "", "Close", $H$3, $B71, $M$2,$L$2,,$J$2,$K$2)) ->  | R71: 0 | T71: X.US.AWSPSUSOKOFF | U71: All Wheat Stocks by Position Off-farm 1000 bushels Oklahoma
A72: 15.002 | B72: -70 | C72: =RTD("cqg.rtd",,"StudyData", $I$2, "Bar", "", "Time", $H$2,$B72, $M$2, "", "","False") -> 2018-11-26 | D72: =IF(RTD("cqg.rtd",,"StudyData", $I$2, "Bar", "", "Close", $H$2, $B72, $M$2,$L$2,,$J$2,$K$2)="",NA(),RTD("cqg.rtd",,"StudyData", $I$2, "Bar", "", "Close", $H$2, $B72, $M$2,$L$2,,$J$2,$K$2)) ->  | E72: 0 | N72: 3.013 | O72: -70 | P72: =RTD("cqg.rtd",,"StudyData", $I$2, "Bar", "", "Time", $H$3,$B72, $M$2, "", "","False") -> 2019-12-24 | Q72: =IF(RTD("cqg.rtd",,"StudyData", $I$2, "Bar", "", "Close", $H$3, $B72, $M$2,$L$2,,$J$2,$K$2)="",NA(),RTD("cqg.rtd",,"StudyData", $I$2, "Bar", "", "Close", $H$3, $B72, $M$2,$L$2,,$J$2,$K$2)) ->  | R72: 0 | T72: X.US.AWSPSUSOKONF | U72: All Wheat Stocks by Position On-farm 1000 bushels Oklahoma
A73: 15.003 | B73: -71 | C73: =RTD("cqg.rtd",,"StudyData", $I$2, "Bar", "", "Time", $H$2,$B73, $M$2, "", "","False") -> 2018-11-19 | D73: =IF(RTD("cqg.rtd",,"StudyData", $I$2, "Bar", "", "Close", $H$2, $B73, $M$2,$L$2,,$J$2,$K$2)="",NA(),RTD("cqg.rtd",,"StudyData", $I$2, "Bar", "", "Close", $H$2, $B73, $M$2,$L$2,,$J$2,$K$2)) ->  | E73: 0 | N73: 3.014 | O73: -71 | P73: =RTD("cqg.rtd",,"StudyData", $I$2, "Bar", "", "Time", $H$3,$B73, $M$2, "", "","False") -> 2019-12-23 | Q73: =IF(RTD("cqg.rtd",,"StudyData", $I$2, "Bar", "", "Close", $H$3, $B73, $M$2,$L$2,,$J$2,$K$2)="",NA(),RTD("cqg.rtd",,"StudyData", $I$2, "Bar", "", "Close", $H$3, $B73, $M$2,$L$2,,$J$2,$K$2)) ->  | R73: 0 | T73: X.US.AWSPSUSOKTAP | U73: All Wheat Stocks by Position Total all pos. 1000 bushels Oklahoma
A74: 15.004 | B74: -72 | C74: =RTD("cqg.rtd",,"StudyData", $I$2, "Bar", "", "Time", $H$2,$B74, $M$2, "", "","False") -> 2018-11-12 | D74: =IF(RTD("cqg.rtd",,"StudyData", $I$2, "Bar", "", "Close", $H$2, $B74, $M$2,$L$2,,$J$2,$K$2)="",NA(),RTD("cqg.rtd",,"StudyData", $I$2, "Bar", "", "Close", $H$2, $B74, $M$2,$L$2,,$J$2,$K$2)) ->  | E74: 0 | N74: 3.015 | O74: -72 | P74: =RTD("cqg.rtd",,"StudyData", $I$2, "Bar", "", "Time", $H$3,$B74, $M$2, "", "","False") -> 2019-12-20 | Q74: =IF(RTD("cqg.rtd",,"StudyData", $I$2, "Bar", "", "Close", $H$3, $B74, $M$2,$L$2,,$J$2,$K$2)="",NA(),RTD("cqg.rtd",,"StudyData", $I$2, "Bar", "", "Close", $H$3, $B74, $M$2,$L$2,,$J$2,$K$2)) ->  | R74: 0 | T74: X.US.AWSPSUSOROFF | U74: All Wheat Stocks by Position Off-farm 1000 bushels Oregon
A75: 16 | B75: -73 | C75: =RTD("cqg.rtd",,"StudyData", $I$2, "Bar", "", "Time", $H$2,$B75, $M$2, "", "","False") -> 2018-11-05 | D75: =IF(RTD("cqg.rtd",,"StudyData", $I$2, "Bar", "", "Close", $H$2, $B75, $M$2,$L$2,,$J$2,$K$2)="",NA(),RTD("cqg.rtd",,"StudyData", $I$2, "Bar", "", "Close", $H$2, $B75, $M$2,$L$2,,$J$2,$K$2)) -> 5.03 | E75: 5.03 | N75: 3.016 | O75: -73 | P75: =RTD("cqg.rtd",,"StudyData", $I$2, "Bar", "", "Time", $H$3,$B75, $M$2, "", "","False") -> 2019-12-19 | Q75: =IF(RTD("cqg.rtd",,"StudyData", $I$2, "Bar", "", "Close", $H$3, $B75, $M$2,$L$2,,$J$2,$K$2)="",NA(),RTD("cqg.rtd",,"StudyData", $I$2, "Bar", "", "Close", $H$3, $B75, $M$2,$L$2,,$J$2,$K$2)) ->  | R75: 0 | T75: X.US.AWSPSUSORONF | U75: All Wheat Stocks by Position On-farm 1000 bushels Oregon
A76: 16.001 | B76: -74 | C76: =RTD("cqg.rtd",,"StudyData", $I$2, "Bar", "", "Time", $H$2,$B76, $M$2, "", "","False") -> 2018-10-29 | D76: =IF(RTD("cqg.rtd",,"StudyData", $I$2, "Bar", "", "Close", $H$2, $B76, $M$2,$L$2,,$J$2,$K$2)="",NA(),RTD("cqg.rtd",,"StudyData", $I$2, "Bar", "", "Close", $H$2, $B76, $M$2,$L$2,,$J$2,$K$2)) ->  | E76: 0 | N76: =IF(R76=0,N75+0.001,TRUNC(N75)+1) -> 3.017 | O76: -74 | P76: =RTD("cqg.rtd",,"StudyData", $I$2, "Bar", "", "Time", $H$3,$B76, $M$2, "", "","False") -> 2019-12-18 | Q76: =IF(RTD("cqg.rtd",,"StudyData", $I$2, "Bar", "", "Close", $H$3, $B76, $M$2,$L$2,,$J$2,$K$2)="",NA(),RTD("cqg.rtd",,"StudyData", $I$2, "Bar", "", "Close", $H$3, $B76, $M$2,$L$2,,$J$2,$K$2)) ->  | R76: =IFERROR(Q76,0) -> 0 | T76: X.US.AWSPSUSORTAP | U76: All Wheat Stocks by Position Total all pos. 1000 bushels Oregon
A77: 16.002 | B77: -75 | C77: =RTD("cqg.rtd",,"StudyData", $I$2, "Bar", "", "Time", $H$2,$B77, $M$2, "", "","False") -> 2018-10-22 | D77: =IF(RTD("cqg.rtd",,"StudyData", $I$2, "Bar", "", "Close", $H$2, $B77, $M$2,$L$2,,$J$2,$K$2)="",NA(),RTD("cqg.rtd",,"StudyData", $I$2, "Bar", "", "Close", $H$2, $B77, $M$2,$L$2,,$J$2,$K$2)) ->  | E77: 0 | N77: 3.018 | O77: -75 | P77: =RTD("cqg.rtd",,"StudyData", $I$2, "Bar", "", "Time", $H$3,$B77, $M$2, "", "","False") -> 2019-12-17 | Q77: =IF(RTD("cqg.rtd",,"StudyData", $I$2, "Bar", "", "Close", $H$3, $B77, $M$2,$L$2,,$J$2,$K$2)="",NA(),RTD("cqg.rtd",,"StudyData", $I$2, "Bar", "", "Close", $H$3, $B77, $M$2,$L$2,,$J$2,$K$2)) ->  | R77: 0 | T77: X.US.AWSPSUSPAOFF | U77: All Wheat Stocks by Position Off-farm 1000 bushels Pennsylvania
A78: 16.003 | B78: -76 | C78: =RTD("cqg.rtd",,"StudyData", $I$2, "Bar", "", "Time", $H$2,$B78, $M$2, "", "","False") -> 2018-10-15 | D78: =IF(RTD("cqg.rtd",,"StudyData", $I$2, "Bar", "", "Close", $H$2, $B78, $M$2,$L$2,,$J$2,$K$2)="",NA(),RTD("cqg.rtd",,"StudyData", $I$2, "Bar", "", "Close", $H$2, $B78, $M$2,$L$2,,$J$2,$K$2)) ->  | E78: 0 | N78: 3.019 | O78: -76 | P78: =RTD("cqg.rtd",,"StudyData", $I$2, "Bar", "", "Time", $H$3,$B78, $M$2, "", "","False") -> 2019-12-16 | Q78: =IF(RTD("cqg.rtd",,"StudyData", $I$2, "Bar", "", "Close", $H$3, $B78, $M$2,$L$2,,$J$2,$K$2)="",NA(),RTD("cqg.rtd",,"StudyData", $I$2, "Bar", "", "Close", $H$3, $B78, $M$2,$L$2,,$J$2,$K$2)) ->  | R78: 0 | T78: X.US.AWSPSUSPAONF | U78: All Wheat Stocks by Position On-farm 1000 bushels Pennsylvania
A79: 17 | B79: -77 | C79: =RTD("cqg.rtd",,"StudyData", $I$2, "Bar", "", "Time", $H$2,$B79, $M$2, "", "","False") -> 2018-10-08 | D79: =IF(RTD("cqg.rtd",,"StudyData", $I$2, "Bar", "", "Close", $H$2, $B79, $M$2,$L$2,,$J$2,$K$2)="",NA(),RTD("cqg.rtd",,"StudyData", $I$2, "Bar", "", "Close", $H$2, $B79, $M$2,$L$2,,$J$2,$K$2)) -> 5.03 | E79: 5.03 | N79: 3.02 | O79: -77 | P79: =RTD("cqg.rtd",,"StudyData", $I$2, "Bar", "", "Time", $H$3,$B79, $M$2, "", "","False") -> 2019-12-13 | Q79: =IF(RTD("cqg.rtd",,"StudyData", $I$2, "Bar", "", "Close", $H$3, $B79, $M$2,$L$2,,$J$2,$K$2)="",NA(),RTD("cqg.rtd",,"StudyData", $I$2, "Bar", "", "Close", $H$3, $B79, $M$2,$L$2,,$J$2,$K$2)) ->  | R79: 0 | T79: X.US.AWSPSUSPATAP | U79: All Wheat Stocks by Position Total all pos. 1000 bushels Pennsylvania
A80: 17.001 | B80: -78 | C80: =RTD("cqg.rtd",,"StudyData", $I$2, "Bar", "", "Time", $H$2,$B80, $M$2, "", "","False") -> 2018-10-01 | D80: =IF(RTD("cqg.rtd",,"StudyData", $I$2, "Bar", "", "Close", $H$2, $B80, $M$2,$L$2,,$J$2,$K$2)="",NA(),RTD("cqg.rtd",,"StudyData", $I$2, "Bar", "", "Close", $H$2, $B80, $M$2,$L$2,,$J$2,$K$2)) ->  | E80: 0 | N80: 3.021 | O80: -78 | P80: =RTD("cqg.rtd",,"StudyData", $I$2, "Bar", "", "Time", $H$3,$B80, $M$2, "", "","False") -> 2019-12-12 | Q80: =IF(RTD("cqg.rtd",,"StudyData", $I$2, "Bar", "", "Close", $H$3, $B80, $M$2,$L$2,,$J$2,$K$2)="",NA(),RTD("cqg.rtd",,"StudyData", $I$2, "Bar", "", "Close", $H$3, $B80, $M$2,$L$2,,$J$2,$K$2)) ->  | R80: 0 | T80: X.US.AWSPSUSSCOFF | U80: All Wheat Stocks by Position Off-farm 1000 bushels South Carolina
A81: 17.002 | B81: -79 | C81: =RTD("cqg.rtd",,"StudyData", $I$2, "Bar", "", "Time", $H$2,$B81, $M$2, "", "","False") -> 2018-09-24 | D81: =IF(RTD("cqg.rtd",,"StudyData", $I$2, "Bar", "", "Close", $H$2, $B81, $M$2,$L$2,,$J$2,$K$2)="",NA(),RTD("cqg.rtd",,"StudyData", $I$2, "Bar", "", "Close", $H$2, $B81, $M$2,$L$2,,$J$2,$K$2)) ->  | E81: 0 | N81: 3.022 | O81: -79 | P81: =RTD("cqg.rtd",,"StudyData", $I$2, "Bar", "", "Time", $H$3,$B81, $M$2, "", "","False") -> 2019-12-11 | Q81: =IF(RTD("cqg.rtd",,"StudyData", $I$2, "Bar", "", "Close", $H$3, $B81, $M$2,$L$2,,$J$2,$K$2)="",NA(),RTD("cqg.rtd",,"StudyData", $I$2, "Bar", "", "Close", $H$3, $B81, $M$2,$L$2,,$J$2,$K$2)) ->  | R81: 0 | T81: X.US.AWSPSUSSCONF | U81: All Wheat Stocks by Position On-farm 1000 bushels South Carolina
A82: 17.003 | B82: -80 | C82: =RTD("cqg.rtd",,"StudyData", $I$2, "Bar", "", "Time", $H$2,$B82, $M$2, "", "","False") -> 2018-09-17 | D82: =IF(RTD("cqg.rtd",,"StudyData", $I$2, "Bar", "", "Close", $H$2, $B82, $M$2,$L$2,,$J$2,$K$2)="",NA(),RTD("cqg.rtd",,"StudyData", $I$2, "Bar", "", "Close", $H$2, $B82, $M$2,$L$2,,$J$2,$K$2)) ->  | E82: 0 | N82: 4 | O82: -80 | P82: =RTD("cqg.rtd",,"StudyData", $I$2, "Bar", "", "Time", $H$3,$B82, $M$2, "", "","False") -> 2019-12-10 | Q82: =IF(RTD("cqg.rtd",,"StudyData", $I$2, "Bar", "", "Close", $H$3, $B82, $M$2,$L$2,,$J$2,$K$2)="",NA(),RTD("cqg.rtd",,"StudyData", $I$2, "Bar", "", "Close", $H$3, $B82, $M$2,$L$2,,$J$2,$K$2)) -> 4.92 | R82: 4.92 | T82: X.US.AWSPSUSSCTAP | U82: All Wheat Stocks by Position Total all pos. 1000 bushels South Carolina
A83: 18 | B83: -81 | C83: =RTD("cqg.rtd",,"StudyData", $I$2, "Bar", "", "Time", $H$2,$B83, $M$2, "", "","False") -> 2018-09-10 | D83: =IF(RTD("cqg.rtd",,"StudyData", $I$2, "Bar", "", "Close", $H$2, $B83, $M$2,$L$2,,$J$2,$K$2)="",NA(),RTD("cqg.rtd",,"StudyData", $I$2, "Bar", "", "Close", $H$2, $B83, $M$2,$L$2,,$J$2,$K$2)) -> 5.19 | E83: 5.19 | N83: 4.001 | O83: -81 | P83: =RTD("cqg.rtd",,"StudyData", $I$2, "Bar", "", "Time", $H$3,$B83, $M$2, "", "","False") -> 2019-12-09 | Q83: =IF(RTD("cqg.rtd",,"StudyData", $I$2, "Bar", "", "Close", $H$3, $B83, $M$2,$L$2,,$J$2,$K$2)="",NA(),RTD("cqg.rtd",,"StudyData", $I$2, "Bar", "", "Close", $H$3, $B83, $M$2,$L$2,,$J$2,$K$2)) ->  | R83: 0 | T83: X.US.AWSPSUSSDOFF | U83: All Wheat Stocks by Position Off-farm 1000 bushels South Dakota
A84: 18.001 | B84: -82 | C84: =RTD("cqg.rtd",,"StudyData", $I$2, "Bar", "", "Time", $H$2,$B84, $M$2, "", "","False") -> 2018-09-03 | D84: =IF(RTD("cqg.rtd",,"StudyData", $I$2, "Bar", "", "Close", $H$2, $B84, $M$2,$L$2,,$J$2,$K$2)="",NA(),RTD("cqg.rtd",,"StudyData", $I$2, "Bar", "", "Close", $H$2, $B84, $M$2,$L$2,,$J$2,$K$2)) ->  | E84: 0 | N84: 4.002 | O84: -82 | P84: =RTD("cqg.rtd",,"StudyData", $I$2, "Bar", "", "Time", $H$3,$B84, $M$2, "", "","False") -> 2019-12-06 | Q84: =IF(RTD("cqg.rtd",,"StudyData", $I$2, "Bar", "", "Close", $H$3, $B84, $M$2,$L$2,,$J$2,$K$2)="",NA(),RTD("cqg.rtd",,"StudyData", $I$2, "Bar", "", "Close", $H$3, $B84, $M$2,$L$2,,$J$2,$K$2)) ->  | R84: 0 | T84: X.US.AWSPSUSSDONF | U84: All Wheat Stocks by Position On-farm 1000 bushels South Dakota
A85: 18.002 | B85: -83 | C85: =RTD("cqg.rtd",,"StudyData", $I$2, "Bar", "", "Time", $H$2,$B85, $M$2, "", "","False") -> 2018-08-27 | D85: =IF(RTD("cqg.rtd",,"StudyData", $I$2, "Bar", "", "Close", $H$2, $B85, $M$2,$L$2,,$J$2,$K$2)="",NA(),RTD("cqg.rtd",,"StudyData", $I$2, "Bar", "", "Close", $H$2, $B85, $M$2,$L$2,,$J$2,$K$2)) ->  | E85: 0 | N85: 4.003 | O85: -83 | P85: =RTD("cqg.rtd",,"StudyData", $I$2, "Bar", "", "Time", $H$3,$B85, $M$2, "", "","False") -> 2019-12-05 | Q85: =IF(RTD("cqg.rtd",,"StudyData", $I$2, "Bar", "", "Close", $H$3, $B85, $M$2,$L$2,,$J$2,$K$2)="",NA(),RTD("cqg.rtd",,"StudyData", $I$2, "Bar", "", "Close", $H$3, $B85, $M$2,$L$2,,$J$2,$K$2)) ->  | R85: 0 | T85: X.US.AWSPSUSSDTAP | U85: All Wheat Stocks by Position Total all pos. 1000 bushels South Dakota
A86: 18.003 | B86: -84 | C86: =RTD("cqg.rtd",,"StudyData", $I$2, "Bar", "", "Time", $H$2,$B86, $M$2, "", "","False") -> 2018-08-20 | D86: =IF(RTD("cqg.rtd",,"StudyData", $I$2, "Bar", "", "Close", $H$2, $B86, $M$2,$L$2,,$J$2,$K$2)="",NA(),RTD("cqg.rtd",,"StudyData", $I$2, "Bar", "", "Close", $H$2, $B86, $M$2,$L$2,,$J$2,$K$2)) ->  | E86: 0 | N86: 4.004 | O86: -84 | P86: =RTD("cqg.rtd",,"StudyData", $I$2, "Bar", "", "Time", $H$3,$B86, $M$2, "", "","False") -> 2019-12-04 | Q86: =IF(RTD("cqg.rtd",,"StudyData", $I$2, "Bar", "", "Close", $H$3, $B86, $M$2,$L$2,,$J$2,$K$2)="",NA(),RTD("cqg.rtd",,"StudyData", $I$2, "Bar", "", "Close", $H$3, $B86, $M$2,$L$2,,$J$2,$K$2)) ->  | R86: 0 | T86: X.US.AWSPSUSTNOFF | U86: All Wheat Stocks by Position Off-farm 1000 bushels Tennessee
A87: 18.004 | B87: -85 | C87: =RTD("cqg.rtd",,"StudyData", $I$2, "Bar", "", "Time", $H$2,$B87, $M$2, "", "","False") -> 2018-08-13 | D87: =IF(RTD("cqg.rtd",,"StudyData", $I$2, "Bar", "", "Close", $H$2, $B87, $M$2,$L$2,,$J$2,$K$2)="",NA(),RTD("cqg.rtd",,"StudyData", $I$2, "Bar", "", "Close", $H$2, $B87, $M$2,$L$2,,$J$2,$K$2)) ->  | E87: 0 | N87: 4.005 | O87: -85 | P87: =RTD("cqg.rtd",,"StudyData", $I$2, "Bar", "", "Time", $H$3,$B87, $M$2, "", "","False") -> 2019-12-03 | Q87: =IF(RTD("cqg.rtd",,"StudyData", $I$2, "Bar", "", "Close", $H$3, $B87, $M$2,$L$2,,$J$2,$K$2)="",NA(),RTD("cqg.rtd",,"StudyData", $I$2, "Bar", "", "Close", $H$3, $B87, $M$2,$L$2,,$J$2,$K$2)) ->  | R87: 0 | T87: X.US.AWSPSUSTNONF | U87: All Wheat Stocks by Position On-farm 1000 bushels Tennessee
A88: 19 | B88: -86 | C88: =RTD("cqg.rtd",,"StudyData", $I$2, "Bar", "", "Time", $H$2,$B88, $M$2, "", "","False") -> 2018-08-06 | D88: =IF(RTD("cqg.rtd",,"StudyData", $I$2, "Bar", "", "Close", $H$2, $B88, $M$2,$L$2,,$J$2,$K$2)="",NA(),RTD("cqg.rtd",,"StudyData", $I$2, "Bar", "", "Close", $H$2, $B88, $M$2,$L$2,,$J$2,$K$2)) -> 5.47 | E88: 5.47 | N88: 4.006 | O88: -86 | P88: =RTD("cqg.rtd",,"StudyData", $I$2, "Bar", "", "Time", $H$3,$B88, $M$2, "", "","False") -> 2019-12-02 | Q88: =IF(RTD("cqg.rtd",,"StudyData", $I$2, "Bar", "", "Close", $H$3, $B88, $M$2,$L$2,,$J$2,$K$2)="",NA(),RTD("cqg.rtd",,"StudyData", $I$2, "Bar", "", "Close", $H$3, $B88, $M$2,$L$2,,$J$2,$K$2)) ->  | R88: 0 | T88: X.US.AWSPSUSTNTAP | U88: All Wheat Stocks by Position Total all pos. 1000 bushels Tennessee
A89: 19.001 | B89: -87 | C89: =RTD("cqg.rtd",,"StudyData", $I$2, "Bar", "", "Time", $H$2,$B89, $M$2, "", "","False") -> 2018-07-30 | D89: =IF(RTD("cqg.rtd",,"StudyData", $I$2, "Bar", "", "Close", $H$2, $B89, $M$2,$L$2,,$J$2,$K$2)="",NA(),RTD("cqg.rtd",,"StudyData", $I$2, "Bar", "", "Close", $H$2, $B89, $M$2,$L$2,,$J$2,$K$2)) ->  | E89: 0 | N89: 4.007 | O89: -87 | P89: =RTD("cqg.rtd",,"StudyData", $I$2, "Bar", "", "Time", $H$3,$B89, $M$2, "", "","False") -> 2019-11-29 | Q89: =IF(RTD("cqg.rtd",,"StudyData", $I$2, "Bar", "", "Close", $H$3, $B89, $M$2,$L$2,,$J$2,$K$2)="",NA(),RTD("cqg.rtd",,"StudyData", $I$2, "Bar", "", "Close", $H$3, $B89, $M$2,$L$2,,$J$2,$K$2)) ->  | R89: 0 | T89: X.US.AWSPSUSTXOFF | U89: All Wheat Stocks by Position Off-farm 1000 bushels Texas
A90: 19.002 | B90: -88 | C90: =RTD("cqg.rtd",,"StudyData", $I$2, "Bar", "", "Time", $H$2,$B90, $M$2, "", "","False") -> 2018-07-23 | D90: =IF(RTD("cqg.rtd",,"StudyData", $I$2, "Bar", "", "Close", $H$2, $B90, $M$2,$L$2,,$J$2,$K$2)="",NA(),RTD("cqg.rtd",,"StudyData", $I$2, "Bar", "", "Close", $H$2, $B90, $M$2,$L$2,,$J$2,$K$2)) ->  | E90: 0 | N90: 4.008 | O90: -88 | P90: =RTD("cqg.rtd",,"StudyData", $I$2, "Bar", "", "Time", $H$3,$B90, $M$2, "", "","False") -> 2019-11-28 | Q90: =IF(RTD("cqg.rtd",,"StudyData", $I$2, "Bar", "", "Close", $H$3, $B90, $M$2,$L$2,,$J$2,$K$2)="",NA(),RTD("cqg.rtd",,"StudyData", $I$2, "Bar", "", "Close", $H$3, $B90, $M$2,$L$2,,$J$2,$K$2)) ->  | R90: 0 | T90: X.US.AWSPSUSTXONF | U90: All Wheat Stocks by Position On-farm 1000 bushels Texas
A91: 19.003 | B91: -89 | C91: =RTD("cqg.rtd",,"StudyData", $I$2, "Bar", "", "Time", $H$2,$B91, $M$2, "", "","False") -> 2018-07-16 | D91: =IF(RTD("cqg.rtd",,"StudyData", $I$2, "Bar", "", "Close", $H$2, $B91, $M$2,$L$2,,$J$2,$K$2)="",NA(),RTD("cqg.rtd",,"StudyData", $I$2, "Bar", "", "Close", $H$2, $B91, $M$2,$L$2,,$J$2,$K$2)) ->  | E91: 0 | N91: 4.009 | O91: -89 | P91: =RTD("cqg.rtd",,"StudyData", $I$2, "Bar", "", "Time", $H$3,$B91, $M$2, "", "","False") -> 2019-11-27 | Q91: =IF(RTD("cqg.rtd",,"StudyData", $I$2, "Bar", "", "Close", $H$3, $B91, $M$2,$L$2,,$J$2,$K$2)="",NA(),RTD("cqg.rtd",,"StudyData", $I$2, "Bar", "", "Close", $H$3, $B91, $M$2,$L$2,,$J$2,$K$2)) ->  | R91: 0 | T91: X.US.AWSPSUSTXTAP | U91: All Wheat Stocks by Position Total all pos. 1000 bushels Texas
A92: 20 | B92: -90 | C92: =RTD("cqg.rtd",,"StudyData", $I$2, "Bar", "", "Time", $H$2,$B92, $M$2, "", "","False") -> 2018-07-09 | D92: =IF(RTD("cqg.rtd",,"StudyData", $I$2, "Bar", "", "Close", $H$2, $B92, $M$2,$L$2,,$J$2,$K$2)="",NA(),RTD("cqg.rtd",,"StudyData", $I$2, "Bar", "", "Close", $H$2, $B92, $M$2,$L$2,,$J$2,$K$2)) -> 5.29 | E92: 5.29 | N92: 4.01 | O92: -90 | P92: =RTD("cqg.rtd",,"StudyData", $I$2, "Bar", "", "Time", $H$3,$B92, $M$2, "", "","False") -> 2019-11-26 | Q92: =IF(RTD("cqg.rtd",,"StudyData", $I$2, "Bar", "", "Close", $H$3, $B92, $M$2,$L$2,,$J$2,$K$2)="",NA(),RTD("cqg.rtd",,"StudyData", $I$2, "Bar", "", "Close", $H$3, $B92, $M$2,$L$2,,$J$2,$K$2)) ->  | R92: 0 | T92: X.US.AWSPSUSUNOFF | U92: All Wheat Stocks by Position Off-farm 1000 bushels Unallocated
A93: 20.001 | B93: -91 | C93: =RTD("cqg.rtd",,"StudyData", $I$2, "Bar", "", "Time", $H$2,$B93, $M$2, "", "","False") -> 2018-07-02 | D93: =IF(RTD("cqg.rtd",,"StudyData", $I$2, "Bar", "", "Close", $H$2, $B93, $M$2,$L$2,,$J$2,$K$2)="",NA(),RTD("cqg.rtd",,"StudyData", $I$2, "Bar", "", "Close", $H$2, $B93, $M$2,$L$2,,$J$2,$K$2)) ->  | E93: 0 | N93: 4.011 | O93: -91 | P93: =RTD("cqg.rtd",,"StudyData", $I$2, "Bar", "", "Time", $H$3,$B93, $M$2, "", "","False") -> 2019-11-25 | Q93: =IF(RTD("cqg.rtd",,"StudyData", $I$2, "Bar", "", "Close", $H$3, $B93, $M$2,$L$2,,$J$2,$K$2)="",NA(),RTD("cqg.rtd",,"StudyData", $I$2, "Bar", "", "Close", $H$3, $B93, $M$2,$L$2,,$J$2,$K$2)) ->  | R93: 0 | T93: X.US.AWSPSUSUNONF | U93: All Wheat Stocks by Position On-farm 1000 bushels Unallocated
A94: 20.002 | B94: -92 | C94: =RTD("cqg.rtd",,"StudyData", $I$2, "Bar", "", "Time", $H$2,$B94, $M$2, "", "","False") -> 2018-06-25 | D94: =IF(RTD("cqg.rtd",,"StudyData", $I$2, "Bar", "", "Close", $H$2, $B94, $M$2,$L$2,,$J$2,$K$2)="",NA(),RTD("cqg.rtd",,"StudyData", $I$2, "Bar", "", "Close", $H$2, $B94, $M$2,$L$2,,$J$2,$K$2)) ->  | E94: 0 | N94: 4.012 | O94: -92 | P94: =RTD("cqg.rtd",,"StudyData", $I$2, "Bar", "", "Time", $H$3,$B94, $M$2, "", "","False") -> 2019-11-22 | Q94: =IF(RTD("cqg.rtd",,"StudyData", $I$2, "Bar", "", "Close", $H$3, $B94, $M$2,$L$2,,$J$2,$K$2)="",NA(),RTD("cqg.rtd",,"StudyData", $I$2, "Bar", "", "Close", $H$3, $B94, $M$2,$L$2,,$J$2,$K$2)) ->  | R94: 0 | T94: X.US.AWSPSUSUNTAP | U94: All Wheat Stocks by Position Total all pos. 1000 bushels Unallocated
A95: 20.003 | B95: -93 | C95: =RTD("cqg.rtd",,"StudyData", $I$2, "Bar", "", "Time", $H$2,$B95, $M$2, "", "","False") -> 2018-06-18 | D95: =IF(RTD("cqg.rtd",,"StudyData", $I$2, "Bar", "", "Close", $H$2, $B95, $M$2,$L$2,,$J$2,$K$2)="",NA(),RTD("cqg.rtd",,"StudyData", $I$2, "Bar", "", "Close", $H$2, $B95, $M$2,$L$2,,$J$2,$K$2)) ->  | E95: 0 | N95: 4.013 | O95: -93 | P95: =RTD("cqg.rtd",,"StudyData", $I$2, "Bar", "", "Time", $H$3,$B95, $M$2, "", "","False") -> 2019-11-21 | Q95: =IF(RTD("cqg.rtd",,"StudyData", $I$2, "Bar", "", "Close", $H$3, $B95, $M$2,$L$2,,$J$2,$K$2)="",NA(),RTD("cqg.rtd",,"StudyData", $I$2, "Bar", "", "Close", $H$3, $B95, $M$2,$L$2,,$J$2,$K$2)) ->  | R95: 0 | T95: X.US.AWSPSUSUSOFF | U95: All Wheat Stocks by Position Off-farm 1000 bushels United States
A96: 21 | B96: -94 | C96: =RTD("cqg.rtd",,"StudyData", $I$2, "Bar", "", "Time", $H$2,$B96, $M$2, "", "","False") -> 2018-06-11 | D96: =IF(RTD("cqg.rtd",,"StudyData", $I$2, "Bar", "", "Close", $H$2, $B96, $M$2,$L$2,,$J$2,$K$2)="",NA(),RTD("cqg.rtd",,"StudyData", $I$2, "Bar", "", "Close", $H$2, $B96, $M$2,$L$2,,$J$2,$K$2)) -> 5.85 | E96: 5.85 | N96: 4.014 | O96: -94 | P96: =RTD("cqg.rtd",,"StudyData", $I$2, "Bar", "", "Time", $H$3,$B96, $M$2, "", "","False") -> 2019-11-20 | Q96: =IF(RTD("cqg.rtd",,"StudyData", $I$2, "Bar", "", "Close", $H$3, $B96, $M$2,$L$2,,$J$2,$K$2)="",NA(),RTD("cqg.rtd",,"StudyData", $I$2, "Bar", "", "Close", $H$3, $B96, $M$2,$L$2,,$J$2,$K$2)) ->  | R96: 0 | T96: X.US.AWSPSUSUSONF | U96: All Wheat Stocks by Position On-farm 1000 bushels United States
A97: 21.001 | B97: -95 | C97: =RTD("cqg.rtd",,"StudyData", $I$2, "Bar", "", "Time", $H$2,$B97, $M$2, "", "","False") -> 2018-06-04 | D97: =IF(RTD("cqg.rtd",,"StudyData", $I$2, "Bar", "", "Close", $H$2, $B97, $M$2,$L$2,,$J$2,$K$2)="",NA(),RTD("cqg.rtd",,"StudyData", $I$2, "Bar", "", "Close", $H$2, $B97, $M$2,$L$2,,$J$2,$K$2)) ->  | E97: 0 | N97: 4.015 | O97: -95 | P97: =RTD("cqg.rtd",,"StudyData", $I$2, "Bar", "", "Time", $H$3,$B97, $M$2, "", "","False") -> 2019-11-19 | Q97: =IF(RTD("cqg.rtd",,"StudyData", $I$2, "Bar", "", "Close", $H$3, $B97, $M$2,$L$2,,$J$2,$K$2)="",NA(),RTD("cqg.rtd",,"StudyData", $I$2, "Bar", "", "Close", $H$3, $B97, $M$2,$L$2,,$J$2,$K$2)) ->  | R97: 0 | T97: X.US.AWSPSUSUSTAP | U97: All Wheat Stocks by Position Total all pos. 1000 bushels United States
A98: 21.002 | B98: -96 | C98: =RTD("cqg.rtd",,"StudyData", $I$2, "Bar", "", "Time", $H$2,$B98, $M$2, "", "","False") -> 2018-05-28 | D98: =IF(RTD("cqg.rtd",,"StudyData", $I$2, "Bar", "", "Close", $H$2, $B98, $M$2,$L$2,,$J$2,$K$2)="",NA(),RTD("cqg.rtd",,"StudyData", $I$2, "Bar", "", "Close", $H$2, $B98, $M$2,$L$2,,$J$2,$K$2)) ->  | E98: 0 | N98: 4.016 | O98: -96 | P98: =RTD("cqg.rtd",,"StudyData", $I$2, "Bar", "", "Time", $H$3,$B98, $M$2, "", "","False") -> 2019-11-18 | Q98: =IF(RTD("cqg.rtd",,"StudyData", $I$2, "Bar", "", "Close", $H$3, $B98, $M$2,$L$2,,$J$2,$K$2)="",NA(),RTD("cqg.rtd",,"StudyData", $I$2, "Bar", "", "Close", $H$3, $B98, $M$2,$L$2,,$J$2,$K$2)) ->  | R98: 0 | T98: X.US.AWSPSUSUTOFF | U98: All Wheat Stocks by Position Off-farm 1000 bushels Utah
A99: 21.003 | B99: -97 | C99: =RTD("cqg.rtd",,"StudyData", $I$2, "Bar", "", "Time", $H$2,$B99, $M$2, "", "","False") -> 2018-05-21 | D99: =IF(RTD("cqg.rtd",,"StudyData", $I$2, "Bar", "", "Close", $H$2, $B99, $M$2,$L$2,,$J$2,$K$2)="",NA(),RTD("cqg.rtd",,"StudyData", $I$2, "Bar", "", "Close", $H$2, $B99, $M$2,$L$2,,$J$2,$K$2)) ->  | E99: 0 | N99: 4.017 | O99: -97 | P99: =RTD("cqg.rtd",,"StudyData", $I$2, "Bar", "", "Time", $H$3,$B99, $M$2, "", "","False") -> 2019-11-15 | Q99: =IF(RTD("cqg.rtd",,"StudyData", $I$2, "Bar", "", "Close", $H$3, $B99, $M$2,$L$2,,$J$2,$K$2)="",NA(),RTD("cqg.rtd",,"StudyData", $I$2, "Bar", "", "Close", $H$3, $B99, $M$2,$L$2,,$J$2,$K$2)) ->  | R99: 0 | T99: X.US.AWSPSUSUTONF | U99: All Wheat Stocks by Position On-farm 1000 bushels Utah
A100: 21.004 | B100: -98 | C100: =RTD("cqg.rtd",,"StudyData", $I$2, "Bar", "", "Time", $H$2,$B100, $M$2, "", "","False") -> 2018-05-14 | D100: =IF(RTD("cqg.rtd",,"StudyData", $I$2, "Bar", "", "Close", $H$2, $B100, $M$2,$L$2,,$J$2,$K$2)="",NA(),RTD("cqg.rtd",,"StudyData", $I$2, "Bar", "", "Close", $H$2, $B100, $M$2,$L$2,,$J$2,$K$2)) ->  | E100: 0 | N100: 4.018 | O100: -98 | P100: =RTD("cqg.rtd",,"StudyData", $I$2, "Bar", "", "Time", $H$3,$B100, $M$2, "", "","False") -> 2019-11-14 | Q100: =IF(RTD("cqg.rtd",,"StudyData", $I$2, "Bar", "", "Close", $H$3, $B100, $M$2,$L$2,,$J$2,$K$2)="",NA(),RTD("cqg.rtd",,"StudyData", $I$2, "Bar", "", "Close", $H$3, $B100, $M$2,$L$2,,$J$2,$K$2)) ->  | R100: 0 | T100: X.US.AWSPSUSUTTAP | U100: All Wheat Stocks by Position Total all pos. 1000 bushels Utah
A101: 22 | B101: -99 | C101: =RTD("cqg.rtd",,"StudyData", $I$2, "Bar", "", "Time", $H$2,$B101, $M$2, "", "","False") -> 2018-05-07 | D101: =IF(RTD("cqg.rtd",,"StudyData", $I$2, "Bar", "", "Close", $H$2, $B101, $M$2,$L$2,,$J$2,$K$2)="",NA(),RTD("cqg.rtd",,"StudyData", $I$2, "Bar", "", "Close", $H$2, $B101, $M$2,$L$2,,$J$2,$K$2)) -> 5.85 | E101: 5.85 | N101: 4.019 | O101: -99 | P101: =RTD("cqg.rtd",,"StudyData", $I$2, "Bar", "", "Time", $H$3,$B101, $M$2, "", "","False") -> 2019-11-13 | Q101: =IF(RTD("cqg.rtd",,"StudyData", $I$2, "Bar", "", "Close", $H$3, $B101, $M$2,$L$2,,$J$2,$K$2)="",NA(),RTD("cqg.rtd",,"StudyData", $I$2, "Bar", "", "Close", $H$3, $B101, $M$2,$L$2,,$J$2,$K$2)) ->  | R101: 0 | T101: X.US.AWSPSUSVAOFF | U101: All Wheat Stocks by Position Off-farm 1000 bushels Virginia
A102: 22.001 | B102: -100 | C102: =RTD("cqg.rtd",,"StudyData", $I$2, "Bar", "", "Time", $H$2,$B102, $M$2, "", "","False") -> 2018-04-30 | D102: =IF(RTD("cqg.rtd",,"StudyData", $I$2, "Bar", "", "Close", $H$2, $B102, $M$2,$L$2,,$J$2,$K$2)="",NA(),RTD("cqg.rtd",,"StudyData", $I$2, "Bar", "", "Close", $H$2, $B102, $M$2,$L$2,,$J$2,$K$2)) ->  | E102: 0 | N102: 4.02 | O102: -100 | P102: =RTD("cqg.rtd",,"StudyData", $I$2, "Bar", "", "Time", $H$3,$B102, $M$2, "", "","False") -> 2019-11-12 | Q102: =IF(RTD("cqg.rtd",,"StudyData", $I$2, "Bar", "", "Close", $H$3, $B102, $M$2,$L$2,,$J$2,$K$2)="",NA(),RTD("cqg.rtd",,"StudyData", $I$2, "Bar", "", "Close", $H$3, $B102, $M$2,$L$2,,$J$2,$K$2)) ->  | R102: 0 | T102: X.US.AWSPSUSVAONF | U102: All Wheat Stocks by Position On-farm 1000 bushels Virginia
A103: 22.002 | B103: -101 | C103: =RTD("cqg.rtd",,"StudyData", $I$2, "Bar", "", "Time", $H$2,$B103, $M$2, "", "","False") -> 2018-04-23 | D103: =IF(RTD("cqg.rtd",,"StudyData", $I$2, "Bar", "", "Close", $H$2, $B103, $M$2,$L$2,,$J$2,$K$2)="",NA(),RTD("cqg.rtd",,"StudyData", $I$2, "Bar", "", "Close", $H$2, $B103, $M$2,$L$2,,$J$2,$K$2)) ->  | E103: 0 | N103: 4.021 | O103: -101 | P103: =RTD("cqg.rtd",,"StudyData", $I$2, "Bar", "", "Time", $H$3,$B103, $M$2, "", "","False") -> 2019-11-11 | Q103: =IF(RTD("cqg.rtd",,"StudyData", $I$2, "Bar", "", "Close", $H$3, $B103, $M$2,$L$2,,$J$2,$K$2)="",NA(),RTD("cqg.rtd",,"StudyData", $I$2, "Bar", "", "Close", $H$3, $B103, $M$2,$L$2,,$J$2,$K$2)) ->  | R103: 0 | T103: X.US.AWSPSUSVATAP | U103: All Wheat Stocks by Position Total all pos. 1000 bushels Virginia
A104: 22.003 | B104: -102 | C104: =RTD("cqg.rtd",,"StudyData", $I$2, "Bar", "", "Time", $H$2,$B104, $M$2, "", "","False") -> 2018-04-16 | D104: =IF(RTD("cqg.rtd",,"StudyData", $I$2, "Bar", "", "Close", $H$2, $B104, $M$2,$L$2,,$J$2,$K$2)="",NA(),RTD("cqg.rtd",,"StudyData", $I$2, "Bar", "", "Close", $H$2, $B104, $M$2,$L$2,,$J$2,$K$2)) ->  | E104: 0 | N104: 5 | O104: -102 | P104: =RTD("cqg.rtd",,"StudyData", $I$2, "Bar", "", "Time", $H$3,$B104, $M$2, "", "","False") -> 2019-11-08 | Q104: =IF(RTD("cqg.rtd",,"StudyData", $I$2, "Bar", "", "Close", $H$3, $B104, $M$2,$L$2,,$J$2,$K$2)="",NA(),RTD("cqg.rtd",,"StudyData", $I$2, "Bar", "", "Close", $H$3, $B104, $M$2,$L$2,,$J$2,$K$2)) -> 4.92 | R104: 4.92 | T104: X.US.AWSPSUSWAOFF | U104: All Wheat Stocks by Position Off-farm 1000 bushels Washington
A105: 23 | B105: -103 | C105: =RTD("cqg.rtd",,"StudyData", $I$2, "Bar", "", "Time", $H$2,$B105, $M$2, "", "","False") -> 2018-04-09 | D105: =IF(RTD("cqg.rtd",,"StudyData", $I$2, "Bar", "", "Close", $H$2, $B105, $M$2,$L$2,,$J$2,$K$2)="",NA(),RTD("cqg.rtd",,"StudyData", $I$2, "Bar", "", "Close", $H$2, $B105, $M$2,$L$2,,$J$2,$K$2)) -> 5.61 | E105: 5.61 | N105: 5.001 | O105: -103 | P105: =RTD("cqg.rtd",,"StudyData", $I$2, "Bar", "", "Time", $H$3,$B105, $M$2, "", "","False") -> 2019-11-07 | Q105: =IF(RTD("cqg.rtd",,"StudyData", $I$2, "Bar", "", "Close", $H$3, $B105, $M$2,$L$2,,$J$2,$K$2)="",NA(),RTD("cqg.rtd",,"StudyData", $I$2, "Bar", "", "Close", $H$3, $B105, $M$2,$L$2,,$J$2,$K$2)) ->  | R105: 0 | T105: X.US.AWSPSUSWAONF | U105: All Wheat Stocks by Position On-farm 1000 bushels Washington
A106: 23.001 | B106: -104 | C106: =RTD("cqg.rtd",,"StudyData", $I$2, "Bar", "", "Time", $H$2,$B106, $M$2, "", "","False") -> 2018-04-02 | D106: =IF(RTD("cqg.rtd",,"StudyData", $I$2, "Bar", "", "Close", $H$2, $B106, $M$2,$L$2,,$J$2,$K$2)="",NA(),RTD("cqg.rtd",,"StudyData", $I$2, "Bar", "", "Close", $H$2, $B106, $M$2,$L$2,,$J$2,$K$2)) ->  | E106: 0 | N106: 5.002 | O106: -104 | P106: =RTD("cqg.rtd",,"StudyData", $I$2, "Bar", "", "Time", $H$3,$B106, $M$2, "", "","False") -> 2019-11-06 | Q106: =IF(RTD("cqg.rtd",,"StudyData", $I$2, "Bar", "", "Close", $H$3, $B106, $M$2,$L$2,,$J$2,$K$2)="",NA(),RTD("cqg.rtd",,"StudyData", $I$2, "Bar", "", "Close", $H$3, $B106, $M$2,$L$2,,$J$2,$K$2)) ->  | R106: 0 | T106: X.US.AWSPSUSWATAP | U106: All Wheat Stocks by Position Total all pos. 1000 bushels Washington
A107: 23.002 | B107: -105 | C107: =RTD("cqg.rtd",,"StudyData", $I$2, "Bar", "", "Time", $H$2,$B107, $M$2, "", "","False") -> 2018-03-26 | D107: =IF(RTD("cqg.rtd",,"StudyData", $I$2, "Bar", "", "Close", $H$2, $B107, $M$2,$L$2,,$J$2,$K$2)="",NA(),RTD("cqg.rtd",,"StudyData", $I$2, "Bar", "", "Close", $H$2, $B107, $M$2,$L$2,,$J$2,$K$2)) ->  | E107: 0 | N107: 5.003 | O107: -105 | P107: =RTD("cqg.rtd",,"StudyData", $I$2, "Bar", "", "Time", $H$3,$B107, $M$2, "", "","False") -> 2019-11-05 | Q107: =IF(RTD("cqg.rtd",,"StudyData", $I$2, "Bar", "", "Close", $H$3, $B107, $M$2,$L$2,,$J$2,$K$2)="",NA(),RTD("cqg.rtd",,"StudyData", $I$2, "Bar", "", "Close", $H$3, $B107, $M$2,$L$2,,$J$2,$K$2)) ->  | R107: 0 | T107: X.US.AWSPSUSWIOFF | U107: All Wheat Stocks by Position Off-farm 1000 bushels Wisconsin
A108: 23.003 | B108: -106 | C108: =RTD("cqg.rtd",,"StudyData", $I$2, "Bar", "", "Time", $H$2,$B108, $M$2, "", "","False") -> 2018-03-19 | D108: =IF(RTD("cqg.rtd",,"StudyData", $I$2, "Bar", "", "Close", $H$2, $B108, $M$2,$L$2,,$J$2,$K$2)="",NA(),RTD("cqg.rtd",,"StudyData", $I$2, "Bar", "", "Close", $H$2, $B108, $M$2,$L$2,,$J$2,$K$2)) ->  | E108: 0 | N108: 5.004 | O108: -106 | P108: =RTD("cqg.rtd",,"StudyData", $I$2, "Bar", "", "Time", $H$3,$B108, $M$2, "", "","False") -> 2019-11-04 | Q108: =IF(RTD("cqg.rtd",,"StudyData", $I$2, "Bar", "", "Close", $H$3, $B108, $M$2,$L$2,,$J$2,$K$2)="",NA(),RTD("cqg.rtd",,"StudyData", $I$2, "Bar", "", "Close", $H$3, $B108, $M$2,$L$2,,$J$2,$K$2)) ->  | R108: 0 | T108: X.US.AWSPSUSWIONF | U108: All Wheat Stocks by Position On-farm 1000 bushels Wisconsin
A109: 23.004 | B109: -107 | C109: =RTD("cqg.rtd",,"StudyData", $I$2, "Bar", "", "Time", $H$2,$B109, $M$2, "", "","False") -> 2018-03-12 | D109: =IF(RTD("cqg.rtd",,"StudyData", $I$2, "Bar", "", "Close", $H$2, $B109, $M$2,$L$2,,$J$2,$K$2)="",NA(),RTD("cqg.rtd",,"StudyData", $I$2, "Bar", "", "Close", $H$2, $B109, $M$2,$L$2,,$J$2,$K$2)) ->  | E109: 0 | N109: 5.005 | O109: -107 | P109: =RTD("cqg.rtd",,"StudyData", $I$2, "Bar", "", "Time", $H$3,$B109, $M$2, "", "","False") -> 2019-11-01 | Q109: =IF(RTD("cqg.rtd",,"StudyData", $I$2, "Bar", "", "Close", $H$3, $B109, $M$2,$L$2,,$J$2,$K$2)="",NA(),RTD("cqg.rtd",,"StudyData", $I$2, "Bar", "", "Close", $H$3, $B109, $M$2,$L$2,,$J$2,$K$2)) ->  | R109: 0 | T109: X.US.AWSPSUSWITAP | U109: All Wheat Stocks by Position Total all pos. 1000 bushels Wisconsin
A110: 24 | B110: -108 | C110: =RTD("cqg.rtd",,"StudyData", $I$2, "Bar", "", "Time", $H$2,$B110, $M$2, "", "","False") -> 2018-03-05 | D110: =IF(RTD("cqg.rtd",,"StudyData", $I$2, "Bar", "", "Close", $H$2, $B110, $M$2,$L$2,,$J$2,$K$2)="",NA(),RTD("cqg.rtd",,"StudyData", $I$2, "Bar", "", "Close", $H$2, $B110, $M$2,$L$2,,$J$2,$K$2)) -> 5.61 | E110: 5.61 | N110: 5.006 | O110: -108 | P110: =RTD("cqg.rtd",,"StudyData", $I$2, "Bar", "", "Time", $H$3,$B110, $M$2, "", "","False") -> 2019-10-31 | Q110: =IF(RTD("cqg.rtd",,"StudyData", $I$2, "Bar", "", "Close", $H$3, $B110, $M$2,$L$2,,$J$2,$K$2)="",NA(),RTD("cqg.rtd",,"StudyData", $I$2, "Bar", "", "Close", $H$3, $B110, $M$2,$L$2,,$J$2,$K$2)) ->  | R110: 0 | T110: X.US.AWSPSUSWVOFF | U110: All Wheat Stocks by Position Off-farm 1000 bushels West Virginia
A111: 24.001 | B111: -109 | C111: =RTD("cqg.rtd",,"StudyData", $I$2, "Bar", "", "Time", $H$2,$B111, $M$2, "", "","False") -> 2018-02-26 | D111: =IF(RTD("cqg.rtd",,"StudyData", $I$2, "Bar", "", "Close", $H$2, $B111, $M$2,$L$2,,$J$2,$K$2)="",NA(),RTD("cqg.rtd",,"StudyData", $I$2, "Bar", "", "Close", $H$2, $B111, $M$2,$L$2,,$J$2,$K$2)) ->  | E111: 0 | N111: 5.007 | O111: -109 | P111: =RTD("cqg.rtd",,"StudyData", $I$2, "Bar", "", "Time", $H$3,$B111, $M$2, "", "","False") -> 2019-10-30 | Q111: =IF(RTD("cqg.rtd",,"StudyData", $I$2, "Bar", "", "Close", $H$3, $B111, $M$2,$L$2,,$J$2,$K$2)="",NA(),RTD("cqg.rtd",,"StudyData", $I$2, "Bar", "", "Close", $H$3, $B111, $M$2,$L$2,,$J$2,$K$2)) ->  | R111: 0 | T111: X.US.AWSPSUSWVONF | U111: All Wheat Stocks by Position On-farm 1000 bushels West Virginia
A112: 24.002 | B112: -110 | C112: =RTD("cqg.rtd",,"StudyData", $I$2, "Bar", "", "Time", $H$2,$B112, $M$2, "", "","False") -> 2018-02-19 | D112: =IF(RTD("cqg.rtd",,"StudyData", $I$2, "Bar", "", "Close", $H$2, $B112, $M$2,$L$2,,$J$2,$K$2)="",NA(),RTD("cqg.rtd",,"StudyData", $I$2, "Bar", "", "Close", $H$2, $B112, $M$2,$L$2,,$J$2,$K$2)) ->  | E112: 0 | N112: 5.008 | O112: -110 | P112: =RTD("cqg.rtd",,"StudyData", $I$2, "Bar", "", "Time", $H$3,$B112, $M$2, "", "","False") -> 2019-10-29 | Q112: =IF(RTD("cqg.rtd",,"StudyData", $I$2, "Bar", "", "Close", $H$3, $B112, $M$2,$L$2,,$J$2,$K$2)="",NA(),RTD("cqg.rtd",,"StudyData", $I$2, "Bar", "", "Close", $H$3, $B112, $M$2,$L$2,,$J$2,$K$2)) ->  | R112: 0 | T112: X.US.AWSPSUSWVTAP | U112: All Wheat Stocks by Position Total all pos. 1000 bushels West Virginia
A113: 24.003 | B113: -111 | C113: =RTD("cqg.rtd",,"StudyData", $I$2, "Bar", "", "Time", $H$2,$B113, $M$2, "", "","False") -> 2018-02-12 | D113: =IF(RTD("cqg.rtd",,"StudyData", $I$2, "Bar", "", "Close", $H$2, $B113, $M$2,$L$2,,$J$2,$K$2)="",NA(),RTD("cqg.rtd",,"StudyData", $I$2, "Bar", "", "Close", $H$2, $B113, $M$2,$L$2,,$J$2,$K$2)) ->  | E113: 0 | N113: 5.009 | O113: -111 | P113: =RTD("cqg.rtd",,"StudyData", $I$2, "Bar", "", "Time", $H$3,$B113, $M$2, "", "","False") -> 2019-10-28 | Q113: =IF(RTD("cqg.rtd",,"StudyData", $I$2, "Bar", "", "Close", $H$3, $B113, $M$2,$L$2,,$J$2,$K$2)="",NA(),RTD("cqg.rtd",,"StudyData", $I$2, "Bar", "", "Close", $H$3, $B113, $M$2,$L$2,,$J$2,$K$2)) ->  | R113: 0 | T113: X.US.AWSPSUSWYOFF | U113: All Wheat Stocks by Position Off-farm 1000 bushels Wyoming
A114: 25 | B114: -112 | C114: =RTD("cqg.rtd",,"StudyData", $I$2, "Bar", "", "Time", $H$2,$B114, $M$2, "", "","False") -> 2018-02-05 | D114: =IF(RTD("cqg.rtd",,"StudyData", $I$2, "Bar", "", "Close", $H$2, $B114, $M$2,$L$2,,$J$2,$K$2)="",NA(),RTD("cqg.rtd",,"StudyData", $I$2, "Bar", "", "Close", $H$2, $B114, $M$2,$L$2,,$J$2,$K$2)) -> 5.61 | E114: 5.61 | N114: 5.01 | O114: -112 | P114: =RTD("cqg.rtd",,"StudyData", $I$2, "Bar", "", "Time", $H$3,$B114, $M$2, "", "","False") -> 2019-10-25 | Q114: =IF(RTD("cqg.rtd",,"StudyData", $I$2, "Bar", "", "Close", $H$3, $B114, $M$2,$L$2,,$J$2,$K$2)="",NA(),RTD("cqg.rtd",,"StudyData", $I$2, "Bar", "", "Close", $H$3, $B114, $M$2,$L$2,,$J$2,$K$2)) ->  | R114: 0 | T114: X.US.AWSPSUSWYONF | U114: All Wheat Stocks by Position On-farm 1000 bushels Wyoming
A115: 25.001 | B115: -113 | C115: =RTD("cqg.rtd",,"StudyData", $I$2, "Bar", "", "Time", $H$2,$B115, $M$2, "", "","False") -> 2018-01-29 | D115: =IF(RTD("cqg.rtd",,"StudyData", $I$2, "Bar", "", "Close", $H$2, $B115, $M$2,$L$2,,$J$2,$K$2)="",NA(),RTD("cqg.rtd",,"StudyData", $I$2, "Bar", "", "Close", $H$2, $B115, $M$2,$L$2,,$J$2,$K$2)) ->  | E115: 0 | N115: 5.011 | O115: -113 | P115: =RTD("cqg.rtd",,"StudyData", $I$2, "Bar", "", "Time", $H$3,$B115, $M$2, "", "","False") -> 2019-10-24 | Q115: =IF(RTD("cqg.rtd",,"StudyData", $I$2, "Bar", "", "Close", $H$3, $B115, $M$2,$L$2,,$J$2,$K$2)="",NA(),RTD("cqg.rtd",,"StudyData", $I$2, "Bar", "", "Close", $H$3, $B115, $M$2,$L$2,,$J$2,$K$2)) ->  | R115: 0 | T115: X.US.AWSPSUSWYTAP | U115: All Wheat Stocks by Position Total all pos. 1000 bushels Wyoming
A116: 25.002 | B116: -114 | C116: =RTD("cqg.rtd",,"StudyData", $I$2, "Bar", "", "Time", $H$2,$B116, $M$2, "", "","False") -> 2018-01-22 | D116: =IF(RTD("cqg.rtd",,"StudyData", $I$2, "Bar", "", "Close", $H$2, $B116, $M$2,$L$2,,$J$2,$K$2)="",NA(),RTD("cqg.rtd",,"StudyData", $I$2, "Bar", "", "Close", $H$2, $B116, $M$2,$L$2,,$J$2,$K$2)) ->  | E116: 0 | N116: 5.012 | O116: -114 | P116: =RTD("cqg.rtd",,"StudyData", $I$2, "Bar", "", "Time", $H$3,$B116, $M$2, "", "","False") -> 2019-10-23 | Q116: =IF(RTD("cqg.rtd",,"StudyData", $I$2, "Bar", "", "Close", $H$3, $B116, $M$2,$L$2,,$J$2,$K$2)="",NA(),RTD("cqg.rtd",,"StudyData", $I$2, "Bar", "", "Close", $H$3, $B116, $M$2,$L$2,,$J$2,$K$2)) ->  | R116: 0 | T116: X.US.BSPSUSALOFF | U116: Barley Stocks by Position Off-farm 1000 bushels Alabama
A117: 25.003 | B117: -115 | C117: =RTD("cqg.rtd",,"StudyData", $I$2, "Bar", "", "Time", $H$2,$B117, $M$2, "", "","False") -> 2018-01-15 | D117: =IF(RTD("cqg.rtd",,"StudyData", $I$2, "Bar", "", "Close", $H$2, $B117, $M$2,$L$2,,$J$2,$K$2)="",NA(),RTD("cqg.rtd",,"StudyData", $I$2, "Bar", "", "Close", $H$2, $B117, $M$2,$L$2,,$J$2,$K$2)) ->  | E117: 0 | N117: 5.013 | O117: -115 | P117: =RTD("cqg.rtd",,"StudyData", $I$2, "Bar", "", "Time", $H$3,$B117, $M$2, "", "","False") -> 2019-10-22 | Q117: =IF(RTD("cqg.rtd",,"StudyData", $I$2, "Bar", "", "Close", $H$3, $B117, $M$2,$L$2,,$J$2,$K$2)="",NA(),RTD("cqg.rtd",,"StudyData", $I$2, "Bar", "", "Close", $H$3, $B117, $M$2,$L$2,,$J$2,$K$2)) ->  | R117: 0 | T117: X.US.BSPSUSALONF | U117: Barley Stocks by Position On-farm 1000 bushels Alabama
A118: 26 | B118: -116 | C118: =RTD("cqg.rtd",,"StudyData", $I$2, "Bar", "", "Time", $H$2,$B118, $M$2, "", "","False") -> 2018-01-08 | D118: =IF(RTD("cqg.rtd",,"StudyData", $I$2, "Bar", "", "Close", $H$2, $B118, $M$2,$L$2,,$J$2,$K$2)="",NA(),RTD("cqg.rtd",,"StudyData", $I$2, "Bar", "", "Close", $H$2, $B118, $M$2,$L$2,,$J$2,$K$2)) -> 5.61 | E118: 5.61 | N118: 5.014 | O118: -116 | P118: =RTD("cqg.rtd",,"StudyData", $I$2, "Bar", "", "Time", $H$3,$B118, $M$2, "", "","False") -> 2019-10-21 | Q118: =IF(RTD("cqg.rtd",,"StudyData", $I$2, "Bar", "", "Close", $H$3, $B118, $M$2,$L$2,,$J$2,$K$2)="",NA(),RTD("cqg.rtd",,"StudyData", $I$2, "Bar", "", "Close", $H$3, $B118, $M$2,$L$2,,$J$2,$K$2)) ->  | R118: 0 | T118: X.US.BSPSUSALTAP | U118: Barley Stocks by Position Total all pos. 1000 bushels Alabama
A119: 26.001 | B119: -117 | C119: =RTD("cqg.rtd",,"StudyData", $I$2, "Bar", "", "Time", $H$2,$B119, $M$2, "", "","False") -> 2018-01-01 | D119: =IF(RTD("cqg.rtd",,"StudyData", $I$2, "Bar", "", "Close", $H$2, $B119, $M$2,$L$2,,$J$2,$K$2)="",NA(),RTD("cqg.rtd",,"StudyData", $I$2, "Bar", "", "Close", $H$2, $B119, $M$2,$L$2,,$J$2,$K$2)) ->  | E119: 0 | N119: 5.015 | O119: -117 | P119: =RTD("cqg.rtd",,"StudyData", $I$2, "Bar", "", "Time", $H$3,$B119, $M$2, "", "","False") -> 2019-10-18 | Q119: =IF(RTD("cqg.rtd",,"StudyData", $I$2, "Bar", "", "Close", $H$3, $B119, $M$2,$L$2,,$J$2,$K$2)="",NA(),RTD("cqg.rtd",,"StudyData", $I$2, "Bar", "", "Close", $H$3, $B119, $M$2,$L$2,,$J$2,$K$2)) ->  | R119: 0 | T119: X.US.BSPSUSAROFF | U119: Barley Stocks by Position Off-farm 1000 bushels Arkansas
A120: 26.002 | B120: -118 | C120: =RTD("cqg.rtd",,"StudyData", $I$2, "Bar", "", "Time", $H$2,$B120, $M$2, "", "","False") -> 2017-12-25 | D120: =IF(RTD("cqg.rtd",,"StudyData", $I$2, "Bar", "", "Close", $H$2, $B120, $M$2,$L$2,,$J$2,$K$2)="",NA(),RTD("cqg.rtd",,"StudyData", $I$2, "Bar", "", "Close", $H$2, $B120, $M$2,$L$2,,$J$2,$K$2)) ->  | E120: 0 | N120: 5.016 | O120: -118 | P120: =RTD("cqg.rtd",,"StudyData", $I$2, "Bar", "", "Time", $H$3,$B120, $M$2, "", "","False") -> 2019-10-17 | Q120: =IF(RTD("cqg.rtd",,"StudyData", $I$2, "Bar", "", "Close", $H$3, $B120, $M$2,$L$2,,$J$2,$K$2)="",NA(),RTD("cqg.rtd",,"StudyData", $I$2, "Bar", "", "Close", $H$3, $B120, $M$2,$L$2,,$J$2,$K$2)) ->  | R120: 0 | T120: X.US.BSPSUSARONF | U120: Barley Stocks by Position On-farm 1000 bushels Arkansas
A121: 26.003 | B121: -119 | C121: =RTD("cqg.rtd",,"StudyData", $I$2, "Bar", "", "Time", $H$2,$B121, $M$2, "", "","False") -> 2017-12-18 | D121: =IF(RTD("cqg.rtd",,"StudyData", $I$2, "Bar", "", "Close", $H$2, $B121, $M$2,$L$2,,$J$2,$K$2)="",NA(),RTD("cqg.rtd",,"StudyData", $I$2, "Bar", "", "Close", $H$2, $B121, $M$2,$L$2,,$J$2,$K$2)) ->  | E121: 0 | N121: 5.017 | O121: -119 | P121: =RTD("cqg.rtd",,"StudyData", $I$2, "Bar", "", "Time", $H$3,$B121, $M$2, "", "","False") -> 2019-10-16 | Q121: =IF(RTD("cqg.rtd",,"StudyData", $I$2, "Bar", "", "Close", $H$3, $B121, $M$2,$L$2,,$J$2,$K$2)="",NA(),RTD("cqg.rtd",,"StudyData", $I$2, "Bar", "", "Close", $H$3, $B121, $M$2,$L$2,,$J$2,$K$2)) ->  | R121: 0 | T121: X.US.BSPSUSARTAP | U121: Barley Stocks by Position Total all pos. 1000 bushels Arkansas
A122: 27 | B122: -120 | C122: =RTD("cqg.rtd",,"StudyData", $I$2, "Bar", "", "Time", $H$2,$B122, $M$2, "", "","False") -> 2017-12-11 | D122: =IF(RTD("cqg.rtd",,"StudyData", $I$2, "Bar", "", "Close", $H$2, $B122, $M$2,$L$2,,$J$2,$K$2)="",NA(),RTD("cqg.rtd",,"StudyData", $I$2, "Bar", "", "Close", $H$2, $B122, $M$2,$L$2,,$J$2,$K$2)) -> 5.61 | E122: 5.61 | N122: 5.018 | O122: -120 | P122: =RTD("cqg.rtd",,"StudyData", $I$2, "Bar", "", "Time", $H$3,$B122, $M$2, "", "","False") -> 2019-10-15 | Q122: =IF(RTD("cqg.rtd",,"StudyData", $I$2, "Bar", "", "Close", $H$3, $B122, $M$2,$L$2,,$J$2,$K$2)="",NA(),RTD("cqg.rtd",,"StudyData", $I$2, "Bar", "", "Close", $H$3, $B122, $M$2,$L$2,,$J$2,$K$2)) ->  | R122: 0 | T122: X.US.BSPSUSAZOFF | U122: Barley Stocks by Position Off-farm 1000 bushels Arizona
A123: 27.001 | B123: -121 | C123: =RTD("cqg.rtd",,"StudyData", $I$2, "Bar", "", "Time", $H$2,$B123, $M$2, "", "","False") -> 2017-12-04 | D123: =IF(RTD("cqg.rtd",,"StudyData", $I$2, "Bar", "", "Close", $H$2, $B123, $M$2,$L$2,,$J$2,$K$2)="",NA(),RTD("cqg.rtd",,"StudyData", $I$2, "Bar", "", "Close", $H$2, $B123, $M$2,$L$2,,$J$2,$K$2)) ->  | E123: 0 | N123: 5.019 | O123: -121 | P123: =RTD("cqg.rtd",,"StudyData", $I$2, "Bar", "", "Time", $H$3,$B123, $M$2, "", "","False") -> 2019-10-14 | Q123: =IF(RTD("cqg.rtd",,"StudyData", $I$2, "Bar", "", "Close", $H$3, $B123, $M$2,$L$2,,$J$2,$K$2)="",NA(),RTD("cqg.rtd",,"StudyData", $I$2, "Bar", "", "Close", $H$3, $B123, $M$2,$L$2,,$J$2,$K$2)) ->  | R123: 0 | T123: X.US.BSPSUSAZONF | U123: Barley Stocks by Position On-farm 1000 bushels Arizona
A124: 27.002 | B124: -122 | C124: =RTD("cqg.rtd",,"StudyData", $I$2, "Bar", "", "Time", $H$2,$B124, $M$2, "", "","False") -> 2017-11-27 | D124: =IF(RTD("cqg.rtd",,"StudyData", $I$2, "Bar", "", "Close", $H$2, $B124, $M$2,$L$2,,$J$2,$K$2)="",NA(),RTD("cqg.rtd",,"StudyData", $I$2, "Bar", "", "Close", $H$2, $B124, $M$2,$L$2,,$J$2,$K$2)) ->  | E124: 0 | N124: 5.02 | O124: -122 | P124: =RTD("cqg.rtd",,"StudyData", $I$2, "Bar", "", "Time", $H$3,$B124, $M$2, "", "","False") -> 2019-10-11 | Q124: =IF(RTD("cqg.rtd",,"StudyData", $I$2, "Bar", "", "Close", $H$3, $B124, $M$2,$L$2,,$J$2,$K$2)="",NA(),RTD("cqg.rtd",,"StudyData", $I$2, "Bar", "", "Close", $H$3, $B124, $M$2,$L$2,,$J$2,$K$2)) ->  | R124: 0 | T124: X.US.BSPSUSAZTAP | U124: Barley Stocks by Position Total all pos. 1000 bushels Arizona
A125: 27.003 | B125: -123 | C125: =RTD("cqg.rtd",,"StudyData", $I$2, "Bar", "", "Time", $H$2,$B125, $M$2, "", "","False") -> 2017-11-20 | D125: =IF(RTD("cqg.rtd",,"StudyData", $I$2, "Bar", "", "Close", $H$2, $B125, $M$2,$L$2,,$J$2,$K$2)="",NA(),RTD("cqg.rtd",,"StudyData", $I$2, "Bar", "", "Close", $H$2, $B125, $M$2,$L$2,,$J$2,$K$2)) ->  | E125: 0 | N125: 6 | O125: -123 | P125: =RTD("cqg.rtd",,"StudyData", $I$2, "Bar", "", "Time", $H$3,$B125, $M$2, "", "","False") -> 2019-10-10 | Q125: =IF(RTD("cqg.rtd",,"StudyData", $I$2, "Bar", "", "Close", $H$3, $B125, $M$2,$L$2,,$J$2,$K$2)="",NA(),RTD("cqg.rtd",,"StudyData", $I$2, "Bar", "", "Close", $H$3, $B125, $M$2,$L$2,,$J$2,$K$2)) -> 4.92 | R125: 4.92 | T125: X.US.BSPSUSCAOFF | U125: Barley Stocks by Position Off-farm 1000 bushels California
A126: 27.004 | B126: -124 | C126: =RTD("cqg.rtd",,"StudyData", $I$2, "Bar", "", "Time", $H$2,$B126, $M$2, "", "","False") -> 2017-11-13 | D126: =IF(RTD("cqg.rtd",,"StudyData", $I$2, "Bar", "", "Close", $H$2, $B126, $M$2,$L$2,,$J$2,$K$2)="",NA(),RTD("cqg.rtd",,"StudyData", $I$2, "Bar", "", "Close", $H$2, $B126, $M$2,$L$2,,$J$2,$K$2)) ->  | E126: 0 | N126: 6.001 | O126: -124 | P126: =RTD("cqg.rtd",,"StudyData", $I$2, "Bar", "", "Time", $H$3,$B126, $M$2, "", "","False") -> 2019-10-09 | Q126: =IF(RTD("cqg.rtd",,"StudyData", $I$2, "Bar", "", "Close", $H$3, $B126, $M$2,$L$2,,$J$2,$K$2)="",NA(),RTD("cqg.rtd",,"StudyData", $I$2, "Bar", "", "Close", $H$3, $B126, $M$2,$L$2,,$J$2,$K$2)) ->  | R126: 0 | T126: X.US.BSPSUSCAONF | U126: Barley Stocks by Position On-farm 1000 bushels California
A127: 28 | B127: -125 | C127: =RTD("cqg.rtd",,"StudyData", $I$2, "Bar", "", "Time", $H$2,$B127, $M$2, "", "","False") -> 2017-11-06 | D127: =IF(RTD("cqg.rtd",,"StudyData", $I$2, "Bar", "", "Close", $H$2, $B127, $M$2,$L$2,,$J$2,$K$2)="",NA(),RTD("cqg.rtd",,"StudyData", $I$2, "Bar", "", "Close", $H$2, $B127, $M$2,$L$2,,$J$2,$K$2)) -> 6.16 | E127: 6.16 | N127: 6.002 | O127: -125 | P127: =RTD("cqg.rtd",,"StudyData", $I$2, "Bar", "", "Time", $H$3,$B127, $M$2, "", "","False") -> 2019-10-08 | Q127: =IF(RTD("cqg.rtd",,"StudyData", $I$2, "Bar", "", "Close", $H$3, $B127, $M$2,$L$2,,$J$2,$K$2)="",NA(),RTD("cqg.rtd",,"StudyData", $I$2, "Bar", "", "Close", $H$3, $B127, $M$2,$L$2,,$J$2,$K$2)) ->  | R127: 0 | T127: X.US.BSPSUSCATAP | U127: Barley Stocks by Position Total all pos. 1000 bushels California
A128: 28.001 | B128: -126 | C128: =RTD("cqg.rtd",,"StudyData", $I$2, "Bar", "", "Time", $H$2,$B128, $M$2, "", "","False") -> 2017-10-30 | D128: =IF(RTD("cqg.rtd",,"StudyData", $I$2, "Bar", "", "Close", $H$2, $B128, $M$2,$L$2,,$J$2,$K$2)="",NA(),RTD("cqg.rtd",,"StudyData", $I$2, "Bar", "", "Close", $H$2, $B128, $M$2,$L$2,,$J$2,$K$2)) ->  | E128: 0 | N128: 6.003 | O128: -126 | P128: =RTD("cqg.rtd",,"StudyData", $I$2, "Bar", "", "Time", $H$3,$B128, $M$2, "", "","False") -> 2019-10-07 | Q128: =IF(RTD("cqg.rtd",,"StudyData", $I$2, "Bar", "", "Close", $H$3, $B128, $M$2,$L$2,,$J$2,$K$2)="",NA(),RTD("cqg.rtd",,"StudyData", $I$2, "Bar", "", "Close", $H$3, $B128, $M$2,$L$2,,$J$2,$K$2)) ->  | R128: 0 | T128: X.US.BSPSUSCOOFF | U128: Barley Stocks by Position Off-farm 1000 bushels Colorado
A129: 28.002 | B129: -127 | C129: =RTD("cqg.rtd",,"StudyData", $I$2, "Bar", "", "Time", $H$2,$B129, $M$2, "", "","False") -> 2017-10-23 | D129: =IF(RTD("cqg.rtd",,"StudyData", $I$2, "Bar", "", "Close", $H$2, $B129, $M$2,$L$2,,$J$2,$K$2)="",NA(),RTD("cqg.rtd",,"StudyData", $I$2, "Bar", "", "Close", $H$2, $B129, $M$2,$L$2,,$J$2,$K$2)) ->  | E129: 0 | N129: 6.004 | O129: -127 | P129: =RTD("cqg.rtd",,"StudyData", $I$2, "Bar", "", "Time", $H$3,$B129, $M$2, "", "","False") -> 2019-10-04 | Q129: =IF(RTD("cqg.rtd",,"StudyData", $I$2, "Bar", "", "Close", $H$3, $B129, $M$2,$L$2,,$J$2,$K$2)="",NA(),RTD("cqg.rtd",,"StudyData", $I$2, "Bar", "", "Close", $H$3, $B129, $M$2,$L$2,,$J$2,$K$2)) ->  | R129: 0 | T129: X.US.BSPSUSCOONF | U129: Barley Stocks by Position On-farm 1000 bushels Colorado
A130: 28.003 | B130: -128 | C130: =RTD("cqg.rtd",,"StudyData", $I$2, "Bar", "", "Time", $H$2,$B130, $M$2, "", "","False") -> 2017-10-16 | D130: =IF(RTD("cqg.rtd",,"StudyData", $I$2, "Bar", "", "Close", $H$2, $B130, $M$2,$L$2,,$J$2,$K$2)="",NA(),RTD("cqg.rtd",,"StudyData", $I$2, "Bar", "", "Close", $H$2, $B130, $M$2,$L$2,,$J$2,$K$2)) ->  | E130: 0 | N130: 6.005 | O130: -128 | P130: =RTD("cqg.rtd",,"StudyData", $I$2, "Bar", "", "Time", $H$3,$B130, $M$2, "", "","False") -> 2019-10-03 | Q130: =IF(RTD("cqg.rtd",,"StudyData", $I$2, "Bar", "", "Close", $H$3, $B130, $M$2,$L$2,,$J$2,$K$2)="",NA(),RTD("cqg.rtd",,"StudyData", $I$2, "Bar", "", "Close", $H$3, $B130, $M$2,$L$2,,$J$2,$K$2)) ->  | R130: 0 | T130: X.US.BSPSUSCOTAP | U130: Barley Stocks by Position Total all pos. 1000 bushels Colorado
A131: 29 | B131: -129 | C131: =RTD("cqg.rtd",,"StudyData", $I$2, "Bar", "", "Time", $H$2,$B131, $M$2, "", "","False") -> 2017-10-09 | D131: =IF(RTD("cqg.rtd",,"StudyData", $I$2, "Bar", "", "Close", $H$2, $B131, $M$2,$L$2,,$J$2,$K$2)="",NA(),RTD("cqg.rtd",,"StudyData", $I$2, "Bar", "", "Close", $H$2, $B131, $M$2,$L$2,,$J$2,$K$2)) -> 6.2 | E131: =IFERROR(D131,0) -> 6.2 | N131: 6.006 | O131: -129 | P131: =RTD("cqg.rtd",,"StudyData", $I$2, "Bar", "", "Time", $H$3,$B131, $M$2, "", "","False") -> 2019-10-02 | Q131: =IF(RTD("cqg.rtd",,"StudyData", $I$2, "Bar", "", "Close", $H$3, $B131, $M$2,$L$2,,$J$2,$K$2)="",NA(),RTD("cqg.rtd",,"StudyData", $I$2, "Bar", "", "Close", $H$3, $B131, $M$2,$L$2,,$J$2,$K$2)) ->  | R131: 0 | T131: X.US.BSPSUSDEOFF | U131: Barley Stocks by Position Off-farm 1000 bushels Delaware
A132: =IF(E132=0,A131+0.001,TRUNC(A131)+1) -> 29.001 | B132: =B131-1 -> -130 | C132: =RTD("cqg.rtd",,"StudyData", $I$2, "Bar", "", "Time", $H$2,$B132, $M$2, "", "","False") -> 2017-10-02 | D132: =IF(RTD("cqg.rtd",,"StudyData", $I$2, "Bar", "", "Close", $H$2, $B132, $M$2,$L$2,,$J$2,$K$2)="",NA(),RTD("cqg.rtd",,"StudyData", $I$2, "Bar", "", "Close", $H$2, $B132, $M$2,$L$2,,$J$2,$K$2)) ->  | E132: 0 | N132: 6.007 | O132: =O131-1 -> -130 | P132: =RTD("cqg.rtd",,"StudyData", $I$2, "Bar", "", "Time", $H$3,$B132, $M$2, "", "","False") -> 2019-10-01 | Q132: =IF(RTD("cqg.rtd",,"StudyData", $I$2, "Bar", "", "Close", $H$3, $B132, $M$2,$L$2,,$J$2,$K$2)="",NA(),RTD("cqg.rtd",,"StudyData", $I$2, "Bar", "", "Close", $H$3, $B132, $M$2,$L$2,,$J$2,$K$2)) ->  | R132: 0 | T132: X.US.BSPSUSDEONF | U132: Barley Stocks by Position On-farm 1000 bushels Delaware
A133: 29.002 | B133: -131 | C133: =RTD("cqg.rtd",,"StudyData", $I$2, "Bar", "", "Time", $H$2,$B133, $M$2, "", "","False") -> 2017-09-25 | D133: =IF(RTD("cqg.rtd",,"StudyData", $I$2, "Bar", "", "Close", $H$2, $B133, $M$2,$L$2,,$J$2,$K$2)="",NA(),RTD("cqg.rtd",,"StudyData", $I$2, "Bar", "", "Close", $H$2, $B133, $M$2,$L$2,,$J$2,$K$2)) ->  | E133: 0 | N133: 6.008 | O133: -131 | P133: =RTD("cqg.rtd",,"StudyData", $I$2, "Bar", "", "Time", $H$3,$B133, $M$2, "", "","False") -> 2019-09-30 | Q133: =IF(RTD("cqg.rtd",,"StudyData", $I$2, "Bar", "", "Close", $H$3, $B133, $M$2,$L$2,,$J$2,$K$2)="",NA(),RTD("cqg.rtd",,"StudyData", $I$2, "Bar", "", "Close", $H$3, $B133, $M$2,$L$2,,$J$2,$K$2)) ->  | R133: 0 | T133: X.US.BSPSUSDETAP | U133: Barley Stocks by Position Total all pos. 1000 bushels Delaware
A134: 29.003 | B134: -132 | C134: =RTD("cqg.rtd",,"StudyData", $I$2, "Bar", "", "Time", $H$2,$B134, $M$2, "", "","False") -> 2017-09-18 | D134: =IF(RTD("cqg.rtd",,"StudyData", $I$2, "Bar", "", "Close", $H$2, $B134, $M$2,$L$2,,$J$2,$K$2)="",NA(),RTD("cqg.rtd",,"StudyData", $I$2, "Bar", "", "Close", $H$2, $B134, $M$2,$L$2,,$J$2,$K$2)) ->  | E134: 0 | N134: 6.009 | O134: -132 | P134: =RTD("cqg.rtd",,"StudyData", $I$2, "Bar", "", "Time", $H$3,$B134, $M$2, "", "","False") -> 2019-09-27 | Q134: =IF(RTD("cqg.rtd",,"StudyData", $I$2, "Bar", "", "Close", $H$3, $B134, $M$2,$L$2,,$J$2,$K$2)="",NA(),RTD("cqg.rtd",,"StudyData", $I$2, "Bar", "", "Close", $H$3, $B134, $M$2,$L$2,,$J$2,$K$2)) ->  | R134: 0 | T134: X.US.BSPSUSFLOFF | U134: Barley Stocks by Position Off-farm 1000 bushels Florida
A135: 30 | B135: -133 | C135: =RTD("cqg.rtd",,"StudyData", $I$2, "Bar", "", "Time", $H$2,$B135, $M$2, "", "","False") -> 2017-09-11 | D135: =IF(RTD("cqg.rtd",,"StudyData", $I$2, "Bar", "", "Close", $H$2, $B135, $M$2,$L$2,,$J$2,$K$2)="",NA(),RTD("cqg.rtd",,"StudyData", $I$2, "Bar", "", "Close", $H$2, $B135, $M$2,$L$2,,$J$2,$K$2)) -> 6.26 | E135: 6.26 | N135: 6.01 | O135: -133 | P135: =RTD("cqg.rtd",,"StudyData", $I$2, "Bar", "", "Time", $H$3,$B135, $M$2, "", "","False") -> 2019-09-26 | Q135: =IF(RTD("cqg.rtd",,"StudyData", $I$2, "Bar", "", "Close", $H$3, $B135, $M$2,$L$2,,$J$2,$K$2)="",NA(),RTD("cqg.rtd",,"StudyData", $I$2, "Bar", "", "Close", $H$3, $B135, $M$2,$L$2,,$J$2,$K$2)) ->  | R135: 0 | T135: X.US.BSPSUSFLONF | U135: Barley Stocks by Position On-farm 1000 bushels Florida
A136: 30.001 | B136: -134 | C136: =RTD("cqg.rtd",,"StudyData", $I$2, "Bar", "", "Time", $H$2,$B136, $M$2, "", "","False") -> 2017-09-04 | D136: =IF(RTD("cqg.rtd",,"StudyData", $I$2, "Bar", "", "Close", $H$2, $B136, $M$2,$L$2,,$J$2,$K$2)="",NA(),RTD("cqg.rtd",,"StudyData", $I$2, "Bar", "", "Close", $H$2, $B136, $M$2,$L$2,,$J$2,$K$2)) ->  | E136: 0 | N136: 6.011 | O136: -134 | P136: =RTD("cqg.rtd",,"StudyData", $I$2, "Bar", "", "Time", $H$3,$B136, $M$2, "", "","False") -> 2019-09-25 | Q136: =IF(RTD("cqg.rtd",,"StudyData", $I$2, "Bar", "", "Close", $H$3, $B136, $M$2,$L$2,,$J$2,$K$2)="",NA(),RTD("cqg.rtd",,"StudyData", $I$2, "Bar", "", "Close", $H$3, $B136, $M$2,$L$2,,$J$2,$K$2)) ->  | R136: 0 | T136: X.US.BSPSUSFLTAP | U136: Barley Stocks by Position Total all pos. 1000 bushels Florida
A137: 30.002 | B137: -135 | C137: =RTD("cqg.rtd",,"StudyData", $I$2, "Bar", "", "Time", $H$2,$B137, $M$2, "", "","False") -> 2017-08-28 | D137: =IF(RTD("cqg.rtd",,"StudyData", $I$2, "Bar", "", "Close", $H$2, $B137, $M$2,$L$2,,$J$2,$K$2)="",NA(),RTD("cqg.rtd",,"StudyData", $I$2, "Bar", "", "Close", $H$2, $B137, $M$2,$L$2,,$J$2,$K$2)) ->  | E137: 0 | N137: 6.012 | O137: -135 | P137: =RTD("cqg.rtd",,"StudyData", $I$2, "Bar", "", "Time", $H$3,$B137, $M$2, "", "","False") -> 2019-09-24 | Q137: =IF(RTD("cqg.rtd",,"StudyData", $I$2, "Bar", "", "Close", $H$3, $B137, $M$2,$L$2,,$J$2,$K$2)="",NA(),RTD("cqg.rtd",,"StudyData", $I$2, "Bar", "", "Close", $H$3, $B137, $M$2,$L$2,,$J$2,$K$2)) ->  | R137: 0 | T137: X.US.BSPSUSGAOFF | U137: Barley Stocks by Position Off-farm 1000 bushels Georgia
A138: 30.003 | B138: -136 | C138: =RTD("cqg.rtd",,"StudyData", $I$2, "Bar", "", "Time", $H$2,$B138, $M$2, "", "","False") -> 2017-08-21 | D138: =IF(RTD("cqg.rtd",,"StudyData", $I$2, "Bar", "", "Close", $H$2, $B138, $M$2,$L$2,,$J$2,$K$2)="",NA(),RTD("cqg.rtd",,"StudyData", $I$2, "Bar", "", "Close", $H$2, $B138, $M$2,$L$2,,$J$2,$K$2)) ->  | E138: 0 | N138: 6.013 | O138: -136 | P138: =RTD("cqg.rtd",,"StudyData", $I$2, "Bar", "", "Time", $H$3,$B138, $M$2, "", "","False") -> 2019-09-23 | Q138: =IF(RTD("cqg.rtd",,"StudyData", $I$2, "Bar", "", "Close", $H$3, $B138, $M$2,$L$2,,$J$2,$K$2)="",NA(),RTD("cqg.rtd",,"StudyData", $I$2, "Bar", "", "Close", $H$3, $B138, $M$2,$L$2,,$J$2,$K$2)) ->  | R138: 0 | T138: X.US.BSPSUSGAONF | U138: Barley Stocks by Position On-farm 1000 bushels Georgia
A139: 30.004 | B139: -137 | C139: =RTD("cqg.rtd",,"StudyData", $I$2, "Bar", "", "Time", $H$2,$B139, $M$2, "", "","False") -> 2017-08-14 | D139: =IF(RTD("cqg.rtd",,"StudyData", $I$2, "Bar", "", "Close", $H$2, $B139, $M$2,$L$2,,$J$2,$K$2)="",NA(),RTD("cqg.rtd",,"StudyData", $I$2, "Bar", "", "Close", $H$2, $B139, $M$2,$L$2,,$J$2,$K$2)) ->  | E139: 0 | N139: 6.014 | O139: -137 | P139: =RTD("cqg.rtd",,"StudyData", $I$2, "Bar", "", "Time", $H$3,$B139, $M$2, "", "","False") -> 2019-09-20 | Q139: =IF(RTD("cqg.rtd",,"StudyData", $I$2, "Bar", "", "Close", $H$3, $B139, $M$2,$L$2,,$J$2,$K$2)="",NA(),RTD("cqg.rtd",,"StudyData", $I$2, "Bar", "", "Close", $H$3, $B139, $M$2,$L$2,,$J$2,$K$2)) ->  | R139: 0 | T139: X.US.BSPSUSGATAP | U139: Barley Stocks by Position Total all pos. 1000 bushels Georgia
A140: 31 | B140: -138 | C140: =RTD("cqg.rtd",,"StudyData", $I$2, "Bar", "", "Time", $H$2,$B140, $M$2, "", "","False") -> 2017-08-07 | D140: =IF(RTD("cqg.rtd",,"StudyData", $I$2, "Bar", "", "Close", $H$2, $B140, $M$2,$L$2,,$J$2,$K$2)="",NA(),RTD("cqg.rtd",,"StudyData", $I$2, "Bar", "", "Close", $H$2, $B140, $M$2,$L$2,,$J$2,$K$2)) -> 5.48 | E140: 5.48 | N140: =IF(R140=0,N139+0.001,TRUNC(N139)+1) -> 6.015 | O140: -138 | P140: =RTD("cqg.rtd",,"StudyData", $I$2, "Bar", "", "Time", $H$3,$B140, $M$2, "", "","False") -> 2019-09-19 | Q140: =IF(RTD("cqg.rtd",,"StudyData", $I$2, "Bar", "", "Close", $H$3, $B140, $M$2,$L$2,,$J$2,$K$2)="",NA(),RTD("cqg.rtd",,"StudyData", $I$2, "Bar", "", "Close", $H$3, $B140, $M$2,$L$2,,$J$2,$K$2)) ->  | R140: =IFERROR(Q140,0) -> 0 | T140: X.US.BSPSUSIAOFF | U140: Barley Stocks by Position Off-farm 1000 bushels Iowa
A141: 31.001 | B141: -139 | C141: =RTD("cqg.rtd",,"StudyData", $I$2, "Bar", "", "Time", $H$2,$B141, $M$2, "", "","False") -> 2017-07-31 | D141: =IF(RTD("cqg.rtd",,"StudyData", $I$2, "Bar", "", "Close", $H$2, $B141, $M$2,$L$2,,$J$2,$K$2)="",NA(),RTD("cqg.rtd",,"StudyData", $I$2, "Bar", "", "Close", $H$2, $B141, $M$2,$L$2,,$J$2,$K$2)) ->  | E141: 0 | N141: 6.016 | O141: -139 | P141: =RTD("cqg.rtd",,"StudyData", $I$2, "Bar", "", "Time", $H$3,$B141, $M$2, "", "","False") -> 2019-09-18 | Q141: =IF(RTD("cqg.rtd",,"StudyData", $I$2, "Bar", "", "Close", $H$3, $B141, $M$2,$L$2,,$J$2,$K$2)="",NA(),RTD("cqg.rtd",,"StudyData", $I$2, "Bar", "", "Close", $H$3, $B141, $M$2,$L$2,,$J$2,$K$2)) ->  | R141: 0 | T141: X.US.BSPSUSIAONF | U141: Barley Stocks by Position On-farm 1000 bushels Iowa
A142: 31.002 | B142: -140 | C142: =RTD("cqg.rtd",,"StudyData", $I$2, "Bar", "", "Time", $H$2,$B142, $M$2, "", "","False") -> 2017-07-24 | D142: =IF(RTD("cqg.rtd",,"StudyData", $I$2, "Bar", "", "Close", $H$2, $B142, $M$2,$L$2,,$J$2,$K$2)="",NA(),RTD("cqg.rtd",,"StudyData", $I$2, "Bar", "", "Close", $H$2, $B142, $M$2,$L$2,,$J$2,$K$2)) ->  | E142: 0 | N142: 6.017 | O142: -140 | P142: =RTD("cqg.rtd",,"StudyData", $I$2, "Bar", "", "Time", $H$3,$B142, $M$2, "", "","False") -> 2019-09-17 | Q142: =IF(RTD("cqg.rtd",,"StudyData", $I$2, "Bar", "", "Close", $H$3, $B142, $M$2,$L$2,,$J$2,$K$2)="",NA(),RTD("cqg.rtd",,"StudyData", $I$2, "Bar", "", "Close", $H$3, $B142, $M$2,$L$2,,$J$2,$K$2)) ->  | R142: 0 | T142: X.US.BSPSUSIATAP | U142: Barley Stocks by Position Total all pos. 1000 bushels Iowa
A143: 31.003 | B143: -141 | C143: =RTD("cqg.rtd",,"StudyData", $I$2, "Bar", "", "Time", $H$2,$B143, $M$2, "", "","False") -> 2017-07-17 | D143: =IF(RTD("cqg.rtd",,"StudyData", $I$2, "Bar", "", "Close", $H$2, $B143, $M$2,$L$2,,$J$2,$K$2)="",NA(),RTD("cqg.rtd",,"StudyData", $I$2, "Bar", "", "Close", $H$2, $B143, $M$2,$L$2,,$J$2,$K$2)) ->  | E143: 0 | N143: 6.018 | O143: -141 | P143: =RTD("cqg.rtd",,"StudyData", $I$2, "Bar", "", "Time", $H$3,$B143, $M$2, "", "","False") -> 2019-09-16 | Q143: =IF(RTD("cqg.rtd",,"StudyData", $I$2, "Bar", "", "Close", $H$3, $B143, $M$2,$L$2,,$J$2,$K$2)="",NA(),RTD("cqg.rtd",,"StudyData", $I$2, "Bar", "", "Close", $H$3, $B143, $M$2,$L$2,,$J$2,$K$2)) ->  | R143: 0 | T143: X.US.BSPSUSIDOFF | U143: Barley Stocks by Position Off-farm 1000 bushels Idaho
A144: 32 | B144: -142 | C144: =RTD("cqg.rtd",,"StudyData", $I$2, "Bar", "", "Time", $H$2,$B144, $M$2, "", "","False") -> 2017-07-10 | D144: =IF(RTD("cqg.rtd",,"StudyData", $I$2, "Bar", "", "Close", $H$2, $B144, $M$2,$L$2,,$J$2,$K$2)="",NA(),RTD("cqg.rtd",,"StudyData", $I$2, "Bar", "", "Close", $H$2, $B144, $M$2,$L$2,,$J$2,$K$2)) -> 5.33 | E144: 5.33 | N144: 6.019 | O144: -142 | P144: =RTD("cqg.rtd",,"StudyData", $I$2, "Bar", "", "Time", $H$3,$B144, $M$2, "", "","False") -> 2019-09-13 | Q144: =IF(RTD("cqg.rtd",,"StudyData", $I$2, "Bar", "", "Close", $H$3, $B144, $M$2,$L$2,,$J$2,$K$2)="",NA(),RTD("cqg.rtd",,"StudyData", $I$2, "Bar", "", "Close", $H$3, $B144, $M$2,$L$2,,$J$2,$K$2)) ->  | R144: 0 | T144: X.US.BSPSUSIDONF | U144: Barley Stocks by Position On-farm 1000 bushels Idaho
A145: 32.001 | B145: -143 | C145: =RTD("cqg.rtd",,"StudyData", $I$2, "Bar", "", "Time", $H$2,$B145, $M$2, "", "","False") -> 2017-07-03 | D145: =IF(RTD("cqg.rtd",,"StudyData", $I$2, "Bar", "", "Close", $H$2, $B145, $M$2,$L$2,,$J$2,$K$2)="",NA(),RTD("cqg.rtd",,"StudyData", $I$2, "Bar", "", "Close", $H$2, $B145, $M$2,$L$2,,$J$2,$K$2)) ->  | E145: 0 | N145: 7 | O145: -143 | P145: =RTD("cqg.rtd",,"StudyData", $I$2, "Bar", "", "Time", $H$3,$B145, $M$2, "", "","False") -> 2019-09-12 | Q145: =IF(RTD("cqg.rtd",,"StudyData", $I$2, "Bar", "", "Close", $H$3, $B145, $M$2,$L$2,,$J$2,$K$2)="",NA(),RTD("cqg.rtd",,"StudyData", $I$2, "Bar", "", "Close", $H$3, $B145, $M$2,$L$2,,$J$2,$K$2)) -> 4.81 | R145: 4.81 | T145: X.US.BSPSUSIDTAP | U145: Barley Stocks by Position Total all pos. 1000 bushels Idaho
A146: 32.002 | B146: -144 | C146: =RTD("cqg.rtd",,"StudyData", $I$2, "Bar", "", "Time", $H$2,$B146, $M$2, "", "","False") -> 2017-06-26 | D146: =IF(RTD("cqg.rtd",,"StudyData", $I$2, "Bar", "", "Close", $H$2, $B146, $M$2,$L$2,,$J$2,$K$2)="",NA(),RTD("cqg.rtd",,"StudyData", $I$2, "Bar", "", "Close", $H$2, $B146, $M$2,$L$2,,$J$2,$K$2)) ->  | E146: 0 | N146: 7.001 | O146: -144 | P146: =RTD("cqg.rtd",,"StudyData", $I$2, "Bar", "", "Time", $H$3,$B146, $M$2, "", "","False") -> 2019-09-11 | Q146: =IF(RTD("cqg.rtd",,"StudyData", $I$2, "Bar", "", "Close", $H$3, $B146, $M$2,$L$2,,$J$2,$K$2)="",NA(),RTD("cqg.rtd",,"StudyData", $I$2, "Bar", "", "Close", $H$3, $B146, $M$2,$L$2,,$J$2,$K$2)) ->  | R146: 0 | T146: X.US.BSPSUSILOFF | U146: Barley Stocks by Position Off-farm 1000 bushels Illinois
A147: 32.003 | B147: -145 | C147: =RTD("cqg.rtd",,"StudyData", $I$2, "Bar", "", "Time", $H$2,$B147, $M$2, "", "","False") -> 2017-06-19 | D147: =IF(RTD("cqg.rtd",,"StudyData", $I$2, "Bar", "", "Close", $H$2, $B147, $M$2,$L$2,,$J$2,$K$2)="",NA(),RTD("cqg.rtd",,"StudyData", $I$2, "Bar", "", "Close", $H$2, $B147, $M$2,$L$2,,$J$2,$K$2)) ->  | E147: 0 | N147: 7.002 | O147: -145 | P147: =RTD("cqg.rtd",,"StudyData", $I$2, "Bar", "", "Time", $H$3,$B147, $M$2, "", "","False") -> 2019-09-10 | Q147: =IF(RTD("cqg.rtd",,"StudyData", $I$2, "Bar", "", "Close", $H$3, $B147, $M$2,$L$2,,$J$2,$K$2)="",NA(),RTD("cqg.rtd",,"StudyData", $I$2, "Bar", "", "Close", $H$3, $B147, $M$2,$L$2,,$J$2,$K$2)) ->  | R147: 0 | T147: X.US.BSPSUSILONF | U147: Barley Stocks by Position On-farm 1000 bushels Illinois
A148: 32.004 | B148: -146 | C148: =RTD("cqg.rtd",,"StudyData", $I$2, "Bar", "", "Time", $H$2,$B148, $M$2, "", "","False") -> 2017-06-12 | D148: =IF(RTD("cqg.rtd",,"StudyData", $I$2, "Bar", "", "Close", $H$2, $B148, $M$2,$L$2,,$J$2,$K$2)="",NA(),RTD("cqg.rtd",,"StudyData", $I$2, "Bar", "", "Close", $H$2, $B148, $M$2,$L$2,,$J$2,$K$2)) ->  | E148: 0 | N148: 7.003 | O148: -146 | P148: =RTD("cqg.rtd",,"StudyData", $I$2, "Bar", "", "Time", $H$3,$B148, $M$2, "", "","False") -> 2019-09-09 | Q148: =IF(RTD("cqg.rtd",,"StudyData", $I$2, "Bar", "", "Close", $H$3, $B148, $M$2,$L$2,,$J$2,$K$2)="",NA(),RTD("cqg.rtd",,"StudyData", $I$2, "Bar", "", "Close", $H$3, $B148, $M$2,$L$2,,$J$2,$K$2)) ->  | R148: 0 | T148: X.US.BSPSUSILTAP | U148: Barley Stocks by Position Total all pos. 1000 bushels Illinois
A149: 33 | B149: -147 | C149: =RTD("cqg.rtd",,"StudyData", $I$2, "Bar", "", "Time", $H$2,$B149, $M$2, "", "","False") -> 2017-06-05 | D149: =IF(RTD("cqg.rtd",,"StudyData", $I$2, "Bar", "", "Close", $H$2, $B149, $M$2,$L$2,,$J$2,$K$2)="",NA(),RTD("cqg.rtd",,"StudyData", $I$2, "Bar", "", "Close", $H$2, $B149, $M$2,$L$2,,$J$2,$K$2)) -> 4.67 | E149: 4.67 | N149: 7.004 | O149: -147 | P149: =RTD("cqg.rtd",,"StudyData", $I$2, "Bar", "", "Time", $H$3,$B149, $M$2, "", "","False") -> 2019-09-06 | Q149: =IF(RTD("cqg.rtd",,"StudyData", $I$2, "Bar", "", "Close", $H$3, $B149, $M$2,$L$2,,$J$2,$K$2)="",NA(),RTD("cqg.rtd",,"StudyData", $I$2, "Bar", "", "Close", $H$3, $B149, $M$2,$L$2,,$J$2,$K$2)) ->  | R149: 0 | T149: X.US.BSPSUSINOFF | U149: Barley Stocks by Position Off-farm 1000 bushels Indiana
A150: 33.001 | B150: -148 | C150: =RTD("cqg.rtd",,"StudyData", $I$2, "Bar", "", "Time", $H$2,$B150, $M$2, "", "","False") -> 2017-05-29 | D150: =IF(RTD("cqg.rtd",,"StudyData", $I$2, "Bar", "", "Close", $H$2, $B150, $M$2,$L$2,,$J$2,$K$2)="",NA(),RTD("cqg.rtd",,"StudyData", $I$2, "Bar", "", "Close", $H$2, $B150, $M$2,$L$2,,$J$2,$K$2)) ->  | E150: 0 | N150: 7.005 | O150: -148 | P150: =RTD("cqg.rtd",,"StudyData", $I$2, "Bar", "", "Time", $H$3,$B150, $M$2, "", "","False") -> 2019-09-05 | Q150: =IF(RTD("cqg.rtd",,"StudyData", $I$2, "Bar", "", "Close", $H$3, $B150, $M$2,$L$2,,$J$2,$K$2)="",NA(),RTD("cqg.rtd",,"StudyData", $I$2, "Bar", "", "Close", $H$3, $B150, $M$2,$L$2,,$J$2,$K$2)) ->  | R150: 0 | T150: X.US.BSPSUSINONF | U150: Barley Stocks by Position On-farm 1000 bushels Indiana
A151: 33.002 | B151: -149 | C151: =RTD("cqg.rtd",,"StudyData", $I$2, "Bar", "", "Time", $H$2,$B151, $M$2, "", "","False") -> 2017-05-22 | D151: =IF(RTD("cqg.rtd",,"StudyData", $I$2, "Bar", "", "Close", $H$2, $B151, $M$2,$L$2,,$J$2,$K$2)="",NA(),RTD("cqg.rtd",,"StudyData", $I$2, "Bar", "", "Close", $H$2, $B151, $M$2,$L$2,,$J$2,$K$2)) ->  | E151: 0 | N151: 7.006 | O151: -149 | P151: =RTD("cqg.rtd",,"StudyData", $I$2, "Bar", "", "Time", $H$3,$B151, $M$2, "", "","False") -> 2019-09-04 | Q151: =IF(RTD("cqg.rtd",,"StudyData", $I$2, "Bar", "", "Close", $H$3, $B151, $M$2,$L$2,,$J$2,$K$2)="",NA(),RTD("cqg.rtd",,"StudyData", $I$2, "Bar", "", "Close", $H$3, $B151, $M$2,$L$2,,$J$2,$K$2)) ->  | R151: 0 | T151: X.US.BSPSUSINTAP | U151: Barley Stocks by Position Total all pos. 1000 bushels Indiana
A152: 33.003 | B152: -150 | C152: =RTD("cqg.rtd",,"StudyData", $I$2, "Bar", "", "Time", $H$2,$B152, $M$2, "", "","False") -> 2017-05-15 | D152: =IF(RTD("cqg.rtd",,"StudyData", $I$2, "Bar", "", "Close", $H$2, $B152, $M$2,$L$2,,$J$2,$K$2)="",NA(),RTD("cqg.rtd",,"StudyData", $I$2, "Bar", "", "Close", $H$2, $B152, $M$2,$L$2,,$J$2,$K$2)) ->  | E152: 0 | N152: 7.007 | O152: -150 | P152: =RTD("cqg.rtd",,"StudyData", $I$2, "Bar", "", "Time", $H$3,$B152, $M$2, "", "","False") -> 2019-09-03 | Q152: =IF(RTD("cqg.rtd",,"StudyData", $I$2, "Bar", "", "Close", $H$3, $B152, $M$2,$L$2,,$J$2,$K$2)="",NA(),RTD("cqg.rtd",,"StudyData", $I$2, "Bar", "", "Close", $H$3, $B152, $M$2,$L$2,,$J$2,$K$2)) ->  | R152: 0 | T152: X.US.BSPSUSKSOFF | U152: Barley Stocks by Position Off-farm 1000 bushels Kansas
A153: 34 | B153: -151 | C153: =RTD("cqg.rtd",,"StudyData", $I$2, "Bar", "", "Time", $H$2,$B153, $M$2, "", "","False") -> 2017-05-08 | D153: =IF(RTD("cqg.rtd",,"StudyData", $I$2, "Bar", "", "Close", $H$2, $B153, $M$2,$L$2,,$J$2,$K$2)="",NA(),RTD("cqg.rtd",,"StudyData", $I$2, "Bar", "", "Close", $H$2, $B153, $M$2,$L$2,,$J$2,$K$2)) -> 4.71 | E153: 4.71 | N153: 7.008 | O153: -151 | P153: =RTD("cqg.rtd",,"StudyData", $I$2, "Bar", "", "Time", $H$3,$B153, $M$2, "", "","False") -> 2019-09-02 | Q153: =IF(RTD("cqg.rtd",,"StudyData", $I$2, "Bar", "", "Close", $H$3, $B153, $M$2,$L$2,,$J$2,$K$2)="",NA(),RTD("cqg.rtd",,"StudyData", $I$2, "Bar", "", "Close", $H$3, $B153, $M$2,$L$2,,$J$2,$K$2)) ->  | R153: 0 | T153: X.US.BSPSUSKSONF | U153: Barley Stocks by Position On-farm 1000 bushels Kansas
A154: 34.001 | B154: -152 | C154: =RTD("cqg.rtd",,"StudyData", $I$2, "Bar", "", "Time", $H$2,$B154, $M$2, "", "","False") -> 2017-05-01 | D154: =IF(RTD("cqg.rtd",,"StudyData", $I$2, "Bar", "", "Close", $H$2, $B154, $M$2,$L$2,,$J$2,$K$2)="",NA(),RTD("cqg.rtd",,"StudyData", $I$2, "Bar", "", "Close", $H$2, $B154, $M$2,$L$2,,$J$2,$K$2)) ->  | E154: 0 | N154: 7.009 | O154: -152 | P154: =RTD("cqg.rtd",,"StudyData", $I$2, "Bar", "", "Time", $H$3,$B154, $M$2, "", "","False") -> 2019-08-30 | Q154: =IF(RTD("cqg.rtd",,"StudyData", $I$2, "Bar", "", "Close", $H$3, $B154, $M$2,$L$2,,$J$2,$K$2)="",NA(),RTD("cqg.rtd",,"StudyData", $I$2, "Bar", "", "Close", $H$3, $B154, $M$2,$L$2,,$J$2,$K$2)) ->  | R154: 0 | T154: X.US.BSPSUSKSTAP | U154: Barley Stocks by Position Total all pos. 1000 bushels Kansas
A155: 34.002 | B155: -153 | C155: =RTD("cqg.rtd",,"StudyData", $I$2, "Bar", "", "Time", $H$2,$B155, $M$2, "", "","False") -> 2017-04-24 | D155: =IF(RTD("cqg.rtd",,"StudyData", $I$2, "Bar", "", "Close", $H$2, $B155, $M$2,$L$2,,$J$2,$K$2)="",NA(),RTD("cqg.rtd",,"StudyData", $I$2, "Bar", "", "Close", $H$2, $B155, $M$2,$L$2,,$J$2,$K$2)) ->  | E155: 0 | N155: 7.01 | O155: -153 | P155: =RTD("cqg.rtd",,"StudyData", $I$2, "Bar", "", "Time", $H$3,$B155, $M$2, "", "","False") -> 2019-08-29 | Q155: =IF(RTD("cqg.rtd",,"StudyData", $I$2, "Bar", "", "Close", $H$3, $B155, $M$2,$L$2,,$J$2,$K$2)="",NA(),RTD("cqg.rtd",,"StudyData", $I$2, "Bar", "", "Close", $H$3, $B155, $M$2,$L$2,,$J$2,$K$2)) ->  | R155: 0 | T155: X.US.BSPSUSKYOFF | U155: Barley Stocks by Position Off-farm 1000 bushels Kentucky
A156: 34.003 | B156: -154 | C156: =RTD("cqg.rtd",,"StudyData", $I$2, "Bar", "", "Time", $H$2,$B156, $M$2, "", "","False") -> 2017-04-17 | D156: =IF(RTD("cqg.rtd",,"StudyData", $I$2, "Bar", "", "Close", $H$2, $B156, $M$2,$L$2,,$J$2,$K$2)="",NA(),RTD("cqg.rtd",,"StudyData", $I$2, "Bar", "", "Close", $H$2, $B156, $M$2,$L$2,,$J$2,$K$2)) ->  | E156: 0 | N156: 7.011 | O156: -154 | P156: =RTD("cqg.rtd",,"StudyData", $I$2, "Bar", "", "Time", $H$3,$B156, $M$2, "", "","False") -> 2019-08-28 | Q156: =IF(RTD("cqg.rtd",,"StudyData", $I$2, "Bar", "", "Close", $H$3, $B156, $M$2,$L$2,,$J$2,$K$2)="",NA(),RTD("cqg.rtd",,"StudyData", $I$2, "Bar", "", "Close", $H$3, $B156, $M$2,$L$2,,$J$2,$K$2)) ->  | R156: 0 | T156: X.US.BSPSUSKYONF | U156: Barley Stocks by Position On-farm 1000 bushels Kentucky
A157: 35 | B157: -155 | C157: =RTD("cqg.rtd",,"StudyData", $I$2, "Bar", "", "Time", $H$2,$B157, $M$2, "", "","False") -> 2017-04-10 | D157: =IF(RTD("cqg.rtd",,"StudyData", $I$2, "Bar", "", "Close", $H$2, $B157, $M$2,$L$2,,$J$2,$K$2)="",NA(),RTD("cqg.rtd",,"StudyData", $I$2, "Bar", "", "Close", $H$2, $B157, $M$2,$L$2,,$J$2,$K$2)) -> 5.09 | E157: 5.09 | N157: 7.012 | O157: -155 | P157: =RTD("cqg.rtd",,"StudyData", $I$2, "Bar", "", "Time", $H$3,$B157, $M$2, "", "","False") -> 2019-08-27 | Q157: =IF(RTD("cqg.rtd",,"StudyData", $I$2, "Bar", "", "Close", $H$3, $B157, $M$2,$L$2,,$J$2,$K$2)="",NA(),RTD("cqg.rtd",,"StudyData", $I$2, "Bar", "", "Close", $H$3, $B157, $M$2,$L$2,,$J$2,$K$2)) ->  | R157: 0 | T157: X.US.BSPSUSKYTAP | U157: Barley Stocks by Position Total all pos. 1000 bushels Kentucky
A158: 35.001 | B158: -156 | C158: =RTD("cqg.rtd",,"StudyData", $I$2, "Bar", "", "Time", $H$2,$B158, $M$2, "", "","False") -> 2017-04-03 | D158: =IF(RTD("cqg.rtd",,"StudyData", $I$2, "Bar", "", "Close", $H$2, $B158, $M$2,$L$2,,$J$2,$K$2)="",NA(),RTD("cqg.rtd",,"StudyData", $I$2, "Bar", "", "Close", $H$2, $B158, $M$2,$L$2,,$J$2,$K$2)) ->  | E158: 0 | N158: 7.013 | O158: -156 | P158: =RTD("cqg.rtd",,"StudyData", $I$2, "Bar", "", "Time", $H$3,$B158, $M$2, "", "","False") -> 2019-08-26 | Q158: =IF(RTD("cqg.rtd",,"StudyData", $I$2, "Bar", "", "Close", $H$3, $B158, $M$2,$L$2,,$J$2,$K$2)="",NA(),RTD("cqg.rtd",,"StudyData", $I$2, "Bar", "", "Close", $H$3, $B158, $M$2,$L$2,,$J$2,$K$2)) ->  | R158: 0 | T158: X.US.BSPSUSLAOFF | U158: Barley Stocks by Position Off-farm 1000 bushels Louisiana
A159: 35.002 | B159: -157 | C159: =RTD("cqg.rtd",,"StudyData", $I$2, "Bar", "", "Time", $H$2,$B159, $M$2, "", "","False") -> 2017-03-27 | D159: =IF(RTD("cqg.rtd",,"StudyData", $I$2, "Bar", "", "Close", $H$2, $B159, $M$2,$L$2,,$J$2,$K$2)="",NA(),RTD("cqg.rtd",,"StudyData", $I$2, "Bar", "", "Close", $H$2, $B159, $M$2,$L$2,,$J$2,$K$2)) ->  | E159: 0 | N159: 7.014 | O159: -157 | P159: =RTD("cqg.rtd",,"StudyData", $I$2, "Bar", "", "Time", $H$3,$B159, $M$2, "", "","False") -> 2019-08-23 | Q159: =IF(RTD("cqg.rtd",,"StudyData", $I$2, "Bar", "", "Close", $H$3, $B159, $M$2,$L$2,,$J$2,$K$2)="",NA(),RTD("cqg.rtd",,"StudyData", $I$2, "Bar", "", "Close", $H$3, $B159, $M$2,$L$2,,$J$2,$K$2)) ->  | R159: 0 | T159: X.US.BSPSUSLAONF | U159: Barley Stocks by Position On-farm 1000 bushels Louisiana
A160: 35.003 | B160: -158 | C160: =RTD("cqg.rtd",,"StudyData", $I$2, "Bar", "", "Time", $H$2,$B160, $M$2, "", "","False") -> 2017-03-20 | D160: =IF(RTD("cqg.rtd",,"StudyData", $I$2, "Bar", "", "Close", $H$2, $B160, $M$2,$L$2,,$J$2,$K$2)="",NA(),RTD("cqg.rtd",,"StudyData", $I$2, "Bar", "", "Close", $H$2, $B160, $M$2,$L$2,,$J$2,$K$2)) ->  | E160: 0 | N160: 7.015 | O160: -158 | P160: =RTD("cqg.rtd",,"StudyData", $I$2, "Bar", "", "Time", $H$3,$B160, $M$2, "", "","False") -> 2019-08-22 | Q160: =IF(RTD("cqg.rtd",,"StudyData", $I$2, "Bar", "", "Close", $H$3, $B160, $M$2,$L$2,,$J$2,$K$2)="",NA(),RTD("cqg.rtd",,"StudyData", $I$2, "Bar", "", "Close", $H$3, $B160, $M$2,$L$2,,$J$2,$K$2)) ->  | R160: 0 | T160: X.US.BSPSUSLATAP | U160: Barley Stocks by Position Total all pos. 1000 bushels Louisiana
A161: 35.004 | B161: -159 | C161: =RTD("cqg.rtd",,"StudyData", $I$2, "Bar", "", "Time", $H$2,$B161, $M$2, "", "","False") -> 2017-03-13 | D161: =IF(RTD("cqg.rtd",,"StudyData", $I$2, "Bar", "", "Close", $H$2, $B161, $M$2,$L$2,,$J$2,$K$2)="",NA(),RTD("cqg.rtd",,"StudyData", $I$2, "Bar", "", "Close", $H$2, $B161, $M$2,$L$2,,$J$2,$K$2)) ->  | E161: 0 | N161: 7.016 | O161: -159 | P161: =RTD("cqg.rtd",,"StudyData", $I$2, "Bar", "", "Time", $H$3,$B161, $M$2, "", "","False") -> 2019-08-21 | Q161: =IF(RTD("cqg.rtd",,"StudyData", $I$2, "Bar", "", "Close", $H$3, $B161, $M$2,$L$2,,$J$2,$K$2)="",NA(),RTD("cqg.rtd",,"StudyData", $I$2, "Bar", "", "Close", $H$3, $B161, $M$2,$L$2,,$J$2,$K$2)) ->  | R161: 0 | T161: X.US.BSPSUSMDOFF | U161: Barley Stocks by Position Off-farm 1000 bushels Maryland
A162: 36 | B162: -160 | C162: =RTD("cqg.rtd",,"StudyData", $I$2, "Bar", "", "Time", $H$2,$B162, $M$2, "", "","False") -> 2017-03-06 | D162: =IF(RTD("cqg.rtd",,"StudyData", $I$2, "Bar", "", "Close", $H$2, $B162, $M$2,$L$2,,$J$2,$K$2)="",NA(),RTD("cqg.rtd",,"StudyData", $I$2, "Bar", "", "Close", $H$2, $B162, $M$2,$L$2,,$J$2,$K$2)) -> 5.09 | E162: 5.09 | N162: 7.017 | O162: -160 | P162: =RTD("cqg.rtd",,"StudyData", $I$2, "Bar", "", "Time", $H$3,$B162, $M$2, "", "","False") -> 2019-08-20 | Q162: =IF(RTD("cqg.rtd",,"StudyData", $I$2, "Bar", "", "Close", $H$3, $B162, $M$2,$L$2,,$J$2,$K$2)="",NA(),RTD("cqg.rtd",,"StudyData", $I$2, "Bar", "", "Close", $H$3, $B162, $M$2,$L$2,,$J$2,$K$2)) ->  | R162: 0 | T162: X.US.BSPSUSMDONF | U162: Barley Stocks by Position On-farm 1000 bushels Maryland
A163: 36.001 | B163: -161 | C163: =RTD("cqg.rtd",,"StudyData", $I$2, "Bar", "", "Time", $H$2,$B163, $M$2, "", "","False") -> 2017-02-27 | D163: =IF(RTD("cqg.rtd",,"StudyData", $I$2, "Bar", "", "Close", $H$2, $B163, $M$2,$L$2,,$J$2,$K$2)="",NA(),RTD("cqg.rtd",,"StudyData", $I$2, "Bar", "", "Close", $H$2, $B163, $M$2,$L$2,,$J$2,$K$2)) ->  | E163: 0 | N163: 7.018 | O163: -161 | P163: =RTD("cqg.rtd",,"StudyData", $I$2, "Bar", "", "Time", $H$3,$B163, $M$2, "", "","False") -> 2019-08-19 | Q163: =IF(RTD("cqg.rtd",,"StudyData", $I$2, "Bar", "", "Close", $H$3, $B163, $M$2,$L$2,,$J$2,$K$2)="",NA(),RTD("cqg.rtd",,"StudyData", $I$2, "Bar", "", "Close", $H$3, $B163, $M$2,$L$2,,$J$2,$K$2)) ->  | R163: 0 | T163: X.US.BSPSUSMDTAP | U163: Barley Stocks by Position Total all pos. 1000 bushels Maryland
A164: 36.002 | B164: -162 | C164: =RTD("cqg.rtd",,"StudyData", $I$2, "Bar", "", "Time", $H$2,$B164, $M$2, "", "","False") -> 2017-02-20 | D164: =IF(RTD("cqg.rtd",,"StudyData", $I$2, "Bar", "", "Close", $H$2, $B164, $M$2,$L$2,,$J$2,$K$2)="",NA(),RTD("cqg.rtd",,"StudyData", $I$2, "Bar", "", "Close", $H$2, $B164, $M$2,$L$2,,$J$2,$K$2)) ->  | E164: 0 | N164: 7.019 | O164: -162 | P164: =RTD("cqg.rtd",,"StudyData", $I$2, "Bar", "", "Time", $H$3,$B164, $M$2, "", "","False") -> 2019-08-16 | Q164: =IF(RTD("cqg.rtd",,"StudyData", $I$2, "Bar", "", "Close", $H$3, $B164, $M$2,$L$2,,$J$2,$K$2)="",NA(),RTD("cqg.rtd",,"StudyData", $I$2, "Bar", "", "Close", $H$3, $B164, $M$2,$L$2,,$J$2,$K$2)) ->  | R164: 0 | T164: X.US.BSPSUSMIOFF | U164: Barley Stocks by Position Off-farm 1000 bushels Michigan
A165: 36.003 | B165: -163 | C165: =RTD("cqg.rtd",,"StudyData", $I$2, "Bar", "", "Time", $H$2,$B165, $M$2, "", "","False") -> 2017-02-13 | D165: =IF(RTD("cqg.rtd",,"StudyData", $I$2, "Bar", "", "Close", $H$2, $B165, $M$2,$L$2,,$J$2,$K$2)="",NA(),RTD("cqg.rtd",,"StudyData", $I$2, "Bar", "", "Close", $H$2, $B165, $M$2,$L$2,,$J$2,$K$2)) ->  | E165: 0 | N165: 7.02 | O165: -163 | P165: =RTD("cqg.rtd",,"StudyData", $I$2, "Bar", "", "Time", $H$3,$B165, $M$2, "", "","False") -> 2019-08-15 | Q165: =IF(RTD("cqg.rtd",,"StudyData", $I$2, "Bar", "", "Close", $H$3, $B165, $M$2,$L$2,,$J$2,$K$2)="",NA(),RTD("cqg.rtd",,"StudyData", $I$2, "Bar", "", "Close", $H$3, $B165, $M$2,$L$2,,$J$2,$K$2)) ->  | R165: 0 | T165: X.US.BSPSUSMIONF | U165: Barley Stocks by Position On-farm 1000 bushels Michigan
A166: 37 | B166: -164 | C166: =RTD("cqg.rtd",,"StudyData", $I$2, "Bar", "", "Time", $H$2,$B166, $M$2, "", "","False") -> 2017-02-06 | D166: =IF(RTD("cqg.rtd",,"StudyData", $I$2, "Bar", "", "Close", $H$2, $B166, $M$2,$L$2,,$J$2,$K$2)="",NA(),RTD("cqg.rtd",,"StudyData", $I$2, "Bar", "", "Close", $H$2, $B166, $M$2,$L$2,,$J$2,$K$2)) -> 5.09 | E166: 5.09 | N166: 7.021 | O166: -164 | P166: =RTD("cqg.rtd",,"StudyData", $I$2, "Bar", "", "Time", $H$3,$B166, $M$2, "", "","False") -> 2019-08-14 | Q166: =IF(RTD("cqg.rtd",,"StudyData", $I$2, "Bar", "", "Close", $H$3, $B166, $M$2,$L$2,,$J$2,$K$2)="",NA(),RTD("cqg.rtd",,"StudyData", $I$2, "Bar", "", "Close", $H$3, $B166, $M$2,$L$2,,$J$2,$K$2)) ->  | R166: 0 | T166: X.US.BSPSUSMITAP | U166: Barley Stocks by Position Total all pos. 1000 bushels Michigan
A167: 37.001 | B167: -165 | C167: =RTD("cqg.rtd",,"StudyData", $I$2, "Bar", "", "Time", $H$2,$B167, $M$2, "", "","False") -> 2017-01-30 | D167: =IF(RTD("cqg.rtd",,"StudyData", $I$2, "Bar", "", "Close", $H$2, $B167, $M$2,$L$2,,$J$2,$K$2)="",NA(),RTD("cqg.rtd",,"StudyData", $I$2, "Bar", "", "Close", $H$2, $B167, $M$2,$L$2,,$J$2,$K$2)) ->  | E167: 0 | N167: 7.022 | O167: -165 | P167: =RTD("cqg.rtd",,"StudyData", $I$2, "Bar", "", "Time", $H$3,$B167, $M$2, "", "","False") -> 2019-08-13 | Q167: =IF(RTD("cqg.rtd",,"StudyData", $I$2, "Bar", "", "Close", $H$3, $B167, $M$2,$L$2,,$J$2,$K$2)="",NA(),RTD("cqg.rtd",,"StudyData", $I$2, "Bar", "", "Close", $H$3, $B167, $M$2,$L$2,,$J$2,$K$2)) ->  | R167: 0 | T167: X.US.BSPSUSMNOFF | U167: Barley Stocks by Position Off-farm 1000 bushels Minnesota
A168: 37.002 | B168: -166 | C168: =RTD("cqg.rtd",,"StudyData", $I$2, "Bar", "", "Time", $H$2,$B168, $M$2, "", "","False") -> 2017-01-23 | D168: =IF(RTD("cqg.rtd",,"StudyData", $I$2, "Bar", "", "Close", $H$2, $B168, $M$2,$L$2,,$J$2,$K$2)="",NA(),RTD("cqg.rtd",,"StudyData", $I$2, "Bar", "", "Close", $H$2, $B168, $M$2,$L$2,,$J$2,$K$2)) ->  | E168: 0 | N168: 8 | O168: -166 | P168: =RTD("cqg.rtd",,"StudyData", $I$2, "Bar", "", "Time", $H$3,$B168, $M$2, "", "","False") -> 2019-08-12 | Q168: =IF(RTD("cqg.rtd",,"StudyData", $I$2, "Bar", "", "Close", $H$3, $B168, $M$2,$L$2,,$J$2,$K$2)="",NA(),RTD("cqg.rtd",,"StudyData", $I$2, "Bar", "", "Close", $H$3, $B168, $M$2,$L$2,,$J$2,$K$2)) -> 4.92 | R168: 4.92 | T168: X.US.BSPSUSMNONF | U168: Barley Stocks by Position On-farm 1000 bushels Minnesota
A169: 37.003 | B169: -167 | C169: =RTD("cqg.rtd",,"StudyData", $I$2, "Bar", "", "Time", $H$2,$B169, $M$2, "", "","False") -> 2017-01-16 | D169: =IF(RTD("cqg.rtd",,"StudyData", $I$2, "Bar", "", "Close", $H$2, $B169, $M$2,$L$2,,$J$2,$K$2)="",NA(),RTD("cqg.rtd",,"StudyData", $I$2, "Bar", "", "Close", $H$2, $B169, $M$2,$L$2,,$J$2,$K$2)) ->  | E169: 0 | N169: 8.001 | O169: -167 | P169: =RTD("cqg.rtd",,"StudyData", $I$2, "Bar", "", "Time", $H$3,$B169, $M$2, "", "","False") -> 2019-08-09 | Q169: =IF(RTD("cqg.rtd",,"StudyData", $I$2, "Bar", "", "Close", $H$3, $B169, $M$2,$L$2,,$J$2,$K$2)="",NA(),RTD("cqg.rtd",,"StudyData", $I$2, "Bar", "", "Close", $H$3, $B169, $M$2,$L$2,,$J$2,$K$2)) ->  | R169: 0 | T169: X.US.BSPSUSMNTAP | U169: Barley Stocks by Position Total all pos. 1000 bushels Minnesota
A170: 38 | B170: -168 | C170: =RTD("cqg.rtd",,"StudyData", $I$2, "Bar", "", "Time", $H$2,$B170, $M$2, "", "","False") -> 2017-01-09 | D170: =IF(RTD("cqg.rtd",,"StudyData", $I$2, "Bar", "", "Close", $H$2, $B170, $M$2,$L$2,,$J$2,$K$2)="",NA(),RTD("cqg.rtd",,"StudyData", $I$2, "Bar", "", "Close", $H$2, $B170, $M$2,$L$2,,$J$2,$K$2)) -> 5.09 | E170: 5.09 | N170: 8.002 | O170: -168 | P170: =RTD("cqg.rtd",,"StudyData", $I$2, "Bar", "", "Time", $H$3,$B170, $M$2, "", "","False") -> 2019-08-08 | Q170: =IF(RTD("cqg.rtd",,"StudyData", $I$2, "Bar", "", "Close", $H$3, $B170, $M$2,$L$2,,$J$2,$K$2)="",NA(),RTD("cqg.rtd",,"StudyData", $I$2, "Bar", "", "Close", $H$3, $B170, $M$2,$L$2,,$J$2,$K$2)) ->  | R170: 0 | T170: X.US.BSPSUSMOOFF | U170: Barley Stocks by Position Off-farm 1000 bushels Missouri
A171: 38.001 | B171: -169 | C171: =RTD("cqg.rtd",,"StudyData", $I$2, "Bar", "", "Time", $H$2,$B171, $M$2, "", "","False") -> 2017-01-02 | D171: =IF(RTD("cqg.rtd",,"StudyData", $I$2, "Bar", "", "Close", $H$2, $B171, $M$2,$L$2,,$J$2,$K$2)="",NA(),RTD("cqg.rtd",,"StudyData", $I$2, "Bar", "", "Close", $H$2, $B171, $M$2,$L$2,,$J$2,$K$2)) ->  | E171: 0 | N171: 8.003 | O171: -169 | P171: =RTD("cqg.rtd",,"StudyData", $I$2, "Bar", "", "Time", $H$3,$B171, $M$2, "", "","False") -> 2019-08-07 | Q171: =IF(RTD("cqg.rtd",,"StudyData", $I$2, "Bar", "", "Close", $H$3, $B171, $M$2,$L$2,,$J$2,$K$2)="",NA(),RTD("cqg.rtd",,"StudyData", $I$2, "Bar", "", "Close", $H$3, $B171, $M$2,$L$2,,$J$2,$K$2)) ->  | R171: 0 | T171: X.US.BSPSUSMOONF | U171: Barley Stocks by Position On-farm 1000 bushels Missouri
A172: 38.002 | B172: -170 | C172: =RTD("cqg.rtd",,"StudyData", $I$2, "Bar", "", "Time", $H$2,$B172, $M$2, "", "","False") -> 2016-12-26 | D172: =IF(RTD("cqg.rtd",,"StudyData", $I$2, "Bar", "", "Close", $H$2, $B172, $M$2,$L$2,,$J$2,$K$2)="",NA(),RTD("cqg.rtd",,"StudyData", $I$2, "Bar", "", "Close", $H$2, $B172, $M$2,$L$2,,$J$2,$K$2)) ->  | E172: 0 | N172: 8.004 | O172: -170 | P172: =RTD("cqg.rtd",,"StudyData", $I$2, "Bar", "", "Time", $H$3,$B172, $M$2, "", "","False") -> 2019-08-06 | Q172: =IF(RTD("cqg.rtd",,"StudyData", $I$2, "Bar", "", "Close", $H$3, $B172, $M$2,$L$2,,$J$2,$K$2)="",NA(),RTD("cqg.rtd",,"StudyData", $I$2, "Bar", "", "Close", $H$3, $B172, $M$2,$L$2,,$J$2,$K$2)) ->  | R172: 0 | T172: X.US.BSPSUSMOTAP | U172: Barley Stocks by Position Total all pos. 1000 bushels Missouri
A173: 38.003 | B173: -171 | C173: =RTD("cqg.rtd",,"StudyData", $I$2, "Bar", "", "Time", $H$2,$B173, $M$2, "", "","False") -> 2016-12-19 | D173: =IF(RTD("cqg.rtd",,"StudyData", $I$2, "Bar", "", "Close", $H$2, $B173, $M$2,$L$2,,$J$2,$K$2)="",NA(),RTD("cqg.rtd",,"StudyData", $I$2, "Bar", "", "Close", $H$2, $B173, $M$2,$L$2,,$J$2,$K$2)) ->  | E173: 0 | N173: 8.005 | O173: -171 | P173: =RTD("cqg.rtd",,"StudyData", $I$2, "Bar", "", "Time", $H$3,$B173, $M$2, "", "","False") -> 2019-08-05 | Q173: =IF(RTD("cqg.rtd",,"StudyData", $I$2, "Bar", "", "Close", $H$3, $B173, $M$2,$L$2,,$J$2,$K$2)="",NA(),RTD("cqg.rtd",,"StudyData", $I$2, "Bar", "", "Close", $H$3, $B173, $M$2,$L$2,,$J$2,$K$2)) ->  | R173: 0 | T173: X.US.BSPSUSMSOFF | U173: Barley Stocks by Position Off-farm 1000 bushels Mississippi
A174: 38.004 | B174: -172 | C174: =RTD("cqg.rtd",,"StudyData", $I$2, "Bar", "", "Time", $H$2,$B174, $M$2, "", "","False") -> 2016-12-12 | D174: =IF(RTD("cqg.rtd",,"StudyData", $I$2, "Bar", "", "Close", $H$2, $B174, $M$2,$L$2,,$J$2,$K$2)="",NA(),RTD("cqg.rtd",,"StudyData", $I$2, "Bar", "", "Close", $H$2, $B174, $M$2,$L$2,,$J$2,$K$2)) ->  | E174: 0 | N174: 8.006 | O174: -172 | P174: =RTD("cqg.rtd",,"StudyData", $I$2, "Bar", "", "Time", $H$3,$B174, $M$2, "", "","False") -> 2019-08-02 | Q174: =IF(RTD("cqg.rtd",,"StudyData", $I$2, "Bar", "", "Close", $H$3, $B174, $M$2,$L$2,,$J$2,$K$2)="",NA(),RTD("cqg.rtd",,"StudyData", $I$2, "Bar", "", "Close", $H$3, $B174, $M$2,$L$2,,$J$2,$K$2)) ->  | R174: 0 | T174: X.US.BSPSUSMSONF | U174: Barley Stocks by Position On-farm 1000 bushels Mississippi
A175: 39 | B175: -173 | C175: =RTD("cqg.rtd",,"StudyData", $I$2, "Bar", "", "Time", $H$2,$B175, $M$2, "", "","False") -> 2016-12-05 | D175: =IF(RTD("cqg.rtd",,"StudyData", $I$2, "Bar", "", "Close", $H$2, $B175, $M$2,$L$2,,$J$2,$K$2)="",NA(),RTD("cqg.rtd",,"StudyData", $I$2, "Bar", "", "Close", $H$2, $B175, $M$2,$L$2,,$J$2,$K$2)) -> 5.08 | E175: 5.08 | N175: 8.007 | O175: -173 | P175: =RTD("cqg.rtd",,"StudyData", $I$2, "Bar", "", "Time", $H$3,$B175, $M$2, "", "","False") -> 2019-08-01 | Q175: =IF(RTD("cqg.rtd",,"StudyData", $I$2, "Bar", "", "Close", $H$3, $B175, $M$2,$L$2,,$J$2,$K$2)="",NA(),RTD("cqg.rtd",,"StudyData", $I$2, "Bar", "", "Close", $H$3, $B175, $M$2,$L$2,,$J$2,$K$2)) ->  | R175: 0 | T175: X.US.BSPSUSMSTAP | U175: Barley Stocks by Position Total all pos. 1000 bushels Mississippi
A176: 39.001 | B176: -174 | C176: =RTD("cqg.rtd",,"StudyData", $I$2, "Bar", "", "Time", $H$2,$B176, $M$2, "", "","False") -> 2016-11-28 | D176: =IF(RTD("cqg.rtd",,"StudyData", $I$2, "Bar", "", "Close", $H$2, $B176, $M$2,$L$2,,$J$2,$K$2)="",NA(),RTD("cqg.rtd",,"StudyData", $I$2, "Bar", "", "Close", $H$2, $B176, $M$2,$L$2,,$J$2,$K$2)) ->  | E176: 0 | N176: 8.008 | O176: -174 | P176: =RTD("cqg.rtd",,"StudyData", $I$2, "Bar", "", "Time", $H$3,$B176, $M$2, "", "","False") -> 2019-07-31 | Q176: =IF(RTD("cqg.rtd",,"StudyData", $I$2, "Bar", "", "Close", $H$3, $B176, $M$2,$L$2,,$J$2,$K$2)="",NA(),RTD("cqg.rtd",,"StudyData", $I$2, "Bar", "", "Close", $H$3, $B176, $M$2,$L$2,,$J$2,$K$2)) ->  | R176: 0 | T176: X.US.BSPSUSMTOFF | U176: Barley Stocks by Position Off-farm 1000 bushels Montana
A177: 39.002 | B177: -175 | C177: =RTD("cqg.rtd",,"StudyData", $I$2, "Bar", "", "Time", $H$2,$B177, $M$2, "", "","False") -> 2016-11-21 | D177: =IF(RTD("cqg.rtd",,"StudyData", $I$2, "Bar", "", "Close", $H$2, $B177, $M$2,$L$2,,$J$2,$K$2)="",NA(),RTD("cqg.rtd",,"StudyData", $I$2, "Bar", "", "Close", $H$2, $B177, $M$2,$L$2,,$J$2,$K$2)) ->  | E177: 0 | N177: 8.009 | O177: -175 | P177: =RTD("cqg.rtd",,"StudyData", $I$2, "Bar", "", "Time", $H$3,$B177, $M$2, "", "","False") -> 2019-07-30 | Q177: =IF(RTD("cqg.rtd",,"StudyData", $I$2, "Bar", "", "Close", $H$3, $B177, $M$2,$L$2,,$J$2,$K$2)="",NA(),RTD("cqg.rtd",,"StudyData", $I$2, "Bar", "", "Close", $H$3, $B177, $M$2,$L$2,,$J$2,$K$2)) ->  | R177: 0 | T177: X.US.BSPSUSMTONF | U177: Barley Stocks by Position On-farm 1000 bushels Montana
A178: 39.003 | B178: -176 | C178: =RTD("cqg.rtd",,"StudyData", $I$2, "Bar", "", "Time", $H$2,$B178, $M$2, "", "","False") -> 2016-11-14 | D178: =IF(RTD("cqg.rtd",,"StudyData", $I$2, "Bar", "", "Close", $H$2, $B178, $M$2,$L$2,,$J$2,$K$2)="",NA(),RTD("cqg.rtd",,"StudyData", $I$2, "Bar", "", "Close", $H$2, $B178, $M$2,$L$2,,$J$2,$K$2)) ->  | E178: 0 | N178: 8.01 | O178: -176 | P178: =RTD("cqg.rtd",,"StudyData", $I$2, "Bar", "", "Time", $H$3,$B178, $M$2, "", "","False") -> 2019-07-29 | Q178: =IF(RTD("cqg.rtd",,"StudyData", $I$2, "Bar", "", "Close", $H$3, $B178, $M$2,$L$2,,$J$2,$K$2)="",NA(),RTD("cqg.rtd",,"StudyData", $I$2, "Bar", "", "Close", $H$3, $B178, $M$2,$L$2,,$J$2,$K$2)) ->  | R178: 0 | T178: X.US.BSPSUSMTTAP | U178: Barley Stocks by Position Total all pos. 1000 bushels Montana
A179: 40 | B179: -177 | C179: =RTD("cqg.rtd",,"StudyData", $I$2, "Bar", "", "Time", $H$2,$B179, $M$2, "", "","False") -> 2016-11-07 | D179: =IF(RTD("cqg.rtd",,"StudyData", $I$2, "Bar", "", "Close", $H$2, $B179, $M$2,$L$2,,$J$2,$K$2)="",NA(),RTD("cqg.rtd",,"StudyData", $I$2, "Bar", "", "Close", $H$2, $B179, $M$2,$L$2,,$J$2,$K$2)) -> 5.08 | E179: 5.08 | N179: 8.011 | O179: -177 | P179: =RTD("cqg.rtd",,"StudyData", $I$2, "Bar", "", "Time", $H$3,$B179, $M$2, "", "","False") -> 2019-07-26 | Q179: =IF(RTD("cqg.rtd",,"StudyData", $I$2, "Bar", "", "Close", $H$3, $B179, $M$2,$L$2,,$J$2,$K$2)="",NA(),RTD("cqg.rtd",,"StudyData", $I$2, "Bar", "", "Close", $H$3, $B179, $M$2,$L$2,,$J$2,$K$2)) ->  | R179: 0 | T179: X.US.BSPSUSNCOFF | U179: Barley Stocks by Position Off-farm 1000 bushels North Carolina
A180: 40.001 | B180: -178 | C180: =RTD("cqg.rtd",,"StudyData", $I$2, "Bar", "", "Time", $H$2,$B180, $M$2, "", "","False") -> 2016-10-31 | D180: =IF(RTD("cqg.rtd",,"StudyData", $I$2, "Bar", "", "Close", $H$2, $B180, $M$2,$L$2,,$J$2,$K$2)="",NA(),RTD("cqg.rtd",,"StudyData", $I$2, "Bar", "", "Close", $H$2, $B180, $M$2,$L$2,,$J$2,$K$2)) ->  | E180: 0 | N180: 8.012 | O180: -178 | P180: =RTD("cqg.rtd",,"StudyData", $I$2, "Bar", "", "Time", $H$3,$B180, $M$2, "", "","False") -> 2019-07-25 | Q180: =IF(RTD("cqg.rtd",,"StudyData", $I$2, "Bar", "", "Close", $H$3, $B180, $M$2,$L$2,,$J$2,$K$2)="",NA(),RTD("cqg.rtd",,"StudyData", $I$2, "Bar", "", "Close", $H$3, $B180, $M$2,$L$2,,$J$2,$K$2)) ->  | R180: 0 | T180: X.US.BSPSUSNCONF | U180: Barley Stocks by Position On-farm 1000 bushels North Carolina
